Workbook

Sheet Control_Panel
A2: Fill rate indicator return
A4: Staffing: Nursing, midwifery and care staff
C6: Organisation: | E6: RWD | F6: =VLOOKUP(OrgCodeSelection,Orgs,2,FALSE) -> United Lincolnshire Hospitals NHS Trust
C9: Period: | E9: December_2016-17
D13: Basic Validations
D14: =IF(OrgCodeSelection="","No Organisation Code Selected","") ->  | K14: =IF(D14="",0,1) -> 0
D15: =IF(PeriodSelection="","No Period Selected","") ->  | K15: =IF(D15="",0,1) -> 0
D17: Validations
D18: =IF('Trust - Frontsheet'!C10="","",'Trust - Frontsheet'!C10) ->  | K18: =IF(D18="",0,1) -> 0
D19: =IF('Trust - Frontsheet'!C11="","",'Trust - Frontsheet'!C11) ->  | K19: 0
D20: =IF('Trust - Frontsheet'!B415=2,"No Sites Selected","") ->  | K20: 0
D21: =IF('Trust - Frontsheet'!D415>0,"No specialty added for at least one row","") ->  | K21: 0
D22: =IF('Trust - Frontsheet'!E415>0,"Planned hours total zero for at least one row","") ->  | K22: 0
D23: =IF('Trust - Frontsheet'!F415>0,"Actual hours total zero for at least one row","") ->  | K23: 0
D24: =IF('Trust - Frontsheet'!C7="","","Missing Site Code") ->  | K24: 0
D25: =IF('Trust - Frontsheet'!A10=1,"No Data Entered In First Row","") ->  | K25: 0
D26: =IF('Trust - Frontsheet'!F10="","","Selection(s) for Spec1 not made from drop down box") ->  | K26: 0
D27: =IF('Trust - Frontsheet'!L415=1,"Site Codes Missing","") ->  | K27: 0
D28: =IF('Trust - Frontsheet'!M415=1,"Ward Name(s) missing","") ->  | K28: 0
D29: =IF('Trust - Frontsheet'!G10="","","Selection(s) for Spec2 not made from drop down box") ->  | K29: 0
D30: =IF('Trust - Frontsheet'!U415=1,"Trust not required to submit CHPPD figures","") ->  | K30: 0
D31: =IF(K31=0,"","YOU WILL NOT BE ABLE TO UPLOAD AS YOU HAVE VALIDATION ERRORS ABOVE") ->  | K31: =SUM(K14:K30) -> 0
D34: Discretionary validations (will not prevent upload)
D36: =IF('Trust - Frontsheet'!G415>0,"Total hours less than 1448 (approx 2 full time staff) for at least one row","") -> Total hours less than 1448 (approx 2 full time staff) for at least one row | K36: =IF(D36="",0,1) -> 1
D37: =IF('Trust - Frontsheet'!P415>0,"Day nurse fill rate >100%","") -> Day nurse fill rate >100% | K37: 1
D38: =IF('Trust - Frontsheet'!Q415>0,"Day care staff fill rate >100%","") -> Day care staff fill rate >100% | K38: 1
D39: =IF('Trust - Frontsheet'!R415>0,"Night nurse fill rate >100%","") -> Night nurse fill rate >100% | K39: 1
D40: =IF('Trust - Frontsheet'!S415>0,"Night care staff fill rate >100%","") -> Night care staff fill rate >100% | K40: 1
D41: =IF('Trust - Frontsheet'!H415>0,"Total hours more than 30000 (approx 40 full time staff) for at least one row","") ->  | K41: 0
D42: =IF('Trust - Frontsheet'!T415=1,"Actual care hours submitted but no CHPPD patients","") ->  | K42: 0

Sheet Admin_Controls (hidden)
B21: Notes
B23: If the organisation lists for the collection changes then a few things need to be changed…
B24: The new org code and name needs to be put onto the Index in the relevant fields
B25: The range for the organisations also need amending - "Orgs" to make sure that the new organisations are included where they should be
B27: Make sure all the headers on the front sheet (mockup) are bold and then you can run the above macro to change the colour of the text to the Unify2 Standard
B28: When copying in a backsheet for a new upload the "header" information in the mock backsheet should not be altered - only the data below row 8 should be copied in, but the relevant "header" cells just manually changed - i.e. 'Collection_Reference and 'Last_Row
B29: No extra worksheets should be added into the workbook
B30: Admin users will need to link the backsheet to the frontsheet when creating the uplaod
B32: If the periof of the collection changes users will need to copy the valide periods in the valid format for the correct period type and put them onto the index sheet, also the relevant range will also need updating
B34: Users must change the periods reference sheet so it ONLY shows the period type applicable for the collection

Sheet Index (hidden)
A1: Lookups | F1: Provider Orgs | J1: Concatenation | K1: Natural Key | N1: Provider Orgs | O1: CHPPD
A2: Columns | B2: Row | F2: RTQ | G2: 2gether NHS Foundation Trust | J2: April_2016-17 | K2: 10154 | N2: RTQ | O2: N
A3: 1 | B3: 1 | F3: RTV | G3: 5 Boroughs Partnership NHS Foundation Trust | J3: May_2016-17 | K3: 10155 | N3: RTV | O3: N
A4: 1 | B4: 2 | F4: REM | G4: Aintree University Hospital NHS Foundation Trust | J4: June_2016-17 | K4: 10156 | N4: REM | O4: Y
A5: 1 | B5: 3 | F5: RCF | G5: Airedale NHS Foundation Trust | J5: July_2016-17 | K5: 10157 | N5: RCF | O5: Y
A6: 1 | B6: 4 | F6: RBS | G6: Alder Hey Children's NHS Foundation Trust | J6: August_2016-17 | K6: 10158 | N6: RBS | O6: Y
A7: 1 | B7: 5 | F7: NQ1 | G7: Anglian Community Enterprise | J7: September_2016-17 | K7: 10159 | N7: NQ1 | O7: N
A8: 1 | B8: 6 | F8: RTK | G8: Ashford And St Peter's Hospitals NHS Foundation Trust | J8: October_2016-17 | K8: 10160 | N8: RTK | O8: Y
A9: 1 | B9: 7 | F9: RVN | G9: Avon and Wiltshire Mental Health Partnership NHS Trust | J9: November_2016-17 | K9: 10161 | N9: RVN | O9: N
A10: 1 | B10: 8 | F10: RF4 | G10: Barking, Havering And Redbridge University Hospitals NHS Trust | J10: December_2016-17 | K10: 10162 | N10: RF4 | O10: Y
A11: 1 | B11: 9 | F11: RRP | G11: Barnet, Enfield and Haringey Mental Health NHS Trust | J11: January_2016-17 | K11: 10163 | N11: RRP | O11: N
A12: 1 | B12: 10 | F12: RFF | G12: Barnsley Hospital NHS Foundation Trust | J12: February_2016-17 | K12: 10164 | N12: RFF | O12: Y
A13: 1 | B13: 11 | F13: R1H | G13: Barts Health NHS Trust | J13: March_2016-17 | K13: 10165 | N13: R1H | O13: Y
A14: 1 | B14: 12 | F14: RDD | G14: Basildon And Thurrock University Hospitals NHS Foundation Trust | N14: RDD | O14: Y
A15: 1 | B15: 13 | F15: RC1 | G15: Bedford Hospital NHS Trust | N15: RC1 | O15: Y
A16: 1 | B16: 14 | F16: RWX | G16: Berkshire Healthcare NHS Foundation Trust | N16: RWX | O16: N
A17: 1 | B17: 15 | F17: RXT | G17: Birmingham and Solihull Mental Health NHS Foundation Trust | N17: RXT | O17: N
A18: 1 | B18: 16 | F18: RQ3 | G18: Birmingham Children's Hospital NHS Foundation Trust | N18: RQ3 | O18: Y
A19: 1 | B19: 17 | F19: RYW | G19: Birmingham Community HealthCare NHS Trust | N19: RYW | O19: N
A20: 1 | B20: 18 | F20: RLU | G20: Birmingham Women's NHS Foundation Trust | N20: RLU | O20: Y
A21: 1 | B21: 19 | F21: TAJ | G21: Black Country Partnership NHS Foundation Trust | N21: TAJ | O21: N
A22: 1 | B22: 20 | F22: RXL | G22: Blackpool Teaching Hospitals NHS Foundation Trust | N22: RXL | O22: Y
A23: 1 | B23: 21 | F23: RMC | G23: Bolton NHS Foundation Trust | N23: RMC | O23: Y
A24: 1 | B24: 22 | F24: TAD | G24: Bradford District Care Trust | N24: TAD | O24: N
A25: 1 | B25: 23 | F25: RAE | G25: Bradford Teaching Hospitals NHS Foundation Trust | N25: RAE | O25: Y
A26: 1 | B26: 24 | F26: RY2 | G26: Bridgewater Community Healthcare NHS Trust | N26: RY2 | O26: N
A27: 1 | B27: 25 | F27: RXH | G27: Brighton And Sussex University Hospitals NHS Trust | N27: RXH | O27: Y
A28: 1 | B28: 26 | F28: RXQ | G28: Buckinghamshire Healthcare NHS Trust | N28: RXQ | O28: Y
A29: 1 | B29: 27 | F29: RJF | G29: Burton Hospitals NHS Foundation Trust | N29: RJF | O29: Y
A30: 1 | B30: 28 | F30: RWY | G30: Calderdale And Huddersfield NHS Foundation Trust | N30: RWY | O30: Y
A31: 1 | B31: 29 | F31: RGT | G31: Cambridge University Hospitals NHS Foundation Trust | N31: RGT | O31: Y
A32: 1 | B32: 30 | F32: RT1 | G32: Cambridgeshire And Peterborough NHS Foundation Trust | N32: RT1 | O32: N
A33: 1 | B33: 31 | F33: RYV | G33: Cambridgeshire Community Services NHS Trust | N33: RYV | O33: N
A34: 1 | B34: 32 | F34: TAF | G34: Camden And Islington NHS Foundation Trust | N34: TAF | O34: N
A35: 1 | B35: 33 | F35: RV3 | G35: Central and North West London NHS Foundation Trust | N35: RV3 | O35: N
A36: 1 | B36: 34 | F36: RYX | G36: Central London Community Healthcare NHS Trust | N36: RYX | O36: N
A37: 1 | B37: 35 | F37: RW3 | G37: Central Manchester University Hospitals NHS Foundation Trust | N37: RW3 | O37: Y
A38: 1 | B38: 36 | F38: RQM | G38: Chelsea And Westminster Hospital NHS Foundation Trust | N38: RQM | O38: Y
A39: 1 | B39: 37 | F39: RXA | G39: Cheshire and Wirral Partnership NHS Foundation Trust | N39: RXA | O39: N
A40: 1 | B40: 38 | F40: RFS | G40: Chesterfield Royal Hospital NHS Foundation Trust | N40: RFS | O40: Y
A41: 1 | B41: 39 | F41: RLN | G41: City Hospitals Sunderland NHS Foundation Trust | N41: RLN | O41: Y
A42: 1 | B42: 40 | F42: RDE | G42: Colchester Hospital University NHS Foundation Trust | N42: RDE | O42: Y
A43: 1 | B43: 41 | F43: RJ8 | G43: Cornwall Partnership NHS Foundation Trust | N43: RJ8 | O43: N
A44: 1 | B44: 42 | F44: RJR | G44: Countess Of Chester Hospital NHS Foundation Trust | N44: RJR | O44: Y
A45: 1 | B45: 43 | F45: RXP | G45: County Durham And Darlington NHS Foundation Trust | N45: RXP | O45: Y
A46: 1 | B46: 44 | F46: RYG | G46: Coventry and Warwickshire Partnership NHS Trust | N46: RYG | O46: N
A47: 1 | B47: 45 | F47: RJ6 | G47: Croydon Health Services NHS Trust | N47: RJ6 | O47: Y
A48: 1 | B48: 46 | F48: RNN | G48: Cumbria Partnership NHS Foundation Trust | N48: RNN | O48: N
A49: 1 | B49: 47 | F49: RN7 | G49: Dartford And Gravesham NHS Trust | N49: RN7 | O49: Y
A50: 1 | B50: 48 | F50: RTG | G50: Derby Hospitals NHS Foundation Trust | N50: RTG | O50: Y
A51: 1 | B51: 49 | F51: RY8 | G51: Derbyshire Community Health Services NHS Trust | N51: RY8 | O51: N
A52: 1 | B52: 50 | F52: RXM | G52: Derbyshire Healthcare NHS Foundation Trust | N52: RXM | O52: N
A53: 1 | B53: 51 | F53: RWV | G53: Devon Partnership NHS Trust | N53: RWV | O53: N
A54: 1 | B54: 52 | F54: RP5 | G54: Doncaster And Bassetlaw Hospitals NHS Foundation Trust | N54: RP5 | O54: Y
A55: 1 | B55: 53 | F55: RBD | G55: Dorset County Hospital NHS Foundation Trust | N55: RBD | O55: Y
A56: 1 | B56: 54 | F56: RDY | G56: Dorset HealthCare University NHS Foundation Trust | N56: RDY | O56: N
A57: 1 | B57: 55 | F57: RYK | G57: Dudley and Walsall Mental Health Partnership NHS Trust | N57: RYK | O57: N
A58: 1 | B58: 56 | F58: RWH | G58: East And North Hertfordshire NHS Trust | N58: RWH | O58: Y
A59: 1 | B59: 57 | F59: RJN | G59: East Cheshire NHS Trust | N59: RJN | O59: Y
A60: 1 | B60: 58 | F60: RVV | G60: East Kent Hospitals University NHS Foundation Trust | N60: RVV | O60: Y
A61: 1 | B61: 59 | F61: RXR | G61: East Lancashire Hospitals NHS Trust | N61: RXR | O61: Y
A62: 1 | B62: 60 | F62: RWK | G62: East London Foundation Trust | N62: RWK | O62: N
A63: 1 | B63: 61 | F63: RXC | G63: East Sussex Healthcare NHS Trust | N63: RXC | O63: Y
A64: 1 | B64: 62 | F64: RVR | G64: Epsom And St Helier University Hospitals NHS Trust | N64: RVR | O64: Y
A65: 1 | B65: 63 | F65: RDU | G65: Frimley Park Hospital NHS Foundation Trust | N65: RDU | O65: Y
A66: 1 | B66: 64 | F66: RR7 | G66: Gateshead Health NHS Foundation Trust | N66: RR7 | O66: Y
A67: 1 | B67: 65 | F67: RLT | G67: George Eliot Hospital NHS Trust | N67: RLT | O67: Y
A68: 1 | B68: 66 | F68: R1J | G68: Gloucestershire Care Services NHS Trust | N68: R1J | O68: N
A69: 1 | B69: 67 | F69: RTE | G69: Gloucestershire Hospitals NHS Foundation Trust | N69: RTE | O69: Y
A70: 1 | B70: 68 | F70: RP4 | G70: Great Ormond Street Hospital For Children NHS Foundation Trust | N70: RP4 | O70: Y
A71: 1 | B71: 69 | F71: RN3 | G71: Great Western Hospitals NHS Foundation Trust | N71: RN3 | O71: Y
A72: 1 | B72: 70 | F72: RXV | G72: Greater Manchester West Mental Health NHS Foundation Trust | N72: RXV | O72: N
A73: 1 | B73: 71 | F73: RJ1 | G73: Guy's And St Thomas' NHS Foundation Trust | N73: RJ1 | O73: Y
A74: 1 | B74: 72 | F74: RN5 | G74: Hampshire Hospitals NHS Foundation Trust | N74: RN5 | O74: Y
A75: 1 | B75: 73 | F75: RCD | G75: Harrogate And District NHS Foundation Trust | N75: RCD | O75: Y
A76: 1 | B76: 74 | F76: RR1 | G76: Heart Of England NHS Foundation Trust | N76: RR1 | O76: Y
A77: 1 | B77: 75 | F77: RY4 | G77: Hertfordshire Community NHS Trust | N77: RY4 | O77: N
A78: 1 | B78: 76 | F78: RWR | G78: Hertfordshire Partnership University NHS Foundation Trust | N78: RWR | O78: N
A79: 1 | B79: 77 | F79: RQQ | G79: Hinchingbrooke Health Care NHS Trust | N79: RQQ | O79: Y
A80: 1 | B80: 78 | F80: RQX | G80: Homerton University Hospital NHS Foundation Trust | N80: RQX | O80: Y
A81: 1 | B81: 79 | F81: RY9 | G81: Hounslow And Richmond Community Healthcare NHS Trust | N81: RY9 | O81: N
A82: 1 | B82: 80 | F82: RWA | G82: Hull And East Yorkshire Hospitals NHS Trust | N82: RWA | O82: Y
A83: 1 | B83: 81 | F83: RV9 | G83: Humber NHS Foundation Trust | N83: RV9 | O83: N
A84: 1 | B84: 82 | F84: RYJ | G84: Imperial College Healthcare NHS Trust | N84: RYJ | O84: Y
A85: 1 | B85: 83 | F85: RGQ | G85: Ipswich Hospital NHS Trust | N85: RGQ | O85: Y
A86: 1 | B86: 84 | F86: R1F | G86: Isle Of Wight NHS Trust | N86: R1F | O86: Y
A87: 1 | B87: 85 | F87: RGP | G87: James Paget University Hospitals NHS Foundation Trust | N87: RGP | O87: Y
A88: 1 | B88: 86 | F88: RXY | G88: Kent And Medway NHS And Social Care Partnership Trust | N88: RXY | O88: N
A89: 1 | B89: 87 | F89: RYY | G89: Kent Community Health NHS Trust | N89: RYY | O89: N
A90: 1 | B90: 88 | F90: RNQ | G90: Kettering General Hospital NHS Foundation Trust | N90: RNQ | O90: Y
A91: 1 | B91: 89 | F91: RJZ | G91: King's College Hospital NHS Foundation Trust | N91: RJZ | O91: Y
A92: 1 | B92: 90 | F92: RAX | G92: Kingston Hospital NHS Trust | N92: RAX | O92: Y
A93: 1 | B93: 91 | F93: RW5 | G93: Lancashire Care NHS Foundation trust | N93: RW5 | O93: N
A94: 1 | B94: 92 | F94: RXN | G94: Lancashire Teaching Hospitals NHS Foundation Trust | N94: RXN | O94: Y
A95: 1 | B95: 93 | F95: RGD | G95: Leeds and York Partnership NHS Foundation Trust | N95: RGD | O95: N
A96: 1 | B96: 94 | F96: RY6 | G96: Leeds Community Healthcare NHS Trust | N96: RY6 | O96: N
A97: 1 | B97: 95 | F97: RR8 | G97: Leeds Teaching Hospitals NHS Trust | N97: RR8 | O97: Y
A98: 1 | B98: 96 | F98: RT5 | G98: Leicestershire Partnership NHS Trust | N98: RT5 | O98: N
A99: 1 | B99: 97 | F99: RJ2 | G99: Lewisham and Greenwich NHS Trust | N99: RJ2 | O99: Y
A100: 1 | B100: 98 | F100: RY5 | G100: Lincolnshire Community Health Services NHS Trust | N100: RY5 | O100: N
A101: 1 | B101: 99 | F101: RP7 | G101: Lincolnshire Partnership NHS Foundation Trust | N101: RP7 | O101: N
A102: 1 | B102: 100 | F102: RY1 | G102: Liverpool Community Health NHS Trust | N102: RY1 | O102: N
A103: 1 | B103: 101 | F103: RBQ | G103: Liverpool Heart And Chest NHS Foundation Trust | N103: RBQ | O103: Y
A104: 1 | B104: 102 | F104: REP | G104: Liverpool Women's NHS Foundation Trust | N104: REP | O104: Y
A105: 1 | B105: 103 | F105: R1K | G105: London North West Healthcare NHS Trust | N105: R1K | O105: Y
A106: 1 | B106: 104 | F106: RC9 | G106: Luton And Dunstable Hospital NHS Foundation Trust | N106: RC9 | O106: Y
A107: 1 | B107: 105 | F107: RWF | G107: Maidstone And Tunbridge Wells NHS Trust | N107: RWF | O107: Y
A108: 1 | B108: 106 | F108: TAE | G108: Manchester Mental Health and Social Care Trust | N108: TAE | O108: N
A109: 1 | B109: 107 | F109: RPA | G109: Medway NHS Foundation Trust | N109: RPA | O109: Y
A110: 1 | B110: 108 | F110: RW4 | G110: Mersey Care NHS Trust | N110: RW4 | O110: N
A111: 1 | B111: 109 | F111: RBT | G111: Mid Cheshire Hospitals NHS Foundation Trust | N111: RBT | O111: Y
A112: 1 | B112: 110 | F112: RQ8 | G112: Mid Essex Hospital Services NHS Trust | N112: RQ8 | O112: Y
A113: 1 | B113: 111 | F113: RJD | G113: Mid Staffordshire NHS Foundation Trust | N113: RJD | O113: N
A114: 1 | B114: 112 | F114: RXF | G114: Mid Yorkshire Hospitals NHS Trust | N114: RXF | O114: Y
A115: 1 | B115: 113 | F115: RD8 | G115: Milton Keynes Hospital NHS Foundation Trust | N115: RD8 | O115: Y
A116: 1 | B116: 114 | F116: RP6 | G116: Moorfields Eye Hospital NHS Foundation Trust | N116: RP6 | O116: Y
A117: 1 | B117: 115 | F117: RM1 | G117: Norfolk And Norwich University Hospitals NHS Foundation Trust | N117: RM1 | O117: Y
A118: 1 | B118: 116 | F118: RMY | G118: Norfolk and Suffolk NHS Foundation Trust | N118: RMY | O118: N
A119: 1 | B119: 117 | F119: RY3 | G119: Norfolk Community Health And Care NHS Trust | N119: RY3 | O119: N
A120: 1 | B120: 118 | F120: RVJ | G120: North Bristol NHS Trust | N120: RVJ | O120: Y
A121: 1 | B121: 119 | F121: RNL | G121: North Cumbria University Hospitals NHS Trust | N121: RNL | O121: Y
A122: 1 | B122: 120 | F122: RAT | G122: North East London NHS Foundation Trust | N122: RAT | O122: N
A123: 1 | B123: 121 | F123: RRD | G123: North Essex Partnership University NHS Foundation Trust | N123: RRD | O123: N
A124: 1 | B124: 122 | F124: RAP | G124: North Middlesex University Hospital NHS Trust | N124: RAP | O124: Y
A125: 1 | B125: 123 | F125: RLY | G125: North Staffordshire Combined Healthcare NHS Trust | N125: RLY | O125: N
A126: 1 | B126: 124 | F126: RVW | G126: North Tees And Hartlepool NHS Foundation Trust | N126: RVW | O126: Y
A127: 1 | B127: 125 | F127: RNS | G127: Northampton General Hospital NHS Trust | N127: RNS | O127: Y
A128: 1 | B128: 126 | F128: RP1 | G128: Northamptonshire Healthcare NHS Foundation Trust | N128: RP1 | O128: N
A129: 1 | B129: 127 | F129: RBZ | G129: Northern Devon Healthcare NHS Trust | N129: RBZ | O129: Y
A130: 1 | B130: 128 | F130: RJL | G130: Northern Lincolnshire And Goole Hospitals NHS Foundation Trust | N130: RJL | O130: Y
A131: 1 | B131: 129 | F131: RX4 | G131: Northumberland, Tyne and Wear NHS Foundation Trust | N131: RX4 | O131: N
A132: 1 | B132: 130 | F132: RTF | G132: Northumbria Healthcare NHS Foundation Trust | N132: RTF | O132: Y
A133: 1 | B133: 131 | F133: RX1 | G133: Nottingham University Hospitals NHS Trust | N133: RX1 | O133: Y
A134: 1 | B134: 132 | F134: RHA | G134: Nottinghamshire Healthcare NHS Trust | N134: RHA | O134: N
A135: 1 | B135: 133 | F135: RNU | G135: Oxford Health NHS Foundation Trust | N135: RNU | O135: N
A136: 1 | B136: 134 | F136: RTH | G136: Oxford University Hospitals NHS Trust | N136: RTH | O136: Y
A137: 1 | B137: 135 | F137: RPG | G137: Oxleas NHS Foundation Trust | N137: RPG | O137: N
A138: 1 | B138: 136 | F138: RGM | G138: Papworth Hospital NHS Foundation Trust | N138: RGM | O138: Y
A139: 1 | B139: 137 | F139: RW6 | G139: Pennine Acute Hospitals NHS Trust | N139: RW6 | O139: Y
A140: 1 | B140: 138 | F140: RT2 | G140: Pennine Care NHS Foundation Trust | N140: RT2 | O140: N
A141: 1 | B141: 139 | F141: RGN | G141: Peterborough And Stamford Hospitals NHS Foundation Trust | N141: RGN | O141: Y
A142: 1 | B142: 140 | F142: RK9 | G142: Plymouth Hospitals NHS Trust | N142: RK9 | O142: Y
A143: 1 | B143: 141 | F143: RD3 | G143: Poole Hospital NHS Foundation Trust | N143: RD3 | O143: Y
A144: 1 | B144: 142 | F144: RHU | G144: Portsmouth Hospitals NHS Trust | N144: RHU | O144: Y
A145: 1 | B145: 143 | F145: RPC | G145: Queen Victoria Hospital NHS Foundation Trust | N145: RPC | O145: Y
A146: 1 | B146: 144 | F146: NVC | G146: Ramsay Healthcare UK Operations Limited | N146: NVC | O146: N
A147: 1 | B147: 145 | F147: RXE | G147: Rotherham Doncaster and South Humber NHS Foundation Trust | N147: RXE | O147: N
A148: 1 | B148: 146 | F148: RHW | G148: Royal Berkshire NHS Foundation Trust | N148: RHW | O148: Y
A149: 1 | B149: 147 | F149: RT3 | G149: Royal Brompton And Harefield NHS Foundation Trust | N149: RT3 | O149: Y
A150: 1 | B150: 148 | F150: REF | G150: Royal Cornwall Hospitals NHS Trust | N150: REF | O150: Y
A151: 1 | B151: 149 | F151: RH8 | G151: Royal Devon And Exeter NHS Foundation Trust | N151: RH8 | O151: Y
A152: 1 | B152: 150 | F152: RAL | G152: Royal Free London NHS Foundation Trust | N152: RAL | O152: Y
A153: 1 | B153: 151 | F153: RQ6 | G153: Royal Liverpool And Broadgreen University Hospitals NHS Trust | N153: RQ6 | O153: Y
A154: 1 | B154: 152 | F154: RBB | G154: Royal National Hospital For Rheumatic Diseases NHS Foundation Trust | N154: RBB | O154: N
A155: 1 | B155: 153 | F155: RAN | G155: Royal National Orthopaedic Hospital NHS Trust | N155: RAN | O155: Y
A156: 1 | B156: 154 | F156: RA2 | G156: Royal Surrey County Hospital NHS Foundation Trust | N156: RA2 | O156: Y
A157: 1 | B157: 155 | F157: RD1 | G157: Royal United Hospital Bath NHS Trust | N157: RD1 | O157: Y
A158: 1 | B158: 156 | F158: RM3 | G158: Salford Royal NHS Foundation Trust | N158: RM3 | O158: Y
A159: 1 | B159: 157 | F159: RNZ | G159: Salisbury NHS Foundation Trust | N159: RNZ | O159: Y
A160: 1 | B160: 158 | F160: RXK | G160: Sandwell And West Birmingham Hospitals NHS Trust | N160: RXK | O160: Y
A161: 1 | B161: 159 | F161: RCU | G161: Sheffield Children's NHS Foundation Trust | N161: RCU | O161: Y
A162: 1 | B162: 160 | F162: TAH | G162: Sheffield Health & Social Care NHS Foundation Trust | N162: TAH | O162: N
A163: 1 | B163: 161 | F163: RHQ | G163: Sheffield Teaching Hospitals NHS Foundation Trust | N163: RHQ | O163: Y
A164: 1 | B164: 162 | F164: RK5 | G164: Sherwood Forest Hospitals NHS Foundation Trust | N164: RK5 | O164: Y
A165: 1 | B165: 163 | F165: RXW | G165: Shrewsbury And Telford Hospital NHS Trust | N165: RXW | O165: Y
A166: 1 | B166: 164 | F166: R1D | G166: Shropshire Community Health NHS Trust | N166: R1D | O166: N
A167: 1 | B167: 165 | F167: NLX | G167: Sirona Care & Health | N167: NLX | O167: N
A168: 1 | B168: 166 | F168: R1C | G168: Solent NHS Trust | N168: R1C | O168: N
A169: 1 | B169: 167 | F169: RH5 | G169: Somerset Partnership NHS Foundation Trust | N169: RH5 | O169: N
A170: 1 | B170: 168 | F170: RWN | G170: South Essex Partnership University NHS Foundation Trust | N170: RWN | O170: N
A171: 1 | B171: 169 | F171: RV5 | G171: South London And Maudsley NHS Foundation Trust | N171: RV5 | O171: N
A172: 1 | B172: 170 | F172: RYQ | G172: South London Healthcare NHS Trust | N172: RYQ | O172: N
A173: 1 | B173: 171 | F173: RRE | G173: South Staffordshire And Shropshire Healthcare NHS Foundation Trust | N173: RRE | O173: N
A174: 1 | B174: 172 | F174: RTR | G174: South Tees Hospitals NHS Foundation Trust | N174: RTR | O174: Y
A175: 1 | B175: 173 | F175: RE9 | G175: South Tyneside NHS Foundation Trust | N175: RE9 | O175: Y
A176: 1 | B176: 174 | F176: RJC | G176: South Warwickshire NHS Foundation Trust | N176: RJC | O176: Y
A177: 1 | B177: 175 | F177: RQY | G177: South West London And St George's Mental Health NHS Trust | N177: RQY | O177: N
A178: 1 | B178: 176 | F178: RXG | G178: South West Yorkshire Partnership NHS Foundation Trust | N178: RXG | O178: N
A179: 1 | B179: 177 | F179: RAJ | G179: Southend University Hospital NHS Foundation Trust | N179: RAJ | O179: Y
A180: 1 | B180: 178 | F180: RW1 | G180: Southern Health NHS Foundation Trust | N180: RW1 | O180: N
A181: 1 | B181: 179 | F181: RVY | G181: Southport And Ormskirk Hospital NHS Trust | N181: RVY | O181: Y
A182: 1 | B182: 180 | F182: RJ7 | G182: St George's Healthcare NHS Trust | N182: RJ7 | O182: Y
A183: 1 | B183: 181 | F183: RBN | G183: St Helens And Knowsley Hospitals NHS Trust | N183: RBN | O183: Y
A184: 1 | B184: 182 | F184: R1E | G184: Staffordshire and Stoke on Trent Partnership NHS Trust | N184: R1E | O184: N
A185: 1 | B185: 183 | F185: RWJ | G185: Stockport NHS Foundation Trust | N185: RWJ | O185: Y
A186: 1 | B186: 184 | F186: NHM | G186: Suffolk Community Healthcare | N186: NHM | O186: N
A187: 1 | B187: 185 | F187: RXX | G187: Surrey and Borders Partnership NHS Foundation Trust | N187: RXX | O187: N
A188: 1 | B188: 186 | F188: RTP | G188: Surrey And Sussex Healthcare NHS Trust | N188: RTP | O188: Y
A189: 1 | B189: 187 | F189: RDR | G189: Sussex Community NHS Trust | N189: RDR | O189: N
A190: 1 | B190: 188 | F190: RX2 | G190: Sussex Partnership NHS Foundation Trust | N190: RX2 | O190: N
A191: 1 | B191: 189 | F191: RMP | G191: Tameside Hospital NHS Foundation Trust | N191: RMP | O191: Y
A192: 1 | B192: 190 | F192: RBA | G192: Taunton And Somerset NHS Foundation Trust | N192: RBA | O192: Y
A193: 1 | B193: 191 | F193: RNK | G193: Tavistock And Portman NHS Foundation Trust | N193: RNK | O193: N
A194: 1 | B194: 192 | F194: RX3 | G194: Tees, Esk and Wear Valleys NHS Foundation Trust | N194: RX3 | O194: N
A195: 1 | B195: 193 | F195: RBV | G195: The Christie NHS Foundation Trust | N195: RBV | O195: Y
A196: 1 | B196: 194 | F196: REN | G196: The Clatterbridge Cancer Centre NHS Foundation Trust | N196: REN | O196: Y
A197: 1 | B197: 195 | F197: RNA | G197: The Dudley Group NHS Foundation Trust | N197: RNA | O197: Y
A198: 1 | B198: 196 | F198: RAS | G198: The Hillingdon Hospitals NHS Foundation Trust | N198: RAS | O198: Y
A199: 1 | B199: 197 | F199: RTD | G199: The Newcastle Upon Tyne Hospitals NHS Foundation Trust | N199: RTD | O199: Y
A200: 1 | B200: 198 | F200: RQW | G200: The Princess Alexandra Hospital NHS Trust | N200: RQW | O200: Y
... 2602 more rows

Sheet Full_Period_References (hidden)
A1: PERIOD TYPE | B1: PK_PERIODID | C1: YEAR NUMBER | D1: PERIOD NAME | E1: CALENDAR YEAR NUMBER
A2: Month | B2: 7901 | C2: 2010-11 | D2: April | E2: 2016
A3: Month | B3: 10083 | C3: 2010-11 | D3: May | E3: 2016
A4: Month | B4: 10084 | C4: 2010-11 | D4: June | E4: 2016
A5: Month | B5: 10085 | C5: 2010-11 | D5: July | E5: 2016
A6: Month | B6: 10086 | C6: 2010-11 | D6: August | E6: 2016
A7: Month | B7: 10087 | C7: 2010-11 | D7: September | E7: 2016
A8: Month | B8: 10088 | C8: 2010-11 | D8: October | E8: 2016
A9: Month | B9: 10089 | C9: 2010-11 | D9: November | E9: 2016
A10: Month | B10: 10090 | C10: 2010-11 | D10: December | E10: 2016
A11: Month | B11: 10091 | C11: 2010-11 | D11: January | E11: 2017
A12: Month | B12: 10092 | C12: 2010-11 | D12: February | E12: 2011
A13: Month | B13: 10093 | C13: 2010-11 | D13: March | E13: 2011
A14: Month | B14: 10094 | C14: 2011-12 | D14: April | E14: 2011

Sheet Trust - Frontsheet
A1: =IF(VLOOKUP($B$2,Index!$N:$O,2,0)="Y","Y","N") -> Y | G1: Fill rate indicator return | AS1: Concat | AT1: Clinic code | AU1: Clinic list | AV1: Site code | AW1: Site List | AX1: Parent Org
A2: Org: | B2: =Control_Panel!OrgCodeSelection -> RWD | C2: =IF(Control_Panel!OrgNameSelection="","",Control_Panel!OrgNameSelection) -> United Lincolnshire Hospitals NHS Trust | F2: Staffing: Nursing, midwifery and care staff | AS2: =CONCATENATE(LEFT(AT2, 3),AU2) -> AXGWILTSHIRE HEALTH & CARE (CHIPPENHAM COMMUNITY HOSPITAL) | AT2: AXG01 | AU2: WILTSHIRE HEALTH & CARE (CHIPPENHAM COMMUNITY HOSPITAL) | AV2: AXG01 | AW2: WILTSHIRE HEALTH & CARE (CHIPPENHAM COMMUNITY HOSPITAL) | AX2: =LEFT(AV2,3) -> AXG
A3: Period: | B3: =IF(Control_Panel!PeriodSelection="","",Control_Panel!PeriodSelection) -> December_2016-17 | AS3: =CONCATENATE(LEFT(AT3, 3),AU3) -> AXGSAVERNAKE COMMUNITY HOSPITAL | AT3: AXG02 | AU3: SAVERNAKE COMMUNITY HOSPITAL | AV3: AXG02 | AW3: SAVERNAKE COMMUNITY HOSPITAL | AX3: =LEFT(AV3,3) -> AXG
AS4: =CONCATENATE(LEFT(AT4, 3),AU4) -> AXGWARMINSTER COMMUNITY HOSPITAL | AT4: AXG03 | AU4: WARMINSTER COMMUNITY HOSPITAL | AV4: AXG03 | AW4: WARMINSTER COMMUNITY HOSPITAL | AX4: =LEFT(AV4,3) -> AXG
E5: Please provide the URL to the page on your trust website where your staffing information is available | AS5: =CONCATENATE(LEFT(AT5, 3),AU5) -> NHMALDEBURGH COMMUNITY HOSPITAL | AT5: NHM02 | AU5: ALDEBURGH COMMUNITY HOSPITAL | AV5: NHM02 | AW5: ALDEBURGH COMMUNITY HOSPITAL | AX5: =LEFT(AV5,3) -> NHM
E6: (Please can you ensure that the URL you attach to the spreadsheet is correct and links to the correct web page and include 'http://' in your URL) | AS6: NHMBLUEBIRD LODGE | AT6: NHM03 | AU6: BLUEBIRD LODGE | AV6: NHM03 | AW6: BLUEBIRD LODGE | AX6: NHM
C7: =IF(K415=1,"MISSING SITE CODE - RESELECT VALID SITE NAME","") ->  | E7: http://www.ulh.nhs.uk/for_patients/staffing | AS7: NHMFELIXSTOWE COMMUNITY HOSPITAL | AT7: NHM05 | AU7: FELIXSTOWE COMMUNITY HOSPITAL | AV7: NHM05 | AW7: FELIXSTOWE COMMUNITY HOSPITAL | AX7: NHM
E8: Comments | AS8: NHMGLASTONBURY COURT | AT8: NHM26 | AU8: GLASTONBURY COURT | AV8: NHM26 | AW8: GLASTONBURY COURT | AX8: NHM
AS9: NHMNEWMARKET COMMUNITY HOSPITAL | AT9: NHM04 | AU9: NEWMARKET COMMUNITY HOSPITAL | AV9: NHM04 | AW9: NEWMARKET COMMUNITY HOSPITAL | AX9: NHM
A10: =IF(D14="",1,0) -> 0 | C10: =IF(B415=1,"At least one Hospital Site Name entered is not recognised","") ->  | F10: =IF(I415=1,"Invalid Specialty 1 selection","") ->  | G10: =IF(J415=1,"Invalid Specialty 2 selection","") ->  | AS10: NLXCHIPPENHAM COMMUNITY HOSPITAL | AT10: NLX17 | AU10: CHIPPENHAM COMMUNITY HOSPITAL | AV10: NLX17 | AW10: CHIPPENHAM COMMUNITY HOSPITAL | AX10: NLX
C11: =IF(C415=1,"Trust is not Responsible for at least 1 site","") ->  | E11: Only complete sites your organisation is accountable for | H11: Day | L11: Night | P11: Day | R11: Night | T11: Care Hours Per Patient Day (CHPPD) | AS11: NLXCOSSHAM HOSPITAL | AT11: NLX23 | AU11: COSSHAM HOSPITAL | AV11: NLX23 | AW11: COSSHAM HOSPITAL | AX11: NLX
C12: Hospital Site Details | E12: Ward name | F12: Main 2 Specialties on each ward | H12: Registered midwives/nurses | J12: Care Staff | L12: Registered midwives/nurses | N12: Care Staff | P12: Average fill rate - registered nurses/midwives (%) | Q12: Average fill rate - care staff (%) | R12: Average fill rate - registered nurses/midwives (%) | S12: Average fill rate - care staff (%) | T12: Cumulative count over the month of patients at 23:59 each day | U12: Registered midwives/ nurses | V12: Care Staff | W12: Overall | AS12: NLXDEVIZES COMMUNITY HOSPITAL | AT12: NLX18 | AU12: DEVIZES COMMUNITY HOSPITAL | AV12: NLX18 | AW12: DEVIZES COMMUNITY HOSPITAL | AX12: NLX
A13: Validation alerts (see control panel) | C13: Site code *The Site code is automatically populated when a Site name is selected | D13: Hospital Site name | F13: Specialty 1 | G13: Specialty 2 | H13: Total monthly planned staff hours | I13: Total monthly actual staff hours | J13: Total monthly planned staff hours | K13: Total monthly actual staff hours | L13: Total monthly planned staff hours | M13: Total monthly actual staff hours | N13: Total monthly planned staff hours | O13: Total monthly actual staff hours | Y13: Specialties | AS13: NLXGREYSTONES | AT13: NLX12 | AU13: GREYSTONES | AV13: NLX12 | AW13: GREYSTONES | AX13: NLX
A14: =IF(L215=1,"No Site Selected",IF(M215=1,"No Ward Name","")) ->  | B14: =IF(SUM(D215:F215,L215:M215)>0,1,IF(X215>0,2,0)) -> 2 | C14: =IF(ISNA(VLOOKUP($B$2&D14,$AS:$AT,2,FALSE)),"",VLOOKUP($B$2&D14,$AS:$AT,2,FALSE)) -> RWDLP | D14: Grantham and District Hospital - RWDLP | E14: Ward 1 | F14: 300 - GENERAL MEDICINE | G14: 320 - CARDIOLOGY | H14: 1385 | I14: 1479.75 | J14: 1392.25 | K14: 1230.666667 | L14: 1023 | M14: 1036 | N14: 682 | O14: 614.5 | P14: =IF(ISERROR(IF($H14="","",I14/H14)),"-",(IF($H14="","",I14/H14))) -> 1.068411552 | Q14: =IF(ISERROR(IF(J14="","",K14/J14)),"-",(IF(J14="","",K14/J14))) -> 0.8839408631 | R14: =IF(ISERROR(IF(L14="","",M14/L14)),"-",(IF(L14="","",M14/L14))) -> 1.012707722 | S14: =IF(ISERROR(IF(N14="","",O14/N14)),"-",IF(N14="","",O14/N14)) -> 0.901026393 | T14: 706 | U14: =IF(ISERROR(IF($T14="","",SUM(I14,M14)/$T14)),"-",(IF($T14="","",SUM(I14,M14)/$T14))) -> 3.563385269 | V14: =IF(ISERROR(IF($T14="","",SUM(K14,O14)/$T14)),"-",(IF($T14="","",SUM(K14,O14)/$T14))) -> 2.613550519 | W14: =IF(ISERROR(IF($T14="","",SUM(I14,K14,M14,O14)/$T14)),"-",(IF($T14="","",SUM(I14,K14,M14,O14)/$T14))) -> 6.176935788 | Y14: 100 - GENERAL SURGERY | AS14: NLXHANHAM HEALTH | AT14: NLX27 | AU14: HANHAM HEALTH | AV14: NLX27 | AW14: HANHAM HEALTH | AX14: NLX
A15: =IF(L216=1,"No Site Selected",IF(M216=1,"No Ward Name","")) ->  | B15: =IF(SUM(D216:F216,L216:M216)>0,1,IF(X216>0,2,0)) -> 0 | C15: RWDLP | D15: Grantham and District Hospital - RWDLP | E15: Ward 2 | F15: 100 - GENERAL SURGERY | G15: 110 - TRAUMA & ORTHOPAEDICS | H15: 1399 | I15: 1349.5 | J15: 1173 | K15: 1040.5 | L15: 1023 | M15: 963.5 | N15: 682 | O15: 589 | P15: =IF(ISERROR(IF($H15="","",I15/H15)),"-",(IF($H15="","",I15/H15))) -> 0.964617584 | Q15: =IF(ISERROR(IF(J15="","",K15/J15)),"-",(IF(J15="","",K15/J15))) -> 0.8870417732 | R15: =IF(ISERROR(IF(L15="","",M15/L15)),"-",(IF(L15="","",M15/L15))) -> 0.9418377322 | S15: =IF(ISERROR(IF(N15="","",O15/N15)),"-",IF(N15="","",O15/N15)) -> 0.8636363636 | T15: 714 | U15: =IF(ISERROR(IF($T15="","",SUM(I15,M15)/$T15)),"-",(IF($T15="","",SUM(I15,M15)/$T15))) -> 3.239495798 | V15: =IF(ISERROR(IF($T15="","",SUM(K15,O15)/$T15)),"-",(IF($T15="","",SUM(K15,O15)/$T15))) -> 2.282212885 | W15: =IF(ISERROR(IF($T15="","",SUM(I15,K15,M15,O15)/$T15)),"-",(IF($T15="","",SUM(I15,K15,M15,O15)/$T15))) -> 5.521708683 | Y15: 101 - UROLOGY | AS15: NLXHOMELINK & COMMUNITY OPTIONS | AT15: NLX14 | AU15: HOMELINK & COMMUNITY OPTIONS | AV15: NLX14 | AW15: HOMELINK & COMMUNITY OPTIONS | AX15: NLX
A16: =IF(L217=1,"No Site Selected",IF(M217=1,"No Ward Name","")) ->  | B16: =IF(SUM(D217:F217,L217:M217)>0,1,IF(X217>0,2,0)) -> 2 | C16: RWDLP | D16: Grantham and District Hospital - RWDLP | E16: Ward 6 | F16: 300 - GENERAL MEDICINE | G16: 301 - GASTROENTEROLOGY | H16: 1178.8 | I16: 1140.916667 | J16: 966 | K16: 941.5 | L16: 682 | M16: 847 | N16: 682 | O16: 649 | P16: 0.9678627983 | Q16: 0.9746376812 | R16: 1.241935484 | S16: 0.9516129032 | T16: 430 | U16: 4.623062016 | V16: 3.698837209 | W16: 8.321899225 | Y16: 103-BREAST SURGERY | AS16: NLXMELKSHAM COMMUNITY HOSPITAL | AT16: NLX19 | AU16: MELKSHAM COMMUNITY HOSPITAL | AV16: NLX19 | AW16: MELKSHAM COMMUNITY HOSPITAL | AX16: NLX
A17: =IF(L218=1,"No Site Selected",IF(M218=1,"No Ward Name","")) ->  | B17: 2 | C17: RWDLP | D17: Grantham and District Hospital - RWDLP | E17: EAU | F17: 300 - GENERAL MEDICINE | H17: 1955.833333 | I17: 1926.45 | J17: 804.4666667 | K17: 716.4833333 | L17: 1023 | M17: 1199 | N17: 682 | O17: 580.5 | P17: 0.9849765658 | Q17: 0.8906314743 | R17: 1.172043011 | S17: 0.8511730205 | T17: 731 | U17: 4.275581395 | V17: 1.774259006 | W17: 6.049840401 | Y17: 110 - TRAUMA & ORTHOPAEDICS | AS17: NLXPAULTON MEMORIAL HOSPITAL | AT17: NLX02 | AU17: PAULTON MEMORIAL HOSPITAL | AV17: NLX02 | AW17: PAULTON MEMORIAL HOSPITAL | AX17: NLX | AY17: Selected Org:
B18: 2 | C18: RWDLP | D18: Grantham and District Hospital - RWDLP | E18: Acute Care Unit/High Dependency Unit | F18: 192 - CRITICAL CARE MEDICINE | H18: 1195.25 | I18: 1188 | J18: 217 | K18: 170 | L18: 1023 | M18: 996.25 | N18: 0 | O18: 0 | P18: 0.9939343234 | Q18: 0.7834101382 | R18: 0.9738514174 | S18: - | T18: 151 | U18: 14.46523179 | V18: 1.125827815 | W18: 15.5910596 | Y18: 120 - ENT | AS18: NLXST MARTINS HOSPITAL | AT18: NLX01 | AU18: ST MARTINS HOSPITAL | AV18: NLX01 | AW18: ST MARTINS HOSPITAL | AX18: NLX | AY18: =$B$2 -> RWD
B19: 2 | C19: RWDDA | D19: Lincoln County Hospital - RWDDA | E19: Ashby | F19: 314 - REHABILITATION | H19: 799.5 | I19: 752.5 | J19: 589.3 | K19: 773 | L19: 682 | M19: 670 | N19: 341 | O19: 473 | P19: 0.9412132583 | Q19: 1.311725776 | R19: 0.9824046921 | S19: 1.387096774 | T19: 362 | U19: 3.929558011 | V19: 3.44198895 | W19: 7.371546961 | Y19: 130 - OPHTHALMOLOGY | AS19: NLXTHORNBURY HOSPITAL | AT19: NLX22 | AU19: THORNBURY HOSPITAL | AV19: NLX22 | AW19: THORNBURY HOSPITAL | AX19: NLX
B20: 0 | C20: RWDDA | D20: Lincoln County Hospital - RWDDA | E20: Bardney | F20: 502 - GYNAECOLOGY | H20: 1156 | I20: 1076.25 | J20: 774.5 | K20: 684.25 | L20: 677.5 | M20: 638.1666667 | N20: 682 | O20: 563.5 | P20: 0.9310121107 | Q20: 0.8834732085 | R20: 0.9419434194 | S20: 0.8262463343 | T20: 236 | U20: 7.264477401 | V20: 5.287076271 | W20: 12.55155367 | Y20: 140 - ORAL SURGERY | AS20: NLXTROWBRIDGE COMMUNITY HOSPITAL | AT20: NLX20 | AU20: TROWBRIDGE COMMUNITY HOSPITAL | AV20: NLX20 | AW20: TROWBRIDGE COMMUNITY HOSPITAL | AX20: NLX | AY20: Match:
B21: 2 | C21: RWDDA | D21: Lincoln County Hospital - RWDDA | E21: Branston | F21: 502 - GYNAECOLOGY | H21: 1325.5 | I21: 1177.5 | J21: 506 | K21: 445 | L21: 682 | M21: 682.5 | N21: 341 | O21: 318.5 | P21: 0.8883440211 | Q21: 0.8794466403 | R21: 1.000733138 | S21: 0.9340175953 | T21: 221 | U21: 8.416289593 | V21: 3.454751131 | W21: 11.87104072 | Y21: 141 - RESTORATIVE DENTISTRY | AS21: NQ1ACE (THE CRESCENT, COLCHESTER) | AT21: NQ114 | AU21: ACE (THE CRESCENT, COLCHESTER) | AV21: NQ114 | AW21: ACE (THE CRESCENT, COLCHESTER) | AX21: NQ1 | AY21: =MATCH($AY$18,$AX$1:$AX$5071,0) -> 3097
B22: 2 | C22: RWDDA | D22: Lincoln County Hospital - RWDDA | E22: Burton | F22: 430 - GERIATRIC MEDICINE | G22: 361 - NEPHROLOGY | H22: 1305 | I22: 1310 | J22: 1174 | K22: 1208.5 | L22: 682 | M22: 686 | N22: 682 | O22: 655.5 | P22: 1.003831418 | Q22: 1.029386712 | R22: 1.005865103 | S22: 0.961143695 | T22: 663 | U22: 3.010558069 | V22: 2.811463047 | W22: 5.822021116 | Y22: 142 - PAEDIATRIC DENTISTRY | AS22: NQ1ACE CIC (CLACTON ON SEA) | AT22: NQ101 | AU22: ACE CIC (CLACTON ON SEA) | AV22: NQ101 | AW22: ACE CIC (CLACTON ON SEA) | AX22: NQ1 | AY22: Countif:
B23: 2 | C23: RWDDA | D23: Lincoln County Hospital - RWDDA | E23: Carlton Coleby | F23: 340 - RESPIRATORY MEDICINE | H23: 1910.5 | I23: 1891.583333 | J23: 1158 | K23: 1062.5 | L23: 1023 | M23: 1333.5 | N23: 661.5 | O23: 654.5 | P23: 0.990098578 | Q23: 0.9175302245 | R23: 1.303519062 | S23: 0.9894179894 | T23: 842 | U23: 3.830265241 | V23: 2.039192399 | W23: 5.869457641 | Y23: 143 - ORTHODONTICS | AS23: NQ1CLACTON HOSPITAL | AT23: NQ108 | AU23: CLACTON HOSPITAL | AV23: NQ108 | AW23: CLACTON HOSPITAL | AX23: NQ1 | AY23: =SUM(COUNTIF($AW$1:$AX$5071,$AY$18)+$AY$21-1) -> 3107
B24: 2 | C24: RWDDA | D24: Lincoln County Hospital - RWDDA | E24: Clayton | F24: 430 - GERIATRIC MEDICINE | H24: 1709.5 | I24: 1619.25 | J24: 957.5 | K24: 990.5 | L24: 1364 | M24: 1364 | N24: 341 | O24: 396 | P24: 0.9472067856 | Q24: 1.034464752 | R24: 1 | S24: 1.161290323 | T24: 804 | U24: 3.71050995 | V24: 1.724502488 | W24: 5.435012438 | Y24: 145 - ORAL & MAXILLO FACIAL SURGERY | AS24: NQ1COLCHESTER GENERAL HOSPITAL | AT24: NQ107 | AU24: COLCHESTER GENERAL HOSPITAL | AV24: NQ107 | AW24: COLCHESTER GENERAL HOSPITAL | AX24: NQ1 | AY24: Concat Items:
B25: 2 | C25: RWDDA | D25: Lincoln County Hospital - RWDDA | E25: Dixon | F25: 301 - GASTROENTEROLOGY | H25: 1183.5 | I25: 1410.083333 | J25: 1381.5 | K25: 1140 | L25: 1023 | M25: 1001.5 | N25: 682 | O25: 630 | P25: 1.191451908 | Q25: 0.8251900109 | R25: 0.9789833822 | S25: 0.9237536657 | T25: 902 | U25: 2.673595713 | V25: 1.962305987 | W25: 4.6359017 | Y25: 150 - NEUROSURGERY | AS25: NQ1CONNAUGHT MEWS SUITES 6-10 | AT25: NQ126 | AU25: CONNAUGHT MEWS SUITES 6-10 | AV25: NQ126 | AW25: CONNAUGHT MEWS SUITES 6-10 | AX25: NQ1 | AY25: $AU
B26: 2 | C26: RWDDA | D26: Lincoln County Hospital - RWDDA | E26: Digby | F26: 100 - GENERAL SURGERY | H26: 211 | I26: 202.6666667 | J26: 124 | K26: 115 | L26: 132 | M26: 132.75 | N26: 44 | O26: 44 | P26: 0.9605055292 | Q26: 0.9274193548 | R26: 1.005681818 | S26: 1 | T26: 212 | U26: 1.582154088 | V26: 0.75 | W26: 2.332154088 | Y26: 160 - PLASTIC SURGERY | AS26: NQ1CORNERSTONE | AT26: NQ123 | AU26: CORNERSTONE | AV26: NQ123 | AW26: CORNERSTONE | AX26: NQ1 | AY26: :$AU
B27: 2 | C27: RWDDA | D27: Lincoln County Hospital - RWDDA | E27: Greetwell | F27: 100 - GENERAL SURGERY | H27: 1689.5 | I27: 1549 | J27: 960.5 | K27: 941 | L27: 1023 | M27: 1029.333333 | N27: 341 | O27: 404 | P27: 0.9168393016 | Q27: 0.9796980739 | R27: 1.006190942 | S27: 1.184750733 | T27: 663 | U27: 3.888888889 | V27: 2.028657617 | W27: 5.917546506 | Y27: 170 - CARDIOTHORACIC SURGERY | AS27: NQ1FRYATT HOSPITAL | AT27: NQ106 | AU27: FRYATT HOSPITAL | AV27: NQ106 | AW27: FRYATT HOSPITAL | AX27: NQ1
B28: 2 | C28: RWDDA | D28: Lincoln County Hospital - RWDDA | E28: Hatton | F28: 100 - GENERAL SURGERY | H28: 1701.3 | I28: 1571 | J28: 1031.5 | K28: 954.8333333 | L28: 1023 | M28: 991 | N28: 385 | O28: 407 | P28: 0.9234115088 | Q28: 0.9256745839 | R28: 0.9687194526 | S28: 1.057142857 | T28: 783 | U28: 3.272030651 | V28: 1.739250745 | W28: 5.011281396 | Y28: 171 - PAEDIATRIC SURGERY | AS28: NVCASHTEAD HOSPITAL | AT28: NVC01 | AU28: ASHTEAD HOSPITAL | AV28: NVC01 | AW28: ASHTEAD HOSPITAL | AX28: NVC | AY28: Concat Final:
B29: 0 | C29: RWDDA | D29: Lincoln County Hospital - RWDDA | E29: ICU | F29: 192 - CRITICAL CARE MEDICINE | H29: 4623 | I29: 4261.166667 | J29: 770.5 | K29: 526 | L29: 4627.5 | M29: 4144.25 | N29: 356.5 | O29: 69 | P29: 0.9217319201 | Q29: 0.6826735886 | R29: 0.8955699622 | S29: 0.1935483871 | T29: 374 | U29: 22.47437611 | V29: 1.590909091 | W29: 24.0652852 | Y29: 180 - ACCIDENT & EMERGENCY | AS29: NVCBLAKELANDS HOSPITAL | AT29: NVC31 | AU29: BLAKELANDS HOSPITAL | AV29: NVC31 | AW29: BLAKELANDS HOSPITAL | AX29: NVC | AY29: =CONCATENATE($AY$25,$AY$21,$AY$26,$AY$23) -> $AU3097:$AU3107
B30: 2 | C30: RWDDA | D30: Lincoln County Hospital - RWDDA | E30: Johnson | F30: 320 - CARDIOLOGY | H30: 3649 | I30: 3472.583333 | J30: 1527.5 | K30: 1661.166667 | L30: 2728 | M30: 2697.25 | N30: 682 | O30: 799.5 | P30: 0.951653421 | Q30: 1.087506819 | R30: 0.9887280059 | S30: 1.17228739 | T30: 726 | U30: 8.498393021 | V30: 3.389348026 | W30: 11.88774105 | Y30: 190 - ANAESTHETICS | AS30: NVCBODMIN NHS TREATMENT CENTRE | AT30: NVC24 | AU30: BODMIN NHS TREATMENT CENTRE | AV30: NVC24 | AW30: BODMIN NHS TREATMENT CENTRE | AX30: NVC
B31: 2 | C31: RWDDA | D31: Lincoln County Hospital - RWDDA | E31: Lancaster | F31: 430 - GERIATRIC MEDICINE | H31: 1150 | I31: 1056.666667 | J31: 1162.5 | K31: 1078.25 | L31: 682 | M31: 683 | N31: 682 | O31: 705 | P31: 0.9188405797 | Q31: 0.9275268817 | R31: 1.001466276 | S31: 1.03372434 | T31: 653 | U31: 2.664114344 | V31: 2.73085758 | W31: 5.394971924 | Y31: 192 - CRITICAL CARE MEDICINE | AS31: NVCBOSTON WEST HOSPITAL | AT31: NVC27 | AU31: BOSTON WEST HOSPITAL | AV31: NVC27 | AW31: BOSTON WEST HOSPITAL | AX31: NVC
B32: 2 | C32: RWDDA | D32: Lincoln County Hospital - RWDDA | E32: Navenby | F32: 340 - RESPIRATORY MEDICINE | G32: 302 - ENDOCRINOLOGY | H32: 1143.5 | I32: 1123.666667 | J32: 942 | K32: 949.5 | L32: 1023 | M32: 1023.666667 | N32: 682 | O32: 661.5 | P32: 0.9826555896 | Q32: 1.007961783 | R32: 1.000651678 | S32: 0.969941349 | T32: 758 | U32: 2.83289358 | V32: 2.125329815 | W32: 4.958223395 | Y32: 300 - GENERAL MEDICINE | AS32: NVCCLIFTON PARK HOSPITAL | AT32: NVC28 | AU32: CLIFTON PARK HOSPITAL | AV32: NVC28 | AW32: CLIFTON PARK HOSPITAL | AX32: NVC
B33: 0 | C33: RWDDA | D33: Lincoln County Hospital - RWDDA | E33: Nettleham | F33: 502 - GYNAECOLOGY | H33: 372 | I33: 357.75 | J33: 801.5 | K33: 739.1666667 | L33: 341 | M33: 334.5833333 | N33: 682 | O33: 529.3333333 | P33: 0.9616935484 | Q33: 0.9222291537 | R33: 0.9811827957 | S33: 0.7761485826 | T33: 772 | U33: 0.8968048359 | V33: 1.643134715 | W33: 2.539939551 | Y33: 301 - GASTROENTEROLOGY | AS33: NVCCOBALT HOSPITAL | AT33: NVC29 | AU33: COBALT HOSPITAL | AV33: NVC29 | AW33: COBALT HOSPITAL | AX33: NVC
B34: 2 | C34: RWDDA | D34: Lincoln County Hospital - RWDDA | E34: Neustadt Welton | F34: 110 - TRAUMA & ORTHOPAEDICS | H34: 1622 | I34: 1543.416667 | J34: 960.5 | K34: 1034 | L34: 1023 | M34: 1012.5 | N34: 1023 | O34: 949.5 | P34: 0.9515515824 | Q34: 1.076522644 | R34: 0.9897360704 | S34: 0.9281524927 | T34: 802 | U34: 3.186928512 | V34: 2.47319202 | W34: 5.660120532 | Y34: 302 - ENDOCRINOLOGY | AS34: NVCDUCHY HOSPITAL | AT34: NVC04 | AU34: DUCHY HOSPITAL | AV34: NVC04 | AW34: DUCHY HOSPITAL | AX34: NVC
B35: 0 | C35: RWDDA | D35: Lincoln County Hospital - RWDDA | E35: Nocton | F35: 422- NEONATOLOGY | H35: 1490 | I35: 1479.583333 | J35: 1117 | K35: 646 | L35: 1705 | M35: 1262.5 | N35: 462 | O35: 332 | P35: 0.9930089485 | Q35: 0.5783348254 | R35: 0.7404692082 | S35: 0.7186147186 | T35: 262 | U35: 10.46596692 | V35: 3.732824427 | W35: 14.19879135 | Y35: 303 - CLINICAL HAEMATOLOGY | AS35: NVCEUXTON HALL HOSPITAL | AT35: NVC05 | AU35: EUXTON HALL HOSPITAL | AV35: NVC05 | AW35: EUXTON HALL HOSPITAL | AX35: NVC
B36: 2 | C36: RWDDA | D36: Lincoln County Hospital - RWDDA | E36: Rainforest | F36: 420 - PAEDIATRICS | H36: 1699 | I36: 1707.75 | J36: 790 | K36: 1069.666667 | L36: 1023 | M36: 1037 | N36: 341 | O36: 540 | P36: 1.005150088 | Q36: 1.354008439 | R36: 1.013685239 | S36: 1.583577713 | T36: 419 | U36: 6.55071599 | V36: 3.841686555 | W36: 10.39240255 | Y36: 304 - CLINICAL PHYSIOLOGY | AS36: NVCFITZWILLIAM HOSPITAL | AT36: NVC06 | AU36: FITZWILLIAM HOSPITAL | AV36: NVC06 | AW36: FITZWILLIAM HOSPITAL | AX36: NVC
B37: 0 | C37: RWDDA | D37: Lincoln County Hospital - RWDDA | E37: Scampton | F37: 430 - GERIATRIC MEDICINE | H37: 1489.5 | I37: 1079.25 | J37: 1333.5 | K37: 1241 | L37: 891 | M37: 605 | N37: 589 | O37: 560.5 | P37: 0.724572004 | Q37: 0.9306336708 | R37: 0.6790123457 | S37: 0.9516129032 | T37: 652 | U37: 2.583205521 | V37: 2.76303681 | W37: 5.346242331 | Y37: 305 - CLINICAL PHARMACOLOGY | AS37: NVCFULWOOD HALL HOSPITAL | AT37: NVC07 | AU37: FULWOOD HALL HOSPITAL | AV37: NVC07 | AW37: FULWOOD HALL HOSPITAL | AX37: NVC
B38: 0 | C38: RWDDA | D38: Lincoln County Hospital - RWDDA | E38: Shuttleworth | F38: 110 - TRAUMA & ORTHOPAEDICS | H38: 2055.133333 | I38: 1966.383333 | J38: 1362.9 | K38: 1205.9 | L38: 1364 | M38: 1355.5 | N38: 682 | O38: 648.5 | P38: 0.956815454 | Q38: 0.8848044611 | R38: 0.9937683284 | S38: 0.9508797654 | T38: 847 | U38: 3.921940181 | V38: 2.189374262 | W38: 6.111314443 | Y38: 307-DIABETIC MEDICINE | AS38: NVCHORTON NHS TREATMENT CENTRE | AT38: NVC25 | AU38: HORTON NHS TREATMENT CENTRE | AV38: NVC25 | AW38: HORTON NHS TREATMENT CENTRE | AX38: NVC
B39: 0 | C39: RWDDA | D39: Lincoln County Hospital - RWDDA | E39: Stroke Unit | F39: 300 - GENERAL MEDICINE | H39: 2425.583333 | I39: 2180 | J39: 1375 | K39: 1292.25 | L39: 1364 | M39: 1344.75 | N39: 682 | O39: 659.5 | P39: 0.8987528773 | Q39: 0.9398181818 | R39: 0.9858870968 | S39: 0.9670087977 | T39: 841 | U39: 4.191141498 | V39: 2.320749108 | W39: 6.511890606 | Y39: 310 - AUDIOLOGICAL MEDICINE | AS39: NVCMOUNT STUART HOSPITAL | AT39: NVC08 | AU39: MOUNT STUART HOSPITAL | AV39: NVC08 | AW39: MOUNT STUART HOSPITAL | AX39: NVC
B40: 2 | C40: RWDDA | D40: Lincoln County Hospital - RWDDA | E40: Waddington Unit | F40: 303 - CLINICAL HAEMATOLOGY | G40: 800 - CLINICAL ONCOLOGY | H40: 2034.6 | I40: 1981.383333 | J40: 1115.5 | K40: 979 | L40: 1364 | M40: 1386.5 | N40: 341 | O40: 402.5 | P40: 0.9738441627 | Q40: 0.8776333483 | R40: 1.016495601 | S40: 1.180351906 | T40: 909 | U40: 3.705042171 | V40: 1.51980198 | W40: 5.224844151 | Y40: 313 - CLINICAL IMMUNOLOGY and ALLERGY | AS40: NVCNEW HALL HOSPITAL | AT40: NVC09 | AU40: NEW HALL HOSPITAL | AV40: NVC09 | AW40: NEW HALL HOSPITAL | AX40: NVC
B41: 0 | C41: RWDDA | D41: Lincoln County Hospital - RWDDA | E41: MEAU | F41: 300 - GENERAL MEDICINE | H41: 2785 | I41: 2475 | J41: 1459 | K41: 1169.166667 | L41: 2065 | M41: 1926.666667 | N41: 1022 | O41: 945 | P41: 0.8886894075 | Q41: 0.8013479552 | R41: 0.9330104923 | S41: 0.9246575342 | T41: 679 | U41: 6.48257241 | V41: 3.113647521 | W41: 9.596219931 | Y41: 314 - REHABILITATION | AS41: NVCNORTH DOWNS HOSPITAL | AT41: NVC11 | AU41: NORTH DOWNS HOSPITAL | AV41: NVC11 | AW41: NORTH DOWNS HOSPITAL | AX41: NVC
B42: 0 | C42: RWDDA | D42: Lincoln County Hospital - RWDDA | E42: SEAU | F42: 300 - GENERAL MEDICINE | H42: 2456 | I42: 2277.25 | J42: 1145.5 | K42: 1040.25 | L42: 1705 | M42: 1651.5 | N42: 682 | O42: 636.5 | P42: 0.9272190554 | Q42: 0.9081187254 | R42: 0.9686217009 | S42: 0.9332844575 | T42: 752 | U42: 5.224401596 | V42: 2.229720745 | W42: 7.45412234 | Y42: 315 - PALLIATIVE MEDICINE | AS42: NVCNOTTINGHAM WOODTHORPE HOSPITAL | AT42: NVC40 | AU42: NOTTINGHAM WOODTHORPE HOSPITAL | AV42: NVC40 | AW42: NOTTINGHAM WOODTHORPE HOSPITAL | AX42: NVC
B43: 0 | C43: RWDLA | D43: Pilgrim Hospital - RWDLA | E43: Acute Cardiac Unit (formerly Coronary Care Unit) | F43: 320 - CARDIOLOGY | H43: 1476 | I43: 1419 | J43: 718.5 | K43: 540 | L43: 1023 | M43: 1023 | N43: 340 | O43: 340 | P43: 0.9613821138 | Q43: 0.751565762 | R43: 1 | S43: 1 | T43: 502 | U43: 4.864541833 | V43: 1.752988048 | W43: 6.61752988 | Y43: 318- INTERMEDIATE CARE | AS43: NVCOAKLANDS HOSPITAL | AT43: NVC12 | AU43: OAKLANDS HOSPITAL | AV43: NVC12 | AW43: OAKLANDS HOSPITAL | AX43: NVC
B44: 2 | C44: RWDLA | D44: Pilgrim Hospital - RWDLA | E44: Labour Ward | F44: 502 - GYNAECOLOGY | H44: 372 | I44: 396 | J44: 373 | K44: 314.5 | L44: 341 | M44: 346 | N44: 341 | O44: 333.5 | P44: 1.064516129 | Q44: 0.8431635389 | R44: 1.014662757 | S44: 0.9780058651 | T44: 105 | U44: 7.066666667 | V44: 6.171428571 | W44: 13.23809524 | Y44: 320 - CARDIOLOGY | AS44: NVCOAKS HOSPITAL | AT44: NVC13 | AU44: OAKS HOSPITAL | AV44: NVC13 | AW44: OAKS HOSPITAL | AX44: NVC
B45: 2 | C45: RWDLA | D45: Pilgrim Hospital - RWDLA | E45: Neonatal | F45: 422- NEONATOLOGY | H45: 1489 | I45: 1211 | J45: 374 | K45: 384.5 | L45: 1023 | M45: 806 | N45: 341 | O45: 462 | P45: 0.8132975151 | Q45: 1.028074866 | R45: 0.7878787879 | S45: 1.35483871 | T45: 91 | U45: 22.16483516 | V45: 9.302197802 | W45: 31.46703297 | Y45: 321 - PAEDIATRIC CARDIOLOGY | AS45: NVCPARK HILL HOSPITAL | AT45: NVC14 | AU45: PARK HILL HOSPITAL | AV45: NVC14 | AW45: PARK HILL HOSPITAL | AX45: NVC
B46: 2 | C46: =IF(ISNA(VLOOKUP($B$2&D46,$AS:$AT,2,FALSE)),"",VLOOKUP($B$2&D46,$AS:$AT,2,FALSE)) -> RWDLA | D46: Pilgrim Hospital - RWDLA | E46: Stroke Unit | F46: 300 - GENERAL MEDICINE | H46: 1918 | I46: 1983.75 | J46: 1529.5 | K46: 1663.333333 | L46: 1364 | M46: 1331 | N46: 682 | O46: 735 | P46: 1.034280501 | Q46: 1.087501362 | R46: 0.9758064516 | S46: 1.07771261 | T46: 821 | U46: 4.037454324 | V46: 2.921234267 | W46: 6.958688591 | Y46: 323- SPINAL INJURIES | AS46: NVCPINEHILL HOSPITAL | AT46: NVC15 | AU46: PINEHILL HOSPITAL | AV46: NVC15 | AW46: PINEHILL HOSPITAL | AX46: NVC
B47: 2 | C47: RWDLA | D47: Pilgrim Hospital - RWDLA | E47: 3A | F47: 110 - TRAUMA & ORTHOPAEDICS | H47: 1309 | I47: 1286 | J47: 958 | K47: 1098.5 | L47: 682 | M47: 682 | N47: 680.5 | O47: 674 | P47: 0.9824293354 | Q47: 1.146659708 | R47: 1 | S47: 0.9904481999 | T47: 728 | U47: 2.703296703 | V47: 2.434752747 | W47: 5.138049451 | Y47: 325 - SPORTS AND EXERCISE MEDICINE | AS47: NVCRENACRES HOSPITAL | AT47: NVC16 | AU47: RENACRES HOSPITAL | AV47: NVC16 | AW47: RENACRES HOSPITAL | AX47: NVC
B48: 2 | C48: RWDLA | D48: Pilgrim Hospital - RWDLA | E48: 3B | F48: 110 - TRAUMA & ORTHOPAEDICS | H48: 1867.5 | I48: 1791.166667 | J48: 1330.5 | K48: 1331.5 | L48: 1023 | M48: 1017 | N48: 682 | O48: 870.25 | P48: 0.9591253905 | Q48: 1.000751597 | R48: 0.9941348974 | S48: 1.276026393 | T48: 871 | U48: 3.224071948 | V48: 2.527841561 | W48: 5.751913509 | Y48: 326 - ACUTE INTERNAL MEDICINE | AS48: NVCRIVERS HOSPITAL | AT48: NVC19 | AU48: RIVERS HOSPITAL | AV48: NVC19 | AW48: RIVERS HOSPITAL | AX48: NVC
B49: 0 | C49: RWDLA | D49: Pilgrim Hospital - RWDLA | E49: 4A | F49: 420 - PAEDIATRICS | H49: 2580.5 | I49: 1791.75 | J49: 1980 | K49: 1193 | L49: 1023 | M49: 895.25 | N49: 682 | O49: 374 | P49: 0.6943421817 | Q49: 0.6025252525 | R49: 0.8751221896 | S49: 0.5483870968 | T49: 346 | U49: 7.765895954 | V49: 4.528901734 | W49: 12.29479769 | Y49: 328-STROKE MEDICINE | AS49: NVCROWLEY HALL HOSPITAL | AT49: NVC17 | AU49: ROWLEY HALL HOSPITAL | AV49: NVC17 | AW49: ROWLEY HALL HOSPITAL | AX49: NVC
B50: 2 | C50: RWDLA | D50: Pilgrim Hospital - RWDLA | E50: 5A | F50: 100 - GENERAL SURGERY | H50: 1926.5 | I50: 1754.25 | J50: 1178 | K50: 1416.5 | L50: 1023 | M50: 1067.5 | N50: 682 | O50: 840.5 | P50: 0.9105891513 | Q50: 1.2024618 | R50: 1.043499511 | S50: 1.232404692 | T50: 708 | U50: 3.985522599 | V50: 3.187853107 | W50: 7.173375706 | Y50: 330 - DERMATOLOGY | AS50: NVCSPRINGFIELD HOSPITAL | AT50: NVC18 | AU50: SPRINGFIELD HOSPITAL | AV50: NVC18 | AW50: SPRINGFIELD HOSPITAL | AX50: NVC
B51: 2 | C51: RWDLA | D51: Pilgrim Hospital - RWDLA | E51: 5B | F51: 100 - GENERAL SURGERY | H51: 1951.2 | I51: 1492.916667 | J51: 1172.4 | K51: 1386 | L51: 1023 | M51: 986.5 | N51: 682 | O51: 650.5 | P51: 0.7651274429 | Q51: 1.182190379 | R51: 0.9643206256 | S51: 0.9538123167 | T51: 663 | U51: 3.739693313 | V51: 3.071644042 | W51: 6.811337355 | Y51: 340 - RESPIRATORY MEDICINE | AS51: NVCTEES VALLEY TREATMENT CENTRE | AT51: NVC35 | AU51: TEES VALLEY TREATMENT CENTRE | AV51: NVC35 | AW51: TEES VALLEY TREATMENT CENTRE | AX51: NVC
B52: 2 | C52: RWDLA | D52: Pilgrim Hospital - RWDLA | E52: 6A | F52: 430 - GERIATRIC MEDICINE | H52: 1964.433333 | I52: 1879.183333 | J52: 1732.566667 | K52: 1604.566667 | L52: 1023 | M52: 1012 | N52: 1023 | O52: 1027.75 | P52: 0.9566032613 | Q52: 0.926121169 | R52: 0.9892473118 | S52: 1.004643206 | T52: 888 | U52: 3.255837087 | V52: 2.964320571 | W52: 6.220157658 | Y52: 350 - INFECTIOUS DISEASES | AS52: NVCTHE BERKSHIRE INDEPENDENT HOSPITAL | AT52: NVC02 | AU52: THE BERKSHIRE INDEPENDENT HOSPITAL | AV52: NVC02 | AW52: THE BERKSHIRE INDEPENDENT HOSPITAL | AX52: NVC
B53: 2 | C53: RWDLA | D53: Pilgrim Hospital - RWDLA | E53: 6B | F53: 430 - GERIATRIC MEDICINE | H53: 2105 | I53: 1990 | J53: 1580.5 | K53: 1585 | L53: 1023 | M53: 1016.833333 | N53: 1015.5 | O53: 982.5 | P53: 0.945368171 | Q53: 1.0028472 | R53: 0.9939719778 | S53: 0.9675036928 | T53: 876 | U53: 3.432458143 | V53: 2.930936073 | W53: 6.363394216 | Y53: 352 - TROPICAL MEDICINE | AS53: NVCTHE WESTBOURNE CENTRE | AT53: NVC44 | AU53: THE WESTBOURNE CENTRE | AV53: NVC44 | AW53: THE WESTBOURNE CENTRE | AX53: NVC
B54: 0 | C54: RWDLA | D54: Pilgrim Hospital - RWDLA | E54: 7A | F54: 800 - CLINICAL ONCOLOGY | G54: 303 - CLINICAL HAEMATOLOGY | H54: 1570.8 | I54: 1397.55 | J54: 1012 | K54: 919 | L54: 682 | M54: 671 | N54: 341 | O54: 340.25 | P54: 0.8897058824 | Q54: 0.9081027668 | R54: 0.9838709677 | S54: 0.9978005865 | T54: 626 | U54: 3.304392971 | V54: 2.01158147 | W54: 5.315974441 | Y54: 360 - GENITOURINARY MEDICINE | AS54: NVCTHE YORKSHIRE CLINIC | AT54: NVC20 | AU54: THE YORKSHIRE CLINIC | AV54: NVC20 | AW54: THE YORKSHIRE CLINIC | AX54: NVC
B55: 2 | C55: RWDLA | D55: Pilgrim Hospital - RWDLA | E55: 7B | F55: 340 - RESPIRATORY MEDICINE | G55: 320 - CARDIOLOGY | H55: 2063 | I55: 1863.5 | J55: 1591.95 | K55: 1447.966667 | L55: 1023 | M55: 1102.5 | N55: 681.0166667 | O55: 669.5 | P55: 0.9032961706 | Q55: 0.9095553671 | R55: 1.07771261 | S55: 0.9830890091 | T55: 777 | U55: 3.817245817 | V55: 2.725182325 | W55: 6.542428142 | Y55: 361 - NEPHROLOGY | AS55: NVCWEST MIDLANDS HOSPITAL | AT55: NVC21 | AU55: WEST MIDLANDS HOSPITAL | AV55: NVC21 | AW55: WEST MIDLANDS HOSPITAL | AX55: NVC
B56: 2 | C56: RWDLA | D56: Pilgrim Hospital - RWDLA | E56: 8A | F56: 301 - GASTROENTEROLOGY | G56: 320 - CARDIOLOGY | H56: 2019.5 | I56: 1885.316667 | J56: 1521 | K56: 1370 | L56: 1023 | M56: 1034 | N56: 1023 | O56: 1015 | P56: 0.9335561608 | Q56: 0.9007232084 | R56: 1.010752688 | S56: 0.9921798631 | T56: 900 | U56: 3.243685185 | V56: 2.65 | W56: 5.893685185 | Y56: 370 - MEDICAL ONCOLOGY | AS56: NVCWINFIELD HOSPITAL | AT56: NVC22 | AU56: WINFIELD HOSPITAL | AV56: NVC22 | AW56: WINFIELD HOSPITAL | AX56: NVC
B57: 0 | C57: RWDLA | D57: Pilgrim Hospital - RWDLA | E57: M2 | F57: 502 - GYNAECOLOGY | H57: 1339.25 | I57: 1259.416667 | J57: 1344 | K57: 1229.583333 | L57: 682 | M57: 679.1666667 | N57: 680.5 | O57: 621 | P57: 0.9403895215 | Q57: 0.9148685516 | R57: 0.9958455523 | S57: 0.912564291 | T57: 341 | U57: 5.684995112 | V57: 5.426930596 | W57: 11.11192571 | Y57: 399-PSYCHIATRY SERVICES | AS57: NVCWOODLAND HOSPITAL | AT57: NVC23 | AU57: WOODLAND HOSPITAL | AV57: NVC23 | AW57: WOODLAND HOSPITAL | AX57: NVC
B58: 2 | C58: RWDLA | D58: Pilgrim Hospital - RWDLA | E58: AMU (formerly CDU) | F58: 300 - GENERAL MEDICINE | H58: 2540.75 | I58: 2099.416667 | J58: 1505 | K58: 1570.75 | L58: 1364 | M58: 1647.5 | N58: 982 | O58: 1035.5 | P58: 0.8262980091 | Q58: 1.043687708 | R58: 1.207844575 | S58: 1.054480652 | T58: 704 | U58: 5.322324811 | V58: 3.702059659 | W58: 9.02438447 | Y58: 400 - NEUROLOGY | AS58: R1AACONBURY UNIT | AT58: R1ADY | AU58: ACONBURY UNIT | AV58: R1ADY | AW58: ACONBURY UNIT | AX58: R1A
B59: 2 | C59: RWDLA | D59: Pilgrim Hospital - RWDLA | E59: Bostonian | F59: 100 - GENERAL SURGERY | H59: 1527.5 | I59: 1393 | J59: 818.5 | K59: 814 | L59: 682 | M59: 682 | N59: 341 | O59: 395 | P59: 0.9119476268 | Q59: 0.9945021381 | R59: 1 | S59: 1.158357771 | T59: 573 | U59: 3.621291449 | V59: 2.109947644 | W59: 5.731239092 | Y59: 401 - CLINICAL NEURO-PHYSIOLOGY | AS59: R1AALEXANDRA HOSPITAL | AT59: R1AAL | AU59: ALEXANDRA HOSPITAL | AV59: R1AAL | AW59: ALEXANDRA HOSPITAL | AX59: R1A
B60: 2 | C60: RWDLA | D60: Pilgrim Hospital - RWDLA | E60: ICU | F60: 192 - CRITICAL CARE MEDICINE | H60: 3905 | I60: 3312.5 | J60: 868 | K60: 610 | L60: 2728 | M60: 2486 | N60: 0 | O60: 32 | P60: 0.8482714469 | Q60: 0.702764977 | R60: 0.9112903226 | S60: - | T60: 227 | U60: 25.54405286 | V60: 2.828193833 | W60: 28.3722467 | Y60: 410 - RHEUMATOLOGY | AS60: R1AARROWSIDE UNIT (ALEXANDRA HOSPITAL) | AT60: R1A1X | AU60: ARROWSIDE UNIT (ALEXANDRA HOSPITAL) | AV60: R1A1X | AW60: ARROWSIDE UNIT (ALEXANDRA HOSPITAL) | AX60: R1A
B61: 0 | Y61: 420 - PAEDIATRICS | AS61: R1ABATCHLEY FIRST NURSERY PLUS | AT61: R1AHC | AU61: BATCHLEY FIRST NURSERY PLUS | AV61: R1AHC | AW61: BATCHLEY FIRST NURSERY PLUS | AX61: R1A
B62: 0 | Y62: 421 - PAEDIATRIC NEUROLOGY | AS62: R1ABEACONSIDE AUTISM BASE | AT62: R1A05 | AU62: BEACONSIDE AUTISM BASE | AV62: R1A05 | AW62: BEACONSIDE AUTISM BASE | AX62: R1A
B63: 0 | Y63: 422- NEONATOLOGY | AS63: R1ABIRMINGHAM CHILDREN'S HOSPITAL | AT63: R1A03 | AU63: BIRMINGHAM CHILDREN'S HOSPITAL | AV63: R1A03 | AW63: BIRMINGHAM CHILDREN'S HOSPITAL | AX63: R1A
B64: 0 | Y64: 424- WELL BABIES | AS64: R1ACHURCHVIEW HOUSE | AT64: R1ACD | AU64: CHURCHVIEW HOUSE | AV64: R1ACD | AW64: CHURCHVIEW HOUSE | AX64: R1A
B65: 0 | Y65: 430 - GERIATRIC MEDICINE | AS65: R1ACOMM HOSP WARDS (EVESHAM) | AT65: R1ARE | AU65: COMM HOSP WARDS (EVESHAM) | AV65: R1ARE | AW65: COMM HOSP WARDS (EVESHAM) | AX65: R1A
B66: 0 | Y66: 450 - DENTAL MEDICINE SPECIALTIES | AS66: R1ACOMM HOSP WARDS (MALVERN) | AT66: R1ARG | AU66: COMM HOSP WARDS (MALVERN) | AV66: R1ARG | AW66: COMM HOSP WARDS (MALVERN) | AX66: R1A
B67: 0 | Y67: 460 - MEDICAL OPHTHALMOLOGY | AS67: R1ACOMM HOSP WARDS (PERSHORE) | AT67: R1ARJ | AU67: COMM HOSP WARDS (PERSHORE) | AV67: R1ARJ | AW67: COMM HOSP WARDS (PERSHORE) | AX67: R1A
B68: 0 | Y68: 501 - OBSTETRICS | AS68: R1ACOMM HOSP WARDS (TENBURY) | AT68: R1ARL | AU68: COMM HOSP WARDS (TENBURY) | AV68: R1ARL | AW68: COMM HOSP WARDS (TENBURY) | AX68: R1A
B69: 0 | Y69: 502 - GYNAECOLOGY | AS69: R1ACOMM HOSP WARDS (WF GP UNIT) | AT69: R1ARN | AU69: COMM HOSP WARDS (WF GP UNIT) | AV69: R1ARN | AW69: COMM HOSP WARDS (WF GP UNIT) | AX69: R1A
B70: 0 | Y70: 560- MIDWIFE LED CARE | AS70: =CONCATENATE(LEFT(AT70, 3),AU70) -> R1ACOMMUNITY FIRST | AT70: R1A94 | AU70: COMMUNITY FIRST | AV70: R1A94 | AW70: COMMUNITY FIRST | AX70: =LEFT(AV70,3) -> R1A
B71: 0 | Y71: 700- LEARNING DISABILITY | AS71: R1ACOMMUNITY HOSP WARDS (POWCH) | AT71: R1ARK | AU71: COMMUNITY HOSP WARDS (POWCH) | AV71: R1ARK | AW71: COMMUNITY HOSP WARDS (POWCH) | AX71: R1A
B72: 0 | Y72: 710 - ADULT MENTAL ILLNESS | AS72: R1ACOMMUNITY INREACH EVESHAM | AT72: R1AJX | AU72: COMMUNITY INREACH EVESHAM | AV72: R1AJX | AW72: COMMUNITY INREACH EVESHAM | AX72: R1A
B73: 0 | Y73: 711- CHILD and ADOLESCENT PSYCHIATRY | AS73: R1ACOMMUNITY INREACH REDDITCH 6 | AT73: R1AJV | AU73: COMMUNITY INREACH REDDITCH 6 | AV73: R1AJV | AW73: COMMUNITY INREACH REDDITCH 6 | AX73: R1A
B74: 0 | Y74: 712 - FORENSIC PSYCHIATRY | AS74: R1ACOMMUNITY INREACH REDDITCH 8 | AT74: R1AJY | AU74: COMMUNITY INREACH REDDITCH 8 | AV74: R1AJY | AW74: COMMUNITY INREACH REDDITCH 8 | AX74: R1A
B75: 0 | Y75: 713- PSYCHOTHERAPY | AS75: R1ACOMMUNITY PAEDESTRICIANS-1 | AT75: R1AQQ | AU75: COMMUNITY PAEDESTRICIANS-1 | AV75: R1AQQ | AW75: COMMUNITY PAEDESTRICIANS-1 | AX75: R1A
B76: 0 | Y76: 715 - OLD AGE PSYCHIATRY | AS76: R1ACOMMUNITY UNIT | AT76: R1ADV | AU76: COMMUNITY UNIT | AV76: R1ADV | AW76: COMMUNITY UNIT | AX76: R1A
B77: 0 | Y77: 800 - CLINICAL ONCOLOGY | AS77: R1ACOMMUNITY VENUE | AT77: R1A76 | AU77: COMMUNITY VENUE | AV77: R1A76 | AW77: COMMUNITY VENUE | AX77: R1A
B78: 0 | C78: =IF(ISNA(VLOOKUP($B$2&D78,$AS:$AT,2,FALSE)),"",VLOOKUP($B$2&D78,$AS:$AT,2,FALSE)) ->  | Y78: 810 - RADIOLOGY | AS78: R1ACOVERCROFT | AT78: R1APF | AU78: COVERCROFT | AV78: R1APF | AW78: COVERCROFT | AX78: R1A
B79: 0 | P79: =IF(ISERROR(IF($H79="","",I79/H79)),"-",(IF($H79="","",I79/H79))) ->  | Q79: =IF(ISERROR(IF(J79="","",K79/J79)),"-",(IF(J79="","",K79/J79))) ->  | R79: =IF(ISERROR(IF(L79="","",M79/L79)),"-",(IF(L79="","",M79/L79))) ->  | S79: =IF(ISERROR(IF(N79="","",O79/N79)),"-",IF(N79="","",O79/N79)) ->  | U79: =IF(ISERROR(IF($T79="","",SUM(I79,M79)/$T79)),"-",(IF($T79="","",SUM(I79,M79)/$T79))) ->  | V79: =IF(ISERROR(IF($T79="","",SUM(K79,O79)/$T79)),"-",(IF($T79="","",SUM(K79,O79)/$T79))) ->  | W79: =IF(ISERROR(IF($T79="","",SUM(I79,K79,M79,O79)/$T79)),"-",(IF($T79="","",SUM(I79,K79,M79,O79)/$T79))) ->  | Y79: 822 - CHEMICAL PATHOLOGY | AS79: R1ACROMWELL HOUSE | AT79: R1AAV | AU79: CROMWELL HOUSE | AV79: R1AAV | AW79: CROMWELL HOUSE | AX79: R1A
B80: =IF(SUM(D281:F281,L281:M281)>0,1,IF(X281>0,2,0)) -> 0 | Y80: 823 - HAEMATOLOGY | AS80: R1ACROWNGATE PHYSIOTHERAPY | AT80: R1A82 | AU80: CROWNGATE PHYSIOTHERAPY | AV80: R1A82 | AW80: CROWNGATE PHYSIOTHERAPY | AX80: R1A
A81: =IF(L282=1,"No Site Selected",IF(M282=1,"No Ward Name","")) ->  | B81: 0 | Y81: 879-COMMUNITY NURSING | AS81: R1ADROITWICH SPA PRIVATE HOSPITAL | AT81: R1AFT | AU81: DROITWICH SPA PRIVATE HOSPITAL | AV81: R1AFT | AW81: DROITWICH SPA PRIVATE HOSPITAL | AX81: R1A
B82: 0 | Y82: 901 - OCCUPATIONAL MEDICINE | AS82: R1AELGAR UNIT | AT82: R1ADW | AU82: ELGAR UNIT | AV82: R1ADW | AW82: ELGAR UNIT | AX82: R1A
B83: 0 | Y83: 903- PUBLIC HEALTH MEDICINE | AS83: R1AESTATES BUILDING | AT83: R1ACE | AU83: ESTATES BUILDING | AV83: R1ACE | AW83: ESTATES BUILDING | AX83: R1A
B84: 0 | Y84: 920 - ORTHOTICS AND PROSTHETICS | AS84: R1AEVESHAM COMMUNITY HOSPITAL | AT84: R1A1P | AU84: EVESHAM COMMUNITY HOSPITAL | AV84: R1A1P | AW84: EVESHAM COMMUNITY HOSPITAL | AX84: R1A
B85: 0 | Y85: 921 - GENETICS | AS85: R1AGOLD HILL CARE HOME | AT85: R1AKK | AU85: GOLD HILL CARE HOME | AV85: R1AKK | AW85: GOLD HILL CARE HOME | AX85: R1A
B86: 0 | Y86: 922 - SEXUAL HEALTH SERVICES | AS86: R1AHASTINGS CARE HOME | AT86: R1AKG | AU86: HASTINGS CARE HOME | AV86: R1AKG | AW86: HASTINGS CARE HOME | AX86: R1A
B87: 0 | Y87: 923 - DIAGNOSTIC PATHOLOGY | AS87: R1AHILL CREST 1 | AT87: R1APM | AU87: HILL CREST 1 | AV87: R1APM | AW87: HILL CREST 1 | AX87: R1A
B88: 0 | Y88: 924 - BLOOD DONOR CENTRES | AS88: R1AHILL CREST 2 | AT88: R1APQ | AU88: HILL CREST 2 | AV88: R1APQ | AW88: HILL CREST 2 | AX88: R1A
B89: 0 | Y89: 925 - COMMUNITY CARE SERVICES | AS89: R1AHILL CREST MENTAL HEALTH UNIT | AT89: R1A49 | AU89: HILL CREST MENTAL HEALTH UNIT | AV89: R1A49 | AW89: HILL CREST MENTAL HEALTH UNIT | AX89: R1A
B90: 0 | Y90: 926 - THERAPY SERVICES | AS90: R1AHOME FARM TRUST | AT90: R1A89 | AU90: HOME FARM TRUST | AV90: R1A89 | AW90: HOME FARM TRUST | AX90: R1A
B91: 0 | Y91: 996 - PSYCHIATRIC INTENSIVE CARE UNIT | AS91: R1AHOME TREATMENT 1 | AT91: R1APL | AU91: HOME TREATMENT 1 | AV91: R1APL | AW91: HOME TREATMENT 1 | AX91: R1A
B92: 0 | AS92: R1AHOME TREATMENT 2 | AT92: R1APN | AU92: HOME TREATMENT 2 | AV92: R1APN | AW92: HOME TREATMENT 2 | AX92: R1A
B93: 0 | AS93: R1AHOMEWARD BOUND UNIT | AT93: R1ADE | AU93: HOMEWARD BOUND UNIT | AV93: R1ADE | AW93: HOMEWARD BOUND UNIT | AX93: R1A
B94: 0 | AS94: R1AKEITH WINTER CLOSE MENTAL HEALTH UNIT | AT94: R1A22 | AU94: KEITH WINTER CLOSE MENTAL HEALTH UNIT | AV94: R1A22 | AW94: KEITH WINTER CLOSE MENTAL HEALTH UNIT | AX94: R1A
B95: 0 | AS95: R1AKEMPSEY PARISH HALL | AT95: R1AHL | AU95: KEMPSEY PARISH HALL | AV95: R1AHL | AW95: KEMPSEY PARISH HALL | AX95: R1A
B96: 0 | AS96: R1ALICKEY LANGUAGE UNIT | AT96: R1AHV | AU96: LICKEY LANGUAGE UNIT | AV96: R1AHV | AW96: LICKEY LANGUAGE UNIT | AX96: R1A
B97: 0 | AS97: R1ALINK HORTICULTURIAL NURSERIES - SHELTERED EMPLOYMENT | AT97: R1AAE | AU97: LINK HORTICULTURIAL NURSERIES - SHELTERED EMPLOYMENT | AV97: R1AAE | AW97: LINK HORTICULTURIAL NURSERIES - SHELTERED EMPLOYMENT | AX97: R1A
B98: 0 | AS98: R1ALUDLOW ROAD | AT98: R1A58 | AU98: LUDLOW ROAD | AV98: R1A58 | AW98: LUDLOW ROAD | AX98: R1A
B99: 0 | AS99: R1AMALVERN COMMUNITY HOSPITAL | AT99: R1ADC | AU99: MALVERN COMMUNITY HOSPITAL | AV99: R1ADC | AW99: MALVERN COMMUNITY HOSPITAL | AX99: R1A
B100: 0 | AS100: R1AMATCHBOROUGH FIRST NURSERY PLUS | AT100: R1AHF | AU100: MATCHBOROUGH FIRST NURSERY PLUS | AV100: R1AHF | AW100: MATCHBOROUGH FIRST NURSERY PLUS | AX100: R1A
B101: 0 | AS101: R1ANEW BROOK | AT101: R1ACF | AU101: NEW BROOK | AV101: R1ACF | AW101: NEW BROOK | AX101: R1A
B102: 0 | AS102: R1ANEW BROOK UNIT 1 | AT102: R1APK | AU102: NEW BROOK UNIT 1 | AV102: R1APK | AW102: NEW BROOK UNIT 1 | AX102: R1A
B103: 0 | AS103: R1ANEW BROOK UNIT 2 | AT103: R1APP | AU103: NEW BROOK UNIT 2 | AV103: R1APP | AW103: NEW BROOK UNIT 2 | AX103: R1A
B104: 0 | AS104: R1ANEW CROSS HOSPITAL | AT104: R1A1N | AU104: NEW CROSS HOSPITAL | AV104: R1A1N | AW104: NEW CROSS HOSPITAL | AX104: R1A
B105: 0 | AS105: R1ANEW HAVEN (MENTAL HEALTH UNIT) | AT105: R1ACC | AU105: NEW HAVEN (MENTAL HEALTH UNIT) | AV105: R1ACC | AW105: NEW HAVEN (MENTAL HEALTH UNIT) | AX105: R1A
B106: 0 | AS106: R1ANEWTOWN HOSPITAL | AT106: R1A07 | AU106: NEWTOWN HOSPITAL | AV106: R1A07 | AW106: NEWTOWN HOSPITAL | AX106: R1A
B107: 0 | AS107: R1AORCHARD PLACE | AT107: R1A37 | AU107: ORCHARD PLACE | AV107: R1A37 | AW107: ORCHARD PLACE | AX107: R1A
B108: 0 | AS108: R1AOSBORNE COURT | AT108: R1ACY | AU108: OSBORNE COURT | AV108: R1ACY | AW108: OSBORNE COURT | AX108: R1A
B109: 0 | AS109: R1AOT STORES | AT109: R1AGK | AU109: OT STORES | AV109: R1AGK | AW109: OT STORES | AX109: R1A
B110: 0 | C110: =IF(ISNA(VLOOKUP($B$2&D110,$AS:$AT,2,FALSE)),"",VLOOKUP($B$2&D110,$AS:$AT,2,FALSE)) ->  | AS110: R1APALLIATIVE CARE (R&B) | AT110: R1AQP | AU110: PALLIATIVE CARE (R&B) | AV110: R1AQP | AW110: PALLIATIVE CARE (R&B) | AX110: R1A
B111: 0 | AS111: R1APALLIATIVE CARE (SW) | AT111: R1ART | AU111: PALLIATIVE CARE (SW) | AV111: R1ART | AW111: PALLIATIVE CARE (SW) | AX111: R1A
B112: 0 | AS112: R1APALLIATIVE CARE (WF) | AT112: R1ARR | AU112: PALLIATIVE CARE (WF) | AV112: R1ARR | AW112: PALLIATIVE CARE (WF) | AX112: R1A
B113: 0 | AS113: R1APARKSIDE MIDDLE AUTISM BASE | AT113: R1AEM | AU113: PARKSIDE MIDDLE AUTISM BASE | AV113: R1AEM | AW113: PARKSIDE MIDDLE AUTISM BASE | AX113: R1A
B114: 0 | AS114: R1APERSHORE HOSPITAL | AT114: R1ACW | AU114: PERSHORE HOSPITAL | AV114: R1ACW | AW114: PERSHORE HOSPITAL | AX114: R1A
B115: 0 | AS115: R1APHYSIO UNIT ROSEHILL | AT115: R1AA6 | AU115: PHYSIO UNIT ROSEHILL | AV115: R1AA6 | AW115: PHYSIO UNIT ROSEHILL | AX115: R1A
B116: 0 | AS116: R1APHYSIO UNIT THORNTON | AT116: R1A1A | AU116: PHYSIO UNIT THORNTON | AV116: R1A1A | AW116: PHYSIO UNIT THORNTON | AX116: R1A
B117: 0 | AS117: R1APOSTNATAL UNIT | AT117: R1ADM | AU117: POSTNATAL UNIT | AV117: R1ADM | AW117: POSTNATAL UNIT | AX117: R1A
B118: 0 | AS118: R1APRINCESS OF WALES HOSPITAL | AT118: R1ACG | AU118: PRINCESS OF WALES HOSPITAL | AV118: R1ACG | AW118: PRINCESS OF WALES HOSPITAL | AX118: R1A
B119: 0 | AS119: R1APUPIL REFERRAL UNIT | AT119: R1A60 | AU119: PUPIL REFERRAL UNIT | AV119: R1A60 | AW119: PUPIL REFERRAL UNIT | AX119: R1A
B120: 0 | AS120: R1AQUEEN ELIZABETH HOSPITAL | AT120: R1A02 | AU120: QUEEN ELIZABETH HOSPITAL | AV120: R1A02 | AW120: QUEEN ELIZABETH HOSPITAL | AX120: R1A
B121: 0 | AS121: R1ARIVENDELL | AT121: R1A14 | AU121: RIVENDELL | AV121: R1A14 | AW121: RIVENDELL | AX121: R1A
B122: 0 | AS122: R1ARIVERBANK NEONATAL UNIT | AT122: R1ADN | AU122: RIVERBANK NEONATAL UNIT | AV122: R1ADN | AW122: RIVERBANK NEONATAL UNIT | AX122: R1A
B123: 0 | AS123: R1ARUSSELLS HALL HOSPITAL | AT123: R1A56 | AU123: RUSSELLS HALL HOSPITAL | AV123: R1A56 | AW123: RUSSELLS HALL HOSPITAL | AX123: R1A
B124: 0 | AS124: R1ASILVERBIRCH | AT124: R1ACH | AU124: SILVERBIRCH | AV124: R1ACH | AW124: SILVERBIRCH | AX124: R1A
B125: 0 | AS125: R1ASTUDDERT KENNEDY OA | AT125: R1APG | AU125: STUDDERT KENNEDY OA | AV125: R1APG | AW125: STUDDERT KENNEDY OA | AX125: R1A
B126: 0 | AS126: R1ATENBURY COMMUNITY HOSPITAL | AT126: R1AAN | AU126: TENBURY COMMUNITY HOSPITAL | AV126: R1AAN | AW126: TENBURY COMMUNITY HOSPITAL | AX126: R1A
B127: 0 | AS127: R1ATESCO KIDDERMINSTER | AT127: R1A67 | AU127: TESCO KIDDERMINSTER | AV127: R1A67 | AW127: TESCO KIDDERMINSTER | AX127: R1A
B128: 0 | AS128: R1ATESCO REDDITCH | AT128: R1A43 | AU128: TESCO REDDITCH | AV128: R1A43 | AW128: TESCO REDDITCH | AX128: R1A
B129: 0 | AS129: R1ATESCO ST PETERS | AT129: R1A1G | AU129: TESCO ST PETERS | AV129: R1A1G | AW129: TESCO ST PETERS | AX129: R1A
B130: 0 | AS130: R1ATESCO WARNDON | AT130: R1AA1 | AU130: TESCO WARNDON | AV130: R1AA1 | AW130: TESCO WARNDON | AX130: R1A
B131: 0 | AS131: R1ATHE FIRS REST HOME | AT131: R1A1F | AU131: THE FIRS REST HOME | AV131: R1A1F | AW131: THE FIRS REST HOME | AX131: R1A
B132: 0 | AS132: R1ATHE GRANGE | AT132: R1A66 | AU132: THE GRANGE | AV132: R1A66 | AW132: THE GRANGE | AX132: R1A
B133: 0 | AS133: R1ATHE HIVE | AT133: R1AKX | AU133: THE HIVE | AV133: R1AKX | AW133: THE HIVE | AX133: R1A
B134: 0 | AS134: =CONCATENATE(LEFT(AT134, 3),AU134) -> R1ATHE OLD VICARAGE | AT134: R1AKL | AU134: THE OLD VICARAGE | AV134: R1AKL | AW134: THE OLD VICARAGE | AX134: =LEFT(AV134,3) -> R1A
B135: 0 | AS135: R1ATHE PINES | AT135: R1AHX | AU135: THE PINES | AV135: R1AHX | AW135: THE PINES | AX135: R1A
B136: 0 | AS136: R1ATHE ROBERTSON CENTRE (D BLOCK) | AT136: R1ACN | AU136: THE ROBERTSON CENTRE (D BLOCK) | AV136: R1ACN | AW136: THE ROBERTSON CENTRE (D BLOCK) | AX136: R1A
B137: 0 | AS137: R1ATHE WOODLANDS | AT137: R1A44 | AU137: THE WOODLANDS | AV137: R1A44 | AW137: THE WOODLANDS | AX137: R1A
B138: 0 | AS138: R1ATIMBERDINE HOME RESIDENTIAL CARE | AT138: R1AHM | AU138: TIMBERDINE HOME RESIDENTIAL CARE | AV138: R1AHM | AW138: TIMBERDINE HOME RESIDENTIAL CARE | AX138: R1A
B139: 0 | AS139: R1ATOUCHSTONE UNIT | AT139: R1AAD | AU139: TOUCHSTONE UNIT | AV139: R1AAD | AW139: TOUCHSTONE UNIT | AX139: R1A
B140: 0 | AS140: R1AWALKWOOD MIDDLE AUTISM BASE | AT140: R1A31 | AU140: WALKWOOD MIDDLE AUTISM BASE | AV140: R1A31 | AW140: WALKWOOD MIDDLE AUTISM BASE | AX140: R1A
B141: 0 | AS141: R1AWALSGRAVE HOSPITAL | AT141: R1A55 | AU141: WALSGRAVE HOSPITAL | AV141: R1A55 | AW141: WALSGRAVE HOSPITAL | AX141: R1A
B142: 0 | C142: =IF(ISNA(VLOOKUP($B$2&D142,$AS:$AT,2,FALSE)),"",VLOOKUP($B$2&D142,$AS:$AT,2,FALSE)) ->  | AS142: R1AWASELY HIGH AUTISM BASE | AT142: R1A06 | AU142: WASELY HIGH AUTISM BASE | AV142: R1A06 | AW142: WASELY HIGH AUTISM BASE | AX142: R1A
B143: 0 | P143: =IF(ISERROR(IF($H143="","",I143/H143)),"-",(IF($H143="","",I143/H143))) ->  | Q143: =IF(ISERROR(IF(J143="","",K143/J143)),"-",(IF(J143="","",K143/J143))) ->  | R143: =IF(ISERROR(IF(L143="","",M143/L143)),"-",(IF(L143="","",M143/L143))) ->  | S143: =IF(ISERROR(IF(N143="","",O143/N143)),"-",IF(N143="","",O143/N143)) ->  | U143: =IF(ISERROR(IF($T143="","",SUM(I143,M143)/$T143)),"-",(IF($T143="","",SUM(I143,M143)/$T143))) ->  | V143: =IF(ISERROR(IF($T143="","",SUM(K143,O143)/$T143)),"-",(IF($T143="","",SUM(K143,O143)/$T143))) ->  | W143: =IF(ISERROR(IF($T143="","",SUM(I143,K143,M143,O143)/$T143)),"-",(IF($T143="","",SUM(I143,K143,M143,O143)/$T143))) ->  | AS143: R1AWATERSIDE | AT143: R1AQG | AU143: WATERSIDE | AV143: R1AQG | AW143: WATERSIDE | AX143: R1A
B144: =IF(SUM(D345:F345,L345:M345)>0,1,IF(X345>0,2,0)) -> 0 | AS144: R1AWATERSIDE CARE HOME | AT144: R1AKR | AU144: WATERSIDE CARE HOME | AV144: R1AKR | AW144: WATERSIDE CARE HOME | AX144: R1A
A145: =IF(L346=1,"No Site Selected",IF(M346=1,"No Ward Name","")) ->  | B145: 0 | AS145: R1AWATERSIDE MENTAL HEALTH DAY HOSPITAL | AT145: R1A1V | AU145: WATERSIDE MENTAL HEALTH DAY HOSPITAL | AV145: R1A1V | AW145: WATERSIDE MENTAL HEALTH DAY HOSPITAL | AX145: R1A
B146: 0 | AS146: R1AWHCT HEALTHCARE FEATHERSTONE | AT146: R1AHY | AU146: WHCT HEALTHCARE FEATHERSTONE | AV146: R1AHY | AW146: WHCT HEALTHCARE FEATHERSTONE | AX146: R1A
B147: 0 | AS147: R1AWILDMOOR MILL FARM | AT147: R1A21 | AU147: WILDMOOR MILL FARM | AV147: R1A21 | AW147: WILDMOOR MILL FARM | AX147: R1A
B148: 0 | AS148: R1AWISHMOOR REST HOME | AT148: R1AKN | AU148: WISHMOOR REST HOME | AV148: R1AKN | AW148: WISHMOOR REST HOME | AX148: R1A
B149: 0 | AS149: R1AWOODSIDE | AT149: R1A1C | AU149: WOODSIDE | AV149: R1A1C | AW149: WOODSIDE | AX149: R1A
B150: 0 | AS150: R1AWORCESTER CITY MH 1 | AT150: R1AQF | AU150: WORCESTER CITY MH 1 | AV150: R1AQF | AW150: WORCESTER CITY MH 1 | AX150: R1A
B151: 0 | AS151: R1AWORCESTER CITY MH 2 | AT151: R1AQH | AU151: WORCESTER CITY MH 2 | AV151: R1AQH | AW151: WORCESTER CITY MH 2 | AX151: R1A
B152: 0 | AS152: R1AWORCESTER CITY MH 3 | AT152: R1AQK | AU152: WORCESTER CITY MH 3 | AV152: R1AQK | AW152: WORCESTER CITY MH 3 | AX152: R1A
B153: 0 | AS153: R1AWORCESTER INTERMEDIATE CARE UNIT (WICU) | AT153: R1A1Q | AU153: WORCESTER INTERMEDIATE CARE UNIT (WICU) | AV153: R1A1Q | AW153: WORCESTER INTERMEDIATE CARE UNIT (WICU) | AX153: R1A
B154: 0 | AS154: R1AWORCESTERSHIRE ROYAL HOSPITAL | AT154: R1ADP | AU154: WORCESTERSHIRE ROYAL HOSPITAL | AV154: R1ADP | AW154: WORCESTERSHIRE ROYAL HOSPITAL | AX154: R1A
B155: 0 | AS155: R1AWULSTAN UNIT | AT155: R1AEC | AU155: WULSTAN UNIT | AV155: R1AEC | AW155: WULSTAN UNIT | AX155: R1A
B156: 0 | AS156: R1AWULSTAN UNIT REHABILITATION | AT156: R1AED | AU156: WULSTAN UNIT REHABILITATION | AV156: R1AED | AW156: WULSTAN UNIT REHABILITATION | AX156: R1A
B157: 0 | AS157: R1AWYCHAVON OA | AT157: R1AQJ | AU157: WYCHAVON OA | AV157: R1AQJ | AW157: WYCHAVON OA | AX157: R1A
B158: 0 | AS158: R1CADULT MENTAL HEALTH | AT158: R1C19 | AU158: ADULT MENTAL HEALTH | AV158: R1C19 | AW158: ADULT MENTAL HEALTH | AX158: R1C
B159: 0 | AS159: R1CAMULREE DAY HOSPITAL | AT159: R1C14 | AU159: AMULREE DAY HOSPITAL | AV159: R1C14 | AW159: AMULREE DAY HOSPITAL | AX159: R1C
B160: 0 | AS160: R1CASHURST HOSPITAL | AT160: R1C07 | AU160: ASHURST HOSPITAL | AV160: R1C07 | AW160: ASHURST HOSPITAL | AX160: R1C
B161: 0 | AS161: R1CBEHAVIOUR RESOURCE (BRS) | AT161: R1C54 | AU161: BEHAVIOUR RESOURCE (BRS) | AV161: R1C54 | AW161: BEHAVIOUR RESOURCE (BRS) | AX161: R1C
B162: 0 | AS162: R1CBRAMBLES WARD | AT162: R1C48 | AU162: BRAMBLES WARD | AV162: R1C48 | AW162: BRAMBLES WARD | AX162: R1C
B163: 0 | AS163: R1CC&SH ANDOVER | AT163: R1C62 | AU163: C&SH ANDOVER | AV163: R1C62 | AW163: C&SH ANDOVER | AX163: R1C
B164: 0 | AS164: R1CC&SH BASINGSTOKE | AT164: R1C45 | AU164: C&SH BASINGSTOKE | AV164: R1C45 | AW164: C&SH BASINGSTOKE | AX164: R1C
B165: 0 | AS165: R1CC&SH PORTSMOUTH | AT165: R1C17 | AU165: C&SH PORTSMOUTH | AV165: R1C17 | AW165: C&SH PORTSMOUTH | AX165: R1C
B166: 0 | AS166: R1CC&SH SOUTHAMPTON | AT166: R1C51 | AU166: C&SH SOUTHAMPTON | AV166: R1C51 | AW166: C&SH SOUTHAMPTON | AX166: R1C
B167: 0 | AS167: R1CC&SH WINCHESTER | AT167: R1C58 | AU167: C&SH WINCHESTER | AV167: R1C58 | AW167: C&SH WINCHESTER | AX167: R1C
B168: 0 | AS168: R1CCAMPION PLACE | AT168: R1C90 | AU168: CAMPION PLACE | AV168: R1C90 | AW168: CAMPION PLACE | AX168: R1C
B169: 0 | AS169: R1CCHASE COMMUNITY HOSPITAL | AT169: R1CG1 | AU169: CHASE COMMUNITY HOSPITAL | AV169: R1CG1 | AW169: CHASE COMMUNITY HOSPITAL | AX169: R1C
B170: 0 | AS170: R1CCOMMUNITY PAEDIATRICS - EAST | AT170: R1C22 | AU170: COMMUNITY PAEDIATRICS - EAST | AV170: R1C22 | AW170: COMMUNITY PAEDIATRICS - EAST | AX170: R1C
B171: 0 | AS171: R1CCOMMUNITY PAEDIATRICS - WEST | AT171: R1C55 | AU171: COMMUNITY PAEDIATRICS - WEST | AV171: R1C55 | AW171: COMMUNITY PAEDIATRICS - WEST | AX171: R1C
B172: 0 | AS172: R1CCOMMUNITY PAEDS N.FOREST | AT172: R1CA6 | AU172: COMMUNITY PAEDS N.FOREST | AV172: R1CA6 | AW172: COMMUNITY PAEDS N.FOREST | AX172: R1C
B173: 0 | AS173: R1CCROWN HEIGHTS | AT173: R1CH3 | AU173: CROWN HEIGHTS | AV173: R1CH3 | AW173: CROWN HEIGHTS | AX173: R1C
B174: 0 | C174: =IF(ISNA(VLOOKUP($B$2&D174,$AS:$AT,2,FALSE)),"",VLOOKUP($B$2&D174,$AS:$AT,2,FALSE)) ->  | AS174: R1CEASTLEIGH DAS | AT174: R1CR3 | AU174: EASTLEIGH DAS | AV174: R1CR3 | AW174: EASTLEIGH DAS | AX174: R1C
B175: 0 | AS175: R1CELMLEIGH HOSPITAL | AT175: R1CM8 | AU175: ELMLEIGH HOSPITAL | AV175: R1CM8 | AW175: ELMLEIGH HOSPITAL | AX175: R1C
B176: 0 | AS176: R1CFANSHAWE WARD | AT176: R1C49 | AU176: FANSHAWE WARD | AV176: R1C49 | AW176: FANSHAWE WARD | AX176: R1C
B177: 0 | AS177: R1CFAREHAM COMMUNITY HOSPITAL | AT177: R1CF4 | AU177: FAREHAM COMMUNITY HOSPITAL | AV177: R1CF4 | AW177: FAREHAM COMMUNITY HOSPITAL | AX177: R1C
B178: 0 | AS178: R1CFAREHAM REACH UNIT | AT178: R1C89 | AU178: FAREHAM REACH UNIT | AV178: R1C89 | AW178: FAREHAM REACH UNIT | AX178: R1C
B179: 0 | AS179: R1CFENWICK HOSPITAL | AT179: R1CT7 | AU179: FENWICK HOSPITAL | AV179: R1CT7 | AW179: FENWICK HOSPITAL | AX179: R1C
B180: 0 | AS180: R1CFLEET COMMUNITY HOSPITAL | AT180: R1CG3 | AU180: FLEET COMMUNITY HOSPITAL | AV180: R1CG3 | AW180: FLEET COMMUNITY HOSPITAL | AX180: R1C
B181: 0 | AS181: R1CFRITH COTTAGE DAS | AT181: R1C09 | AU181: FRITH COTTAGE DAS | AV181: R1C09 | AW181: FRITH COTTAGE DAS | AX181: R1C
B182: 0 | AS182: R1CGOSPORT WAR MEMORIAL HOSPITAL | AT182: R1C70 | AU182: GOSPORT WAR MEMORIAL HOSPITAL | AV182: R1C70 | AW182: GOSPORT WAR MEMORIAL HOSPITAL | AX182: R1C
B183: 0 | AS183: R1CHAVANT WAR MEMORIAL HOSPITAL | AT183: R1CJ2 | AU183: HAVANT WAR MEMORIAL HOSPITAL | AV183: R1CJ2 | AW183: HAVANT WAR MEMORIAL HOSPITAL | AX183: R1C
B184: 0 | AS184: R1CHOOK SHADIE AT THE BASE | AT184: R1CE8 | AU184: HOOK SHADIE AT THE BASE | AV184: R1CE8 | AW184: HOOK SHADIE AT THE BASE | AX184: R1C
B185: 0 | AS185: R1CHUNTERCOMBE MANOR HOSPITAL | AT185: R1CA9 | AU185: HUNTERCOMBE MANOR HOSPITAL | AV185: R1CA9 | AW185: HUNTERCOMBE MANOR HOSPITAL | AX185: R1C
B186: 0 | AS186: R1CHYTHE HOSPITAL | AT186: R1CG7 | AU186: HYTHE HOSPITAL | AV186: R1CG7 | AW186: HYTHE HOSPITAL | AX186: R1C
B187: 0 | AS187: R1CINSCAPE | AT187: R1C95 | AU187: INSCAPE | AV187: R1C95 | AW187: INSCAPE | AX187: R1C
B188: 0 | AS188: R1CINTEGRATED DRUG TREATMENT | AT188: R1C59 | AU188: INTEGRATED DRUG TREATMENT | AV188: R1C59 | AW188: INTEGRATED DRUG TREATMENT | AX188: R1C
B189: 0 | AS189: R1CLOWER MOUNTBATTON GALLERY | AT189: R1C12 | AU189: LOWER MOUNTBATTON GALLERY | AV189: R1C12 | AW189: LOWER MOUNTBATTON GALLERY | AX189: R1C
B190: 0 | AS190: R1CLYMINGTON NEW FOREST HOSPITAL | AT190: R1CG4 | AU190: LYMINGTON NEW FOREST HOSPITAL | AV190: R1CG4 | AW190: LYMINGTON NEW FOREST HOSPITAL | AX190: R1C
B191: 0 | AS191: R1CMILFORD WAR MEMORIAL HOSPITAL | AT191: R1CG5 | AU191: MILFORD WAR MEMORIAL HOSPITAL | AV191: R1CG5 | AW191: MILFORD WAR MEMORIAL HOSPITAL | AX191: R1C
B192: 0 | AS192: R1CMINOR INJURIES UNIT | AT192: R1CH0 | AU192: MINOR INJURIES UNIT | AV192: R1CH0 | AW192: MINOR INJURIES UNIT | AX192: R1C
B193: 0 | AS193: R1CMOORGREEN HOSPITAL | AT193: R1C02 | AU193: MOORGREEN HOSPITAL | AV193: R1C02 | AW193: MOORGREEN HOSPITAL | AX193: R1C
B194: 0 | AS194: R1CNEW FOREST DAS | AT194: R1C65 | AU194: NEW FOREST DAS | AV194: R1C65 | AW194: NEW FOREST DAS | AX194: R1C
B195: 0 | AS195: R1CNO LIMITS | AT195: R1CG6 | AU195: NO LIMITS | AV195: R1CG6 | AW195: NO LIMITS | AX195: R1C
B196: 0 | AS196: R1CNO LIMITS - SHIRLEY | AT196: R1CL2 | AU196: NO LIMITS - SHIRLEY | AV196: R1CL2 | AW196: NO LIMITS - SHIRLEY | AX196: R1C
B197: 0 | AS197: R1CNO LIMITS - SHOLING | AT197: R1CL3 | AU197: NO LIMITS - SHOLING | AV197: R1CL3 | AW197: NO LIMITS - SHOLING | AX197: R1C
B198: 0 | AS198: =CONCATENATE(LEFT(AT198, 3),AU198) -> R1COAKRIDGE HALL FOR ALL | AT198: R1CL5 | AU198: OAKRIDGE HALL FOR ALL | AV198: R1CL5 | AW198: OAKRIDGE HALL FOR ALL | AX198: =LEFT(AV198,3) -> R1C
B199: 0 | AS199: R1COLDER PERS MENTAL HEALTH | AT199: R1C26 | AU199: OLDER PERS MENTAL HEALTH | AV199: R1C26 | AW199: OLDER PERS MENTAL HEALTH | AX199: R1C
B200: 0 | AS200: R1CPETERSFIELD HOSPITAL | AT200: R1CD8 | AU200: PETERSFIELD HOSPITAL | AV200: R1CD8 | AW200: PETERSFIELD HOSPITAL | AX200: R1C
... 816 more rows

Sheet Site - Summary
A2: Org: | B2: ='Trust - Frontsheet'!B2 -> RWD | C2: ='Trust - Frontsheet'!C2 -> United Lincolnshire Hospitals NHS Trust
A3: Period: | B3: ='Trust - Frontsheet'!B3 -> December_2016-17
D4: Day | H4: Night
D5: Registered midwives/nurses | F5: Care Staff | H5: Registered midwives/nurses | J5: Care Staff | L5: Day | N5: Night | P5: Care Hours Per Patient Day (CHPPD)
B6: Site Code | C6: Site Name | D6: Total monthly planned staff hours | E6: Total monthly actual staff hours | F6: Total monthly planned staff hours | G6: Total monthly actual staff hours | H6: Total monthly planned staff hours | I6: Total monthly actual staff hours | J6: Total monthly planned staff hours | K6: Total monthly actual staff hours | L6: Average fill rate - registered nurses/midwives (%) | M6: Average fill rate - care staff (%) | N6: Average fill rate - registered nurses/midwives (%) | O6: Average fill rate - care staff (%) | P6: Cumulative count over the month of patients at 23:59 each day | Q6: Registered midwives/ nurses | R6: Care Staff | S6: Overall
B7: =IF(ISERROR(INDEX('Trust - Frontsheet'!AV$1:AV$6187,SMALL(IF('Trust - Frontsheet'!$AX$1:$AX$6187=$B$2,ROW('Trust - Frontsheet'!$AX$1:$AX$6187)),ROW(1:1)))),"",INDEX('Trust - Frontsheet'!AV$1:AV$6187,SMALL(IF('Trust - Frontsheet'!$AX$1:$AX$6187=$B$2,ROW('Trust - Frontsheet'!$AX$1:$AX$6187)),ROW(1:1)))) -> RWDAA | C7: =IF(ISERROR(INDEX('Trust - Frontsheet'!AW$1:AW$6187,SMALL(IF('Trust - Frontsheet'!$AX$1:$AX$6187=$B$2,ROW('Trust - Frontsheet'!$AX$1:$AX$6187)),ROW(1:1)))),"",INDEX('Trust - Frontsheet'!AW$1:AW$6187,SMALL(IF('Trust - Frontsheet'!$AX$1:$AX$6187=$B$2,ROW('Trust - Frontsheet'!$AX$1:$AX$6187)),ROW(1:1)))) -> COUNTY HOSPITAL LOUTH | D7: =IF($B7="","",SUMIF('Trust - Frontsheet'!$C$14:$C$213,$B7,'Trust - Frontsheet'!H$14:H$213)) -> 0 | E7: =IF($B7="","",SUMIF('Trust - Frontsheet'!$C$14:$C$213,$B7,'Trust - Frontsheet'!I$14:I$213)) -> 0 | F7: =IF($B7="","",SUMIF('Trust - Frontsheet'!$C$14:$C$213,$B7,'Trust - Frontsheet'!J$14:J$213)) -> 0 | G7: =IF($B7="","",SUMIF('Trust - Frontsheet'!$C$14:$C$213,$B7,'Trust - Frontsheet'!K$14:K$213)) -> 0 | H7: =IF($B7="","",SUMIF('Trust - Frontsheet'!$C$14:$C$213,$B7,'Trust - Frontsheet'!L$14:L$213)) -> 0 | I7: =IF($B7="","",SUMIF('Trust - Frontsheet'!$C$14:$C$213,$B7,'Trust - Frontsheet'!M$14:M$213)) -> 0 | J7: =IF($B7="","",SUMIF('Trust - Frontsheet'!$C$14:$C$213,$B7,'Trust - Frontsheet'!N$14:N$213)) -> 0 | K7: =IF($B7="","",SUMIF('Trust - Frontsheet'!$C$14:$C$213,$B7,'Trust - Frontsheet'!O$14:O$213)) -> 0 | L7: =IF(D7="","",IF(D7=0,0,E7/D7)) -> 0 | M7: =IF(F7="","",IF(F7=0,0,G7/F7)) -> 0 | N7: =IF(H7="","",IF(H7=0,0,I7/H7)) -> 0 | O7: =IF(J7="","",IF(J7=0,0,K7/J7)) -> 0 | P7: =IF($B7="","",SUMIF('Trust - Frontsheet'!$C$14:$C$213,$B7,'Trust - Frontsheet'!T$14:T$213)) -> 0 | Q7: =IF(ISERROR(IF($P7="","",SUM(E7,I7)/$P7)),"-",(IF($P7="","",SUM(E7,I7)/$P7))) -> - | R7: =IF(ISERROR(IF($P7="","",SUM(G7,K7)/$P7)),"-",(IF($P7="","",SUM(G7,K7)/$P7))) -> - | S7: =IF(ISERROR(IF($P7="","",SUM(E7,G7,I7,K7)/$P7)),"-",(IF($P7="","",SUM(E7,G7,I7,K7)/$P7))) -> -
B8: =IF(ISERROR(INDEX('Trust - Frontsheet'!AV$1:AV$6187,SMALL(IF('Trust - Frontsheet'!$AX$1:$AX$6187=$B$2,ROW('Trust - Frontsheet'!$AX$1:$AX$6187)),ROW(2:2)))),"",INDEX('Trust - Frontsheet'!AV$1:AV$6187,SMALL(IF('Trust - Frontsheet'!$AX$1:$AX$6187=$B$2,ROW('Trust - Frontsheet'!$AX$1:$AX$6187)),ROW(2:2)))) -> RWDLP | C8: =IF(ISERROR(INDEX('Trust - Frontsheet'!AW$1:AW$6187,SMALL(IF('Trust - Frontsheet'!$AX$1:$AX$6187=$B$2,ROW('Trust - Frontsheet'!$AX$1:$AX$6187)),ROW(2:2)))),"",INDEX('Trust - Frontsheet'!AW$1:AW$6187,SMALL(IF('Trust - Frontsheet'!$AX$1:$AX$6187=$B$2,ROW('Trust - Frontsheet'!$AX$1:$AX$6187)),ROW(2:2)))) -> GRANTHAM AND DISTRICT HOSPITAL | D8: =IF($B8="","",SUMIF('Trust - Frontsheet'!$C$14:$C$213,$B8,'Trust - Frontsheet'!H$14:H$213)) -> 7113.883333 | E8: =IF($B8="","",SUMIF('Trust - Frontsheet'!$C$14:$C$213,$B8,'Trust - Frontsheet'!I$14:I$213)) -> 7084.616667 | F8: =IF($B8="","",SUMIF('Trust - Frontsheet'!$C$14:$C$213,$B8,'Trust - Frontsheet'!J$14:J$213)) -> 4552.716667 | G8: =IF($B8="","",SUMIF('Trust - Frontsheet'!$C$14:$C$213,$B8,'Trust - Frontsheet'!K$14:K$213)) -> 4099.15 | H8: =IF($B8="","",SUMIF('Trust - Frontsheet'!$C$14:$C$213,$B8,'Trust - Frontsheet'!L$14:L$213)) -> 4774 | I8: =IF($B8="","",SUMIF('Trust - Frontsheet'!$C$14:$C$213,$B8,'Trust - Frontsheet'!M$14:M$213)) -> 5041.75 | J8: =IF($B8="","",SUMIF('Trust - Frontsheet'!$C$14:$C$213,$B8,'Trust - Frontsheet'!N$14:N$213)) -> 2728 | K8: =IF($B8="","",SUMIF('Trust - Frontsheet'!$C$14:$C$213,$B8,'Trust - Frontsheet'!O$14:O$213)) -> 2433 | L8: =IF(D8="","",IF(D8=0,0,E8/D8)) -> 0.9958859788 | M8: =IF(F8="","",IF(F8=0,0,G8/F8)) -> 0.9003745017 | N8: =IF(H8="","",IF(H8=0,0,I8/H8)) -> 1.056085044 | O8: =IF(J8="","",IF(J8=0,0,K8/J8)) -> 0.8918621701 | P8: =IF($B8="","",SUMIF('Trust - Frontsheet'!$C$14:$C$213,$B8,'Trust - Frontsheet'!T$14:T$213)) -> 2732 | Q8: =IF(ISERROR(IF($P8="","",SUM(E8,I8)/$P8)),"-",(IF($P8="","",SUM(E8,I8)/$P8))) -> 4.4386408 | R8: =IF(ISERROR(IF($P8="","",SUM(G8,K8)/$P8)),"-",(IF($P8="","",SUM(G8,K8)/$P8))) -> 2.390977306 | S8: =IF(ISERROR(IF($P8="","",SUM(E8,G8,I8,K8)/$P8)),"-",(IF($P8="","",SUM(E8,G8,I8,K8)/$P8))) -> 6.829618106
B9: =IF(ISERROR(INDEX('Trust - Frontsheet'!AV$1:AV$6187,SMALL(IF('Trust - Frontsheet'!$AX$1:$AX$6187=$B$2,ROW('Trust - Frontsheet'!$AX$1:$AX$6187)),ROW(3:3)))),"",INDEX('Trust - Frontsheet'!AV$1:AV$6187,SMALL(IF('Trust - Frontsheet'!$AX$1:$AX$6187=$B$2,ROW('Trust - Frontsheet'!$AX$1:$AX$6187)),ROW(3:3)))) -> RWDLK | C9: =IF(ISERROR(INDEX('Trust - Frontsheet'!AW$1:AW$6187,SMALL(IF('Trust - Frontsheet'!$AX$1:$AX$6187=$B$2,ROW('Trust - Frontsheet'!$AX$1:$AX$6187)),ROW(3:3)))),"",INDEX('Trust - Frontsheet'!AW$1:AW$6187,SMALL(IF('Trust - Frontsheet'!$AX$1:$AX$6187=$B$2,ROW('Trust - Frontsheet'!$AX$1:$AX$6187)),ROW(3:3)))) -> HOLBEACH HOSPITAL | D9: =IF($B9="","",SUMIF('Trust - Frontsheet'!$C$14:$C$213,$B9,'Trust - Frontsheet'!H$14:H$213)) -> 0 | E9: =IF($B9="","",SUMIF('Trust - Frontsheet'!$C$14:$C$213,$B9,'Trust - Frontsheet'!I$14:I$213)) -> 0 | F9: =IF($B9="","",SUMIF('Trust - Frontsheet'!$C$14:$C$213,$B9,'Trust - Frontsheet'!J$14:J$213)) -> 0 | G9: =IF($B9="","",SUMIF('Trust - Frontsheet'!$C$14:$C$213,$B9,'Trust - Frontsheet'!K$14:K$213)) -> 0 | H9: =IF($B9="","",SUMIF('Trust - Frontsheet'!$C$14:$C$213,$B9,'Trust - Frontsheet'!L$14:L$213)) -> 0 | I9: =IF($B9="","",SUMIF('Trust - Frontsheet'!$C$14:$C$213,$B9,'Trust - Frontsheet'!M$14:M$213)) -> 0 | J9: =IF($B9="","",SUMIF('Trust - Frontsheet'!$C$14:$C$213,$B9,'Trust - Frontsheet'!N$14:N$213)) -> 0 | K9: =IF($B9="","",SUMIF('Trust - Frontsheet'!$C$14:$C$213,$B9,'Trust - Frontsheet'!O$14:O$213)) -> 0 | L9: 0 | M9: 0 | N9: 0 | O9: 0 | P9: =IF($B9="","",SUMIF('Trust - Frontsheet'!$C$14:$C$213,$B9,'Trust - Frontsheet'!T$14:T$213)) -> 0 | Q9: - | R9: - | S9: -
B10: =IF(ISERROR(INDEX('Trust - Frontsheet'!AV$1:AV$6187,SMALL(IF('Trust - Frontsheet'!$AX$1:$AX$6187=$B$2,ROW('Trust - Frontsheet'!$AX$1:$AX$6187)),ROW(4:4)))),"",INDEX('Trust - Frontsheet'!AV$1:AV$6187,SMALL(IF('Trust - Frontsheet'!$AX$1:$AX$6187=$B$2,ROW('Trust - Frontsheet'!$AX$1:$AX$6187)),ROW(4:4)))) -> RWDAS | C10: =IF(ISERROR(INDEX('Trust - Frontsheet'!AW$1:AW$6187,SMALL(IF('Trust - Frontsheet'!$AX$1:$AX$6187=$B$2,ROW('Trust - Frontsheet'!$AX$1:$AX$6187)),ROW(4:4)))),"",INDEX('Trust - Frontsheet'!AW$1:AW$6187,SMALL(IF('Trust - Frontsheet'!$AX$1:$AX$6187=$B$2,ROW('Trust - Frontsheet'!$AX$1:$AX$6187)),ROW(4:4)))) -> JOHN COUPLAND HOSPITAL | D10: =IF($B10="","",SUMIF('Trust - Frontsheet'!$C$14:$C$213,$B10,'Trust - Frontsheet'!H$14:H$213)) -> 0 | E10: =IF($B10="","",SUMIF('Trust - Frontsheet'!$C$14:$C$213,$B10,'Trust - Frontsheet'!I$14:I$213)) -> 0 | F10: =IF($B10="","",SUMIF('Trust - Frontsheet'!$C$14:$C$213,$B10,'Trust - Frontsheet'!J$14:J$213)) -> 0 | G10: =IF($B10="","",SUMIF('Trust - Frontsheet'!$C$14:$C$213,$B10,'Trust - Frontsheet'!K$14:K$213)) -> 0 | H10: =IF($B10="","",SUMIF('Trust - Frontsheet'!$C$14:$C$213,$B10,'Trust - Frontsheet'!L$14:L$213)) -> 0 | I10: =IF($B10="","",SUMIF('Trust - Frontsheet'!$C$14:$C$213,$B10,'Trust - Frontsheet'!M$14:M$213)) -> 0 | J10: =IF($B10="","",SUMIF('Trust - Frontsheet'!$C$14:$C$213,$B10,'Trust - Frontsheet'!N$14:N$213)) -> 0 | K10: =IF($B10="","",SUMIF('Trust - Frontsheet'!$C$14:$C$213,$B10,'Trust - Frontsheet'!O$14:O$213)) -> 0 | L10: 0 | M10: 0 | N10: 0 | O10: 0 | P10: =IF($B10="","",SUMIF('Trust - Frontsheet'!$C$14:$C$213,$B10,'Trust - Frontsheet'!T$14:T$213)) -> 0 | Q10: - | R10: - | S10: -
B11: =IF(ISERROR(INDEX('Trust - Frontsheet'!AV$1:AV$6187,SMALL(IF('Trust - Frontsheet'!$AX$1:$AX$6187=$B$2,ROW('Trust - Frontsheet'!$AX$1:$AX$6187)),ROW(5:5)))),"",INDEX('Trust - Frontsheet'!AV$1:AV$6187,SMALL(IF('Trust - Frontsheet'!$AX$1:$AX$6187=$B$2,ROW('Trust - Frontsheet'!$AX$1:$AX$6187)),ROW(5:5)))) -> RWDLD | C11: =IF(ISERROR(INDEX('Trust - Frontsheet'!AW$1:AW$6187,SMALL(IF('Trust - Frontsheet'!$AX$1:$AX$6187=$B$2,ROW('Trust - Frontsheet'!$AX$1:$AX$6187)),ROW(5:5)))),"",INDEX('Trust - Frontsheet'!AW$1:AW$6187,SMALL(IF('Trust - Frontsheet'!$AX$1:$AX$6187=$B$2,ROW('Trust - Frontsheet'!$AX$1:$AX$6187)),ROW(5:5)))) -> JOHNSON HOSPITAL | D11: =IF($B11="","",SUMIF('Trust - Frontsheet'!$C$14:$C$213,$B11,'Trust - Frontsheet'!H$14:H$213)) -> 0 | E11: =IF($B11="","",SUMIF('Trust - Frontsheet'!$C$14:$C$213,$B11,'Trust - Frontsheet'!I$14:I$213)) -> 0 | F11: =IF($B11="","",SUMIF('Trust - Frontsheet'!$C$14:$C$213,$B11,'Trust - Frontsheet'!J$14:J$213)) -> 0 | G11: =IF($B11="","",SUMIF('Trust - Frontsheet'!$C$14:$C$213,$B11,'Trust - Frontsheet'!K$14:K$213)) -> 0 | H11: =IF($B11="","",SUMIF('Trust - Frontsheet'!$C$14:$C$213,$B11,'Trust - Frontsheet'!L$14:L$213)) -> 0 | I11: =IF($B11="","",SUMIF('Trust - Frontsheet'!$C$14:$C$213,$B11,'Trust - Frontsheet'!M$14:M$213)) -> 0 | J11: =IF($B11="","",SUMIF('Trust - Frontsheet'!$C$14:$C$213,$B11,'Trust - Frontsheet'!N$14:N$213)) -> 0 | K11: =IF($B11="","",SUMIF('Trust - Frontsheet'!$C$14:$C$213,$B11,'Trust - Frontsheet'!O$14:O$213)) -> 0 | L11: 0 | M11: 0 | N11: 0 | O11: 0 | P11: =IF($B11="","",SUMIF('Trust - Frontsheet'!$C$14:$C$213,$B11,'Trust - Frontsheet'!T$14:T$213)) -> 0 | Q11: - | R11: - | S11: -
B12: =IF(ISERROR(INDEX('Trust - Frontsheet'!AV$1:AV$6187,SMALL(IF('Trust - Frontsheet'!$AX$1:$AX$6187=$B$2,ROW('Trust - Frontsheet'!$AX$1:$AX$6187)),ROW(6:6)))),"",INDEX('Trust - Frontsheet'!AV$1:AV$6187,SMALL(IF('Trust - Frontsheet'!$AX$1:$AX$6187=$B$2,ROW('Trust - Frontsheet'!$AX$1:$AX$6187)),ROW(6:6)))) -> RWDDA | C12: =IF(ISERROR(INDEX('Trust - Frontsheet'!AW$1:AW$6187,SMALL(IF('Trust - Frontsheet'!$AX$1:$AX$6187=$B$2,ROW('Trust - Frontsheet'!$AX$1:$AX$6187)),ROW(6:6)))),"",INDEX('Trust - Frontsheet'!AW$1:AW$6187,SMALL(IF('Trust - Frontsheet'!$AX$1:$AX$6187=$B$2,ROW('Trust - Frontsheet'!$AX$1:$AX$6187)),ROW(6:6)))) -> LINCOLN COUNTY HOSPITAL | D12: =IF($B12="","",SUMIF('Trust - Frontsheet'!$C$14:$C$213,$B12,'Trust - Frontsheet'!H$14:H$213)) -> 41985.61667 | E12: =IF($B12="","",SUMIF('Trust - Frontsheet'!$C$14:$C$213,$B12,'Trust - Frontsheet'!I$14:I$213)) -> 39521.68333 | F12: =IF($B12="","",SUMIF('Trust - Frontsheet'!$C$14:$C$213,$B12,'Trust - Frontsheet'!J$14:J$213)) -> 24519.7 | G12: =IF($B12="","",SUMIF('Trust - Frontsheet'!$C$14:$C$213,$B12,'Trust - Frontsheet'!K$14:K$213)) -> 22945.9 | H12: =IF($B12="","",SUMIF('Trust - Frontsheet'!$C$14:$C$213,$B12,'Trust - Frontsheet'!L$14:L$213)) -> 30217 | I12: =IF($B12="","",SUMIF('Trust - Frontsheet'!$C$14:$C$213,$B12,'Trust - Frontsheet'!M$14:M$213)) -> 28993.41667 | J12: =IF($B12="","",SUMIF('Trust - Frontsheet'!$C$14:$C$213,$B12,'Trust - Frontsheet'!N$14:N$213)) -> 13409 | K12: =IF($B12="","",SUMIF('Trust - Frontsheet'!$C$14:$C$213,$B12,'Trust - Frontsheet'!O$14:O$213)) -> 12984.33333 | L12: 0.9413148233 | M12: 0.9358148754 | N12: 0.9595067898 | O12: 0.9683297288 | P12: =IF($B12="","",SUMIF('Trust - Frontsheet'!$C$14:$C$213,$B12,'Trust - Frontsheet'!T$14:T$213)) -> 15134 | Q12: 4.527230078 | R12: 2.374139906 | S12: 6.901369984
B13: =IF(ISERROR(INDEX('Trust - Frontsheet'!AV$1:AV$6187,SMALL(IF('Trust - Frontsheet'!$AX$1:$AX$6187=$B$2,ROW('Trust - Frontsheet'!$AX$1:$AX$6187)),ROW(7:7)))),"",INDEX('Trust - Frontsheet'!AV$1:AV$6187,SMALL(IF('Trust - Frontsheet'!$AX$1:$AX$6187=$B$2,ROW('Trust - Frontsheet'!$AX$1:$AX$6187)),ROW(7:7)))) -> RWDLA | C13: =IF(ISERROR(INDEX('Trust - Frontsheet'!AW$1:AW$6187,SMALL(IF('Trust - Frontsheet'!$AX$1:$AX$6187=$B$2,ROW('Trust - Frontsheet'!$AX$1:$AX$6187)),ROW(7:7)))),"",INDEX('Trust - Frontsheet'!AW$1:AW$6187,SMALL(IF('Trust - Frontsheet'!$AX$1:$AX$6187=$B$2,ROW('Trust - Frontsheet'!$AX$1:$AX$6187)),ROW(7:7)))) -> PILGRIM HOSPITAL | D13: =IF($B13="","",SUMIF('Trust - Frontsheet'!$C$14:$C$213,$B13,'Trust - Frontsheet'!H$14:H$213)) -> 33924.93333 | E13: =IF($B13="","",SUMIF('Trust - Frontsheet'!$C$14:$C$213,$B13,'Trust - Frontsheet'!I$14:I$213)) -> 30205.71667 | F13: =IF($B13="","",SUMIF('Trust - Frontsheet'!$C$14:$C$213,$B13,'Trust - Frontsheet'!J$14:J$213)) -> 21587.41667 | G13: =IF($B13="","",SUMIF('Trust - Frontsheet'!$C$14:$C$213,$B13,'Trust - Frontsheet'!K$14:K$213)) -> 20478.7 | H13: =IF($B13="","",SUMIF('Trust - Frontsheet'!$C$14:$C$213,$B13,'Trust - Frontsheet'!L$14:L$213)) -> 18755 | I13: =IF($B13="","",SUMIF('Trust - Frontsheet'!$C$14:$C$213,$B13,'Trust - Frontsheet'!M$14:M$213)) -> 18485.25 | J13: =IF($B13="","",SUMIF('Trust - Frontsheet'!$C$14:$C$213,$B13,'Trust - Frontsheet'!N$14:N$213)) -> 11199.51667 | K13: =IF($B13="","",SUMIF('Trust - Frontsheet'!$C$14:$C$213,$B13,'Trust - Frontsheet'!O$14:O$213)) -> 11398.25 | L13: 0.890369227 | M13: 0.9486406047 | N13: 0.9856171688 | O13: 1.017744813 | P13: =IF($B13="","",SUMIF('Trust - Frontsheet'!$C$14:$C$213,$B13,'Trust - Frontsheet'!T$14:T$213)) -> 10747 | Q13: 4.530656617 | R13: 2.96612543 | S13: 7.496782048
B14: =IF(ISERROR(INDEX('Trust - Frontsheet'!AV$1:AV$6187,SMALL(IF('Trust - Frontsheet'!$AX$1:$AX$6187=$B$2,ROW('Trust - Frontsheet'!$AX$1:$AX$6187)),ROW(8:8)))),"",INDEX('Trust - Frontsheet'!AV$1:AV$6187,SMALL(IF('Trust - Frontsheet'!$AX$1:$AX$6187=$B$2,ROW('Trust - Frontsheet'!$AX$1:$AX$6187)),ROW(8:8)))) -> RWDLB | C14: =IF(ISERROR(INDEX('Trust - Frontsheet'!AW$1:AW$6187,SMALL(IF('Trust - Frontsheet'!$AX$1:$AX$6187=$B$2,ROW('Trust - Frontsheet'!$AX$1:$AX$6187)),ROW(8:8)))),"",INDEX('Trust - Frontsheet'!AW$1:AW$6187,SMALL(IF('Trust - Frontsheet'!$AX$1:$AX$6187=$B$2,ROW('Trust - Frontsheet'!$AX$1:$AX$6187)),ROW(8:8)))) -> SKEGNESS AND DISTRICT GENERAL HOSPITAL | D14: =IF($B14="","",SUMIF('Trust - Frontsheet'!$C$14:$C$213,$B14,'Trust - Frontsheet'!H$14:H$213)) -> 0 | E14: =IF($B14="","",SUMIF('Trust - Frontsheet'!$C$14:$C$213,$B14,'Trust - Frontsheet'!I$14:I$213)) -> 0 | F14: =IF($B14="","",SUMIF('Trust - Frontsheet'!$C$14:$C$213,$B14,'Trust - Frontsheet'!J$14:J$213)) -> 0 | G14: =IF($B14="","",SUMIF('Trust - Frontsheet'!$C$14:$C$213,$B14,'Trust - Frontsheet'!K$14:K$213)) -> 0 | H14: =IF($B14="","",SUMIF('Trust - Frontsheet'!$C$14:$C$213,$B14,'Trust - Frontsheet'!L$14:L$213)) -> 0 | I14: =IF($B14="","",SUMIF('Trust - Frontsheet'!$C$14:$C$213,$B14,'Trust - Frontsheet'!M$14:M$213)) -> 0 | J14: =IF($B14="","",SUMIF('Trust - Frontsheet'!$C$14:$C$213,$B14,'Trust - Frontsheet'!N$14:N$213)) -> 0 | K14: =IF($B14="","",SUMIF('Trust - Frontsheet'!$C$14:$C$213,$B14,'Trust - Frontsheet'!O$14:O$213)) -> 0 | L14: 0 | M14: 0 | N14: 0 | O14: 0 | P14: =IF($B14="","",SUMIF('Trust - Frontsheet'!$C$14:$C$213,$B14,'Trust - Frontsheet'!T$14:T$213)) -> 0 | Q14: - | R14: - | S14: -
B15: =IF(ISERROR(INDEX('Trust - Frontsheet'!AV$1:AV$6187,SMALL(IF('Trust - Frontsheet'!$AX$1:$AX$6187=$B$2,ROW('Trust - Frontsheet'!$AX$1:$AX$6187)),ROW(9:9)))),"",INDEX('Trust - Frontsheet'!AV$1:AV$6187,SMALL(IF('Trust - Frontsheet'!$AX$1:$AX$6187=$B$2,ROW('Trust - Frontsheet'!$AX$1:$AX$6187)),ROW(9:9)))) -> RWDBM | C15: =IF(ISERROR(INDEX('Trust - Frontsheet'!AW$1:AW$6187,SMALL(IF('Trust - Frontsheet'!$AX$1:$AX$6187=$B$2,ROW('Trust - Frontsheet'!$AX$1:$AX$6187)),ROW(9:9)))),"",INDEX('Trust - Frontsheet'!AW$1:AW$6187,SMALL(IF('Trust - Frontsheet'!$AX$1:$AX$6187=$B$2,ROW('Trust - Frontsheet'!$AX$1:$AX$6187)),ROW(9:9)))) -> ST GEORGES HOSPITAL | D15: =IF($B15="","",SUMIF('Trust - Frontsheet'!$C$14:$C$213,$B15,'Trust - Frontsheet'!H$14:H$213)) -> 0 | E15: =IF($B15="","",SUMIF('Trust - Frontsheet'!$C$14:$C$213,$B15,'Trust - Frontsheet'!I$14:I$213)) -> 0 | F15: =IF($B15="","",SUMIF('Trust - Frontsheet'!$C$14:$C$213,$B15,'Trust - Frontsheet'!J$14:J$213)) -> 0 | G15: =IF($B15="","",SUMIF('Trust - Frontsheet'!$C$14:$C$213,$B15,'Trust - Frontsheet'!K$14:K$213)) -> 0 | H15: =IF($B15="","",SUMIF('Trust - Frontsheet'!$C$14:$C$213,$B15,'Trust - Frontsheet'!L$14:L$213)) -> 0 | I15: =IF($B15="","",SUMIF('Trust - Frontsheet'!$C$14:$C$213,$B15,'Trust - Frontsheet'!M$14:M$213)) -> 0 | J15: =IF($B15="","",SUMIF('Trust - Frontsheet'!$C$14:$C$213,$B15,'Trust - Frontsheet'!N$14:N$213)) -> 0 | K15: =IF($B15="","",SUMIF('Trust - Frontsheet'!$C$14:$C$213,$B15,'Trust - Frontsheet'!O$14:O$213)) -> 0 | L15: 0 | M15: 0 | N15: 0 | O15: 0 | P15: =IF($B15="","",SUMIF('Trust - Frontsheet'!$C$14:$C$213,$B15,'Trust - Frontsheet'!T$14:T$213)) -> 0 | Q15: - | R15: - | S15: -
B16: =IF(ISERROR(INDEX('Trust - Frontsheet'!AV$1:AV$6187,SMALL(IF('Trust - Frontsheet'!$AX$1:$AX$6187=$B$2,ROW('Trust - Frontsheet'!$AX$1:$AX$6187)),ROW(10:10)))),"",INDEX('Trust - Frontsheet'!AV$1:AV$6187,SMALL(IF('Trust - Frontsheet'!$AX$1:$AX$6187=$B$2,ROW('Trust - Frontsheet'!$AX$1:$AX$6187)),ROW(10:10)))) -> RWDXT | C16: =IF(ISERROR(INDEX('Trust - Frontsheet'!AW$1:AW$6187,SMALL(IF('Trust - Frontsheet'!$AX$1:$AX$6187=$B$2,ROW('Trust - Frontsheet'!$AX$1:$AX$6187)),ROW(10:10)))),"",INDEX('Trust - Frontsheet'!AW$1:AW$6187,SMALL(IF('Trust - Frontsheet'!$AX$1:$AX$6187=$B$2,ROW('Trust - Frontsheet'!$AX$1:$AX$6187)),ROW(10:10)))) -> THE JOHNSON COMMUNITY HOSPITAL | D16: =IF($B16="","",SUMIF('Trust - Frontsheet'!$C$14:$C$213,$B16,'Trust - Frontsheet'!H$14:H$213)) -> 0 | E16: =IF($B16="","",SUMIF('Trust - Frontsheet'!$C$14:$C$213,$B16,'Trust - Frontsheet'!I$14:I$213)) -> 0 | F16: =IF($B16="","",SUMIF('Trust - Frontsheet'!$C$14:$C$213,$B16,'Trust - Frontsheet'!J$14:J$213)) -> 0 | G16: =IF($B16="","",SUMIF('Trust - Frontsheet'!$C$14:$C$213,$B16,'Trust - Frontsheet'!K$14:K$213)) -> 0 | H16: =IF($B16="","",SUMIF('Trust - Frontsheet'!$C$14:$C$213,$B16,'Trust - Frontsheet'!L$14:L$213)) -> 0 | I16: =IF($B16="","",SUMIF('Trust - Frontsheet'!$C$14:$C$213,$B16,'Trust - Frontsheet'!M$14:M$213)) -> 0 | J16: =IF($B16="","",SUMIF('Trust - Frontsheet'!$C$14:$C$213,$B16,'Trust - Frontsheet'!N$14:N$213)) -> 0 | K16: =IF($B16="","",SUMIF('Trust - Frontsheet'!$C$14:$C$213,$B16,'Trust - Frontsheet'!O$14:O$213)) -> 0 | L16: 0 | M16: 0 | N16: 0 | O16: 0 | P16: =IF($B16="","",SUMIF('Trust - Frontsheet'!$C$14:$C$213,$B16,'Trust - Frontsheet'!T$14:T$213)) -> 0 | Q16: - | R16: - | S16: -
B17: =IF(ISERROR(INDEX('Trust - Frontsheet'!AV$1:AV$6187,SMALL(IF('Trust - Frontsheet'!$AX$1:$AX$6187=$B$2,ROW('Trust - Frontsheet'!$AX$1:$AX$6187)),ROW(11:11)))),"",INDEX('Trust - Frontsheet'!AV$1:AV$6187,SMALL(IF('Trust - Frontsheet'!$AX$1:$AX$6187=$B$2,ROW('Trust - Frontsheet'!$AX$1:$AX$6187)),ROW(11:11)))) -> RWDLC | C17: =IF(ISERROR(INDEX('Trust - Frontsheet'!AW$1:AW$6187,SMALL(IF('Trust - Frontsheet'!$AX$1:$AX$6187=$B$2,ROW('Trust - Frontsheet'!$AX$1:$AX$6187)),ROW(11:11)))),"",INDEX('Trust - Frontsheet'!AW$1:AW$6187,SMALL(IF('Trust - Frontsheet'!$AX$1:$AX$6187=$B$2,ROW('Trust - Frontsheet'!$AX$1:$AX$6187)),ROW(11:11)))) -> WELLAND HOSPITAL | D17: =IF($B17="","",SUMIF('Trust - Frontsheet'!$C$14:$C$213,$B17,'Trust - Frontsheet'!H$14:H$213)) -> 0 | E17: =IF($B17="","",SUMIF('Trust - Frontsheet'!$C$14:$C$213,$B17,'Trust - Frontsheet'!I$14:I$213)) -> 0 | F17: =IF($B17="","",SUMIF('Trust - Frontsheet'!$C$14:$C$213,$B17,'Trust - Frontsheet'!J$14:J$213)) -> 0 | G17: =IF($B17="","",SUMIF('Trust - Frontsheet'!$C$14:$C$213,$B17,'Trust - Frontsheet'!K$14:K$213)) -> 0 | H17: =IF($B17="","",SUMIF('Trust - Frontsheet'!$C$14:$C$213,$B17,'Trust - Frontsheet'!L$14:L$213)) -> 0 | I17: =IF($B17="","",SUMIF('Trust - Frontsheet'!$C$14:$C$213,$B17,'Trust - Frontsheet'!M$14:M$213)) -> 0 | J17: =IF($B17="","",SUMIF('Trust - Frontsheet'!$C$14:$C$213,$B17,'Trust - Frontsheet'!N$14:N$213)) -> 0 | K17: =IF($B17="","",SUMIF('Trust - Frontsheet'!$C$14:$C$213,$B17,'Trust - Frontsheet'!O$14:O$213)) -> 0 | L17: 0 | M17: 0 | N17: 0 | O17: 0 | P17: =IF($B17="","",SUMIF('Trust - Frontsheet'!$C$14:$C$213,$B17,'Trust - Frontsheet'!T$14:T$213)) -> 0 | Q17: - | R17: - | S17: -
B18: =IF(ISERROR(INDEX('Trust - Frontsheet'!AV$1:AV$6187,SMALL(IF('Trust - Frontsheet'!$AX$1:$AX$6187=$B$2,ROW('Trust - Frontsheet'!$AX$1:$AX$6187)),ROW(12:12)))),"",INDEX('Trust - Frontsheet'!AV$1:AV$6187,SMALL(IF('Trust - Frontsheet'!$AX$1:$AX$6187=$B$2,ROW('Trust - Frontsheet'!$AX$1:$AX$6187)),ROW(12:12)))) ->  | C18: =IF(ISERROR(INDEX('Trust - Frontsheet'!AW$1:AW$6187,SMALL(IF('Trust - Frontsheet'!$AX$1:$AX$6187=$B$2,ROW('Trust - Frontsheet'!$AX$1:$AX$6187)),ROW(12:12)))),"",INDEX('Trust - Frontsheet'!AW$1:AW$6187,SMALL(IF('Trust - Frontsheet'!$AX$1:$AX$6187=$B$2,ROW('Trust - Frontsheet'!$AX$1:$AX$6187)),ROW(12:12)))) ->  | D18: =IF($B18="","",SUMIF('Trust - Frontsheet'!$C$14:$C$213,$B18,'Trust - Frontsheet'!H$14:H$213)) ->  | E18: =IF($B18="","",SUMIF('Trust - Frontsheet'!$C$14:$C$213,$B18,'Trust - Frontsheet'!I$14:I$213)) ->  | F18: =IF($B18="","",SUMIF('Trust - Frontsheet'!$C$14:$C$213,$B18,'Trust - Frontsheet'!J$14:J$213)) ->  | G18: =IF($B18="","",SUMIF('Trust - Frontsheet'!$C$14:$C$213,$B18,'Trust - Frontsheet'!K$14:K$213)) ->  | H18: =IF($B18="","",SUMIF('Trust - Frontsheet'!$C$14:$C$213,$B18,'Trust - Frontsheet'!L$14:L$213)) ->  | I18: =IF($B18="","",SUMIF('Trust - Frontsheet'!$C$14:$C$213,$B18,'Trust - Frontsheet'!M$14:M$213)) ->  | J18: =IF($B18="","",SUMIF('Trust - Frontsheet'!$C$14:$C$213,$B18,'Trust - Frontsheet'!N$14:N$213)) ->  | K18: =IF($B18="","",SUMIF('Trust - Frontsheet'!$C$14:$C$213,$B18,'Trust - Frontsheet'!O$14:O$213)) ->  | P18: =IF($B18="","",SUMIF('Trust - Frontsheet'!$C$14:$C$213,$B18,'Trust - Frontsheet'!T$14:T$213)) -> 
B19: =IF(ISERROR(INDEX('Trust - Frontsheet'!AV$1:AV$6187,SMALL(IF('Trust - Frontsheet'!$AX$1:$AX$6187=$B$2,ROW('Trust - Frontsheet'!$AX$1:$AX$6187)),ROW(13:13)))),"",INDEX('Trust - Frontsheet'!AV$1:AV$6187,SMALL(IF('Trust - Frontsheet'!$AX$1:$AX$6187=$B$2,ROW('Trust - Frontsheet'!$AX$1:$AX$6187)),ROW(13:13)))) ->  | C19: =IF(ISERROR(INDEX('Trust - Frontsheet'!AW$1:AW$6187,SMALL(IF('Trust - Frontsheet'!$AX$1:$AX$6187=$B$2,ROW('Trust - Frontsheet'!$AX$1:$AX$6187)),ROW(13:13)))),"",INDEX('Trust - Frontsheet'!AW$1:AW$6187,SMALL(IF('Trust - Frontsheet'!$AX$1:$AX$6187=$B$2,ROW('Trust - Frontsheet'!$AX$1:$AX$6187)),ROW(13:13)))) ->  | D19: =IF($B19="","",SUMIF('Trust - Frontsheet'!$C$14:$C$213,$B19,'Trust - Frontsheet'!H$14:H$213)) ->  | E19: =IF($B19="","",SUMIF('Trust - Frontsheet'!$C$14:$C$213,$B19,'Trust - Frontsheet'!I$14:I$213)) ->  | F19: =IF($B19="","",SUMIF('Trust - Frontsheet'!$C$14:$C$213,$B19,'Trust - Frontsheet'!J$14:J$213)) ->  | G19: =IF($B19="","",SUMIF('Trust - Frontsheet'!$C$14:$C$213,$B19,'Trust - Frontsheet'!K$14:K$213)) ->  | H19: =IF($B19="","",SUMIF('Trust - Frontsheet'!$C$14:$C$213,$B19,'Trust - Frontsheet'!L$14:L$213)) ->  | I19: =IF($B19="","",SUMIF('Trust - Frontsheet'!$C$14:$C$213,$B19,'Trust - Frontsheet'!M$14:M$213)) ->  | J19: =IF($B19="","",SUMIF('Trust - Frontsheet'!$C$14:$C$213,$B19,'Trust - Frontsheet'!N$14:N$213)) ->  | K19: =IF($B19="","",SUMIF('Trust - Frontsheet'!$C$14:$C$213,$B19,'Trust - Frontsheet'!O$14:O$213)) ->  | P19: =IF($B19="","",SUMIF('Trust - Frontsheet'!$C$14:$C$213,$B19,'Trust - Frontsheet'!T$14:T$213)) -> 
B20: =IF(ISERROR(INDEX('Trust - Frontsheet'!AV$1:AV$6187,SMALL(IF('Trust - Frontsheet'!$AX$1:$AX$6187=$B$2,ROW('Trust - Frontsheet'!$AX$1:$AX$6187)),ROW(14:14)))),"",INDEX('Trust - Frontsheet'!AV$1:AV$6187,SMALL(IF('Trust - Frontsheet'!$AX$1:$AX$6187=$B$2,ROW('Trust - Frontsheet'!$AX$1:$AX$6187)),ROW(14:14)))) ->  | C20: =IF(ISERROR(INDEX('Trust - Frontsheet'!AW$1:AW$6187,SMALL(IF('Trust - Frontsheet'!$AX$1:$AX$6187=$B$2,ROW('Trust - Frontsheet'!$AX$1:$AX$6187)),ROW(14:14)))),"",INDEX('Trust - Frontsheet'!AW$1:AW$6187,SMALL(IF('Trust - Frontsheet'!$AX$1:$AX$6187=$B$2,ROW('Trust - Frontsheet'!$AX$1:$AX$6187)),ROW(14:14)))) ->  | D20: =IF($B20="","",SUMIF('Trust - Frontsheet'!$C$14:$C$213,$B20,'Trust - Frontsheet'!H$14:H$213)) ->  | E20: =IF($B20="","",SUMIF('Trust - Frontsheet'!$C$14:$C$213,$B20,'Trust - Frontsheet'!I$14:I$213)) ->  | F20: =IF($B20="","",SUMIF('Trust - Frontsheet'!$C$14:$C$213,$B20,'Trust - Frontsheet'!J$14:J$213)) ->  | G20: =IF($B20="","",SUMIF('Trust - Frontsheet'!$C$14:$C$213,$B20,'Trust - Frontsheet'!K$14:K$213)) ->  | H20: =IF($B20="","",SUMIF('Trust - Frontsheet'!$C$14:$C$213,$B20,'Trust - Frontsheet'!L$14:L$213)) ->  | I20: =IF($B20="","",SUMIF('Trust - Frontsheet'!$C$14:$C$213,$B20,'Trust - Frontsheet'!M$14:M$213)) ->  | J20: =IF($B20="","",SUMIF('Trust - Frontsheet'!$C$14:$C$213,$B20,'Trust - Frontsheet'!N$14:N$213)) ->  | K20: =IF($B20="","",SUMIF('Trust - Frontsheet'!$C$14:$C$213,$B20,'Trust - Frontsheet'!O$14:O$213)) ->  | P20: =IF($B20="","",SUMIF('Trust - Frontsheet'!$C$14:$C$213,$B20,'Trust - Frontsheet'!T$14:T$213)) -> 
B21: =IF(ISERROR(INDEX('Trust - Frontsheet'!AV$1:AV$6187,SMALL(IF('Trust - Frontsheet'!$AX$1:$AX$6187=$B$2,ROW('Trust - Frontsheet'!$AX$1:$AX$6187)),ROW(15:15)))),"",INDEX('Trust - Frontsheet'!AV$1:AV$6187,SMALL(IF('Trust - Frontsheet'!$AX$1:$AX$6187=$B$2,ROW('Trust - Frontsheet'!$AX$1:$AX$6187)),ROW(15:15)))) ->  | C21: =IF(ISERROR(INDEX('Trust - Frontsheet'!AW$1:AW$6187,SMALL(IF('Trust - Frontsheet'!$AX$1:$AX$6187=$B$2,ROW('Trust - Frontsheet'!$AX$1:$AX$6187)),ROW(15:15)))),"",INDEX('Trust - Frontsheet'!AW$1:AW$6187,SMALL(IF('Trust - Frontsheet'!$AX$1:$AX$6187=$B$2,ROW('Trust - Frontsheet'!$AX$1:$AX$6187)),ROW(15:15)))) ->  | D21: =IF($B21="","",SUMIF('Trust - Frontsheet'!$C$14:$C$213,$B21,'Trust - Frontsheet'!H$14:H$213)) ->  | E21: =IF($B21="","",SUMIF('Trust - Frontsheet'!$C$14:$C$213,$B21,'Trust - Frontsheet'!I$14:I$213)) ->  | F21: =IF($B21="","",SUMIF('Trust - Frontsheet'!$C$14:$C$213,$B21,'Trust - Frontsheet'!J$14:J$213)) ->  | G21: =IF($B21="","",SUMIF('Trust - Frontsheet'!$C$14:$C$213,$B21,'Trust - Frontsheet'!K$14:K$213)) ->  | H21: =IF($B21="","",SUMIF('Trust - Frontsheet'!$C$14:$C$213,$B21,'Trust - Frontsheet'!L$14:L$213)) ->  | I21: =IF($B21="","",SUMIF('Trust - Frontsheet'!$C$14:$C$213,$B21,'Trust - Frontsheet'!M$14:M$213)) ->  | J21: =IF($B21="","",SUMIF('Trust - Frontsheet'!$C$14:$C$213,$B21,'Trust - Frontsheet'!N$14:N$213)) ->  | K21: =IF($B21="","",SUMIF('Trust - Frontsheet'!$C$14:$C$213,$B21,'Trust - Frontsheet'!O$14:O$213)) ->  | P21: =IF($B21="","",SUMIF('Trust - Frontsheet'!$C$14:$C$213,$B21,'Trust - Frontsheet'!T$14:T$213)) -> 
B22: =IF(ISERROR(INDEX('Trust - Frontsheet'!AV$1:AV$6187,SMALL(IF('Trust - Frontsheet'!$AX$1:$AX$6187=$B$2,ROW('Trust - Frontsheet'!$AX$1:$AX$6187)),ROW(16:16)))),"",INDEX('Trust - Frontsheet'!AV$1:AV$6187,SMALL(IF('Trust - Frontsheet'!$AX$1:$AX$6187=$B$2,ROW('Trust - Frontsheet'!$AX$1:$AX$6187)),ROW(16:16)))) ->  | C22: =IF(ISERROR(INDEX('Trust - Frontsheet'!AW$1:AW$6187,SMALL(IF('Trust - Frontsheet'!$AX$1:$AX$6187=$B$2,ROW('Trust - Frontsheet'!$AX$1:$AX$6187)),ROW(16:16)))),"",INDEX('Trust - Frontsheet'!AW$1:AW$6187,SMALL(IF('Trust - Frontsheet'!$AX$1:$AX$6187=$B$2,ROW('Trust - Frontsheet'!$AX$1:$AX$6187)),ROW(16:16)))) ->  | D22: =IF($B22="","",SUMIF('Trust - Frontsheet'!$C$14:$C$213,$B22,'Trust - Frontsheet'!H$14:H$213)) ->  | E22: =IF($B22="","",SUMIF('Trust - Frontsheet'!$C$14:$C$213,$B22,'Trust - Frontsheet'!I$14:I$213)) ->  | F22: =IF($B22="","",SUMIF('Trust - Frontsheet'!$C$14:$C$213,$B22,'Trust - Frontsheet'!J$14:J$213)) ->  | G22: =IF($B22="","",SUMIF('Trust - Frontsheet'!$C$14:$C$213,$B22,'Trust - Frontsheet'!K$14:K$213)) ->  | H22: =IF($B22="","",SUMIF('Trust - Frontsheet'!$C$14:$C$213,$B22,'Trust - Frontsheet'!L$14:L$213)) ->  | I22: =IF($B22="","",SUMIF('Trust - Frontsheet'!$C$14:$C$213,$B22,'Trust - Frontsheet'!M$14:M$213)) ->  | J22: =IF($B22="","",SUMIF('Trust - Frontsheet'!$C$14:$C$213,$B22,'Trust - Frontsheet'!N$14:N$213)) ->  | K22: =IF($B22="","",SUMIF('Trust - Frontsheet'!$C$14:$C$213,$B22,'Trust - Frontsheet'!O$14:O$213)) ->  | P22: =IF($B22="","",SUMIF('Trust - Frontsheet'!$C$14:$C$213,$B22,'Trust - Frontsheet'!T$14:T$213)) -> 
B23: =IF(ISERROR(INDEX('Trust - Frontsheet'!AV$1:AV$6187,SMALL(IF('Trust - Frontsheet'!$AX$1:$AX$6187=$B$2,ROW('Trust - Frontsheet'!$AX$1:$AX$6187)),ROW(17:17)))),"",INDEX('Trust - Frontsheet'!AV$1:AV$6187,SMALL(IF('Trust - Frontsheet'!$AX$1:$AX$6187=$B$2,ROW('Trust - Frontsheet'!$AX$1:$AX$6187)),ROW(17:17)))) ->  | C23: =IF(ISERROR(INDEX('Trust - Frontsheet'!AW$1:AW$6187,SMALL(IF('Trust - Frontsheet'!$AX$1:$AX$6187=$B$2,ROW('Trust - Frontsheet'!$AX$1:$AX$6187)),ROW(17:17)))),"",INDEX('Trust - Frontsheet'!AW$1:AW$6187,SMALL(IF('Trust - Frontsheet'!$AX$1:$AX$6187=$B$2,ROW('Trust - Frontsheet'!$AX$1:$AX$6187)),ROW(17:17)))) ->  | D23: =IF($B23="","",SUMIF('Trust - Frontsheet'!$C$14:$C$213,$B23,'Trust - Frontsheet'!H$14:H$213)) ->  | E23: =IF($B23="","",SUMIF('Trust - Frontsheet'!$C$14:$C$213,$B23,'Trust - Frontsheet'!I$14:I$213)) ->  | F23: =IF($B23="","",SUMIF('Trust - Frontsheet'!$C$14:$C$213,$B23,'Trust - Frontsheet'!J$14:J$213)) ->  | G23: =IF($B23="","",SUMIF('Trust - Frontsheet'!$C$14:$C$213,$B23,'Trust - Frontsheet'!K$14:K$213)) ->  | H23: =IF($B23="","",SUMIF('Trust - Frontsheet'!$C$14:$C$213,$B23,'Trust - Frontsheet'!L$14:L$213)) ->  | I23: =IF($B23="","",SUMIF('Trust - Frontsheet'!$C$14:$C$213,$B23,'Trust - Frontsheet'!M$14:M$213)) ->  | J23: =IF($B23="","",SUMIF('Trust - Frontsheet'!$C$14:$C$213,$B23,'Trust - Frontsheet'!N$14:N$213)) ->  | K23: =IF($B23="","",SUMIF('Trust - Frontsheet'!$C$14:$C$213,$B23,'Trust - Frontsheet'!O$14:O$213)) ->  | P23: =IF($B23="","",SUMIF('Trust - Frontsheet'!$C$14:$C$213,$B23,'Trust - Frontsheet'!T$14:T$213)) -> 
B24: =IF(ISERROR(INDEX('Trust - Frontsheet'!AV$1:AV$6187,SMALL(IF('Trust - Frontsheet'!$AX$1:$AX$6187=$B$2,ROW('Trust - Frontsheet'!$AX$1:$AX$6187)),ROW(18:18)))),"",INDEX('Trust - Frontsheet'!AV$1:AV$6187,SMALL(IF('Trust - Frontsheet'!$AX$1:$AX$6187=$B$2,ROW('Trust - Frontsheet'!$AX$1:$AX$6187)),ROW(18:18)))) ->  | C24: =IF(ISERROR(INDEX('Trust - Frontsheet'!AW$1:AW$6187,SMALL(IF('Trust - Frontsheet'!$AX$1:$AX$6187=$B$2,ROW('Trust - Frontsheet'!$AX$1:$AX$6187)),ROW(18:18)))),"",INDEX('Trust - Frontsheet'!AW$1:AW$6187,SMALL(IF('Trust - Frontsheet'!$AX$1:$AX$6187=$B$2,ROW('Trust - Frontsheet'!$AX$1:$AX$6187)),ROW(18:18)))) ->  | D24: =IF($B24="","",SUMIF('Trust - Frontsheet'!$C$14:$C$213,$B24,'Trust - Frontsheet'!H$14:H$213)) ->  | E24: =IF($B24="","",SUMIF('Trust - Frontsheet'!$C$14:$C$213,$B24,'Trust - Frontsheet'!I$14:I$213)) ->  | F24: =IF($B24="","",SUMIF('Trust - Frontsheet'!$C$14:$C$213,$B24,'Trust - Frontsheet'!J$14:J$213)) ->  | G24: =IF($B24="","",SUMIF('Trust - Frontsheet'!$C$14:$C$213,$B24,'Trust - Frontsheet'!K$14:K$213)) ->  | H24: =IF($B24="","",SUMIF('Trust - Frontsheet'!$C$14:$C$213,$B24,'Trust - Frontsheet'!L$14:L$213)) ->  | I24: =IF($B24="","",SUMIF('Trust - Frontsheet'!$C$14:$C$213,$B24,'Trust - Frontsheet'!M$14:M$213)) ->  | J24: =IF($B24="","",SUMIF('Trust - Frontsheet'!$C$14:$C$213,$B24,'Trust - Frontsheet'!N$14:N$213)) ->  | K24: =IF($B24="","",SUMIF('Trust - Frontsheet'!$C$14:$C$213,$B24,'Trust - Frontsheet'!O$14:O$213)) ->  | P24: =IF($B24="","",SUMIF('Trust - Frontsheet'!$C$14:$C$213,$B24,'Trust - Frontsheet'!T$14:T$213)) -> 
B25: =IF(ISERROR(INDEX('Trust - Frontsheet'!AV$1:AV$6187,SMALL(IF('Trust - Frontsheet'!$AX$1:$AX$6187=$B$2,ROW('Trust - Frontsheet'!$AX$1:$AX$6187)),ROW(19:19)))),"",INDEX('Trust - Frontsheet'!AV$1:AV$6187,SMALL(IF('Trust - Frontsheet'!$AX$1:$AX$6187=$B$2,ROW('Trust - Frontsheet'!$AX$1:$AX$6187)),ROW(19:19)))) ->  | C25: =IF(ISERROR(INDEX('Trust - Frontsheet'!AW$1:AW$6187,SMALL(IF('Trust - Frontsheet'!$AX$1:$AX$6187=$B$2,ROW('Trust - Frontsheet'!$AX$1:$AX$6187)),ROW(19:19)))),"",INDEX('Trust - Frontsheet'!AW$1:AW$6187,SMALL(IF('Trust - Frontsheet'!$AX$1:$AX$6187=$B$2,ROW('Trust - Frontsheet'!$AX$1:$AX$6187)),ROW(19:19)))) ->  | D25: =IF($B25="","",SUMIF('Trust - Frontsheet'!$C$14:$C$213,$B25,'Trust - Frontsheet'!H$14:H$213)) ->  | E25: =IF($B25="","",SUMIF('Trust - Frontsheet'!$C$14:$C$213,$B25,'Trust - Frontsheet'!I$14:I$213)) ->  | F25: =IF($B25="","",SUMIF('Trust - Frontsheet'!$C$14:$C$213,$B25,'Trust - Frontsheet'!J$14:J$213)) ->  | G25: =IF($B25="","",SUMIF('Trust - Frontsheet'!$C$14:$C$213,$B25,'Trust - Frontsheet'!K$14:K$213)) ->  | H25: =IF($B25="","",SUMIF('Trust - Frontsheet'!$C$14:$C$213,$B25,'Trust - Frontsheet'!L$14:L$213)) ->  | I25: =IF($B25="","",SUMIF('Trust - Frontsheet'!$C$14:$C$213,$B25,'Trust - Frontsheet'!M$14:M$213)) ->  | J25: =IF($B25="","",SUMIF('Trust - Frontsheet'!$C$14:$C$213,$B25,'Trust - Frontsheet'!N$14:N$213)) ->  | K25: =IF($B25="","",SUMIF('Trust - Frontsheet'!$C$14:$C$213,$B25,'Trust - Frontsheet'!O$14:O$213)) ->  | P25: =IF($B25="","",SUMIF('Trust - Frontsheet'!$C$14:$C$213,$B25,'Trust - Frontsheet'!T$14:T$213)) -> 
B26: =IF(ISERROR(INDEX('Trust - Frontsheet'!AV$1:AV$6187,SMALL(IF('Trust - Frontsheet'!$AX$1:$AX$6187=$B$2,ROW('Trust - Frontsheet'!$AX$1:$AX$6187)),ROW(20:20)))),"",INDEX('Trust - Frontsheet'!AV$1:AV$6187,SMALL(IF('Trust - Frontsheet'!$AX$1:$AX$6187=$B$2,ROW('Trust - Frontsheet'!$AX$1:$AX$6187)),ROW(20:20)))) ->  | C26: =IF(ISERROR(INDEX('Trust - Frontsheet'!AW$1:AW$6187,SMALL(IF('Trust - Frontsheet'!$AX$1:$AX$6187=$B$2,ROW('Trust - Frontsheet'!$AX$1:$AX$6187)),ROW(20:20)))),"",INDEX('Trust - Frontsheet'!AW$1:AW$6187,SMALL(IF('Trust - Frontsheet'!$AX$1:$AX$6187=$B$2,ROW('Trust - Frontsheet'!$AX$1:$AX$6187)),ROW(20:20)))) ->  | D26: =IF($B26="","",SUMIF('Trust - Frontsheet'!$C$14:$C$213,$B26,'Trust - Frontsheet'!H$14:H$213)) ->  | E26: =IF($B26="","",SUMIF('Trust - Frontsheet'!$C$14:$C$213,$B26,'Trust - Frontsheet'!I$14:I$213)) ->  | F26: =IF($B26="","",SUMIF('Trust - Frontsheet'!$C$14:$C$213,$B26,'Trust - Frontsheet'!J$14:J$213)) ->  | G26: =IF($B26="","",SUMIF('Trust - Frontsheet'!$C$14:$C$213,$B26,'Trust - Frontsheet'!K$14:K$213)) ->  | H26: =IF($B26="","",SUMIF('Trust - Frontsheet'!$C$14:$C$213,$B26,'Trust - Frontsheet'!L$14:L$213)) ->  | I26: =IF($B26="","",SUMIF('Trust - Frontsheet'!$C$14:$C$213,$B26,'Trust - Frontsheet'!M$14:M$213)) ->  | J26: =IF($B26="","",SUMIF('Trust - Frontsheet'!$C$14:$C$213,$B26,'Trust - Frontsheet'!N$14:N$213)) ->  | K26: =IF($B26="","",SUMIF('Trust - Frontsheet'!$C$14:$C$213,$B26,'Trust - Frontsheet'!O$14:O$213)) ->  | P26: =IF($B26="","",SUMIF('Trust - Frontsheet'!$C$14:$C$213,$B26,'Trust - Frontsheet'!T$14:T$213)) -> 
B27: =IF(ISERROR(INDEX('Trust - Frontsheet'!AV$1:AV$6187,SMALL(IF('Trust - Frontsheet'!$AX$1:$AX$6187=$B$2,ROW('Trust - Frontsheet'!$AX$1:$AX$6187)),ROW(21:21)))),"",INDEX('Trust - Frontsheet'!AV$1:AV$6187,SMALL(IF('Trust - Frontsheet'!$AX$1:$AX$6187=$B$2,ROW('Trust - Frontsheet'!$AX$1:$AX$6187)),ROW(21:21)))) ->  | C27: =IF(ISERROR(INDEX('Trust - Frontsheet'!AW$1:AW$6187,SMALL(IF('Trust - Frontsheet'!$AX$1:$AX$6187=$B$2,ROW('Trust - Frontsheet'!$AX$1:$AX$6187)),ROW(21:21)))),"",INDEX('Trust - Frontsheet'!AW$1:AW$6187,SMALL(IF('Trust - Frontsheet'!$AX$1:$AX$6187=$B$2,ROW('Trust - Frontsheet'!$AX$1:$AX$6187)),ROW(21:21)))) ->  | D27: =IF($B27="","",SUMIF('Trust - Frontsheet'!$C$14:$C$213,$B27,'Trust - Frontsheet'!H$14:H$213)) ->  | E27: =IF($B27="","",SUMIF('Trust - Frontsheet'!$C$14:$C$213,$B27,'Trust - Frontsheet'!I$14:I$213)) ->  | F27: =IF($B27="","",SUMIF('Trust - Frontsheet'!$C$14:$C$213,$B27,'Trust - Frontsheet'!J$14:J$213)) ->  | G27: =IF($B27="","",SUMIF('Trust - Frontsheet'!$C$14:$C$213,$B27,'Trust - Frontsheet'!K$14:K$213)) ->  | H27: =IF($B27="","",SUMIF('Trust - Frontsheet'!$C$14:$C$213,$B27,'Trust - Frontsheet'!L$14:L$213)) ->  | I27: =IF($B27="","",SUMIF('Trust - Frontsheet'!$C$14:$C$213,$B27,'Trust - Frontsheet'!M$14:M$213)) ->  | J27: =IF($B27="","",SUMIF('Trust - Frontsheet'!$C$14:$C$213,$B27,'Trust - Frontsheet'!N$14:N$213)) ->  | K27: =IF($B27="","",SUMIF('Trust - Frontsheet'!$C$14:$C$213,$B27,'Trust - Frontsheet'!O$14:O$213)) ->  | P27: =IF($B27="","",SUMIF('Trust - Frontsheet'!$C$14:$C$213,$B27,'Trust - Frontsheet'!T$14:T$213)) -> 
B28: =IF(ISERROR(INDEX('Trust - Frontsheet'!AV$1:AV$6187,SMALL(IF('Trust - Frontsheet'!$AX$1:$AX$6187=$B$2,ROW('Trust - Frontsheet'!$AX$1:$AX$6187)),ROW(22:22)))),"",INDEX('Trust - Frontsheet'!AV$1:AV$6187,SMALL(IF('Trust - Frontsheet'!$AX$1:$AX$6187=$B$2,ROW('Trust - Frontsheet'!$AX$1:$AX$6187)),ROW(22:22)))) ->  | C28: =IF(ISERROR(INDEX('Trust - Frontsheet'!AW$1:AW$6187,SMALL(IF('Trust - Frontsheet'!$AX$1:$AX$6187=$B$2,ROW('Trust - Frontsheet'!$AX$1:$AX$6187)),ROW(22:22)))),"",INDEX('Trust - Frontsheet'!AW$1:AW$6187,SMALL(IF('Trust - Frontsheet'!$AX$1:$AX$6187=$B$2,ROW('Trust - Frontsheet'!$AX$1:$AX$6187)),ROW(22:22)))) ->  | D28: =IF($B28="","",SUMIF('Trust - Frontsheet'!$C$14:$C$213,$B28,'Trust - Frontsheet'!H$14:H$213)) ->  | E28: =IF($B28="","",SUMIF('Trust - Frontsheet'!$C$14:$C$213,$B28,'Trust - Frontsheet'!I$14:I$213)) ->  | F28: =IF($B28="","",SUMIF('Trust - Frontsheet'!$C$14:$C$213,$B28,'Trust - Frontsheet'!J$14:J$213)) ->  | G28: =IF($B28="","",SUMIF('Trust - Frontsheet'!$C$14:$C$213,$B28,'Trust - Frontsheet'!K$14:K$213)) ->  | H28: =IF($B28="","",SUMIF('Trust - Frontsheet'!$C$14:$C$213,$B28,'Trust - Frontsheet'!L$14:L$213)) ->  | I28: =IF($B28="","",SUMIF('Trust - Frontsheet'!$C$14:$C$213,$B28,'Trust - Frontsheet'!M$14:M$213)) ->  | J28: =IF($B28="","",SUMIF('Trust - Frontsheet'!$C$14:$C$213,$B28,'Trust - Frontsheet'!N$14:N$213)) ->  | K28: =IF($B28="","",SUMIF('Trust - Frontsheet'!$C$14:$C$213,$B28,'Trust - Frontsheet'!O$14:O$213)) ->  | P28: =IF($B28="","",SUMIF('Trust - Frontsheet'!$C$14:$C$213,$B28,'Trust - Frontsheet'!T$14:T$213)) -> 
B29: =IF(ISERROR(INDEX('Trust - Frontsheet'!AV$1:AV$6187,SMALL(IF('Trust - Frontsheet'!$AX$1:$AX$6187=$B$2,ROW('Trust - Frontsheet'!$AX$1:$AX$6187)),ROW(23:23)))),"",INDEX('Trust - Frontsheet'!AV$1:AV$6187,SMALL(IF('Trust - Frontsheet'!$AX$1:$AX$6187=$B$2,ROW('Trust - Frontsheet'!$AX$1:$AX$6187)),ROW(23:23)))) ->  | C29: =IF(ISERROR(INDEX('Trust - Frontsheet'!AW$1:AW$6187,SMALL(IF('Trust - Frontsheet'!$AX$1:$AX$6187=$B$2,ROW('Trust - Frontsheet'!$AX$1:$AX$6187)),ROW(23:23)))),"",INDEX('Trust - Frontsheet'!AW$1:AW$6187,SMALL(IF('Trust - Frontsheet'!$AX$1:$AX$6187=$B$2,ROW('Trust - Frontsheet'!$AX$1:$AX$6187)),ROW(23:23)))) ->  | D29: =IF($B29="","",SUMIF('Trust - Frontsheet'!$C$14:$C$213,$B29,'Trust - Frontsheet'!H$14:H$213)) ->  | E29: =IF($B29="","",SUMIF('Trust - Frontsheet'!$C$14:$C$213,$B29,'Trust - Frontsheet'!I$14:I$213)) ->  | F29: =IF($B29="","",SUMIF('Trust - Frontsheet'!$C$14:$C$213,$B29,'Trust - Frontsheet'!J$14:J$213)) ->  | G29: =IF($B29="","",SUMIF('Trust - Frontsheet'!$C$14:$C$213,$B29,'Trust - Frontsheet'!K$14:K$213)) ->  | H29: =IF($B29="","",SUMIF('Trust - Frontsheet'!$C$14:$C$213,$B29,'Trust - Frontsheet'!L$14:L$213)) ->  | I29: =IF($B29="","",SUMIF('Trust - Frontsheet'!$C$14:$C$213,$B29,'Trust - Frontsheet'!M$14:M$213)) ->  | J29: =IF($B29="","",SUMIF('Trust - Frontsheet'!$C$14:$C$213,$B29,'Trust - Frontsheet'!N$14:N$213)) ->  | K29: =IF($B29="","",SUMIF('Trust - Frontsheet'!$C$14:$C$213,$B29,'Trust - Frontsheet'!O$14:O$213)) ->  | P29: =IF($B29="","",SUMIF('Trust - Frontsheet'!$C$14:$C$213,$B29,'Trust - Frontsheet'!T$14:T$213)) -> 
B30: =IF(ISERROR(INDEX('Trust - Frontsheet'!AV$1:AV$6187,SMALL(IF('Trust - Frontsheet'!$AX$1:$AX$6187=$B$2,ROW('Trust - Frontsheet'!$AX$1:$AX$6187)),ROW(24:24)))),"",INDEX('Trust - Frontsheet'!AV$1:AV$6187,SMALL(IF('Trust - Frontsheet'!$AX$1:$AX$6187=$B$2,ROW('Trust - Frontsheet'!$AX$1:$AX$6187)),ROW(24:24)))) ->  | C30: =IF(ISERROR(INDEX('Trust - Frontsheet'!AW$1:AW$6187,SMALL(IF('Trust - Frontsheet'!$AX$1:$AX$6187=$B$2,ROW('Trust - Frontsheet'!$AX$1:$AX$6187)),ROW(24:24)))),"",INDEX('Trust - Frontsheet'!AW$1:AW$6187,SMALL(IF('Trust - Frontsheet'!$AX$1:$AX$6187=$B$2,ROW('Trust - Frontsheet'!$AX$1:$AX$6187)),ROW(24:24)))) ->  | D30: =IF($B30="","",SUMIF('Trust - Frontsheet'!$C$14:$C$213,$B30,'Trust - Frontsheet'!H$14:H$213)) ->  | E30: =IF($B30="","",SUMIF('Trust - Frontsheet'!$C$14:$C$213,$B30,'Trust - Frontsheet'!I$14:I$213)) ->  | F30: =IF($B30="","",SUMIF('Trust - Frontsheet'!$C$14:$C$213,$B30,'Trust - Frontsheet'!J$14:J$213)) ->  | G30: =IF($B30="","",SUMIF('Trust - Frontsheet'!$C$14:$C$213,$B30,'Trust - Frontsheet'!K$14:K$213)) ->  | H30: =IF($B30="","",SUMIF('Trust - Frontsheet'!$C$14:$C$213,$B30,'Trust - Frontsheet'!L$14:L$213)) ->  | I30: =IF($B30="","",SUMIF('Trust - Frontsheet'!$C$14:$C$213,$B30,'Trust - Frontsheet'!M$14:M$213)) ->  | J30: =IF($B30="","",SUMIF('Trust - Frontsheet'!$C$14:$C$213,$B30,'Trust - Frontsheet'!N$14:N$213)) ->  | K30: =IF($B30="","",SUMIF('Trust - Frontsheet'!$C$14:$C$213,$B30,'Trust - Frontsheet'!O$14:O$213)) ->  | P30: =IF($B30="","",SUMIF('Trust - Frontsheet'!$C$14:$C$213,$B30,'Trust - Frontsheet'!T$14:T$213)) -> 
B31: =IF(ISERROR(INDEX('Trust - Frontsheet'!AV$1:AV$6187,SMALL(IF('Trust - Frontsheet'!$AX$1:$AX$6187=$B$2,ROW('Trust - Frontsheet'!$AX$1:$AX$6187)),ROW(25:25)))),"",INDEX('Trust - Frontsheet'!AV$1:AV$6187,SMALL(IF('Trust - Frontsheet'!$AX$1:$AX$6187=$B$2,ROW('Trust - Frontsheet'!$AX$1:$AX$6187)),ROW(25:25)))) ->  | C31: =IF(ISERROR(INDEX('Trust - Frontsheet'!AW$1:AW$6187,SMALL(IF('Trust - Frontsheet'!$AX$1:$AX$6187=$B$2,ROW('Trust - Frontsheet'!$AX$1:$AX$6187)),ROW(25:25)))),"",INDEX('Trust - Frontsheet'!AW$1:AW$6187,SMALL(IF('Trust - Frontsheet'!$AX$1:$AX$6187=$B$2,ROW('Trust - Frontsheet'!$AX$1:$AX$6187)),ROW(25:25)))) ->  | D31: =IF($B31="","",SUMIF('Trust - Frontsheet'!$C$14:$C$213,$B31,'Trust - Frontsheet'!H$14:H$213)) ->  | E31: =IF($B31="","",SUMIF('Trust - Frontsheet'!$C$14:$C$213,$B31,'Trust - Frontsheet'!I$14:I$213)) ->  | F31: =IF($B31="","",SUMIF('Trust - Frontsheet'!$C$14:$C$213,$B31,'Trust - Frontsheet'!J$14:J$213)) ->  | G31: =IF($B31="","",SUMIF('Trust - Frontsheet'!$C$14:$C$213,$B31,'Trust - Frontsheet'!K$14:K$213)) ->  | H31: =IF($B31="","",SUMIF('Trust - Frontsheet'!$C$14:$C$213,$B31,'Trust - Frontsheet'!L$14:L$213)) ->  | I31: =IF($B31="","",SUMIF('Trust - Frontsheet'!$C$14:$C$213,$B31,'Trust - Frontsheet'!M$14:M$213)) ->  | J31: =IF($B31="","",SUMIF('Trust - Frontsheet'!$C$14:$C$213,$B31,'Trust - Frontsheet'!N$14:N$213)) ->  | K31: =IF($B31="","",SUMIF('Trust - Frontsheet'!$C$14:$C$213,$B31,'Trust - Frontsheet'!O$14:O$213)) ->  | P31: =IF($B31="","",SUMIF('Trust - Frontsheet'!$C$14:$C$213,$B31,'Trust - Frontsheet'!T$14:T$213)) -> 
B32: =IF(ISERROR(INDEX('Trust - Frontsheet'!AV$1:AV$6187,SMALL(IF('Trust - Frontsheet'!$AX$1:$AX$6187=$B$2,ROW('Trust - Frontsheet'!$AX$1:$AX$6187)),ROW(26:26)))),"",INDEX('Trust - Frontsheet'!AV$1:AV$6187,SMALL(IF('Trust - Frontsheet'!$AX$1:$AX$6187=$B$2,ROW('Trust - Frontsheet'!$AX$1:$AX$6187)),ROW(26:26)))) ->  | C32: =IF(ISERROR(INDEX('Trust - Frontsheet'!AW$1:AW$6187,SMALL(IF('Trust - Frontsheet'!$AX$1:$AX$6187=$B$2,ROW('Trust - Frontsheet'!$AX$1:$AX$6187)),ROW(26:26)))),"",INDEX('Trust - Frontsheet'!AW$1:AW$6187,SMALL(IF('Trust - Frontsheet'!$AX$1:$AX$6187=$B$2,ROW('Trust - Frontsheet'!$AX$1:$AX$6187)),ROW(26:26)))) ->  | D32: =IF($B32="","",SUMIF('Trust - Frontsheet'!$C$14:$C$213,$B32,'Trust - Frontsheet'!H$14:H$213)) ->  | E32: =IF($B32="","",SUMIF('Trust - Frontsheet'!$C$14:$C$213,$B32,'Trust - Frontsheet'!I$14:I$213)) ->  | F32: =IF($B32="","",SUMIF('Trust - Frontsheet'!$C$14:$C$213,$B32,'Trust - Frontsheet'!J$14:J$213)) ->  | G32: =IF($B32="","",SUMIF('Trust - Frontsheet'!$C$14:$C$213,$B32,'Trust - Frontsheet'!K$14:K$213)) ->  | H32: =IF($B32="","",SUMIF('Trust - Frontsheet'!$C$14:$C$213,$B32,'Trust - Frontsheet'!L$14:L$213)) ->  | I32: =IF($B32="","",SUMIF('Trust - Frontsheet'!$C$14:$C$213,$B32,'Trust - Frontsheet'!M$14:M$213)) ->  | J32: =IF($B32="","",SUMIF('Trust - Frontsheet'!$C$14:$C$213,$B32,'Trust - Frontsheet'!N$14:N$213)) ->  | K32: =IF($B32="","",SUMIF('Trust - Frontsheet'!$C$14:$C$213,$B32,'Trust - Frontsheet'!O$14:O$213)) ->  | P32: =IF($B32="","",SUMIF('Trust - Frontsheet'!$C$14:$C$213,$B32,'Trust - Frontsheet'!T$14:T$213)) -> 
B33: =IF(ISERROR(INDEX('Trust - Frontsheet'!AV$1:AV$6187,SMALL(IF('Trust - Frontsheet'!$AX$1:$AX$6187=$B$2,ROW('Trust - Frontsheet'!$AX$1:$AX$6187)),ROW(27:27)))),"",INDEX('Trust - Frontsheet'!AV$1:AV$6187,SMALL(IF('Trust - Frontsheet'!$AX$1:$AX$6187=$B$2,ROW('Trust - Frontsheet'!$AX$1:$AX$6187)),ROW(27:27)))) ->  | C33: =IF(ISERROR(INDEX('Trust - Frontsheet'!AW$1:AW$6187,SMALL(IF('Trust - Frontsheet'!$AX$1:$AX$6187=$B$2,ROW('Trust - Frontsheet'!$AX$1:$AX$6187)),ROW(27:27)))),"",INDEX('Trust - Frontsheet'!AW$1:AW$6187,SMALL(IF('Trust - Frontsheet'!$AX$1:$AX$6187=$B$2,ROW('Trust - Frontsheet'!$AX$1:$AX$6187)),ROW(27:27)))) ->  | D33: =IF($B33="","",SUMIF('Trust - Frontsheet'!$C$14:$C$213,$B33,'Trust - Frontsheet'!H$14:H$213)) ->  | E33: =IF($B33="","",SUMIF('Trust - Frontsheet'!$C$14:$C$213,$B33,'Trust - Frontsheet'!I$14:I$213)) ->  | F33: =IF($B33="","",SUMIF('Trust - Frontsheet'!$C$14:$C$213,$B33,'Trust - Frontsheet'!J$14:J$213)) ->  | G33: =IF($B33="","",SUMIF('Trust - Frontsheet'!$C$14:$C$213,$B33,'Trust - Frontsheet'!K$14:K$213)) ->  | H33: =IF($B33="","",SUMIF('Trust - Frontsheet'!$C$14:$C$213,$B33,'Trust - Frontsheet'!L$14:L$213)) ->  | I33: =IF($B33="","",SUMIF('Trust - Frontsheet'!$C$14:$C$213,$B33,'Trust - Frontsheet'!M$14:M$213)) ->  | J33: =IF($B33="","",SUMIF('Trust - Frontsheet'!$C$14:$C$213,$B33,'Trust - Frontsheet'!N$14:N$213)) ->  | K33: =IF($B33="","",SUMIF('Trust - Frontsheet'!$C$14:$C$213,$B33,'Trust - Frontsheet'!O$14:O$213)) ->  | P33: =IF($B33="","",SUMIF('Trust - Frontsheet'!$C$14:$C$213,$B33,'Trust - Frontsheet'!T$14:T$213)) -> 
B34: =IF(ISERROR(INDEX('Trust - Frontsheet'!AV$1:AV$6187,SMALL(IF('Trust - Frontsheet'!$AX$1:$AX$6187=$B$2,ROW('Trust - Frontsheet'!$AX$1:$AX$6187)),ROW(28:28)))),"",INDEX('Trust - Frontsheet'!AV$1:AV$6187,SMALL(IF('Trust - Frontsheet'!$AX$1:$AX$6187=$B$2,ROW('Trust - Frontsheet'!$AX$1:$AX$6187)),ROW(28:28)))) ->  | C34: =IF(ISERROR(INDEX('Trust - Frontsheet'!AW$1:AW$6187,SMALL(IF('Trust - Frontsheet'!$AX$1:$AX$6187=$B$2,ROW('Trust - Frontsheet'!$AX$1:$AX$6187)),ROW(28:28)))),"",INDEX('Trust - Frontsheet'!AW$1:AW$6187,SMALL(IF('Trust - Frontsheet'!$AX$1:$AX$6187=$B$2,ROW('Trust - Frontsheet'!$AX$1:$AX$6187)),ROW(28:28)))) ->  | D34: =IF($B34="","",SUMIF('Trust - Frontsheet'!$C$14:$C$213,$B34,'Trust - Frontsheet'!H$14:H$213)) ->  | E34: =IF($B34="","",SUMIF('Trust - Frontsheet'!$C$14:$C$213,$B34,'Trust - Frontsheet'!I$14:I$213)) ->  | F34: =IF($B34="","",SUMIF('Trust - Frontsheet'!$C$14:$C$213,$B34,'Trust - Frontsheet'!J$14:J$213)) ->  | G34: =IF($B34="","",SUMIF('Trust - Frontsheet'!$C$14:$C$213,$B34,'Trust - Frontsheet'!K$14:K$213)) ->  | H34: =IF($B34="","",SUMIF('Trust - Frontsheet'!$C$14:$C$213,$B34,'Trust - Frontsheet'!L$14:L$213)) ->  | I34: =IF($B34="","",SUMIF('Trust - Frontsheet'!$C$14:$C$213,$B34,'Trust - Frontsheet'!M$14:M$213)) ->  | J34: =IF($B34="","",SUMIF('Trust - Frontsheet'!$C$14:$C$213,$B34,'Trust - Frontsheet'!N$14:N$213)) ->  | K34: =IF($B34="","",SUMIF('Trust - Frontsheet'!$C$14:$C$213,$B34,'Trust - Frontsheet'!O$14:O$213)) ->  | P34: =IF($B34="","",SUMIF('Trust - Frontsheet'!$C$14:$C$213,$B34,'Trust - Frontsheet'!T$14:T$213)) -> 
B35: =IF(ISERROR(INDEX('Trust - Frontsheet'!AV$1:AV$6187,SMALL(IF('Trust - Frontsheet'!$AX$1:$AX$6187=$B$2,ROW('Trust - Frontsheet'!$AX$1:$AX$6187)),ROW(29:29)))),"",INDEX('Trust - Frontsheet'!AV$1:AV$6187,SMALL(IF('Trust - Frontsheet'!$AX$1:$AX$6187=$B$2,ROW('Trust - Frontsheet'!$AX$1:$AX$6187)),ROW(29:29)))) ->  | C35: =IF(ISERROR(INDEX('Trust - Frontsheet'!AW$1:AW$6187,SMALL(IF('Trust - Frontsheet'!$AX$1:$AX$6187=$B$2,ROW('Trust - Frontsheet'!$AX$1:$AX$6187)),ROW(29:29)))),"",INDEX('Trust - Frontsheet'!AW$1:AW$6187,SMALL(IF('Trust - Frontsheet'!$AX$1:$AX$6187=$B$2,ROW('Trust - Frontsheet'!$AX$1:$AX$6187)),ROW(29:29)))) ->  | D35: =IF($B35="","",SUMIF('Trust - Frontsheet'!$C$14:$C$213,$B35,'Trust - Frontsheet'!H$14:H$213)) ->  | E35: =IF($B35="","",SUMIF('Trust - Frontsheet'!$C$14:$C$213,$B35,'Trust - Frontsheet'!I$14:I$213)) ->  | F35: =IF($B35="","",SUMIF('Trust - Frontsheet'!$C$14:$C$213,$B35,'Trust - Frontsheet'!J$14:J$213)) ->  | G35: =IF($B35="","",SUMIF('Trust - Frontsheet'!$C$14:$C$213,$B35,'Trust - Frontsheet'!K$14:K$213)) ->  | H35: =IF($B35="","",SUMIF('Trust - Frontsheet'!$C$14:$C$213,$B35,'Trust - Frontsheet'!L$14:L$213)) ->  | I35: =IF($B35="","",SUMIF('Trust - Frontsheet'!$C$14:$C$213,$B35,'Trust - Frontsheet'!M$14:M$213)) ->  | J35: =IF($B35="","",SUMIF('Trust - Frontsheet'!$C$14:$C$213,$B35,'Trust - Frontsheet'!N$14:N$213)) ->  | K35: =IF($B35="","",SUMIF('Trust - Frontsheet'!$C$14:$C$213,$B35,'Trust - Frontsheet'!O$14:O$213)) ->  | P35: =IF($B35="","",SUMIF('Trust - Frontsheet'!$C$14:$C$213,$B35,'Trust - Frontsheet'!T$14:T$213)) -> 
B36: =IF(ISERROR(INDEX('Trust - Frontsheet'!AV$1:AV$6187,SMALL(IF('Trust - Frontsheet'!$AX$1:$AX$6187=$B$2,ROW('Trust - Frontsheet'!$AX$1:$AX$6187)),ROW(30:30)))),"",INDEX('Trust - Frontsheet'!AV$1:AV$6187,SMALL(IF('Trust - Frontsheet'!$AX$1:$AX$6187=$B$2,ROW('Trust - Frontsheet'!$AX$1:$AX$6187)),ROW(30:30)))) ->  | C36: =IF(ISERROR(INDEX('Trust - Frontsheet'!AW$1:AW$6187,SMALL(IF('Trust - Frontsheet'!$AX$1:$AX$6187=$B$2,ROW('Trust - Frontsheet'!$AX$1:$AX$6187)),ROW(30:30)))),"",INDEX('Trust - Frontsheet'!AW$1:AW$6187,SMALL(IF('Trust - Frontsheet'!$AX$1:$AX$6187=$B$2,ROW('Trust - Frontsheet'!$AX$1:$AX$6187)),ROW(30:30)))) ->  | D36: =IF($B36="","",SUMIF('Trust - Frontsheet'!$C$14:$C$213,$B36,'Trust - Frontsheet'!H$14:H$213)) ->  | E36: =IF($B36="","",SUMIF('Trust - Frontsheet'!$C$14:$C$213,$B36,'Trust - Frontsheet'!I$14:I$213)) ->  | F36: =IF($B36="","",SUMIF('Trust - Frontsheet'!$C$14:$C$213,$B36,'Trust - Frontsheet'!J$14:J$213)) ->  | G36: =IF($B36="","",SUMIF('Trust - Frontsheet'!$C$14:$C$213,$B36,'Trust - Frontsheet'!K$14:K$213)) ->  | H36: =IF($B36="","",SUMIF('Trust - Frontsheet'!$C$14:$C$213,$B36,'Trust - Frontsheet'!L$14:L$213)) ->  | I36: =IF($B36="","",SUMIF('Trust - Frontsheet'!$C$14:$C$213,$B36,'Trust - Frontsheet'!M$14:M$213)) ->  | J36: =IF($B36="","",SUMIF('Trust - Frontsheet'!$C$14:$C$213,$B36,'Trust - Frontsheet'!N$14:N$213)) ->  | K36: =IF($B36="","",SUMIF('Trust - Frontsheet'!$C$14:$C$213,$B36,'Trust - Frontsheet'!O$14:O$213)) ->  | P36: =IF($B36="","",SUMIF('Trust - Frontsheet'!$C$14:$C$213,$B36,'Trust - Frontsheet'!T$14:T$213)) -> 
B37: =IF(ISERROR(INDEX('Trust - Frontsheet'!AV$1:AV$6187,SMALL(IF('Trust - Frontsheet'!$AX$1:$AX$6187=$B$2,ROW('Trust - Frontsheet'!$AX$1:$AX$6187)),ROW(31:31)))),"",INDEX('Trust - Frontsheet'!AV$1:AV$6187,SMALL(IF('Trust - Frontsheet'!$AX$1:$AX$6187=$B$2,ROW('Trust - Frontsheet'!$AX$1:$AX$6187)),ROW(31:31)))) ->  | C37: =IF(ISERROR(INDEX('Trust - Frontsheet'!AW$1:AW$6187,SMALL(IF('Trust - Frontsheet'!$AX$1:$AX$6187=$B$2,ROW('Trust - Frontsheet'!$AX$1:$AX$6187)),ROW(31:31)))),"",INDEX('Trust - Frontsheet'!AW$1:AW$6187,SMALL(IF('Trust - Frontsheet'!$AX$1:$AX$6187=$B$2,ROW('Trust - Frontsheet'!$AX$1:$AX$6187)),ROW(31:31)))) ->  | D37: =IF($B37="","",SUMIF('Trust - Frontsheet'!$C$14:$C$213,$B37,'Trust - Frontsheet'!H$14:H$213)) ->  | E37: =IF($B37="","",SUMIF('Trust - Frontsheet'!$C$14:$C$213,$B37,'Trust - Frontsheet'!I$14:I$213)) ->  | F37: =IF($B37="","",SUMIF('Trust - Frontsheet'!$C$14:$C$213,$B37,'Trust - Frontsheet'!J$14:J$213)) ->  | G37: =IF($B37="","",SUMIF('Trust - Frontsheet'!$C$14:$C$213,$B37,'Trust - Frontsheet'!K$14:K$213)) ->  | H37: =IF($B37="","",SUMIF('Trust - Frontsheet'!$C$14:$C$213,$B37,'Trust - Frontsheet'!L$14:L$213)) ->  | I37: =IF($B37="","",SUMIF('Trust - Frontsheet'!$C$14:$C$213,$B37,'Trust - Frontsheet'!M$14:M$213)) ->  | J37: =IF($B37="","",SUMIF('Trust - Frontsheet'!$C$14:$C$213,$B37,'Trust - Frontsheet'!N$14:N$213)) ->  | K37: =IF($B37="","",SUMIF('Trust - Frontsheet'!$C$14:$C$213,$B37,'Trust - Frontsheet'!O$14:O$213)) ->  | P37: =IF($B37="","",SUMIF('Trust - Frontsheet'!$C$14:$C$213,$B37,'Trust - Frontsheet'!T$14:T$213)) -> 
B38: =IF(ISERROR(INDEX('Trust - Frontsheet'!AV$1:AV$6187,SMALL(IF('Trust - Frontsheet'!$AX$1:$AX$6187=$B$2,ROW('Trust - Frontsheet'!$AX$1:$AX$6187)),ROW(32:32)))),"",INDEX('Trust - Frontsheet'!AV$1:AV$6187,SMALL(IF('Trust - Frontsheet'!$AX$1:$AX$6187=$B$2,ROW('Trust - Frontsheet'!$AX$1:$AX$6187)),ROW(32:32)))) ->  | C38: =IF(ISERROR(INDEX('Trust - Frontsheet'!AW$1:AW$6187,SMALL(IF('Trust - Frontsheet'!$AX$1:$AX$6187=$B$2,ROW('Trust - Frontsheet'!$AX$1:$AX$6187)),ROW(32:32)))),"",INDEX('Trust - Frontsheet'!AW$1:AW$6187,SMALL(IF('Trust - Frontsheet'!$AX$1:$AX$6187=$B$2,ROW('Trust - Frontsheet'!$AX$1:$AX$6187)),ROW(32:32)))) ->  | D38: =IF($B38="","",SUMIF('Trust - Frontsheet'!$C$14:$C$213,$B38,'Trust - Frontsheet'!H$14:H$213)) ->  | E38: =IF($B38="","",SUMIF('Trust - Frontsheet'!$C$14:$C$213,$B38,'Trust - Frontsheet'!I$14:I$213)) ->  | F38: =IF($B38="","",SUMIF('Trust - Frontsheet'!$C$14:$C$213,$B38,'Trust - Frontsheet'!J$14:J$213)) ->  | G38: =IF($B38="","",SUMIF('Trust - Frontsheet'!$C$14:$C$213,$B38,'Trust - Frontsheet'!K$14:K$213)) ->  | H38: =IF($B38="","",SUMIF('Trust - Frontsheet'!$C$14:$C$213,$B38,'Trust - Frontsheet'!L$14:L$213)) ->  | I38: =IF($B38="","",SUMIF('Trust - Frontsheet'!$C$14:$C$213,$B38,'Trust - Frontsheet'!M$14:M$213)) ->  | J38: =IF($B38="","",SUMIF('Trust - Frontsheet'!$C$14:$C$213,$B38,'Trust - Frontsheet'!N$14:N$213)) ->  | K38: =IF($B38="","",SUMIF('Trust - Frontsheet'!$C$14:$C$213,$B38,'Trust - Frontsheet'!O$14:O$213)) ->  | P38: =IF($B38="","",SUMIF('Trust - Frontsheet'!$C$14:$C$213,$B38,'Trust - Frontsheet'!T$14:T$213)) -> 
B39: =IF(ISERROR(INDEX('Trust - Frontsheet'!AV$1:AV$6187,SMALL(IF('Trust - Frontsheet'!$AX$1:$AX$6187=$B$2,ROW('Trust - Frontsheet'!$AX$1:$AX$6187)),ROW(33:33)))),"",INDEX('Trust - Frontsheet'!AV$1:AV$6187,SMALL(IF('Trust - Frontsheet'!$AX$1:$AX$6187=$B$2,ROW('Trust - Frontsheet'!$AX$1:$AX$6187)),ROW(33:33)))) ->  | C39: =IF(ISERROR(INDEX('Trust - Frontsheet'!AW$1:AW$6187,SMALL(IF('Trust - Frontsheet'!$AX$1:$AX$6187=$B$2,ROW('Trust - Frontsheet'!$AX$1:$AX$6187)),ROW(33:33)))),"",INDEX('Trust - Frontsheet'!AW$1:AW$6187,SMALL(IF('Trust - Frontsheet'!$AX$1:$AX$6187=$B$2,ROW('Trust - Frontsheet'!$AX$1:$AX$6187)),ROW(33:33)))) ->  | D39: =IF($B39="","",SUMIF('Trust - Frontsheet'!$C$14:$C$213,$B39,'Trust - Frontsheet'!H$14:H$213)) ->  | E39: =IF($B39="","",SUMIF('Trust - Frontsheet'!$C$14:$C$213,$B39,'Trust - Frontsheet'!I$14:I$213)) ->  | F39: =IF($B39="","",SUMIF('Trust - Frontsheet'!$C$14:$C$213,$B39,'Trust - Frontsheet'!J$14:J$213)) ->  | G39: =IF($B39="","",SUMIF('Trust - Frontsheet'!$C$14:$C$213,$B39,'Trust - Frontsheet'!K$14:K$213)) ->  | H39: =IF($B39="","",SUMIF('Trust - Frontsheet'!$C$14:$C$213,$B39,'Trust - Frontsheet'!L$14:L$213)) ->  | I39: =IF($B39="","",SUMIF('Trust - Frontsheet'!$C$14:$C$213,$B39,'Trust - Frontsheet'!M$14:M$213)) ->  | J39: =IF($B39="","",SUMIF('Trust - Frontsheet'!$C$14:$C$213,$B39,'Trust - Frontsheet'!N$14:N$213)) ->  | K39: =IF($B39="","",SUMIF('Trust - Frontsheet'!$C$14:$C$213,$B39,'Trust - Frontsheet'!O$14:O$213)) ->  | P39: =IF($B39="","",SUMIF('Trust - Frontsheet'!$C$14:$C$213,$B39,'Trust - Frontsheet'!T$14:T$213)) -> 
B40: =IF(ISERROR(INDEX('Trust - Frontsheet'!AV$1:AV$6187,SMALL(IF('Trust - Frontsheet'!$AX$1:$AX$6187=$B$2,ROW('Trust - Frontsheet'!$AX$1:$AX$6187)),ROW(34:34)))),"",INDEX('Trust - Frontsheet'!AV$1:AV$6187,SMALL(IF('Trust - Frontsheet'!$AX$1:$AX$6187=$B$2,ROW('Trust - Frontsheet'!$AX$1:$AX$6187)),ROW(34:34)))) ->  | C40: =IF(ISERROR(INDEX('Trust - Frontsheet'!AW$1:AW$6187,SMALL(IF('Trust - Frontsheet'!$AX$1:$AX$6187=$B$2,ROW('Trust - Frontsheet'!$AX$1:$AX$6187)),ROW(34:34)))),"",INDEX('Trust - Frontsheet'!AW$1:AW$6187,SMALL(IF('Trust - Frontsheet'!$AX$1:$AX$6187=$B$2,ROW('Trust - Frontsheet'!$AX$1:$AX$6187)),ROW(34:34)))) ->  | D40: =IF($B40="","",SUMIF('Trust - Frontsheet'!$C$14:$C$213,$B40,'Trust - Frontsheet'!H$14:H$213)) ->  | E40: =IF($B40="","",SUMIF('Trust - Frontsheet'!$C$14:$C$213,$B40,'Trust - Frontsheet'!I$14:I$213)) ->  | F40: =IF($B40="","",SUMIF('Trust - Frontsheet'!$C$14:$C$213,$B40,'Trust - Frontsheet'!J$14:J$213)) ->  | G40: =IF($B40="","",SUMIF('Trust - Frontsheet'!$C$14:$C$213,$B40,'Trust - Frontsheet'!K$14:K$213)) ->  | H40: =IF($B40="","",SUMIF('Trust - Frontsheet'!$C$14:$C$213,$B40,'Trust - Frontsheet'!L$14:L$213)) ->  | I40: =IF($B40="","",SUMIF('Trust - Frontsheet'!$C$14:$C$213,$B40,'Trust - Frontsheet'!M$14:M$213)) ->  | J40: =IF($B40="","",SUMIF('Trust - Frontsheet'!$C$14:$C$213,$B40,'Trust - Frontsheet'!N$14:N$213)) ->  | K40: =IF($B40="","",SUMIF('Trust - Frontsheet'!$C$14:$C$213,$B40,'Trust - Frontsheet'!O$14:O$213)) ->  | P40: =IF($B40="","",SUMIF('Trust - Frontsheet'!$C$14:$C$213,$B40,'Trust - Frontsheet'!T$14:T$213)) -> 
B41: =IF(ISERROR(INDEX('Trust - Frontsheet'!AV$1:AV$6187,SMALL(IF('Trust - Frontsheet'!$AX$1:$AX$6187=$B$2,ROW('Trust - Frontsheet'!$AX$1:$AX$6187)),ROW(35:35)))),"",INDEX('Trust - Frontsheet'!AV$1:AV$6187,SMALL(IF('Trust - Frontsheet'!$AX$1:$AX$6187=$B$2,ROW('Trust - Frontsheet'!$AX$1:$AX$6187)),ROW(35:35)))) ->  | C41: =IF(ISERROR(INDEX('Trust - Frontsheet'!AW$1:AW$6187,SMALL(IF('Trust - Frontsheet'!$AX$1:$AX$6187=$B$2,ROW('Trust - Frontsheet'!$AX$1:$AX$6187)),ROW(35:35)))),"",INDEX('Trust - Frontsheet'!AW$1:AW$6187,SMALL(IF('Trust - Frontsheet'!$AX$1:$AX$6187=$B$2,ROW('Trust - Frontsheet'!$AX$1:$AX$6187)),ROW(35:35)))) ->  | D41: =IF($B41="","",SUMIF('Trust - Frontsheet'!$C$14:$C$213,$B41,'Trust - Frontsheet'!H$14:H$213)) ->  | E41: =IF($B41="","",SUMIF('Trust - Frontsheet'!$C$14:$C$213,$B41,'Trust - Frontsheet'!I$14:I$213)) ->  | F41: =IF($B41="","",SUMIF('Trust - Frontsheet'!$C$14:$C$213,$B41,'Trust - Frontsheet'!J$14:J$213)) ->  | G41: =IF($B41="","",SUMIF('Trust - Frontsheet'!$C$14:$C$213,$B41,'Trust - Frontsheet'!K$14:K$213)) ->  | H41: =IF($B41="","",SUMIF('Trust - Frontsheet'!$C$14:$C$213,$B41,'Trust - Frontsheet'!L$14:L$213)) ->  | I41: =IF($B41="","",SUMIF('Trust - Frontsheet'!$C$14:$C$213,$B41,'Trust - Frontsheet'!M$14:M$213)) ->  | J41: =IF($B41="","",SUMIF('Trust - Frontsheet'!$C$14:$C$213,$B41,'Trust - Frontsheet'!N$14:N$213)) ->  | K41: =IF($B41="","",SUMIF('Trust - Frontsheet'!$C$14:$C$213,$B41,'Trust - Frontsheet'!O$14:O$213)) ->  | P41: =IF($B41="","",SUMIF('Trust - Frontsheet'!$C$14:$C$213,$B41,'Trust - Frontsheet'!T$14:T$213)) -> 
B42: =IF(ISERROR(INDEX('Trust - Frontsheet'!AV$1:AV$6187,SMALL(IF('Trust - Frontsheet'!$AX$1:$AX$6187=$B$2,ROW('Trust - Frontsheet'!$AX$1:$AX$6187)),ROW(36:36)))),"",INDEX('Trust - Frontsheet'!AV$1:AV$6187,SMALL(IF('Trust - Frontsheet'!$AX$1:$AX$6187=$B$2,ROW('Trust - Frontsheet'!$AX$1:$AX$6187)),ROW(36:36)))) ->  | C42: =IF(ISERROR(INDEX('Trust - Frontsheet'!AW$1:AW$6187,SMALL(IF('Trust - Frontsheet'!$AX$1:$AX$6187=$B$2,ROW('Trust - Frontsheet'!$AX$1:$AX$6187)),ROW(36:36)))),"",INDEX('Trust - Frontsheet'!AW$1:AW$6187,SMALL(IF('Trust - Frontsheet'!$AX$1:$AX$6187=$B$2,ROW('Trust - Frontsheet'!$AX$1:$AX$6187)),ROW(36:36)))) ->  | D42: =IF($B42="","",SUMIF('Trust - Frontsheet'!$C$14:$C$213,$B42,'Trust - Frontsheet'!H$14:H$213)) ->  | E42: =IF($B42="","",SUMIF('Trust - Frontsheet'!$C$14:$C$213,$B42,'Trust - Frontsheet'!I$14:I$213)) ->  | F42: =IF($B42="","",SUMIF('Trust - Frontsheet'!$C$14:$C$213,$B42,'Trust - Frontsheet'!J$14:J$213)) ->  | G42: =IF($B42="","",SUMIF('Trust - Frontsheet'!$C$14:$C$213,$B42,'Trust - Frontsheet'!K$14:K$213)) ->  | H42: =IF($B42="","",SUMIF('Trust - Frontsheet'!$C$14:$C$213,$B42,'Trust - Frontsheet'!L$14:L$213)) ->  | I42: =IF($B42="","",SUMIF('Trust - Frontsheet'!$C$14:$C$213,$B42,'Trust - Frontsheet'!M$14:M$213)) ->  | J42: =IF($B42="","",SUMIF('Trust - Frontsheet'!$C$14:$C$213,$B42,'Trust - Frontsheet'!N$14:N$213)) ->  | K42: =IF($B42="","",SUMIF('Trust - Frontsheet'!$C$14:$C$213,$B42,'Trust - Frontsheet'!O$14:O$213)) ->  | P42: =IF($B42="","",SUMIF('Trust - Frontsheet'!$C$14:$C$213,$B42,'Trust - Frontsheet'!T$14:T$213)) -> 
B43: =IF(ISERROR(INDEX('Trust - Frontsheet'!AV$1:AV$6187,SMALL(IF('Trust - Frontsheet'!$AX$1:$AX$6187=$B$2,ROW('Trust - Frontsheet'!$AX$1:$AX$6187)),ROW(37:37)))),"",INDEX('Trust - Frontsheet'!AV$1:AV$6187,SMALL(IF('Trust - Frontsheet'!$AX$1:$AX$6187=$B$2,ROW('Trust - Frontsheet'!$AX$1:$AX$6187)),ROW(37:37)))) ->  | C43: =IF(ISERROR(INDEX('Trust - Frontsheet'!AW$1:AW$6187,SMALL(IF('Trust - Frontsheet'!$AX$1:$AX$6187=$B$2,ROW('Trust - Frontsheet'!$AX$1:$AX$6187)),ROW(37:37)))),"",INDEX('Trust - Frontsheet'!AW$1:AW$6187,SMALL(IF('Trust - Frontsheet'!$AX$1:$AX$6187=$B$2,ROW('Trust - Frontsheet'!$AX$1:$AX$6187)),ROW(37:37)))) ->  | D43: =IF($B43="","",SUMIF('Trust - Frontsheet'!$C$14:$C$213,$B43,'Trust - Frontsheet'!H$14:H$213)) ->  | E43: =IF($B43="","",SUMIF('Trust - Frontsheet'!$C$14:$C$213,$B43,'Trust - Frontsheet'!I$14:I$213)) ->  | F43: =IF($B43="","",SUMIF('Trust - Frontsheet'!$C$14:$C$213,$B43,'Trust - Frontsheet'!J$14:J$213)) ->  | G43: =IF($B43="","",SUMIF('Trust - Frontsheet'!$C$14:$C$213,$B43,'Trust - Frontsheet'!K$14:K$213)) ->  | H43: =IF($B43="","",SUMIF('Trust - Frontsheet'!$C$14:$C$213,$B43,'Trust - Frontsheet'!L$14:L$213)) ->  | I43: =IF($B43="","",SUMIF('Trust - Frontsheet'!$C$14:$C$213,$B43,'Trust - Frontsheet'!M$14:M$213)) ->  | J43: =IF($B43="","",SUMIF('Trust - Frontsheet'!$C$14:$C$213,$B43,'Trust - Frontsheet'!N$14:N$213)) ->  | K43: =IF($B43="","",SUMIF('Trust - Frontsheet'!$C$14:$C$213,$B43,'Trust - Frontsheet'!O$14:O$213)) ->  | P43: =IF($B43="","",SUMIF('Trust - Frontsheet'!$C$14:$C$213,$B43,'Trust - Frontsheet'!T$14:T$213)) -> 
B44: =IF(ISERROR(INDEX('Trust - Frontsheet'!AV$1:AV$6187,SMALL(IF('Trust - Frontsheet'!$AX$1:$AX$6187=$B$2,ROW('Trust - Frontsheet'!$AX$1:$AX$6187)),ROW(38:38)))),"",INDEX('Trust - Frontsheet'!AV$1:AV$6187,SMALL(IF('Trust - Frontsheet'!$AX$1:$AX$6187=$B$2,ROW('Trust - Frontsheet'!$AX$1:$AX$6187)),ROW(38:38)))) ->  | C44: =IF(ISERROR(INDEX('Trust - Frontsheet'!AW$1:AW$6187,SMALL(IF('Trust - Frontsheet'!$AX$1:$AX$6187=$B$2,ROW('Trust - Frontsheet'!$AX$1:$AX$6187)),ROW(38:38)))),"",INDEX('Trust - Frontsheet'!AW$1:AW$6187,SMALL(IF('Trust - Frontsheet'!$AX$1:$AX$6187=$B$2,ROW('Trust - Frontsheet'!$AX$1:$AX$6187)),ROW(38:38)))) ->  | D44: =IF($B44="","",SUMIF('Trust - Frontsheet'!$C$14:$C$213,$B44,'Trust - Frontsheet'!H$14:H$213)) ->  | E44: =IF($B44="","",SUMIF('Trust - Frontsheet'!$C$14:$C$213,$B44,'Trust - Frontsheet'!I$14:I$213)) ->  | F44: =IF($B44="","",SUMIF('Trust - Frontsheet'!$C$14:$C$213,$B44,'Trust - Frontsheet'!J$14:J$213)) ->  | G44: =IF($B44="","",SUMIF('Trust - Frontsheet'!$C$14:$C$213,$B44,'Trust - Frontsheet'!K$14:K$213)) ->  | H44: =IF($B44="","",SUMIF('Trust - Frontsheet'!$C$14:$C$213,$B44,'Trust - Frontsheet'!L$14:L$213)) ->  | I44: =IF($B44="","",SUMIF('Trust - Frontsheet'!$C$14:$C$213,$B44,'Trust - Frontsheet'!M$14:M$213)) ->  | J44: =IF($B44="","",SUMIF('Trust - Frontsheet'!$C$14:$C$213,$B44,'Trust - Frontsheet'!N$14:N$213)) ->  | K44: =IF($B44="","",SUMIF('Trust - Frontsheet'!$C$14:$C$213,$B44,'Trust - Frontsheet'!O$14:O$213)) ->  | P44: =IF($B44="","",SUMIF('Trust - Frontsheet'!$C$14:$C$213,$B44,'Trust - Frontsheet'!T$14:T$213)) -> 
B45: =IF(ISERROR(INDEX('Trust - Frontsheet'!AV$1:AV$6187,SMALL(IF('Trust - Frontsheet'!$AX$1:$AX$6187=$B$2,ROW('Trust - Frontsheet'!$AX$1:$AX$6187)),ROW(39:39)))),"",INDEX('Trust - Frontsheet'!AV$1:AV$6187,SMALL(IF('Trust - Frontsheet'!$AX$1:$AX$6187=$B$2,ROW('Trust - Frontsheet'!$AX$1:$AX$6187)),ROW(39:39)))) ->  | C45: =IF(ISERROR(INDEX('Trust - Frontsheet'!AW$1:AW$6187,SMALL(IF('Trust - Frontsheet'!$AX$1:$AX$6187=$B$2,ROW('Trust - Frontsheet'!$AX$1:$AX$6187)),ROW(39:39)))),"",INDEX('Trust - Frontsheet'!AW$1:AW$6187,SMALL(IF('Trust - Frontsheet'!$AX$1:$AX$6187=$B$2,ROW('Trust - Frontsheet'!$AX$1:$AX$6187)),ROW(39:39)))) ->  | D45: =IF($B45="","",SUMIF('Trust - Frontsheet'!$C$14:$C$213,$B45,'Trust - Frontsheet'!H$14:H$213)) ->  | E45: =IF($B45="","",SUMIF('Trust - Frontsheet'!$C$14:$C$213,$B45,'Trust - Frontsheet'!I$14:I$213)) ->  | F45: =IF($B45="","",SUMIF('Trust - Frontsheet'!$C$14:$C$213,$B45,'Trust - Frontsheet'!J$14:J$213)) ->  | G45: =IF($B45="","",SUMIF('Trust - Frontsheet'!$C$14:$C$213,$B45,'Trust - Frontsheet'!K$14:K$213)) ->  | H45: =IF($B45="","",SUMIF('Trust - Frontsheet'!$C$14:$C$213,$B45,'Trust - Frontsheet'!L$14:L$213)) ->  | I45: =IF($B45="","",SUMIF('Trust - Frontsheet'!$C$14:$C$213,$B45,'Trust - Frontsheet'!M$14:M$213)) ->  | J45: =IF($B45="","",SUMIF('Trust - Frontsheet'!$C$14:$C$213,$B45,'Trust - Frontsheet'!N$14:N$213)) ->  | K45: =IF($B45="","",SUMIF('Trust - Frontsheet'!$C$14:$C$213,$B45,'Trust - Frontsheet'!O$14:O$213)) ->  | P45: =IF($B45="","",SUMIF('Trust - Frontsheet'!$C$14:$C$213,$B45,'Trust - Frontsheet'!T$14:T$213)) -> 
B46: =IF(ISERROR(INDEX('Trust - Frontsheet'!AV$1:AV$6187,SMALL(IF('Trust - Frontsheet'!$AX$1:$AX$6187=$B$2,ROW('Trust - Frontsheet'!$AX$1:$AX$6187)),ROW(40:40)))),"",INDEX('Trust - Frontsheet'!AV$1:AV$6187,SMALL(IF('Trust - Frontsheet'!$AX$1:$AX$6187=$B$2,ROW('Trust - Frontsheet'!$AX$1:$AX$6187)),ROW(40:40)))) ->  | C46: =IF(ISERROR(INDEX('Trust - Frontsheet'!AW$1:AW$6187,SMALL(IF('Trust - Frontsheet'!$AX$1:$AX$6187=$B$2,ROW('Trust - Frontsheet'!$AX$1:$AX$6187)),ROW(40:40)))),"",INDEX('Trust - Frontsheet'!AW$1:AW$6187,SMALL(IF('Trust - Frontsheet'!$AX$1:$AX$6187=$B$2,ROW('Trust - Frontsheet'!$AX$1:$AX$6187)),ROW(40:40)))) ->  | D46: =IF($B46="","",SUMIF('Trust - Frontsheet'!$C$14:$C$213,$B46,'Trust - Frontsheet'!H$14:H$213)) ->  | E46: =IF($B46="","",SUMIF('Trust - Frontsheet'!$C$14:$C$213,$B46,'Trust - Frontsheet'!I$14:I$213)) ->  | F46: =IF($B46="","",SUMIF('Trust - Frontsheet'!$C$14:$C$213,$B46,'Trust - Frontsheet'!J$14:J$213)) ->  | G46: =IF($B46="","",SUMIF('Trust - Frontsheet'!$C$14:$C$213,$B46,'Trust - Frontsheet'!K$14:K$213)) ->  | H46: =IF($B46="","",SUMIF('Trust - Frontsheet'!$C$14:$C$213,$B46,'Trust - Frontsheet'!L$14:L$213)) ->  | I46: =IF($B46="","",SUMIF('Trust - Frontsheet'!$C$14:$C$213,$B46,'Trust - Frontsheet'!M$14:M$213)) ->  | J46: =IF($B46="","",SUMIF('Trust - Frontsheet'!$C$14:$C$213,$B46,'Trust - Frontsheet'!N$14:N$213)) ->  | K46: =IF($B46="","",SUMIF('Trust - Frontsheet'!$C$14:$C$213,$B46,'Trust - Frontsheet'!O$14:O$213)) ->  | P46: =IF($B46="","",SUMIF('Trust - Frontsheet'!$C$14:$C$213,$B46,'Trust - Frontsheet'!T$14:T$213)) -> 
B47: =IF(ISERROR(INDEX('Trust - Frontsheet'!AV$1:AV$6187,SMALL(IF('Trust - Frontsheet'!$AX$1:$AX$6187=$B$2,ROW('Trust - Frontsheet'!$AX$1:$AX$6187)),ROW(41:41)))),"",INDEX('Trust - Frontsheet'!AV$1:AV$6187,SMALL(IF('Trust - Frontsheet'!$AX$1:$AX$6187=$B$2,ROW('Trust - Frontsheet'!$AX$1:$AX$6187)),ROW(41:41)))) ->  | C47: =IF(ISERROR(INDEX('Trust - Frontsheet'!AW$1:AW$6187,SMALL(IF('Trust - Frontsheet'!$AX$1:$AX$6187=$B$2,ROW('Trust - Frontsheet'!$AX$1:$AX$6187)),ROW(41:41)))),"",INDEX('Trust - Frontsheet'!AW$1:AW$6187,SMALL(IF('Trust - Frontsheet'!$AX$1:$AX$6187=$B$2,ROW('Trust - Frontsheet'!$AX$1:$AX$6187)),ROW(41:41)))) ->  | D47: =IF($B47="","",SUMIF('Trust - Frontsheet'!$C$14:$C$213,$B47,'Trust - Frontsheet'!H$14:H$213)) ->  | E47: =IF($B47="","",SUMIF('Trust - Frontsheet'!$C$14:$C$213,$B47,'Trust - Frontsheet'!I$14:I$213)) ->  | F47: =IF($B47="","",SUMIF('Trust - Frontsheet'!$C$14:$C$213,$B47,'Trust - Frontsheet'!J$14:J$213)) ->  | G47: =IF($B47="","",SUMIF('Trust - Frontsheet'!$C$14:$C$213,$B47,'Trust - Frontsheet'!K$14:K$213)) ->  | H47: =IF($B47="","",SUMIF('Trust - Frontsheet'!$C$14:$C$213,$B47,'Trust - Frontsheet'!L$14:L$213)) ->  | I47: =IF($B47="","",SUMIF('Trust - Frontsheet'!$C$14:$C$213,$B47,'Trust - Frontsheet'!M$14:M$213)) ->  | J47: =IF($B47="","",SUMIF('Trust - Frontsheet'!$C$14:$C$213,$B47,'Trust - Frontsheet'!N$14:N$213)) ->  | K47: =IF($B47="","",SUMIF('Trust - Frontsheet'!$C$14:$C$213,$B47,'Trust - Frontsheet'!O$14:O$213)) ->  | P47: =IF($B47="","",SUMIF('Trust - Frontsheet'!$C$14:$C$213,$B47,'Trust - Frontsheet'!T$14:T$213)) -> 
B48: =IF(ISERROR(INDEX('Trust - Frontsheet'!AV$1:AV$6187,SMALL(IF('Trust - Frontsheet'!$AX$1:$AX$6187=$B$2,ROW('Trust - Frontsheet'!$AX$1:$AX$6187)),ROW(42:42)))),"",INDEX('Trust - Frontsheet'!AV$1:AV$6187,SMALL(IF('Trust - Frontsheet'!$AX$1:$AX$6187=$B$2,ROW('Trust - Frontsheet'!$AX$1:$AX$6187)),ROW(42:42)))) ->  | C48: =IF(ISERROR(INDEX('Trust - Frontsheet'!AW$1:AW$6187,SMALL(IF('Trust - Frontsheet'!$AX$1:$AX$6187=$B$2,ROW('Trust - Frontsheet'!$AX$1:$AX$6187)),ROW(42:42)))),"",INDEX('Trust - Frontsheet'!AW$1:AW$6187,SMALL(IF('Trust - Frontsheet'!$AX$1:$AX$6187=$B$2,ROW('Trust - Frontsheet'!$AX$1:$AX$6187)),ROW(42:42)))) ->  | D48: =IF($B48="","",SUMIF('Trust - Frontsheet'!$C$14:$C$213,$B48,'Trust - Frontsheet'!H$14:H$213)) ->  | E48: =IF($B48="","",SUMIF('Trust - Frontsheet'!$C$14:$C$213,$B48,'Trust - Frontsheet'!I$14:I$213)) ->  | F48: =IF($B48="","",SUMIF('Trust - Frontsheet'!$C$14:$C$213,$B48,'Trust - Frontsheet'!J$14:J$213)) ->  | G48: =IF($B48="","",SUMIF('Trust - Frontsheet'!$C$14:$C$213,$B48,'Trust - Frontsheet'!K$14:K$213)) ->  | H48: =IF($B48="","",SUMIF('Trust - Frontsheet'!$C$14:$C$213,$B48,'Trust - Frontsheet'!L$14:L$213)) ->  | I48: =IF($B48="","",SUMIF('Trust - Frontsheet'!$C$14:$C$213,$B48,'Trust - Frontsheet'!M$14:M$213)) ->  | J48: =IF($B48="","",SUMIF('Trust - Frontsheet'!$C$14:$C$213,$B48,'Trust - Frontsheet'!N$14:N$213)) ->  | K48: =IF($B48="","",SUMIF('Trust - Frontsheet'!$C$14:$C$213,$B48,'Trust - Frontsheet'!O$14:O$213)) ->  | P48: =IF($B48="","",SUMIF('Trust - Frontsheet'!$C$14:$C$213,$B48,'Trust - Frontsheet'!T$14:T$213)) -> 
B49: =IF(ISERROR(INDEX('Trust - Frontsheet'!AV$1:AV$6187,SMALL(IF('Trust - Frontsheet'!$AX$1:$AX$6187=$B$2,ROW('Trust - Frontsheet'!$AX$1:$AX$6187)),ROW(43:43)))),"",INDEX('Trust - Frontsheet'!AV$1:AV$6187,SMALL(IF('Trust - Frontsheet'!$AX$1:$AX$6187=$B$2,ROW('Trust - Frontsheet'!$AX$1:$AX$6187)),ROW(43:43)))) ->  | C49: =IF(ISERROR(INDEX('Trust - Frontsheet'!AW$1:AW$6187,SMALL(IF('Trust - Frontsheet'!$AX$1:$AX$6187=$B$2,ROW('Trust - Frontsheet'!$AX$1:$AX$6187)),ROW(43:43)))),"",INDEX('Trust - Frontsheet'!AW$1:AW$6187,SMALL(IF('Trust - Frontsheet'!$AX$1:$AX$6187=$B$2,ROW('Trust - Frontsheet'!$AX$1:$AX$6187)),ROW(43:43)))) ->  | D49: =IF($B49="","",SUMIF('Trust - Frontsheet'!$C$14:$C$213,$B49,'Trust - Frontsheet'!H$14:H$213)) ->  | E49: =IF($B49="","",SUMIF('Trust - Frontsheet'!$C$14:$C$213,$B49,'Trust - Frontsheet'!I$14:I$213)) ->  | F49: =IF($B49="","",SUMIF('Trust - Frontsheet'!$C$14:$C$213,$B49,'Trust - Frontsheet'!J$14:J$213)) ->  | G49: =IF($B49="","",SUMIF('Trust - Frontsheet'!$C$14:$C$213,$B49,'Trust - Frontsheet'!K$14:K$213)) ->  | H49: =IF($B49="","",SUMIF('Trust - Frontsheet'!$C$14:$C$213,$B49,'Trust - Frontsheet'!L$14:L$213)) ->  | I49: =IF($B49="","",SUMIF('Trust - Frontsheet'!$C$14:$C$213,$B49,'Trust - Frontsheet'!M$14:M$213)) ->  | J49: =IF($B49="","",SUMIF('Trust - Frontsheet'!$C$14:$C$213,$B49,'Trust - Frontsheet'!N$14:N$213)) ->  | K49: =IF($B49="","",SUMIF('Trust - Frontsheet'!$C$14:$C$213,$B49,'Trust - Frontsheet'!O$14:O$213)) ->  | P49: =IF($B49="","",SUMIF('Trust - Frontsheet'!$C$14:$C$213,$B49,'Trust - Frontsheet'!T$14:T$213)) -> 
B50: =IF(ISERROR(INDEX('Trust - Frontsheet'!AV$1:AV$6187,SMALL(IF('Trust - Frontsheet'!$AX$1:$AX$6187=$B$2,ROW('Trust - Frontsheet'!$AX$1:$AX$6187)),ROW(44:44)))),"",INDEX('Trust - Frontsheet'!AV$1:AV$6187,SMALL(IF('Trust - Frontsheet'!$AX$1:$AX$6187=$B$2,ROW('Trust - Frontsheet'!$AX$1:$AX$6187)),ROW(44:44)))) ->  | C50: =IF(ISERROR(INDEX('Trust - Frontsheet'!AW$1:AW$6187,SMALL(IF('Trust - Frontsheet'!$AX$1:$AX$6187=$B$2,ROW('Trust - Frontsheet'!$AX$1:$AX$6187)),ROW(44:44)))),"",INDEX('Trust - Frontsheet'!AW$1:AW$6187,SMALL(IF('Trust - Frontsheet'!$AX$1:$AX$6187=$B$2,ROW('Trust - Frontsheet'!$AX$1:$AX$6187)),ROW(44:44)))) ->  | D50: =IF($B50="","",SUMIF('Trust - Frontsheet'!$C$14:$C$213,$B50,'Trust - Frontsheet'!H$14:H$213)) ->  | E50: =IF($B50="","",SUMIF('Trust - Frontsheet'!$C$14:$C$213,$B50,'Trust - Frontsheet'!I$14:I$213)) ->  | F50: =IF($B50="","",SUMIF('Trust - Frontsheet'!$C$14:$C$213,$B50,'Trust - Frontsheet'!J$14:J$213)) ->  | G50: =IF($B50="","",SUMIF('Trust - Frontsheet'!$C$14:$C$213,$B50,'Trust - Frontsheet'!K$14:K$213)) ->  | H50: =IF($B50="","",SUMIF('Trust - Frontsheet'!$C$14:$C$213,$B50,'Trust - Frontsheet'!L$14:L$213)) ->  | I50: =IF($B50="","",SUMIF('Trust - Frontsheet'!$C$14:$C$213,$B50,'Trust - Frontsheet'!M$14:M$213)) ->  | J50: =IF($B50="","",SUMIF('Trust - Frontsheet'!$C$14:$C$213,$B50,'Trust - Frontsheet'!N$14:N$213)) ->  | K50: =IF($B50="","",SUMIF('Trust - Frontsheet'!$C$14:$C$213,$B50,'Trust - Frontsheet'!O$14:O$213)) ->  | P50: =IF($B50="","",SUMIF('Trust - Frontsheet'!$C$14:$C$213,$B50,'Trust - Frontsheet'!T$14:T$213)) -> 
B51: =IF(ISERROR(INDEX('Trust - Frontsheet'!AV$1:AV$6187,SMALL(IF('Trust - Frontsheet'!$AX$1:$AX$6187=$B$2,ROW('Trust - Frontsheet'!$AX$1:$AX$6187)),ROW(45:45)))),"",INDEX('Trust - Frontsheet'!AV$1:AV$6187,SMALL(IF('Trust - Frontsheet'!$AX$1:$AX$6187=$B$2,ROW('Trust - Frontsheet'!$AX$1:$AX$6187)),ROW(45:45)))) ->  | C51: =IF(ISERROR(INDEX('Trust - Frontsheet'!AW$1:AW$6187,SMALL(IF('Trust - Frontsheet'!$AX$1:$AX$6187=$B$2,ROW('Trust - Frontsheet'!$AX$1:$AX$6187)),ROW(45:45)))),"",INDEX('Trust - Frontsheet'!AW$1:AW$6187,SMALL(IF('Trust - Frontsheet'!$AX$1:$AX$6187=$B$2,ROW('Trust - Frontsheet'!$AX$1:$AX$6187)),ROW(45:45)))) ->  | D51: =IF($B51="","",SUMIF('Trust - Frontsheet'!$C$14:$C$213,$B51,'Trust - Frontsheet'!H$14:H$213)) ->  | E51: =IF($B51="","",SUMIF('Trust - Frontsheet'!$C$14:$C$213,$B51,'Trust - Frontsheet'!I$14:I$213)) ->  | F51: =IF($B51="","",SUMIF('Trust - Frontsheet'!$C$14:$C$213,$B51,'Trust - Frontsheet'!J$14:J$213)) ->  | G51: =IF($B51="","",SUMIF('Trust - Frontsheet'!$C$14:$C$213,$B51,'Trust - Frontsheet'!K$14:K$213)) ->  | H51: =IF($B51="","",SUMIF('Trust - Frontsheet'!$C$14:$C$213,$B51,'Trust - Frontsheet'!L$14:L$213)) ->  | I51: =IF($B51="","",SUMIF('Trust - Frontsheet'!$C$14:$C$213,$B51,'Trust - Frontsheet'!M$14:M$213)) ->  | J51: =IF($B51="","",SUMIF('Trust - Frontsheet'!$C$14:$C$213,$B51,'Trust - Frontsheet'!N$14:N$213)) ->  | K51: =IF($B51="","",SUMIF('Trust - Frontsheet'!$C$14:$C$213,$B51,'Trust - Frontsheet'!O$14:O$213)) ->  | P51: =IF($B51="","",SUMIF('Trust - Frontsheet'!$C$14:$C$213,$B51,'Trust - Frontsheet'!T$14:T$213)) -> 
B52: =IF(ISERROR(INDEX('Trust - Frontsheet'!AV$1:AV$6187,SMALL(IF('Trust - Frontsheet'!$AX$1:$AX$6187=$B$2,ROW('Trust - Frontsheet'!$AX$1:$AX$6187)),ROW(46:46)))),"",INDEX('Trust - Frontsheet'!AV$1:AV$6187,SMALL(IF('Trust - Frontsheet'!$AX$1:$AX$6187=$B$2,ROW('Trust - Frontsheet'!$AX$1:$AX$6187)),ROW(46:46)))) ->  | C52: =IF(ISERROR(INDEX('Trust - Frontsheet'!AW$1:AW$6187,SMALL(IF('Trust - Frontsheet'!$AX$1:$AX$6187=$B$2,ROW('Trust - Frontsheet'!$AX$1:$AX$6187)),ROW(46:46)))),"",INDEX('Trust - Frontsheet'!AW$1:AW$6187,SMALL(IF('Trust - Frontsheet'!$AX$1:$AX$6187=$B$2,ROW('Trust - Frontsheet'!$AX$1:$AX$6187)),ROW(46:46)))) ->  | D52: =IF($B52="","",SUMIF('Trust - Frontsheet'!$C$14:$C$213,$B52,'Trust - Frontsheet'!H$14:H$213)) ->  | E52: =IF($B52="","",SUMIF('Trust - Frontsheet'!$C$14:$C$213,$B52,'Trust - Frontsheet'!I$14:I$213)) ->  | F52: =IF($B52="","",SUMIF('Trust - Frontsheet'!$C$14:$C$213,$B52,'Trust - Frontsheet'!J$14:J$213)) ->  | G52: =IF($B52="","",SUMIF('Trust - Frontsheet'!$C$14:$C$213,$B52,'Trust - Frontsheet'!K$14:K$213)) ->  | H52: =IF($B52="","",SUMIF('Trust - Frontsheet'!$C$14:$C$213,$B52,'Trust - Frontsheet'!L$14:L$213)) ->  | I52: =IF($B52="","",SUMIF('Trust - Frontsheet'!$C$14:$C$213,$B52,'Trust - Frontsheet'!M$14:M$213)) ->  | J52: =IF($B52="","",SUMIF('Trust - Frontsheet'!$C$14:$C$213,$B52,'Trust - Frontsheet'!N$14:N$213)) ->  | K52: =IF($B52="","",SUMIF('Trust - Frontsheet'!$C$14:$C$213,$B52,'Trust - Frontsheet'!O$14:O$213)) ->  | P52: =IF($B52="","",SUMIF('Trust - Frontsheet'!$C$14:$C$213,$B52,'Trust - Frontsheet'!T$14:T$213)) -> 
B53: =IF(ISERROR(INDEX('Trust - Frontsheet'!AV$1:AV$6187,SMALL(IF('Trust - Frontsheet'!$AX$1:$AX$6187=$B$2,ROW('Trust - Frontsheet'!$AX$1:$AX$6187)),ROW(47:47)))),"",INDEX('Trust - Frontsheet'!AV$1:AV$6187,SMALL(IF('Trust - Frontsheet'!$AX$1:$AX$6187=$B$2,ROW('Trust - Frontsheet'!$AX$1:$AX$6187)),ROW(47:47)))) ->  | C53: =IF(ISERROR(INDEX('Trust - Frontsheet'!AW$1:AW$6187,SMALL(IF('Trust - Frontsheet'!$AX$1:$AX$6187=$B$2,ROW('Trust - Frontsheet'!$AX$1:$AX$6187)),ROW(47:47)))),"",INDEX('Trust - Frontsheet'!AW$1:AW$6187,SMALL(IF('Trust - Frontsheet'!$AX$1:$AX$6187=$B$2,ROW('Trust - Frontsheet'!$AX$1:$AX$6187)),ROW(47:47)))) ->  | D53: =IF($B53="","",SUMIF('Trust - Frontsheet'!$C$14:$C$213,$B53,'Trust - Frontsheet'!H$14:H$213)) ->  | E53: =IF($B53="","",SUMIF('Trust - Frontsheet'!$C$14:$C$213,$B53,'Trust - Frontsheet'!I$14:I$213)) ->  | F53: =IF($B53="","",SUMIF('Trust - Frontsheet'!$C$14:$C$213,$B53,'Trust - Frontsheet'!J$14:J$213)) ->  | G53: =IF($B53="","",SUMIF('Trust - Frontsheet'!$C$14:$C$213,$B53,'Trust - Frontsheet'!K$14:K$213)) ->  | H53: =IF($B53="","",SUMIF('Trust - Frontsheet'!$C$14:$C$213,$B53,'Trust - Frontsheet'!L$14:L$213)) ->  | I53: =IF($B53="","",SUMIF('Trust - Frontsheet'!$C$14:$C$213,$B53,'Trust - Frontsheet'!M$14:M$213)) ->  | J53: =IF($B53="","",SUMIF('Trust - Frontsheet'!$C$14:$C$213,$B53,'Trust - Frontsheet'!N$14:N$213)) ->  | K53: =IF($B53="","",SUMIF('Trust - Frontsheet'!$C$14:$C$213,$B53,'Trust - Frontsheet'!O$14:O$213)) ->  | P53: =IF($B53="","",SUMIF('Trust - Frontsheet'!$C$14:$C$213,$B53,'Trust - Frontsheet'!T$14:T$213)) -> 
B54: =IF(ISERROR(INDEX('Trust - Frontsheet'!AV$1:AV$6187,SMALL(IF('Trust - Frontsheet'!$AX$1:$AX$6187=$B$2,ROW('Trust - Frontsheet'!$AX$1:$AX$6187)),ROW(48:48)))),"",INDEX('Trust - Frontsheet'!AV$1:AV$6187,SMALL(IF('Trust - Frontsheet'!$AX$1:$AX$6187=$B$2,ROW('Trust - Frontsheet'!$AX$1:$AX$6187)),ROW(48:48)))) ->  | C54: =IF(ISERROR(INDEX('Trust - Frontsheet'!AW$1:AW$6187,SMALL(IF('Trust - Frontsheet'!$AX$1:$AX$6187=$B$2,ROW('Trust - Frontsheet'!$AX$1:$AX$6187)),ROW(48:48)))),"",INDEX('Trust - Frontsheet'!AW$1:AW$6187,SMALL(IF('Trust - Frontsheet'!$AX$1:$AX$6187=$B$2,ROW('Trust - Frontsheet'!$AX$1:$AX$6187)),ROW(48:48)))) ->  | D54: =IF($B54="","",SUMIF('Trust - Frontsheet'!$C$14:$C$213,$B54,'Trust - Frontsheet'!H$14:H$213)) ->  | E54: =IF($B54="","",SUMIF('Trust - Frontsheet'!$C$14:$C$213,$B54,'Trust - Frontsheet'!I$14:I$213)) ->  | F54: =IF($B54="","",SUMIF('Trust - Frontsheet'!$C$14:$C$213,$B54,'Trust - Frontsheet'!J$14:J$213)) ->  | G54: =IF($B54="","",SUMIF('Trust - Frontsheet'!$C$14:$C$213,$B54,'Trust - Frontsheet'!K$14:K$213)) ->  | H54: =IF($B54="","",SUMIF('Trust - Frontsheet'!$C$14:$C$213,$B54,'Trust - Frontsheet'!L$14:L$213)) ->  | I54: =IF($B54="","",SUMIF('Trust - Frontsheet'!$C$14:$C$213,$B54,'Trust - Frontsheet'!M$14:M$213)) ->  | J54: =IF($B54="","",SUMIF('Trust - Frontsheet'!$C$14:$C$213,$B54,'Trust - Frontsheet'!N$14:N$213)) ->  | K54: =IF($B54="","",SUMIF('Trust - Frontsheet'!$C$14:$C$213,$B54,'Trust - Frontsheet'!O$14:O$213)) ->  | P54: =IF($B54="","",SUMIF('Trust - Frontsheet'!$C$14:$C$213,$B54,'Trust - Frontsheet'!T$14:T$213)) -> 
B55: =IF(ISERROR(INDEX('Trust - Frontsheet'!AV$1:AV$6187,SMALL(IF('Trust - Frontsheet'!$AX$1:$AX$6187=$B$2,ROW('Trust - Frontsheet'!$AX$1:$AX$6187)),ROW(49:49)))),"",INDEX('Trust - Frontsheet'!AV$1:AV$6187,SMALL(IF('Trust - Frontsheet'!$AX$1:$AX$6187=$B$2,ROW('Trust - Frontsheet'!$AX$1:$AX$6187)),ROW(49:49)))) ->  | C55: =IF(ISERROR(INDEX('Trust - Frontsheet'!AW$1:AW$6187,SMALL(IF('Trust - Frontsheet'!$AX$1:$AX$6187=$B$2,ROW('Trust - Frontsheet'!$AX$1:$AX$6187)),ROW(49:49)))),"",INDEX('Trust - Frontsheet'!AW$1:AW$6187,SMALL(IF('Trust - Frontsheet'!$AX$1:$AX$6187=$B$2,ROW('Trust - Frontsheet'!$AX$1:$AX$6187)),ROW(49:49)))) ->  | D55: =IF($B55="","",SUMIF('Trust - Frontsheet'!$C$14:$C$213,$B55,'Trust - Frontsheet'!H$14:H$213)) ->  | E55: =IF($B55="","",SUMIF('Trust - Frontsheet'!$C$14:$C$213,$B55,'Trust - Frontsheet'!I$14:I$213)) ->  | F55: =IF($B55="","",SUMIF('Trust - Frontsheet'!$C$14:$C$213,$B55,'Trust - Frontsheet'!J$14:J$213)) ->  | G55: =IF($B55="","",SUMIF('Trust - Frontsheet'!$C$14:$C$213,$B55,'Trust - Frontsheet'!K$14:K$213)) ->  | H55: =IF($B55="","",SUMIF('Trust - Frontsheet'!$C$14:$C$213,$B55,'Trust - Frontsheet'!L$14:L$213)) ->  | I55: =IF($B55="","",SUMIF('Trust - Frontsheet'!$C$14:$C$213,$B55,'Trust - Frontsheet'!M$14:M$213)) ->  | J55: =IF($B55="","",SUMIF('Trust - Frontsheet'!$C$14:$C$213,$B55,'Trust - Frontsheet'!N$14:N$213)) ->  | K55: =IF($B55="","",SUMIF('Trust - Frontsheet'!$C$14:$C$213,$B55,'Trust - Frontsheet'!O$14:O$213)) ->  | P55: =IF($B55="","",SUMIF('Trust - Frontsheet'!$C$14:$C$213,$B55,'Trust - Frontsheet'!T$14:T$213)) -> 
B56: =IF(ISERROR(INDEX('Trust - Frontsheet'!AV$1:AV$6187,SMALL(IF('Trust - Frontsheet'!$AX$1:$AX$6187=$B$2,ROW('Trust - Frontsheet'!$AX$1:$AX$6187)),ROW(50:50)))),"",INDEX('Trust - Frontsheet'!AV$1:AV$6187,SMALL(IF('Trust - Frontsheet'!$AX$1:$AX$6187=$B$2,ROW('Trust - Frontsheet'!$AX$1:$AX$6187)),ROW(50:50)))) ->  | C56: =IF(ISERROR(INDEX('Trust - Frontsheet'!AW$1:AW$6187,SMALL(IF('Trust - Frontsheet'!$AX$1:$AX$6187=$B$2,ROW('Trust - Frontsheet'!$AX$1:$AX$6187)),ROW(50:50)))),"",INDEX('Trust - Frontsheet'!AW$1:AW$6187,SMALL(IF('Trust - Frontsheet'!$AX$1:$AX$6187=$B$2,ROW('Trust - Frontsheet'!$AX$1:$AX$6187)),ROW(50:50)))) ->  | D56: =IF($B56="","",SUMIF('Trust - Frontsheet'!$C$14:$C$213,$B56,'Trust - Frontsheet'!H$14:H$213)) ->  | E56: =IF($B56="","",SUMIF('Trust - Frontsheet'!$C$14:$C$213,$B56,'Trust - Frontsheet'!I$14:I$213)) ->  | F56: =IF($B56="","",SUMIF('Trust - Frontsheet'!$C$14:$C$213,$B56,'Trust - Frontsheet'!J$14:J$213)) ->  | G56: =IF($B56="","",SUMIF('Trust - Frontsheet'!$C$14:$C$213,$B56,'Trust - Frontsheet'!K$14:K$213)) ->  | H56: =IF($B56="","",SUMIF('Trust - Frontsheet'!$C$14:$C$213,$B56,'Trust - Frontsheet'!L$14:L$213)) ->  | I56: =IF($B56="","",SUMIF('Trust - Frontsheet'!$C$14:$C$213,$B56,'Trust - Frontsheet'!M$14:M$213)) ->  | J56: =IF($B56="","",SUMIF('Trust - Frontsheet'!$C$14:$C$213,$B56,'Trust - Frontsheet'!N$14:N$213)) ->  | K56: =IF($B56="","",SUMIF('Trust - Frontsheet'!$C$14:$C$213,$B56,'Trust - Frontsheet'!O$14:O$213)) ->  | P56: =IF($B56="","",SUMIF('Trust - Frontsheet'!$C$14:$C$213,$B56,'Trust - Frontsheet'!T$14:T$213)) -> 
B57: =IF(ISERROR(INDEX('Trust - Frontsheet'!AV$1:AV$6187,SMALL(IF('Trust - Frontsheet'!$AX$1:$AX$6187=$B$2,ROW('Trust - Frontsheet'!$AX$1:$AX$6187)),ROW(51:51)))),"",INDEX('Trust - Frontsheet'!AV$1:AV$6187,SMALL(IF('Trust - Frontsheet'!$AX$1:$AX$6187=$B$2,ROW('Trust - Frontsheet'!$AX$1:$AX$6187)),ROW(51:51)))) ->  | C57: =IF(ISERROR(INDEX('Trust - Frontsheet'!AW$1:AW$6187,SMALL(IF('Trust - Frontsheet'!$AX$1:$AX$6187=$B$2,ROW('Trust - Frontsheet'!$AX$1:$AX$6187)),ROW(51:51)))),"",INDEX('Trust - Frontsheet'!AW$1:AW$6187,SMALL(IF('Trust - Frontsheet'!$AX$1:$AX$6187=$B$2,ROW('Trust - Frontsheet'!$AX$1:$AX$6187)),ROW(51:51)))) ->  | D57: =IF($B57="","",SUMIF('Trust - Frontsheet'!$C$14:$C$213,$B57,'Trust - Frontsheet'!H$14:H$213)) ->  | E57: =IF($B57="","",SUMIF('Trust - Frontsheet'!$C$14:$C$213,$B57,'Trust - Frontsheet'!I$14:I$213)) ->  | F57: =IF($B57="","",SUMIF('Trust - Frontsheet'!$C$14:$C$213,$B57,'Trust - Frontsheet'!J$14:J$213)) ->  | G57: =IF($B57="","",SUMIF('Trust - Frontsheet'!$C$14:$C$213,$B57,'Trust - Frontsheet'!K$14:K$213)) ->  | H57: =IF($B57="","",SUMIF('Trust - Frontsheet'!$C$14:$C$213,$B57,'Trust - Frontsheet'!L$14:L$213)) ->  | I57: =IF($B57="","",SUMIF('Trust - Frontsheet'!$C$14:$C$213,$B57,'Trust - Frontsheet'!M$14:M$213)) ->  | J57: =IF($B57="","",SUMIF('Trust - Frontsheet'!$C$14:$C$213,$B57,'Trust - Frontsheet'!N$14:N$213)) ->  | K57: =IF($B57="","",SUMIF('Trust - Frontsheet'!$C$14:$C$213,$B57,'Trust - Frontsheet'!O$14:O$213)) ->  | P57: =IF($B57="","",SUMIF('Trust - Frontsheet'!$C$14:$C$213,$B57,'Trust - Frontsheet'!T$14:T$213)) -> 
B58: =IF(ISERROR(INDEX('Trust - Frontsheet'!AV$1:AV$6187,SMALL(IF('Trust - Frontsheet'!$AX$1:$AX$6187=$B$2,ROW('Trust - Frontsheet'!$AX$1:$AX$6187)),ROW(52:52)))),"",INDEX('Trust - Frontsheet'!AV$1:AV$6187,SMALL(IF('Trust - Frontsheet'!$AX$1:$AX$6187=$B$2,ROW('Trust - Frontsheet'!$AX$1:$AX$6187)),ROW(52:52)))) ->  | C58: =IF(ISERROR(INDEX('Trust - Frontsheet'!AW$1:AW$6187,SMALL(IF('Trust - Frontsheet'!$AX$1:$AX$6187=$B$2,ROW('Trust - Frontsheet'!$AX$1:$AX$6187)),ROW(52:52)))),"",INDEX('Trust - Frontsheet'!AW$1:AW$6187,SMALL(IF('Trust - Frontsheet'!$AX$1:$AX$6187=$B$2,ROW('Trust - Frontsheet'!$AX$1:$AX$6187)),ROW(52:52)))) ->  | D58: =IF($B58="","",SUMIF('Trust - Frontsheet'!$C$14:$C$213,$B58,'Trust - Frontsheet'!H$14:H$213)) ->  | E58: =IF($B58="","",SUMIF('Trust - Frontsheet'!$C$14:$C$213,$B58,'Trust - Frontsheet'!I$14:I$213)) ->  | F58: =IF($B58="","",SUMIF('Trust - Frontsheet'!$C$14:$C$213,$B58,'Trust - Frontsheet'!J$14:J$213)) ->  | G58: =IF($B58="","",SUMIF('Trust - Frontsheet'!$C$14:$C$213,$B58,'Trust - Frontsheet'!K$14:K$213)) ->  | H58: =IF($B58="","",SUMIF('Trust - Frontsheet'!$C$14:$C$213,$B58,'Trust - Frontsheet'!L$14:L$213)) ->  | I58: =IF($B58="","",SUMIF('Trust - Frontsheet'!$C$14:$C$213,$B58,'Trust - Frontsheet'!M$14:M$213)) ->  | J58: =IF($B58="","",SUMIF('Trust - Frontsheet'!$C$14:$C$213,$B58,'Trust - Frontsheet'!N$14:N$213)) ->  | K58: =IF($B58="","",SUMIF('Trust - Frontsheet'!$C$14:$C$213,$B58,'Trust - Frontsheet'!O$14:O$213)) ->  | P58: =IF($B58="","",SUMIF('Trust - Frontsheet'!$C$14:$C$213,$B58,'Trust - Frontsheet'!T$14:T$213)) -> 
B59: =IF(ISERROR(INDEX('Trust - Frontsheet'!AV$1:AV$6187,SMALL(IF('Trust - Frontsheet'!$AX$1:$AX$6187=$B$2,ROW('Trust - Frontsheet'!$AX$1:$AX$6187)),ROW(53:53)))),"",INDEX('Trust - Frontsheet'!AV$1:AV$6187,SMALL(IF('Trust - Frontsheet'!$AX$1:$AX$6187=$B$2,ROW('Trust - Frontsheet'!$AX$1:$AX$6187)),ROW(53:53)))) ->  | C59: =IF(ISERROR(INDEX('Trust - Frontsheet'!AW$1:AW$6187,SMALL(IF('Trust - Frontsheet'!$AX$1:$AX$6187=$B$2,ROW('Trust - Frontsheet'!$AX$1:$AX$6187)),ROW(53:53)))),"",INDEX('Trust - Frontsheet'!AW$1:AW$6187,SMALL(IF('Trust - Frontsheet'!$AX$1:$AX$6187=$B$2,ROW('Trust - Frontsheet'!$AX$1:$AX$6187)),ROW(53:53)))) ->  | D59: =IF($B59="","",SUMIF('Trust - Frontsheet'!$C$14:$C$213,$B59,'Trust - Frontsheet'!H$14:H$213)) ->  | E59: =IF($B59="","",SUMIF('Trust - Frontsheet'!$C$14:$C$213,$B59,'Trust - Frontsheet'!I$14:I$213)) ->  | F59: =IF($B59="","",SUMIF('Trust - Frontsheet'!$C$14:$C$213,$B59,'Trust - Frontsheet'!J$14:J$213)) ->  | G59: =IF($B59="","",SUMIF('Trust - Frontsheet'!$C$14:$C$213,$B59,'Trust - Frontsheet'!K$14:K$213)) ->  | H59: =IF($B59="","",SUMIF('Trust - Frontsheet'!$C$14:$C$213,$B59,'Trust - Frontsheet'!L$14:L$213)) ->  | I59: =IF($B59="","",SUMIF('Trust - Frontsheet'!$C$14:$C$213,$B59,'Trust - Frontsheet'!M$14:M$213)) ->  | J59: =IF($B59="","",SUMIF('Trust - Frontsheet'!$C$14:$C$213,$B59,'Trust - Frontsheet'!N$14:N$213)) ->  | K59: =IF($B59="","",SUMIF('Trust - Frontsheet'!$C$14:$C$213,$B59,'Trust - Frontsheet'!O$14:O$213)) ->  | P59: =IF($B59="","",SUMIF('Trust - Frontsheet'!$C$14:$C$213,$B59,'Trust - Frontsheet'!T$14:T$213)) -> 
B60: =IF(ISERROR(INDEX('Trust - Frontsheet'!AV$1:AV$6187,SMALL(IF('Trust - Frontsheet'!$AX$1:$AX$6187=$B$2,ROW('Trust - Frontsheet'!$AX$1:$AX$6187)),ROW(54:54)))),"",INDEX('Trust - Frontsheet'!AV$1:AV$6187,SMALL(IF('Trust - Frontsheet'!$AX$1:$AX$6187=$B$2,ROW('Trust - Frontsheet'!$AX$1:$AX$6187)),ROW(54:54)))) ->  | C60: =IF(ISERROR(INDEX('Trust - Frontsheet'!AW$1:AW$6187,SMALL(IF('Trust - Frontsheet'!$AX$1:$AX$6187=$B$2,ROW('Trust - Frontsheet'!$AX$1:$AX$6187)),ROW(54:54)))),"",INDEX('Trust - Frontsheet'!AW$1:AW$6187,SMALL(IF('Trust - Frontsheet'!$AX$1:$AX$6187=$B$2,ROW('Trust - Frontsheet'!$AX$1:$AX$6187)),ROW(54:54)))) ->  | D60: =IF($B60="","",SUMIF('Trust - Frontsheet'!$C$14:$C$213,$B60,'Trust - Frontsheet'!H$14:H$213)) ->  | E60: =IF($B60="","",SUMIF('Trust - Frontsheet'!$C$14:$C$213,$B60,'Trust - Frontsheet'!I$14:I$213)) ->  | F60: =IF($B60="","",SUMIF('Trust - Frontsheet'!$C$14:$C$213,$B60,'Trust - Frontsheet'!J$14:J$213)) ->  | G60: =IF($B60="","",SUMIF('Trust - Frontsheet'!$C$14:$C$213,$B60,'Trust - Frontsheet'!K$14:K$213)) ->  | H60: =IF($B60="","",SUMIF('Trust - Frontsheet'!$C$14:$C$213,$B60,'Trust - Frontsheet'!L$14:L$213)) ->  | I60: =IF($B60="","",SUMIF('Trust - Frontsheet'!$C$14:$C$213,$B60,'Trust - Frontsheet'!M$14:M$213)) ->  | J60: =IF($B60="","",SUMIF('Trust - Frontsheet'!$C$14:$C$213,$B60,'Trust - Frontsheet'!N$14:N$213)) ->  | K60: =IF($B60="","",SUMIF('Trust - Frontsheet'!$C$14:$C$213,$B60,'Trust - Frontsheet'!O$14:O$213)) ->  | P60: =IF($B60="","",SUMIF('Trust - Frontsheet'!$C$14:$C$213,$B60,'Trust - Frontsheet'!T$14:T$213)) -> 
B61: =IF(ISERROR(INDEX('Trust - Frontsheet'!AV$1:AV$6187,SMALL(IF('Trust - Frontsheet'!$AX$1:$AX$6187=$B$2,ROW('Trust - Frontsheet'!$AX$1:$AX$6187)),ROW(55:55)))),"",INDEX('Trust - Frontsheet'!AV$1:AV$6187,SMALL(IF('Trust - Frontsheet'!$AX$1:$AX$6187=$B$2,ROW('Trust - Frontsheet'!$AX$1:$AX$6187)),ROW(55:55)))) ->  | C61: =IF(ISERROR(INDEX('Trust - Frontsheet'!AW$1:AW$6187,SMALL(IF('Trust - Frontsheet'!$AX$1:$AX$6187=$B$2,ROW('Trust - Frontsheet'!$AX$1:$AX$6187)),ROW(55:55)))),"",INDEX('Trust - Frontsheet'!AW$1:AW$6187,SMALL(IF('Trust - Frontsheet'!$AX$1:$AX$6187=$B$2,ROW('Trust - Frontsheet'!$AX$1:$AX$6187)),ROW(55:55)))) ->  | D61: =IF($B61="","",SUMIF('Trust - Frontsheet'!$C$14:$C$213,$B61,'Trust - Frontsheet'!H$14:H$213)) ->  | E61: =IF($B61="","",SUMIF('Trust - Frontsheet'!$C$14:$C$213,$B61,'Trust - Frontsheet'!I$14:I$213)) ->  | F61: =IF($B61="","",SUMIF('Trust - Frontsheet'!$C$14:$C$213,$B61,'Trust - Frontsheet'!J$14:J$213)) ->  | G61: =IF($B61="","",SUMIF('Trust - Frontsheet'!$C$14:$C$213,$B61,'Trust - Frontsheet'!K$14:K$213)) ->  | H61: =IF($B61="","",SUMIF('Trust - Frontsheet'!$C$14:$C$213,$B61,'Trust - Frontsheet'!L$14:L$213)) ->  | I61: =IF($B61="","",SUMIF('Trust - Frontsheet'!$C$14:$C$213,$B61,'Trust - Frontsheet'!M$14:M$213)) ->  | J61: =IF($B61="","",SUMIF('Trust - Frontsheet'!$C$14:$C$213,$B61,'Trust - Frontsheet'!N$14:N$213)) ->  | K61: =IF($B61="","",SUMIF('Trust - Frontsheet'!$C$14:$C$213,$B61,'Trust - Frontsheet'!O$14:O$213)) ->  | P61: =IF($B61="","",SUMIF('Trust - Frontsheet'!$C$14:$C$213,$B61,'Trust - Frontsheet'!T$14:T$213)) -> 
B62: =IF(ISERROR(INDEX('Trust - Frontsheet'!AV$1:AV$6187,SMALL(IF('Trust - Frontsheet'!$AX$1:$AX$6187=$B$2,ROW('Trust - Frontsheet'!$AX$1:$AX$6187)),ROW(56:56)))),"",INDEX('Trust - Frontsheet'!AV$1:AV$6187,SMALL(IF('Trust - Frontsheet'!$AX$1:$AX$6187=$B$2,ROW('Trust - Frontsheet'!$AX$1:$AX$6187)),ROW(56:56)))) ->  | C62: =IF(ISERROR(INDEX('Trust - Frontsheet'!AW$1:AW$6187,SMALL(IF('Trust - Frontsheet'!$AX$1:$AX$6187=$B$2,ROW('Trust - Frontsheet'!$AX$1:$AX$6187)),ROW(56:56)))),"",INDEX('Trust - Frontsheet'!AW$1:AW$6187,SMALL(IF('Trust - Frontsheet'!$AX$1:$AX$6187=$B$2,ROW('Trust - Frontsheet'!$AX$1:$AX$6187)),ROW(56:56)))) ->  | D62: =IF($B62="","",SUMIF('Trust - Frontsheet'!$C$14:$C$213,$B62,'Trust - Frontsheet'!H$14:H$213)) ->  | E62: =IF($B62="","",SUMIF('Trust - Frontsheet'!$C$14:$C$213,$B62,'Trust - Frontsheet'!I$14:I$213)) ->  | F62: =IF($B62="","",SUMIF('Trust - Frontsheet'!$C$14:$C$213,$B62,'Trust - Frontsheet'!J$14:J$213)) ->  | G62: =IF($B62="","",SUMIF('Trust - Frontsheet'!$C$14:$C$213,$B62,'Trust - Frontsheet'!K$14:K$213)) ->  | H62: =IF($B62="","",SUMIF('Trust - Frontsheet'!$C$14:$C$213,$B62,'Trust - Frontsheet'!L$14:L$213)) ->  | I62: =IF($B62="","",SUMIF('Trust - Frontsheet'!$C$14:$C$213,$B62,'Trust - Frontsheet'!M$14:M$213)) ->  | J62: =IF($B62="","",SUMIF('Trust - Frontsheet'!$C$14:$C$213,$B62,'Trust - Frontsheet'!N$14:N$213)) ->  | K62: =IF($B62="","",SUMIF('Trust - Frontsheet'!$C$14:$C$213,$B62,'Trust - Frontsheet'!O$14:O$213)) ->  | P62: =IF($B62="","",SUMIF('Trust - Frontsheet'!$C$14:$C$213,$B62,'Trust - Frontsheet'!T$14:T$213)) -> 
B63: =IF(ISERROR(INDEX('Trust - Frontsheet'!AV$1:AV$6187,SMALL(IF('Trust - Frontsheet'!$AX$1:$AX$6187=$B$2,ROW('Trust - Frontsheet'!$AX$1:$AX$6187)),ROW(57:57)))),"",INDEX('Trust - Frontsheet'!AV$1:AV$6187,SMALL(IF('Trust - Frontsheet'!$AX$1:$AX$6187=$B$2,ROW('Trust - Frontsheet'!$AX$1:$AX$6187)),ROW(57:57)))) ->  | C63: =IF(ISERROR(INDEX('Trust - Frontsheet'!AW$1:AW$6187,SMALL(IF('Trust - Frontsheet'!$AX$1:$AX$6187=$B$2,ROW('Trust - Frontsheet'!$AX$1:$AX$6187)),ROW(57:57)))),"",INDEX('Trust - Frontsheet'!AW$1:AW$6187,SMALL(IF('Trust - Frontsheet'!$AX$1:$AX$6187=$B$2,ROW('Trust - Frontsheet'!$AX$1:$AX$6187)),ROW(57:57)))) ->  | D63: =IF($B63="","",SUMIF('Trust - Frontsheet'!$C$14:$C$213,$B63,'Trust - Frontsheet'!H$14:H$213)) ->  | E63: =IF($B63="","",SUMIF('Trust - Frontsheet'!$C$14:$C$213,$B63,'Trust - Frontsheet'!I$14:I$213)) ->  | F63: =IF($B63="","",SUMIF('Trust - Frontsheet'!$C$14:$C$213,$B63,'Trust - Frontsheet'!J$14:J$213)) ->  | G63: =IF($B63="","",SUMIF('Trust - Frontsheet'!$C$14:$C$213,$B63,'Trust - Frontsheet'!K$14:K$213)) ->  | H63: =IF($B63="","",SUMIF('Trust - Frontsheet'!$C$14:$C$213,$B63,'Trust - Frontsheet'!L$14:L$213)) ->  | I63: =IF($B63="","",SUMIF('Trust - Frontsheet'!$C$14:$C$213,$B63,'Trust - Frontsheet'!M$14:M$213)) ->  | J63: =IF($B63="","",SUMIF('Trust - Frontsheet'!$C$14:$C$213,$B63,'Trust - Frontsheet'!N$14:N$213)) ->  | K63: =IF($B63="","",SUMIF('Trust - Frontsheet'!$C$14:$C$213,$B63,'Trust - Frontsheet'!O$14:O$213)) ->  | P63: =IF($B63="","",SUMIF('Trust - Frontsheet'!$C$14:$C$213,$B63,'Trust - Frontsheet'!T$14:T$213)) -> 
B64: =IF(ISERROR(INDEX('Trust - Frontsheet'!AV$1:AV$6187,SMALL(IF('Trust - Frontsheet'!$AX$1:$AX$6187=$B$2,ROW('Trust - Frontsheet'!$AX$1:$AX$6187)),ROW(58:58)))),"",INDEX('Trust - Frontsheet'!AV$1:AV$6187,SMALL(IF('Trust - Frontsheet'!$AX$1:$AX$6187=$B$2,ROW('Trust - Frontsheet'!$AX$1:$AX$6187)),ROW(58:58)))) ->  | C64: =IF(ISERROR(INDEX('Trust - Frontsheet'!AW$1:AW$6187,SMALL(IF('Trust - Frontsheet'!$AX$1:$AX$6187=$B$2,ROW('Trust - Frontsheet'!$AX$1:$AX$6187)),ROW(58:58)))),"",INDEX('Trust - Frontsheet'!AW$1:AW$6187,SMALL(IF('Trust - Frontsheet'!$AX$1:$AX$6187=$B$2,ROW('Trust - Frontsheet'!$AX$1:$AX$6187)),ROW(58:58)))) ->  | D64: =IF($B64="","",SUMIF('Trust - Frontsheet'!$C$14:$C$213,$B64,'Trust - Frontsheet'!H$14:H$213)) ->  | E64: =IF($B64="","",SUMIF('Trust - Frontsheet'!$C$14:$C$213,$B64,'Trust - Frontsheet'!I$14:I$213)) ->  | F64: =IF($B64="","",SUMIF('Trust - Frontsheet'!$C$14:$C$213,$B64,'Trust - Frontsheet'!J$14:J$213)) ->  | G64: =IF($B64="","",SUMIF('Trust - Frontsheet'!$C$14:$C$213,$B64,'Trust - Frontsheet'!K$14:K$213)) ->  | H64: =IF($B64="","",SUMIF('Trust - Frontsheet'!$C$14:$C$213,$B64,'Trust - Frontsheet'!L$14:L$213)) ->  | I64: =IF($B64="","",SUMIF('Trust - Frontsheet'!$C$14:$C$213,$B64,'Trust - Frontsheet'!M$14:M$213)) ->  | J64: =IF($B64="","",SUMIF('Trust - Frontsheet'!$C$14:$C$213,$B64,'Trust - Frontsheet'!N$14:N$213)) ->  | K64: =IF($B64="","",SUMIF('Trust - Frontsheet'!$C$14:$C$213,$B64,'Trust - Frontsheet'!O$14:O$213)) ->  | P64: =IF($B64="","",SUMIF('Trust - Frontsheet'!$C$14:$C$213,$B64,'Trust - Frontsheet'!T$14:T$213)) -> 
B65: =IF(ISERROR(INDEX('Trust - Frontsheet'!AV$1:AV$6187,SMALL(IF('Trust - Frontsheet'!$AX$1:$AX$6187=$B$2,ROW('Trust - Frontsheet'!$AX$1:$AX$6187)),ROW(59:59)))),"",INDEX('Trust - Frontsheet'!AV$1:AV$6187,SMALL(IF('Trust - Frontsheet'!$AX$1:$AX$6187=$B$2,ROW('Trust - Frontsheet'!$AX$1:$AX$6187)),ROW(59:59)))) ->  | C65: =IF(ISERROR(INDEX('Trust - Frontsheet'!AW$1:AW$6187,SMALL(IF('Trust - Frontsheet'!$AX$1:$AX$6187=$B$2,ROW('Trust - Frontsheet'!$AX$1:$AX$6187)),ROW(59:59)))),"",INDEX('Trust - Frontsheet'!AW$1:AW$6187,SMALL(IF('Trust - Frontsheet'!$AX$1:$AX$6187=$B$2,ROW('Trust - Frontsheet'!$AX$1:$AX$6187)),ROW(59:59)))) ->  | D65: =IF($B65="","",SUMIF('Trust - Frontsheet'!$C$14:$C$213,$B65,'Trust - Frontsheet'!H$14:H$213)) ->  | E65: =IF($B65="","",SUMIF('Trust - Frontsheet'!$C$14:$C$213,$B65,'Trust - Frontsheet'!I$14:I$213)) ->  | F65: =IF($B65="","",SUMIF('Trust - Frontsheet'!$C$14:$C$213,$B65,'Trust - Frontsheet'!J$14:J$213)) ->  | G65: =IF($B65="","",SUMIF('Trust - Frontsheet'!$C$14:$C$213,$B65,'Trust - Frontsheet'!K$14:K$213)) ->  | H65: =IF($B65="","",SUMIF('Trust - Frontsheet'!$C$14:$C$213,$B65,'Trust - Frontsheet'!L$14:L$213)) ->  | I65: =IF($B65="","",SUMIF('Trust - Frontsheet'!$C$14:$C$213,$B65,'Trust - Frontsheet'!M$14:M$213)) ->  | J65: =IF($B65="","",SUMIF('Trust - Frontsheet'!$C$14:$C$213,$B65,'Trust - Frontsheet'!N$14:N$213)) ->  | K65: =IF($B65="","",SUMIF('Trust - Frontsheet'!$C$14:$C$213,$B65,'Trust - Frontsheet'!O$14:O$213)) ->  | P65: =IF($B65="","",SUMIF('Trust - Frontsheet'!$C$14:$C$213,$B65,'Trust - Frontsheet'!T$14:T$213)) -> 
B66: =IF(ISERROR(INDEX('Trust - Frontsheet'!AV$1:AV$6187,SMALL(IF('Trust - Frontsheet'!$AX$1:$AX$6187=$B$2,ROW('Trust - Frontsheet'!$AX$1:$AX$6187)),ROW(60:60)))),"",INDEX('Trust - Frontsheet'!AV$1:AV$6187,SMALL(IF('Trust - Frontsheet'!$AX$1:$AX$6187=$B$2,ROW('Trust - Frontsheet'!$AX$1:$AX$6187)),ROW(60:60)))) ->  | C66: =IF(ISERROR(INDEX('Trust - Frontsheet'!AW$1:AW$6187,SMALL(IF('Trust - Frontsheet'!$AX$1:$AX$6187=$B$2,ROW('Trust - Frontsheet'!$AX$1:$AX$6187)),ROW(60:60)))),"",INDEX('Trust - Frontsheet'!AW$1:AW$6187,SMALL(IF('Trust - Frontsheet'!$AX$1:$AX$6187=$B$2,ROW('Trust - Frontsheet'!$AX$1:$AX$6187)),ROW(60:60)))) ->  | D66: =IF($B66="","",SUMIF('Trust - Frontsheet'!$C$14:$C$213,$B66,'Trust - Frontsheet'!H$14:H$213)) ->  | E66: =IF($B66="","",SUMIF('Trust - Frontsheet'!$C$14:$C$213,$B66,'Trust - Frontsheet'!I$14:I$213)) ->  | F66: =IF($B66="","",SUMIF('Trust - Frontsheet'!$C$14:$C$213,$B66,'Trust - Frontsheet'!J$14:J$213)) ->  | G66: =IF($B66="","",SUMIF('Trust - Frontsheet'!$C$14:$C$213,$B66,'Trust - Frontsheet'!K$14:K$213)) ->  | H66: =IF($B66="","",SUMIF('Trust - Frontsheet'!$C$14:$C$213,$B66,'Trust - Frontsheet'!L$14:L$213)) ->  | I66: =IF($B66="","",SUMIF('Trust - Frontsheet'!$C$14:$C$213,$B66,'Trust - Frontsheet'!M$14:M$213)) ->  | J66: =IF($B66="","",SUMIF('Trust - Frontsheet'!$C$14:$C$213,$B66,'Trust - Frontsheet'!N$14:N$213)) ->  | K66: =IF($B66="","",SUMIF('Trust - Frontsheet'!$C$14:$C$213,$B66,'Trust - Frontsheet'!O$14:O$213)) ->  | P66: =IF($B66="","",SUMIF('Trust - Frontsheet'!$C$14:$C$213,$B66,'Trust - Frontsheet'!T$14:T$213)) -> 
B67: =IF(ISERROR(INDEX('Trust - Frontsheet'!AV$1:AV$6187,SMALL(IF('Trust - Frontsheet'!$AX$1:$AX$6187=$B$2,ROW('Trust - Frontsheet'!$AX$1:$AX$6187)),ROW(61:61)))),"",INDEX('Trust - Frontsheet'!AV$1:AV$6187,SMALL(IF('Trust - Frontsheet'!$AX$1:$AX$6187=$B$2,ROW('Trust - Frontsheet'!$AX$1:$AX$6187)),ROW(61:61)))) ->  | C67: =IF(ISERROR(INDEX('Trust - Frontsheet'!AW$1:AW$6187,SMALL(IF('Trust - Frontsheet'!$AX$1:$AX$6187=$B$2,ROW('Trust - Frontsheet'!$AX$1:$AX$6187)),ROW(61:61)))),"",INDEX('Trust - Frontsheet'!AW$1:AW$6187,SMALL(IF('Trust - Frontsheet'!$AX$1:$AX$6187=$B$2,ROW('Trust - Frontsheet'!$AX$1:$AX$6187)),ROW(61:61)))) ->  | D67: =IF($B67="","",SUMIF('Trust - Frontsheet'!$C$14:$C$213,$B67,'Trust - Frontsheet'!H$14:H$213)) ->  | E67: =IF($B67="","",SUMIF('Trust - Frontsheet'!$C$14:$C$213,$B67,'Trust - Frontsheet'!I$14:I$213)) ->  | F67: =IF($B67="","",SUMIF('Trust - Frontsheet'!$C$14:$C$213,$B67,'Trust - Frontsheet'!J$14:J$213)) ->  | G67: =IF($B67="","",SUMIF('Trust - Frontsheet'!$C$14:$C$213,$B67,'Trust - Frontsheet'!K$14:K$213)) ->  | H67: =IF($B67="","",SUMIF('Trust - Frontsheet'!$C$14:$C$213,$B67,'Trust - Frontsheet'!L$14:L$213)) ->  | I67: =IF($B67="","",SUMIF('Trust - Frontsheet'!$C$14:$C$213,$B67,'Trust - Frontsheet'!M$14:M$213)) ->  | J67: =IF($B67="","",SUMIF('Trust - Frontsheet'!$C$14:$C$213,$B67,'Trust - Frontsheet'!N$14:N$213)) ->  | K67: =IF($B67="","",SUMIF('Trust - Frontsheet'!$C$14:$C$213,$B67,'Trust - Frontsheet'!O$14:O$213)) ->  | P67: =IF($B67="","",SUMIF('Trust - Frontsheet'!$C$14:$C$213,$B67,'Trust - Frontsheet'!T$14:T$213)) -> 
B68: =IF(ISERROR(INDEX('Trust - Frontsheet'!AV$1:AV$6187,SMALL(IF('Trust - Frontsheet'!$AX$1:$AX$6187=$B$2,ROW('Trust - Frontsheet'!$AX$1:$AX$6187)),ROW(62:62)))),"",INDEX('Trust - Frontsheet'!AV$1:AV$6187,SMALL(IF('Trust - Frontsheet'!$AX$1:$AX$6187=$B$2,ROW('Trust - Frontsheet'!$AX$1:$AX$6187)),ROW(62:62)))) ->  | C68: =IF(ISERROR(INDEX('Trust - Frontsheet'!AW$1:AW$6187,SMALL(IF('Trust - Frontsheet'!$AX$1:$AX$6187=$B$2,ROW('Trust - Frontsheet'!$AX$1:$AX$6187)),ROW(62:62)))),"",INDEX('Trust - Frontsheet'!AW$1:AW$6187,SMALL(IF('Trust - Frontsheet'!$AX$1:$AX$6187=$B$2,ROW('Trust - Frontsheet'!$AX$1:$AX$6187)),ROW(62:62)))) ->  | D68: =IF($B68="","",SUMIF('Trust - Frontsheet'!$C$14:$C$213,$B68,'Trust - Frontsheet'!H$14:H$213)) ->  | E68: =IF($B68="","",SUMIF('Trust - Frontsheet'!$C$14:$C$213,$B68,'Trust - Frontsheet'!I$14:I$213)) ->  | F68: =IF($B68="","",SUMIF('Trust - Frontsheet'!$C$14:$C$213,$B68,'Trust - Frontsheet'!J$14:J$213)) ->  | G68: =IF($B68="","",SUMIF('Trust - Frontsheet'!$C$14:$C$213,$B68,'Trust - Frontsheet'!K$14:K$213)) ->  | H68: =IF($B68="","",SUMIF('Trust - Frontsheet'!$C$14:$C$213,$B68,'Trust - Frontsheet'!L$14:L$213)) ->  | I68: =IF($B68="","",SUMIF('Trust - Frontsheet'!$C$14:$C$213,$B68,'Trust - Frontsheet'!M$14:M$213)) ->  | J68: =IF($B68="","",SUMIF('Trust - Frontsheet'!$C$14:$C$213,$B68,'Trust - Frontsheet'!N$14:N$213)) ->  | K68: =IF($B68="","",SUMIF('Trust - Frontsheet'!$C$14:$C$213,$B68,'Trust - Frontsheet'!O$14:O$213)) ->  | P68: =IF($B68="","",SUMIF('Trust - Frontsheet'!$C$14:$C$213,$B68,'Trust - Frontsheet'!T$14:T$213)) -> 
B69: =IF(ISERROR(INDEX('Trust - Frontsheet'!AV$1:AV$6187,SMALL(IF('Trust - Frontsheet'!$AX$1:$AX$6187=$B$2,ROW('Trust - Frontsheet'!$AX$1:$AX$6187)),ROW(63:63)))),"",INDEX('Trust - Frontsheet'!AV$1:AV$6187,SMALL(IF('Trust - Frontsheet'!$AX$1:$AX$6187=$B$2,ROW('Trust - Frontsheet'!$AX$1:$AX$6187)),ROW(63:63)))) ->  | C69: =IF(ISERROR(INDEX('Trust - Frontsheet'!AW$1:AW$6187,SMALL(IF('Trust - Frontsheet'!$AX$1:$AX$6187=$B$2,ROW('Trust - Frontsheet'!$AX$1:$AX$6187)),ROW(63:63)))),"",INDEX('Trust - Frontsheet'!AW$1:AW$6187,SMALL(IF('Trust - Frontsheet'!$AX$1:$AX$6187=$B$2,ROW('Trust - Frontsheet'!$AX$1:$AX$6187)),ROW(63:63)))) ->  | D69: =IF($B69="","",SUMIF('Trust - Frontsheet'!$C$14:$C$213,$B69,'Trust - Frontsheet'!H$14:H$213)) ->  | E69: =IF($B69="","",SUMIF('Trust - Frontsheet'!$C$14:$C$213,$B69,'Trust - Frontsheet'!I$14:I$213)) ->  | F69: =IF($B69="","",SUMIF('Trust - Frontsheet'!$C$14:$C$213,$B69,'Trust - Frontsheet'!J$14:J$213)) ->  | G69: =IF($B69="","",SUMIF('Trust - Frontsheet'!$C$14:$C$213,$B69,'Trust - Frontsheet'!K$14:K$213)) ->  | H69: =IF($B69="","",SUMIF('Trust - Frontsheet'!$C$14:$C$213,$B69,'Trust - Frontsheet'!L$14:L$213)) ->  | I69: =IF($B69="","",SUMIF('Trust - Frontsheet'!$C$14:$C$213,$B69,'Trust - Frontsheet'!M$14:M$213)) ->  | J69: =IF($B69="","",SUMIF('Trust - Frontsheet'!$C$14:$C$213,$B69,'Trust - Frontsheet'!N$14:N$213)) ->  | K69: =IF($B69="","",SUMIF('Trust - Frontsheet'!$C$14:$C$213,$B69,'Trust - Frontsheet'!O$14:O$213)) ->  | P69: =IF($B69="","",SUMIF('Trust - Frontsheet'!$C$14:$C$213,$B69,'Trust - Frontsheet'!T$14:T$213)) -> 
B70: =IF(ISERROR(INDEX('Trust - Frontsheet'!AV$1:AV$6187,SMALL(IF('Trust - Frontsheet'!$AX$1:$AX$6187=$B$2,ROW('Trust - Frontsheet'!$AX$1:$AX$6187)),ROW(64:64)))),"",INDEX('Trust - Frontsheet'!AV$1:AV$6187,SMALL(IF('Trust - Frontsheet'!$AX$1:$AX$6187=$B$2,ROW('Trust - Frontsheet'!$AX$1:$AX$6187)),ROW(64:64)))) ->  | C70: =IF(ISERROR(INDEX('Trust - Frontsheet'!AW$1:AW$6187,SMALL(IF('Trust - Frontsheet'!$AX$1:$AX$6187=$B$2,ROW('Trust - Frontsheet'!$AX$1:$AX$6187)),ROW(64:64)))),"",INDEX('Trust - Frontsheet'!AW$1:AW$6187,SMALL(IF('Trust - Frontsheet'!$AX$1:$AX$6187=$B$2,ROW('Trust - Frontsheet'!$AX$1:$AX$6187)),ROW(64:64)))) ->  | D70: =IF($B70="","",SUMIF('Trust - Frontsheet'!$C$14:$C$213,$B70,'Trust - Frontsheet'!H$14:H$213)) ->  | E70: =IF($B70="","",SUMIF('Trust - Frontsheet'!$C$14:$C$213,$B70,'Trust - Frontsheet'!I$14:I$213)) ->  | F70: =IF($B70="","",SUMIF('Trust - Frontsheet'!$C$14:$C$213,$B70,'Trust - Frontsheet'!J$14:J$213)) ->  | G70: =IF($B70="","",SUMIF('Trust - Frontsheet'!$C$14:$C$213,$B70,'Trust - Frontsheet'!K$14:K$213)) ->  | H70: =IF($B70="","",SUMIF('Trust - Frontsheet'!$C$14:$C$213,$B70,'Trust - Frontsheet'!L$14:L$213)) ->  | I70: =IF($B70="","",SUMIF('Trust - Frontsheet'!$C$14:$C$213,$B70,'Trust - Frontsheet'!M$14:M$213)) ->  | J70: =IF($B70="","",SUMIF('Trust - Frontsheet'!$C$14:$C$213,$B70,'Trust - Frontsheet'!N$14:N$213)) ->  | K70: =IF($B70="","",SUMIF('Trust - Frontsheet'!$C$14:$C$213,$B70,'Trust - Frontsheet'!O$14:O$213)) ->  | P70: =IF($B70="","",SUMIF('Trust - Frontsheet'!$C$14:$C$213,$B70,'Trust - Frontsheet'!T$14:T$213)) -> 
B71: =IF(ISERROR(INDEX('Trust - Frontsheet'!AV$1:AV$6187,SMALL(IF('Trust - Frontsheet'!$AX$1:$AX$6187=$B$2,ROW('Trust - Frontsheet'!$AX$1:$AX$6187)),ROW(65:65)))),"",INDEX('Trust - Frontsheet'!AV$1:AV$6187,SMALL(IF('Trust - Frontsheet'!$AX$1:$AX$6187=$B$2,ROW('Trust - Frontsheet'!$AX$1:$AX$6187)),ROW(65:65)))) ->  | C71: =IF(ISERROR(INDEX('Trust - Frontsheet'!AW$1:AW$6187,SMALL(IF('Trust - Frontsheet'!$AX$1:$AX$6187=$B$2,ROW('Trust - Frontsheet'!$AX$1:$AX$6187)),ROW(65:65)))),"",INDEX('Trust - Frontsheet'!AW$1:AW$6187,SMALL(IF('Trust - Frontsheet'!$AX$1:$AX$6187=$B$2,ROW('Trust - Frontsheet'!$AX$1:$AX$6187)),ROW(65:65)))) ->  | D71: =IF($B71="","",SUMIF('Trust - Frontsheet'!$C$14:$C$213,$B71,'Trust - Frontsheet'!H$14:H$213)) ->  | E71: =IF($B71="","",SUMIF('Trust - Frontsheet'!$C$14:$C$213,$B71,'Trust - Frontsheet'!I$14:I$213)) ->  | F71: =IF($B71="","",SUMIF('Trust - Frontsheet'!$C$14:$C$213,$B71,'Trust - Frontsheet'!J$14:J$213)) ->  | G71: =IF($B71="","",SUMIF('Trust - Frontsheet'!$C$14:$C$213,$B71,'Trust - Frontsheet'!K$14:K$213)) ->  | H71: =IF($B71="","",SUMIF('Trust - Frontsheet'!$C$14:$C$213,$B71,'Trust - Frontsheet'!L$14:L$213)) ->  | I71: =IF($B71="","",SUMIF('Trust - Frontsheet'!$C$14:$C$213,$B71,'Trust - Frontsheet'!M$14:M$213)) ->  | J71: =IF($B71="","",SUMIF('Trust - Frontsheet'!$C$14:$C$213,$B71,'Trust - Frontsheet'!N$14:N$213)) ->  | K71: =IF($B71="","",SUMIF('Trust - Frontsheet'!$C$14:$C$213,$B71,'Trust - Frontsheet'!O$14:O$213)) ->  | P71: =IF($B71="","",SUMIF('Trust - Frontsheet'!$C$14:$C$213,$B71,'Trust - Frontsheet'!T$14:T$213)) -> 
B72: =IF(ISERROR(INDEX('Trust - Frontsheet'!AV$1:AV$6187,SMALL(IF('Trust - Frontsheet'!$AX$1:$AX$6187=$B$2,ROW('Trust - Frontsheet'!$AX$1:$AX$6187)),ROW(66:66)))),"",INDEX('Trust - Frontsheet'!AV$1:AV$6187,SMALL(IF('Trust - Frontsheet'!$AX$1:$AX$6187=$B$2,ROW('Trust - Frontsheet'!$AX$1:$AX$6187)),ROW(66:66)))) ->  | C72: =IF(ISERROR(INDEX('Trust - Frontsheet'!AW$1:AW$6187,SMALL(IF('Trust - Frontsheet'!$AX$1:$AX$6187=$B$2,ROW('Trust - Frontsheet'!$AX$1:$AX$6187)),ROW(66:66)))),"",INDEX('Trust - Frontsheet'!AW$1:AW$6187,SMALL(IF('Trust - Frontsheet'!$AX$1:$AX$6187=$B$2,ROW('Trust - Frontsheet'!$AX$1:$AX$6187)),ROW(66:66)))) ->  | D72: =IF($B72="","",SUMIF('Trust - Frontsheet'!$C$14:$C$213,$B72,'Trust - Frontsheet'!H$14:H$213)) ->  | E72: =IF($B72="","",SUMIF('Trust - Frontsheet'!$C$14:$C$213,$B72,'Trust - Frontsheet'!I$14:I$213)) ->  | F72: =IF($B72="","",SUMIF('Trust - Frontsheet'!$C$14:$C$213,$B72,'Trust - Frontsheet'!J$14:J$213)) ->  | G72: =IF($B72="","",SUMIF('Trust - Frontsheet'!$C$14:$C$213,$B72,'Trust - Frontsheet'!K$14:K$213)) ->  | H72: =IF($B72="","",SUMIF('Trust - Frontsheet'!$C$14:$C$213,$B72,'Trust - Frontsheet'!L$14:L$213)) ->  | I72: =IF($B72="","",SUMIF('Trust - Frontsheet'!$C$14:$C$213,$B72,'Trust - Frontsheet'!M$14:M$213)) ->  | J72: =IF($B72="","",SUMIF('Trust - Frontsheet'!$C$14:$C$213,$B72,'Trust - Frontsheet'!N$14:N$213)) ->  | K72: =IF($B72="","",SUMIF('Trust - Frontsheet'!$C$14:$C$213,$B72,'Trust - Frontsheet'!O$14:O$213)) ->  | L72: =IF(D72="","",IF(D72=0,0,E72/D72)) ->  | M72: =IF(F72="","",IF(F72=0,0,G72/F72)) ->  | N72: =IF(H72="","",IF(H72=0,0,I72/H72)) ->  | O72: =IF(J72="","",IF(J72=0,0,K72/J72)) ->  | P72: =IF($B72="","",SUMIF('Trust - Frontsheet'!$C$14:$C$213,$B72,'Trust - Frontsheet'!T$14:T$213)) ->  | Q72: =IF(ISERROR(IF($P72="","",SUM(E72,I72)/$P72)),"-",(IF($P72="","",SUM(E72,I72)/$P72))) ->  | R72: =IF(ISERROR(IF($P72="","",SUM(G72,K72)/$P72)),"-",(IF($P72="","",SUM(G72,K72)/$P72))) ->  | S72: =IF(ISERROR(IF($P72="","",SUM(E72,G72,I72,K72)/$P72)),"-",(IF($P72="","",SUM(E72,G72,I72,K72)/$P72))) -> 
B73: =IF(ISERROR(INDEX('Trust - Frontsheet'!AV$1:AV$6187,SMALL(IF('Trust - Frontsheet'!$AX$1:$AX$6187=$B$2,ROW('Trust - Frontsheet'!$AX$1:$AX$6187)),ROW(67:67)))),"",INDEX('Trust - Frontsheet'!AV$1:AV$6187,SMALL(IF('Trust - Frontsheet'!$AX$1:$AX$6187=$B$2,ROW('Trust - Frontsheet'!$AX$1:$AX$6187)),ROW(67:67)))) ->  | C73: =IF(ISERROR(INDEX('Trust - Frontsheet'!AW$1:AW$6187,SMALL(IF('Trust - Frontsheet'!$AX$1:$AX$6187=$B$2,ROW('Trust - Frontsheet'!$AX$1:$AX$6187)),ROW(67:67)))),"",INDEX('Trust - Frontsheet'!AW$1:AW$6187,SMALL(IF('Trust - Frontsheet'!$AX$1:$AX$6187=$B$2,ROW('Trust - Frontsheet'!$AX$1:$AX$6187)),ROW(67:67)))) ->  | D73: =IF($B73="","",SUMIF('Trust - Frontsheet'!$C$14:$C$213,$B73,'Trust - Frontsheet'!H$14:H$213)) ->  | E73: =IF($B73="","",SUMIF('Trust - Frontsheet'!$C$14:$C$213,$B73,'Trust - Frontsheet'!I$14:I$213)) ->  | F73: =IF($B73="","",SUMIF('Trust - Frontsheet'!$C$14:$C$213,$B73,'Trust - Frontsheet'!J$14:J$213)) ->  | G73: =IF($B73="","",SUMIF('Trust - Frontsheet'!$C$14:$C$213,$B73,'Trust - Frontsheet'!K$14:K$213)) ->  | H73: =IF($B73="","",SUMIF('Trust - Frontsheet'!$C$14:$C$213,$B73,'Trust - Frontsheet'!L$14:L$213)) ->  | I73: =IF($B73="","",SUMIF('Trust - Frontsheet'!$C$14:$C$213,$B73,'Trust - Frontsheet'!M$14:M$213)) ->  | J73: =IF($B73="","",SUMIF('Trust - Frontsheet'!$C$14:$C$213,$B73,'Trust - Frontsheet'!N$14:N$213)) ->  | K73: =IF($B73="","",SUMIF('Trust - Frontsheet'!$C$14:$C$213,$B73,'Trust - Frontsheet'!O$14:O$213)) ->  | P73: =IF($B73="","",SUMIF('Trust - Frontsheet'!$C$14:$C$213,$B73,'Trust - Frontsheet'!T$14:T$213)) -> 
B74: =IF(ISERROR(INDEX('Trust - Frontsheet'!AV$1:AV$6187,SMALL(IF('Trust - Frontsheet'!$AX$1:$AX$6187=$B$2,ROW('Trust - Frontsheet'!$AX$1:$AX$6187)),ROW(68:68)))),"",INDEX('Trust - Frontsheet'!AV$1:AV$6187,SMALL(IF('Trust - Frontsheet'!$AX$1:$AX$6187=$B$2,ROW('Trust - Frontsheet'!$AX$1:$AX$6187)),ROW(68:68)))) ->  | C74: =IF(ISERROR(INDEX('Trust - Frontsheet'!AW$1:AW$6187,SMALL(IF('Trust - Frontsheet'!$AX$1:$AX$6187=$B$2,ROW('Trust - Frontsheet'!$AX$1:$AX$6187)),ROW(68:68)))),"",INDEX('Trust - Frontsheet'!AW$1:AW$6187,SMALL(IF('Trust - Frontsheet'!$AX$1:$AX$6187=$B$2,ROW('Trust - Frontsheet'!$AX$1:$AX$6187)),ROW(68:68)))) ->  | D74: =IF($B74="","",SUMIF('Trust - Frontsheet'!$C$14:$C$213,$B74,'Trust - Frontsheet'!H$14:H$213)) ->  | E74: =IF($B74="","",SUMIF('Trust - Frontsheet'!$C$14:$C$213,$B74,'Trust - Frontsheet'!I$14:I$213)) ->  | F74: =IF($B74="","",SUMIF('Trust - Frontsheet'!$C$14:$C$213,$B74,'Trust - Frontsheet'!J$14:J$213)) ->  | G74: =IF($B74="","",SUMIF('Trust - Frontsheet'!$C$14:$C$213,$B74,'Trust - Frontsheet'!K$14:K$213)) ->  | H74: =IF($B74="","",SUMIF('Trust - Frontsheet'!$C$14:$C$213,$B74,'Trust - Frontsheet'!L$14:L$213)) ->  | I74: =IF($B74="","",SUMIF('Trust - Frontsheet'!$C$14:$C$213,$B74,'Trust - Frontsheet'!M$14:M$213)) ->  | J74: =IF($B74="","",SUMIF('Trust - Frontsheet'!$C$14:$C$213,$B74,'Trust - Frontsheet'!N$14:N$213)) ->  | K74: =IF($B74="","",SUMIF('Trust - Frontsheet'!$C$14:$C$213,$B74,'Trust - Frontsheet'!O$14:O$213)) ->  | P74: =IF($B74="","",SUMIF('Trust - Frontsheet'!$C$14:$C$213,$B74,'Trust - Frontsheet'!T$14:T$213)) -> 
B75: =IF(ISERROR(INDEX('Trust - Frontsheet'!AV$1:AV$6187,SMALL(IF('Trust - Frontsheet'!$AX$1:$AX$6187=$B$2,ROW('Trust - Frontsheet'!$AX$1:$AX$6187)),ROW(69:69)))),"",INDEX('Trust - Frontsheet'!AV$1:AV$6187,SMALL(IF('Trust - Frontsheet'!$AX$1:$AX$6187=$B$2,ROW('Trust - Frontsheet'!$AX$1:$AX$6187)),ROW(69:69)))) ->  | C75: =IF(ISERROR(INDEX('Trust - Frontsheet'!AW$1:AW$6187,SMALL(IF('Trust - Frontsheet'!$AX$1:$AX$6187=$B$2,ROW('Trust - Frontsheet'!$AX$1:$AX$6187)),ROW(69:69)))),"",INDEX('Trust - Frontsheet'!AW$1:AW$6187,SMALL(IF('Trust - Frontsheet'!$AX$1:$AX$6187=$B$2,ROW('Trust - Frontsheet'!$AX$1:$AX$6187)),ROW(69:69)))) ->  | D75: =IF($B75="","",SUMIF('Trust - Frontsheet'!$C$14:$C$213,$B75,'Trust - Frontsheet'!H$14:H$213)) ->  | E75: =IF($B75="","",SUMIF('Trust - Frontsheet'!$C$14:$C$213,$B75,'Trust - Frontsheet'!I$14:I$213)) ->  | F75: =IF($B75="","",SUMIF('Trust - Frontsheet'!$C$14:$C$213,$B75,'Trust - Frontsheet'!J$14:J$213)) ->  | G75: =IF($B75="","",SUMIF('Trust - Frontsheet'!$C$14:$C$213,$B75,'Trust - Frontsheet'!K$14:K$213)) ->  | H75: =IF($B75="","",SUMIF('Trust - Frontsheet'!$C$14:$C$213,$B75,'Trust - Frontsheet'!L$14:L$213)) ->  | I75: =IF($B75="","",SUMIF('Trust - Frontsheet'!$C$14:$C$213,$B75,'Trust - Frontsheet'!M$14:M$213)) ->  | J75: =IF($B75="","",SUMIF('Trust - Frontsheet'!$C$14:$C$213,$B75,'Trust - Frontsheet'!N$14:N$213)) ->  | K75: =IF($B75="","",SUMIF('Trust - Frontsheet'!$C$14:$C$213,$B75,'Trust - Frontsheet'!O$14:O$213)) ->  | P75: =IF($B75="","",SUMIF('Trust - Frontsheet'!$C$14:$C$213,$B75,'Trust - Frontsheet'!T$14:T$213)) -> 
B76: =IF(ISERROR(INDEX('Trust - Frontsheet'!AV$1:AV$6187,SMALL(IF('Trust - Frontsheet'!$AX$1:$AX$6187=$B$2,ROW('Trust - Frontsheet'!$AX$1:$AX$6187)),ROW(70:70)))),"",INDEX('Trust - Frontsheet'!AV$1:AV$6187,SMALL(IF('Trust - Frontsheet'!$AX$1:$AX$6187=$B$2,ROW('Trust - Frontsheet'!$AX$1:$AX$6187)),ROW(70:70)))) ->  | C76: =IF(ISERROR(INDEX('Trust - Frontsheet'!AW$1:AW$6187,SMALL(IF('Trust - Frontsheet'!$AX$1:$AX$6187=$B$2,ROW('Trust - Frontsheet'!$AX$1:$AX$6187)),ROW(70:70)))),"",INDEX('Trust - Frontsheet'!AW$1:AW$6187,SMALL(IF('Trust - Frontsheet'!$AX$1:$AX$6187=$B$2,ROW('Trust - Frontsheet'!$AX$1:$AX$6187)),ROW(70:70)))) ->  | D76: =IF($B76="","",SUMIF('Trust - Frontsheet'!$C$14:$C$213,$B76,'Trust - Frontsheet'!H$14:H$213)) ->  | E76: =IF($B76="","",SUMIF('Trust - Frontsheet'!$C$14:$C$213,$B76,'Trust - Frontsheet'!I$14:I$213)) ->  | F76: =IF($B76="","",SUMIF('Trust - Frontsheet'!$C$14:$C$213,$B76,'Trust - Frontsheet'!J$14:J$213)) ->  | G76: =IF($B76="","",SUMIF('Trust - Frontsheet'!$C$14:$C$213,$B76,'Trust - Frontsheet'!K$14:K$213)) ->  | H76: =IF($B76="","",SUMIF('Trust - Frontsheet'!$C$14:$C$213,$B76,'Trust - Frontsheet'!L$14:L$213)) ->  | I76: =IF($B76="","",SUMIF('Trust - Frontsheet'!$C$14:$C$213,$B76,'Trust - Frontsheet'!M$14:M$213)) ->  | J76: =IF($B76="","",SUMIF('Trust - Frontsheet'!$C$14:$C$213,$B76,'Trust - Frontsheet'!N$14:N$213)) ->  | K76: =IF($B76="","",SUMIF('Trust - Frontsheet'!$C$14:$C$213,$B76,'Trust - Frontsheet'!O$14:O$213)) ->  | P76: =IF($B76="","",SUMIF('Trust - Frontsheet'!$C$14:$C$213,$B76,'Trust - Frontsheet'!T$14:T$213)) -> 
B77: =IF(ISERROR(INDEX('Trust - Frontsheet'!AV$1:AV$6187,SMALL(IF('Trust - Frontsheet'!$AX$1:$AX$6187=$B$2,ROW('Trust - Frontsheet'!$AX$1:$AX$6187)),ROW(71:71)))),"",INDEX('Trust - Frontsheet'!AV$1:AV$6187,SMALL(IF('Trust - Frontsheet'!$AX$1:$AX$6187=$B$2,ROW('Trust - Frontsheet'!$AX$1:$AX$6187)),ROW(71:71)))) ->  | C77: =IF(ISERROR(INDEX('Trust - Frontsheet'!AW$1:AW$6187,SMALL(IF('Trust - Frontsheet'!$AX$1:$AX$6187=$B$2,ROW('Trust - Frontsheet'!$AX$1:$AX$6187)),ROW(71:71)))),"",INDEX('Trust - Frontsheet'!AW$1:AW$6187,SMALL(IF('Trust - Frontsheet'!$AX$1:$AX$6187=$B$2,ROW('Trust - Frontsheet'!$AX$1:$AX$6187)),ROW(71:71)))) ->  | D77: =IF($B77="","",SUMIF('Trust - Frontsheet'!$C$14:$C$213,$B77,'Trust - Frontsheet'!H$14:H$213)) ->  | E77: =IF($B77="","",SUMIF('Trust - Frontsheet'!$C$14:$C$213,$B77,'Trust - Frontsheet'!I$14:I$213)) ->  | F77: =IF($B77="","",SUMIF('Trust - Frontsheet'!$C$14:$C$213,$B77,'Trust - Frontsheet'!J$14:J$213)) ->  | G77: =IF($B77="","",SUMIF('Trust - Frontsheet'!$C$14:$C$213,$B77,'Trust - Frontsheet'!K$14:K$213)) ->  | H77: =IF($B77="","",SUMIF('Trust - Frontsheet'!$C$14:$C$213,$B77,'Trust - Frontsheet'!L$14:L$213)) ->  | I77: =IF($B77="","",SUMIF('Trust - Frontsheet'!$C$14:$C$213,$B77,'Trust - Frontsheet'!M$14:M$213)) ->  | J77: =IF($B77="","",SUMIF('Trust - Frontsheet'!$C$14:$C$213,$B77,'Trust - Frontsheet'!N$14:N$213)) ->  | K77: =IF($B77="","",SUMIF('Trust - Frontsheet'!$C$14:$C$213,$B77,'Trust - Frontsheet'!O$14:O$213)) ->  | P77: =IF($B77="","",SUMIF('Trust - Frontsheet'!$C$14:$C$213,$B77,'Trust - Frontsheet'!T$14:T$213)) -> 
B78: =IF(ISERROR(INDEX('Trust - Frontsheet'!AV$1:AV$6187,SMALL(IF('Trust - Frontsheet'!$AX$1:$AX$6187=$B$2,ROW('Trust - Frontsheet'!$AX$1:$AX$6187)),ROW(72:72)))),"",INDEX('Trust - Frontsheet'!AV$1:AV$6187,SMALL(IF('Trust - Frontsheet'!$AX$1:$AX$6187=$B$2,ROW('Trust - Frontsheet'!$AX$1:$AX$6187)),ROW(72:72)))) ->  | C78: =IF(ISERROR(INDEX('Trust - Frontsheet'!AW$1:AW$6187,SMALL(IF('Trust - Frontsheet'!$AX$1:$AX$6187=$B$2,ROW('Trust - Frontsheet'!$AX$1:$AX$6187)),ROW(72:72)))),"",INDEX('Trust - Frontsheet'!AW$1:AW$6187,SMALL(IF('Trust - Frontsheet'!$AX$1:$AX$6187=$B$2,ROW('Trust - Frontsheet'!$AX$1:$AX$6187)),ROW(72:72)))) ->  | D78: =IF($B78="","",SUMIF('Trust - Frontsheet'!$C$14:$C$213,$B78,'Trust - Frontsheet'!H$14:H$213)) ->  | E78: =IF($B78="","",SUMIF('Trust - Frontsheet'!$C$14:$C$213,$B78,'Trust - Frontsheet'!I$14:I$213)) ->  | F78: =IF($B78="","",SUMIF('Trust - Frontsheet'!$C$14:$C$213,$B78,'Trust - Frontsheet'!J$14:J$213)) ->  | G78: =IF($B78="","",SUMIF('Trust - Frontsheet'!$C$14:$C$213,$B78,'Trust - Frontsheet'!K$14:K$213)) ->  | H78: =IF($B78="","",SUMIF('Trust - Frontsheet'!$C$14:$C$213,$B78,'Trust - Frontsheet'!L$14:L$213)) ->  | I78: =IF($B78="","",SUMIF('Trust - Frontsheet'!$C$14:$C$213,$B78,'Trust - Frontsheet'!M$14:M$213)) ->  | J78: =IF($B78="","",SUMIF('Trust - Frontsheet'!$C$14:$C$213,$B78,'Trust - Frontsheet'!N$14:N$213)) ->  | K78: =IF($B78="","",SUMIF('Trust - Frontsheet'!$C$14:$C$213,$B78,'Trust - Frontsheet'!O$14:O$213)) ->  | P78: =IF($B78="","",SUMIF('Trust - Frontsheet'!$C$14:$C$213,$B78,'Trust - Frontsheet'!T$14:T$213)) -> 
B79: =IF(ISERROR(INDEX('Trust - Frontsheet'!AV$1:AV$6187,SMALL(IF('Trust - Frontsheet'!$AX$1:$AX$6187=$B$2,ROW('Trust - Frontsheet'!$AX$1:$AX$6187)),ROW(73:73)))),"",INDEX('Trust - Frontsheet'!AV$1:AV$6187,SMALL(IF('Trust - Frontsheet'!$AX$1:$AX$6187=$B$2,ROW('Trust - Frontsheet'!$AX$1:$AX$6187)),ROW(73:73)))) ->  | C79: =IF(ISERROR(INDEX('Trust - Frontsheet'!AW$1:AW$6187,SMALL(IF('Trust - Frontsheet'!$AX$1:$AX$6187=$B$2,ROW('Trust - Frontsheet'!$AX$1:$AX$6187)),ROW(73:73)))),"",INDEX('Trust - Frontsheet'!AW$1:AW$6187,SMALL(IF('Trust - Frontsheet'!$AX$1:$AX$6187=$B$2,ROW('Trust - Frontsheet'!$AX$1:$AX$6187)),ROW(73:73)))) ->  | D79: =IF($B79="","",SUMIF('Trust - Frontsheet'!$C$14:$C$213,$B79,'Trust - Frontsheet'!H$14:H$213)) ->  | E79: =IF($B79="","",SUMIF('Trust - Frontsheet'!$C$14:$C$213,$B79,'Trust - Frontsheet'!I$14:I$213)) ->  | F79: =IF($B79="","",SUMIF('Trust - Frontsheet'!$C$14:$C$213,$B79,'Trust - Frontsheet'!J$14:J$213)) ->  | G79: =IF($B79="","",SUMIF('Trust - Frontsheet'!$C$14:$C$213,$B79,'Trust - Frontsheet'!K$14:K$213)) ->  | H79: =IF($B79="","",SUMIF('Trust - Frontsheet'!$C$14:$C$213,$B79,'Trust - Frontsheet'!L$14:L$213)) ->  | I79: =IF($B79="","",SUMIF('Trust - Frontsheet'!$C$14:$C$213,$B79,'Trust - Frontsheet'!M$14:M$213)) ->  | J79: =IF($B79="","",SUMIF('Trust - Frontsheet'!$C$14:$C$213,$B79,'Trust - Frontsheet'!N$14:N$213)) ->  | K79: =IF($B79="","",SUMIF('Trust - Frontsheet'!$C$14:$C$213,$B79,'Trust - Frontsheet'!O$14:O$213)) ->  | P79: =IF($B79="","",SUMIF('Trust - Frontsheet'!$C$14:$C$213,$B79,'Trust - Frontsheet'!T$14:T$213)) -> 
B80: =IF(ISERROR(INDEX('Trust - Frontsheet'!AV$1:AV$6187,SMALL(IF('Trust - Frontsheet'!$AX$1:$AX$6187=$B$2,ROW('Trust - Frontsheet'!$AX$1:$AX$6187)),ROW(74:74)))),"",INDEX('Trust - Frontsheet'!AV$1:AV$6187,SMALL(IF('Trust - Frontsheet'!$AX$1:$AX$6187=$B$2,ROW('Trust - Frontsheet'!$AX$1:$AX$6187)),ROW(74:74)))) ->  | C80: =IF(ISERROR(INDEX('Trust - Frontsheet'!AW$1:AW$6187,SMALL(IF('Trust - Frontsheet'!$AX$1:$AX$6187=$B$2,ROW('Trust - Frontsheet'!$AX$1:$AX$6187)),ROW(74:74)))),"",INDEX('Trust - Frontsheet'!AW$1:AW$6187,SMALL(IF('Trust - Frontsheet'!$AX$1:$AX$6187=$B$2,ROW('Trust - Frontsheet'!$AX$1:$AX$6187)),ROW(74:74)))) ->  | D80: =IF($B80="","",SUMIF('Trust - Frontsheet'!$C$14:$C$213,$B80,'Trust - Frontsheet'!H$14:H$213)) ->  | E80: =IF($B80="","",SUMIF('Trust - Frontsheet'!$C$14:$C$213,$B80,'Trust - Frontsheet'!I$14:I$213)) ->  | F80: =IF($B80="","",SUMIF('Trust - Frontsheet'!$C$14:$C$213,$B80,'Trust - Frontsheet'!J$14:J$213)) ->  | G80: =IF($B80="","",SUMIF('Trust - Frontsheet'!$C$14:$C$213,$B80,'Trust - Frontsheet'!K$14:K$213)) ->  | H80: =IF($B80="","",SUMIF('Trust - Frontsheet'!$C$14:$C$213,$B80,'Trust - Frontsheet'!L$14:L$213)) ->  | I80: =IF($B80="","",SUMIF('Trust - Frontsheet'!$C$14:$C$213,$B80,'Trust - Frontsheet'!M$14:M$213)) ->  | J80: =IF($B80="","",SUMIF('Trust - Frontsheet'!$C$14:$C$213,$B80,'Trust - Frontsheet'!N$14:N$213)) ->  | K80: =IF($B80="","",SUMIF('Trust - Frontsheet'!$C$14:$C$213,$B80,'Trust - Frontsheet'!O$14:O$213)) ->  | P80: =IF($B80="","",SUMIF('Trust - Frontsheet'!$C$14:$C$213,$B80,'Trust - Frontsheet'!T$14:T$213)) -> 
B81: =IF(ISERROR(INDEX('Trust - Frontsheet'!AV$1:AV$6187,SMALL(IF('Trust - Frontsheet'!$AX$1:$AX$6187=$B$2,ROW('Trust - Frontsheet'!$AX$1:$AX$6187)),ROW(75:75)))),"",INDEX('Trust - Frontsheet'!AV$1:AV$6187,SMALL(IF('Trust - Frontsheet'!$AX$1:$AX$6187=$B$2,ROW('Trust - Frontsheet'!$AX$1:$AX$6187)),ROW(75:75)))) ->  | C81: =IF(ISERROR(INDEX('Trust - Frontsheet'!AW$1:AW$6187,SMALL(IF('Trust - Frontsheet'!$AX$1:$AX$6187=$B$2,ROW('Trust - Frontsheet'!$AX$1:$AX$6187)),ROW(75:75)))),"",INDEX('Trust - Frontsheet'!AW$1:AW$6187,SMALL(IF('Trust - Frontsheet'!$AX$1:$AX$6187=$B$2,ROW('Trust - Frontsheet'!$AX$1:$AX$6187)),ROW(75:75)))) ->  | D81: =IF($B81="","",SUMIF('Trust - Frontsheet'!$C$14:$C$213,$B81,'Trust - Frontsheet'!H$14:H$213)) ->  | E81: =IF($B81="","",SUMIF('Trust - Frontsheet'!$C$14:$C$213,$B81,'Trust - Frontsheet'!I$14:I$213)) ->  | F81: =IF($B81="","",SUMIF('Trust - Frontsheet'!$C$14:$C$213,$B81,'Trust - Frontsheet'!J$14:J$213)) ->  | G81: =IF($B81="","",SUMIF('Trust - Frontsheet'!$C$14:$C$213,$B81,'Trust - Frontsheet'!K$14:K$213)) ->  | H81: =IF($B81="","",SUMIF('Trust - Frontsheet'!$C$14:$C$213,$B81,'Trust - Frontsheet'!L$14:L$213)) ->  | I81: =IF($B81="","",SUMIF('Trust - Frontsheet'!$C$14:$C$213,$B81,'Trust - Frontsheet'!M$14:M$213)) ->  | J81: =IF($B81="","",SUMIF('Trust - Frontsheet'!$C$14:$C$213,$B81,'Trust - Frontsheet'!N$14:N$213)) ->  | K81: =IF($B81="","",SUMIF('Trust - Frontsheet'!$C$14:$C$213,$B81,'Trust - Frontsheet'!O$14:O$213)) ->  | P81: =IF($B81="","",SUMIF('Trust - Frontsheet'!$C$14:$C$213,$B81,'Trust - Frontsheet'!T$14:T$213)) -> 
B82: =IF(ISERROR(INDEX('Trust - Frontsheet'!AV$1:AV$6187,SMALL(IF('Trust - Frontsheet'!$AX$1:$AX$6187=$B$2,ROW('Trust - Frontsheet'!$AX$1:$AX$6187)),ROW(76:76)))),"",INDEX('Trust - Frontsheet'!AV$1:AV$6187,SMALL(IF('Trust - Frontsheet'!$AX$1:$AX$6187=$B$2,ROW('Trust - Frontsheet'!$AX$1:$AX$6187)),ROW(76:76)))) ->  | C82: =IF(ISERROR(INDEX('Trust - Frontsheet'!AW$1:AW$6187,SMALL(IF('Trust - Frontsheet'!$AX$1:$AX$6187=$B$2,ROW('Trust - Frontsheet'!$AX$1:$AX$6187)),ROW(76:76)))),"",INDEX('Trust - Frontsheet'!AW$1:AW$6187,SMALL(IF('Trust - Frontsheet'!$AX$1:$AX$6187=$B$2,ROW('Trust - Frontsheet'!$AX$1:$AX$6187)),ROW(76:76)))) ->  | D82: =IF($B82="","",SUMIF('Trust - Frontsheet'!$C$14:$C$213,$B82,'Trust - Frontsheet'!H$14:H$213)) ->  | E82: =IF($B82="","",SUMIF('Trust - Frontsheet'!$C$14:$C$213,$B82,'Trust - Frontsheet'!I$14:I$213)) ->  | F82: =IF($B82="","",SUMIF('Trust - Frontsheet'!$C$14:$C$213,$B82,'Trust - Frontsheet'!J$14:J$213)) ->  | G82: =IF($B82="","",SUMIF('Trust - Frontsheet'!$C$14:$C$213,$B82,'Trust - Frontsheet'!K$14:K$213)) ->  | H82: =IF($B82="","",SUMIF('Trust - Frontsheet'!$C$14:$C$213,$B82,'Trust - Frontsheet'!L$14:L$213)) ->  | I82: =IF($B82="","",SUMIF('Trust - Frontsheet'!$C$14:$C$213,$B82,'Trust - Frontsheet'!M$14:M$213)) ->  | J82: =IF($B82="","",SUMIF('Trust - Frontsheet'!$C$14:$C$213,$B82,'Trust - Frontsheet'!N$14:N$213)) ->  | K82: =IF($B82="","",SUMIF('Trust - Frontsheet'!$C$14:$C$213,$B82,'Trust - Frontsheet'!O$14:O$213)) ->  | P82: =IF($B82="","",SUMIF('Trust - Frontsheet'!$C$14:$C$213,$B82,'Trust - Frontsheet'!T$14:T$213)) -> 
B83: =IF(ISERROR(INDEX('Trust - Frontsheet'!AV$1:AV$6187,SMALL(IF('Trust - Frontsheet'!$AX$1:$AX$6187=$B$2,ROW('Trust - Frontsheet'!$AX$1:$AX$6187)),ROW(77:77)))),"",INDEX('Trust - Frontsheet'!AV$1:AV$6187,SMALL(IF('Trust - Frontsheet'!$AX$1:$AX$6187=$B$2,ROW('Trust - Frontsheet'!$AX$1:$AX$6187)),ROW(77:77)))) ->  | C83: =IF(ISERROR(INDEX('Trust - Frontsheet'!AW$1:AW$6187,SMALL(IF('Trust - Frontsheet'!$AX$1:$AX$6187=$B$2,ROW('Trust - Frontsheet'!$AX$1:$AX$6187)),ROW(77:77)))),"",INDEX('Trust - Frontsheet'!AW$1:AW$6187,SMALL(IF('Trust - Frontsheet'!$AX$1:$AX$6187=$B$2,ROW('Trust - Frontsheet'!$AX$1:$AX$6187)),ROW(77:77)))) ->  | D83: =IF($B83="","",SUMIF('Trust - Frontsheet'!$C$14:$C$213,$B83,'Trust - Frontsheet'!H$14:H$213)) ->  | E83: =IF($B83="","",SUMIF('Trust - Frontsheet'!$C$14:$C$213,$B83,'Trust - Frontsheet'!I$14:I$213)) ->  | F83: =IF($B83="","",SUMIF('Trust - Frontsheet'!$C$14:$C$213,$B83,'Trust - Frontsheet'!J$14:J$213)) ->  | G83: =IF($B83="","",SUMIF('Trust - Frontsheet'!$C$14:$C$213,$B83,'Trust - Frontsheet'!K$14:K$213)) ->  | H83: =IF($B83="","",SUMIF('Trust - Frontsheet'!$C$14:$C$213,$B83,'Trust - Frontsheet'!L$14:L$213)) ->  | I83: =IF($B83="","",SUMIF('Trust - Frontsheet'!$C$14:$C$213,$B83,'Trust - Frontsheet'!M$14:M$213)) ->  | J83: =IF($B83="","",SUMIF('Trust - Frontsheet'!$C$14:$C$213,$B83,'Trust - Frontsheet'!N$14:N$213)) ->  | K83: =IF($B83="","",SUMIF('Trust - Frontsheet'!$C$14:$C$213,$B83,'Trust - Frontsheet'!O$14:O$213)) ->  | P83: =IF($B83="","",SUMIF('Trust - Frontsheet'!$C$14:$C$213,$B83,'Trust - Frontsheet'!T$14:T$213)) -> 
B84: =IF(ISERROR(INDEX('Trust - Frontsheet'!AV$1:AV$6187,SMALL(IF('Trust - Frontsheet'!$AX$1:$AX$6187=$B$2,ROW('Trust - Frontsheet'!$AX$1:$AX$6187)),ROW(78:78)))),"",INDEX('Trust - Frontsheet'!AV$1:AV$6187,SMALL(IF('Trust - Frontsheet'!$AX$1:$AX$6187=$B$2,ROW('Trust - Frontsheet'!$AX$1:$AX$6187)),ROW(78:78)))) ->  | C84: =IF(ISERROR(INDEX('Trust - Frontsheet'!AW$1:AW$6187,SMALL(IF('Trust - Frontsheet'!$AX$1:$AX$6187=$B$2,ROW('Trust - Frontsheet'!$AX$1:$AX$6187)),ROW(78:78)))),"",INDEX('Trust - Frontsheet'!AW$1:AW$6187,SMALL(IF('Trust - Frontsheet'!$AX$1:$AX$6187=$B$2,ROW('Trust - Frontsheet'!$AX$1:$AX$6187)),ROW(78:78)))) ->  | D84: =IF($B84="","",SUMIF('Trust - Frontsheet'!$C$14:$C$213,$B84,'Trust - Frontsheet'!H$14:H$213)) ->  | E84: =IF($B84="","",SUMIF('Trust - Frontsheet'!$C$14:$C$213,$B84,'Trust - Frontsheet'!I$14:I$213)) ->  | F84: =IF($B84="","",SUMIF('Trust - Frontsheet'!$C$14:$C$213,$B84,'Trust - Frontsheet'!J$14:J$213)) ->  | G84: =IF($B84="","",SUMIF('Trust - Frontsheet'!$C$14:$C$213,$B84,'Trust - Frontsheet'!K$14:K$213)) ->  | H84: =IF($B84="","",SUMIF('Trust - Frontsheet'!$C$14:$C$213,$B84,'Trust - Frontsheet'!L$14:L$213)) ->  | I84: =IF($B84="","",SUMIF('Trust - Frontsheet'!$C$14:$C$213,$B84,'Trust - Frontsheet'!M$14:M$213)) ->  | J84: =IF($B84="","",SUMIF('Trust - Frontsheet'!$C$14:$C$213,$B84,'Trust - Frontsheet'!N$14:N$213)) ->  | K84: =IF($B84="","",SUMIF('Trust - Frontsheet'!$C$14:$C$213,$B84,'Trust - Frontsheet'!O$14:O$213)) ->  | P84: =IF($B84="","",SUMIF('Trust - Frontsheet'!$C$14:$C$213,$B84,'Trust - Frontsheet'!T$14:T$213)) -> 
B85: =IF(ISERROR(INDEX('Trust - Frontsheet'!AV$1:AV$6187,SMALL(IF('Trust - Frontsheet'!$AX$1:$AX$6187=$B$2,ROW('Trust - Frontsheet'!$AX$1:$AX$6187)),ROW(79:79)))),"",INDEX('Trust - Frontsheet'!AV$1:AV$6187,SMALL(IF('Trust - Frontsheet'!$AX$1:$AX$6187=$B$2,ROW('Trust - Frontsheet'!$AX$1:$AX$6187)),ROW(79:79)))) ->  | C85: =IF(ISERROR(INDEX('Trust - Frontsheet'!AW$1:AW$6187,SMALL(IF('Trust - Frontsheet'!$AX$1:$AX$6187=$B$2,ROW('Trust - Frontsheet'!$AX$1:$AX$6187)),ROW(79:79)))),"",INDEX('Trust - Frontsheet'!AW$1:AW$6187,SMALL(IF('Trust - Frontsheet'!$AX$1:$AX$6187=$B$2,ROW('Trust - Frontsheet'!$AX$1:$AX$6187)),ROW(79:79)))) ->  | D85: =IF($B85="","",SUMIF('Trust - Frontsheet'!$C$14:$C$213,$B85,'Trust - Frontsheet'!H$14:H$213)) ->  | E85: =IF($B85="","",SUMIF('Trust - Frontsheet'!$C$14:$C$213,$B85,'Trust - Frontsheet'!I$14:I$213)) ->  | F85: =IF($B85="","",SUMIF('Trust - Frontsheet'!$C$14:$C$213,$B85,'Trust - Frontsheet'!J$14:J$213)) ->  | G85: =IF($B85="","",SUMIF('Trust - Frontsheet'!$C$14:$C$213,$B85,'Trust - Frontsheet'!K$14:K$213)) ->  | H85: =IF($B85="","",SUMIF('Trust - Frontsheet'!$C$14:$C$213,$B85,'Trust - Frontsheet'!L$14:L$213)) ->  | I85: =IF($B85="","",SUMIF('Trust - Frontsheet'!$C$14:$C$213,$B85,'Trust - Frontsheet'!M$14:M$213)) ->  | J85: =IF($B85="","",SUMIF('Trust - Frontsheet'!$C$14:$C$213,$B85,'Trust - Frontsheet'!N$14:N$213)) ->  | K85: =IF($B85="","",SUMIF('Trust - Frontsheet'!$C$14:$C$213,$B85,'Trust - Frontsheet'!O$14:O$213)) ->  | P85: =IF($B85="","",SUMIF('Trust - Frontsheet'!$C$14:$C$213,$B85,'Trust - Frontsheet'!T$14:T$213)) -> 
B86: =IF(ISERROR(INDEX('Trust - Frontsheet'!AV$1:AV$6187,SMALL(IF('Trust - Frontsheet'!$AX$1:$AX$6187=$B$2,ROW('Trust - Frontsheet'!$AX$1:$AX$6187)),ROW(80:80)))),"",INDEX('Trust - Frontsheet'!AV$1:AV$6187,SMALL(IF('Trust - Frontsheet'!$AX$1:$AX$6187=$B$2,ROW('Trust - Frontsheet'!$AX$1:$AX$6187)),ROW(80:80)))) ->  | C86: =IF(ISERROR(INDEX('Trust - Frontsheet'!AW$1:AW$6187,SMALL(IF('Trust - Frontsheet'!$AX$1:$AX$6187=$B$2,ROW('Trust - Frontsheet'!$AX$1:$AX$6187)),ROW(80:80)))),"",INDEX('Trust - Frontsheet'!AW$1:AW$6187,SMALL(IF('Trust - Frontsheet'!$AX$1:$AX$6187=$B$2,ROW('Trust - Frontsheet'!$AX$1:$AX$6187)),ROW(80:80)))) ->  | D86: =IF($B86="","",SUMIF('Trust - Frontsheet'!$C$14:$C$213,$B86,'Trust - Frontsheet'!H$14:H$213)) ->  | E86: =IF($B86="","",SUMIF('Trust - Frontsheet'!$C$14:$C$213,$B86,'Trust - Frontsheet'!I$14:I$213)) ->  | F86: =IF($B86="","",SUMIF('Trust - Frontsheet'!$C$14:$C$213,$B86,'Trust - Frontsheet'!J$14:J$213)) ->  | G86: =IF($B86="","",SUMIF('Trust - Frontsheet'!$C$14:$C$213,$B86,'Trust - Frontsheet'!K$14:K$213)) ->  | H86: =IF($B86="","",SUMIF('Trust - Frontsheet'!$C$14:$C$213,$B86,'Trust - Frontsheet'!L$14:L$213)) ->  | I86: =IF($B86="","",SUMIF('Trust - Frontsheet'!$C$14:$C$213,$B86,'Trust - Frontsheet'!M$14:M$213)) ->  | J86: =IF($B86="","",SUMIF('Trust - Frontsheet'!$C$14:$C$213,$B86,'Trust - Frontsheet'!N$14:N$213)) ->  | K86: =IF($B86="","",SUMIF('Trust - Frontsheet'!$C$14:$C$213,$B86,'Trust - Frontsheet'!O$14:O$213)) ->  | P86: =IF($B86="","",SUMIF('Trust - Frontsheet'!$C$14:$C$213,$B86,'Trust - Frontsheet'!T$14:T$213)) -> 
B87: =IF(ISERROR(INDEX('Trust - Frontsheet'!AV$1:AV$6187,SMALL(IF('Trust - Frontsheet'!$AX$1:$AX$6187=$B$2,ROW('Trust - Frontsheet'!$AX$1:$AX$6187)),ROW(81:81)))),"",INDEX('Trust - Frontsheet'!AV$1:AV$6187,SMALL(IF('Trust - Frontsheet'!$AX$1:$AX$6187=$B$2,ROW('Trust - Frontsheet'!$AX$1:$AX$6187)),ROW(81:81)))) ->  | C87: =IF(ISERROR(INDEX('Trust - Frontsheet'!AW$1:AW$6187,SMALL(IF('Trust - Frontsheet'!$AX$1:$AX$6187=$B$2,ROW('Trust - Frontsheet'!$AX$1:$AX$6187)),ROW(81:81)))),"",INDEX('Trust - Frontsheet'!AW$1:AW$6187,SMALL(IF('Trust - Frontsheet'!$AX$1:$AX$6187=$B$2,ROW('Trust - Frontsheet'!$AX$1:$AX$6187)),ROW(81:81)))) ->  | D87: =IF($B87="","",SUMIF('Trust - Frontsheet'!$C$14:$C$213,$B87,'Trust - Frontsheet'!H$14:H$213)) ->  | E87: =IF($B87="","",SUMIF('Trust - Frontsheet'!$C$14:$C$213,$B87,'Trust - Frontsheet'!I$14:I$213)) ->  | F87: =IF($B87="","",SUMIF('Trust - Frontsheet'!$C$14:$C$213,$B87,'Trust - Frontsheet'!J$14:J$213)) ->  | G87: =IF($B87="","",SUMIF('Trust - Frontsheet'!$C$14:$C$213,$B87,'Trust - Frontsheet'!K$14:K$213)) ->  | H87: =IF($B87="","",SUMIF('Trust - Frontsheet'!$C$14:$C$213,$B87,'Trust - Frontsheet'!L$14:L$213)) ->  | I87: =IF($B87="","",SUMIF('Trust - Frontsheet'!$C$14:$C$213,$B87,'Trust - Frontsheet'!M$14:M$213)) ->  | J87: =IF($B87="","",SUMIF('Trust - Frontsheet'!$C$14:$C$213,$B87,'Trust - Frontsheet'!N$14:N$213)) ->  | K87: =IF($B87="","",SUMIF('Trust - Frontsheet'!$C$14:$C$213,$B87,'Trust - Frontsheet'!O$14:O$213)) ->  | P87: =IF($B87="","",SUMIF('Trust - Frontsheet'!$C$14:$C$213,$B87,'Trust - Frontsheet'!T$14:T$213)) -> 
B88: =IF(ISERROR(INDEX('Trust - Frontsheet'!AV$1:AV$6187,SMALL(IF('Trust - Frontsheet'!$AX$1:$AX$6187=$B$2,ROW('Trust - Frontsheet'!$AX$1:$AX$6187)),ROW(82:82)))),"",INDEX('Trust - Frontsheet'!AV$1:AV$6187,SMALL(IF('Trust - Frontsheet'!$AX$1:$AX$6187=$B$2,ROW('Trust - Frontsheet'!$AX$1:$AX$6187)),ROW(82:82)))) ->  | C88: =IF(ISERROR(INDEX('Trust - Frontsheet'!AW$1:AW$6187,SMALL(IF('Trust - Frontsheet'!$AX$1:$AX$6187=$B$2,ROW('Trust - Frontsheet'!$AX$1:$AX$6187)),ROW(82:82)))),"",INDEX('Trust - Frontsheet'!AW$1:AW$6187,SMALL(IF('Trust - Frontsheet'!$AX$1:$AX$6187=$B$2,ROW('Trust - Frontsheet'!$AX$1:$AX$6187)),ROW(82:82)))) ->  | D88: =IF($B88="","",SUMIF('Trust - Frontsheet'!$C$14:$C$213,$B88,'Trust - Frontsheet'!H$14:H$213)) ->  | E88: =IF($B88="","",SUMIF('Trust - Frontsheet'!$C$14:$C$213,$B88,'Trust - Frontsheet'!I$14:I$213)) ->  | F88: =IF($B88="","",SUMIF('Trust - Frontsheet'!$C$14:$C$213,$B88,'Trust - Frontsheet'!J$14:J$213)) ->  | G88: =IF($B88="","",SUMIF('Trust - Frontsheet'!$C$14:$C$213,$B88,'Trust - Frontsheet'!K$14:K$213)) ->  | H88: =IF($B88="","",SUMIF('Trust - Frontsheet'!$C$14:$C$213,$B88,'Trust - Frontsheet'!L$14:L$213)) ->  | I88: =IF($B88="","",SUMIF('Trust - Frontsheet'!$C$14:$C$213,$B88,'Trust - Frontsheet'!M$14:M$213)) ->  | J88: =IF($B88="","",SUMIF('Trust - Frontsheet'!$C$14:$C$213,$B88,'Trust - Frontsheet'!N$14:N$213)) ->  | K88: =IF($B88="","",SUMIF('Trust - Frontsheet'!$C$14:$C$213,$B88,'Trust - Frontsheet'!O$14:O$213)) ->  | P88: =IF($B88="","",SUMIF('Trust - Frontsheet'!$C$14:$C$213,$B88,'Trust - Frontsheet'!T$14:T$213)) -> 
B89: =IF(ISERROR(INDEX('Trust - Frontsheet'!AV$1:AV$6187,SMALL(IF('Trust - Frontsheet'!$AX$1:$AX$6187=$B$2,ROW('Trust - Frontsheet'!$AX$1:$AX$6187)),ROW(83:83)))),"",INDEX('Trust - Frontsheet'!AV$1:AV$6187,SMALL(IF('Trust - Frontsheet'!$AX$1:$AX$6187=$B$2,ROW('Trust - Frontsheet'!$AX$1:$AX$6187)),ROW(83:83)))) ->  | C89: =IF(ISERROR(INDEX('Trust - Frontsheet'!AW$1:AW$6187,SMALL(IF('Trust - Frontsheet'!$AX$1:$AX$6187=$B$2,ROW('Trust - Frontsheet'!$AX$1:$AX$6187)),ROW(83:83)))),"",INDEX('Trust - Frontsheet'!AW$1:AW$6187,SMALL(IF('Trust - Frontsheet'!$AX$1:$AX$6187=$B$2,ROW('Trust - Frontsheet'!$AX$1:$AX$6187)),ROW(83:83)))) ->  | D89: =IF($B89="","",SUMIF('Trust - Frontsheet'!$C$14:$C$213,$B89,'Trust - Frontsheet'!H$14:H$213)) ->  | E89: =IF($B89="","",SUMIF('Trust - Frontsheet'!$C$14:$C$213,$B89,'Trust - Frontsheet'!I$14:I$213)) ->  | F89: =IF($B89="","",SUMIF('Trust - Frontsheet'!$C$14:$C$213,$B89,'Trust - Frontsheet'!J$14:J$213)) ->  | G89: =IF($B89="","",SUMIF('Trust - Frontsheet'!$C$14:$C$213,$B89,'Trust - Frontsheet'!K$14:K$213)) ->  | H89: =IF($B89="","",SUMIF('Trust - Frontsheet'!$C$14:$C$213,$B89,'Trust - Frontsheet'!L$14:L$213)) ->  | I89: =IF($B89="","",SUMIF('Trust - Frontsheet'!$C$14:$C$213,$B89,'Trust - Frontsheet'!M$14:M$213)) ->  | J89: =IF($B89="","",SUMIF('Trust - Frontsheet'!$C$14:$C$213,$B89,'Trust - Frontsheet'!N$14:N$213)) ->  | K89: =IF($B89="","",SUMIF('Trust - Frontsheet'!$C$14:$C$213,$B89,'Trust - Frontsheet'!O$14:O$213)) ->  | P89: =IF($B89="","",SUMIF('Trust - Frontsheet'!$C$14:$C$213,$B89,'Trust - Frontsheet'!T$14:T$213)) -> 
B90: =IF(ISERROR(INDEX('Trust - Frontsheet'!AV$1:AV$6187,SMALL(IF('Trust - Frontsheet'!$AX$1:$AX$6187=$B$2,ROW('Trust - Frontsheet'!$AX$1:$AX$6187)),ROW(84:84)))),"",INDEX('Trust - Frontsheet'!AV$1:AV$6187,SMALL(IF('Trust - Frontsheet'!$AX$1:$AX$6187=$B$2,ROW('Trust - Frontsheet'!$AX$1:$AX$6187)),ROW(84:84)))) ->  | C90: =IF(ISERROR(INDEX('Trust - Frontsheet'!AW$1:AW$6187,SMALL(IF('Trust - Frontsheet'!$AX$1:$AX$6187=$B$2,ROW('Trust - Frontsheet'!$AX$1:$AX$6187)),ROW(84:84)))),"",INDEX('Trust - Frontsheet'!AW$1:AW$6187,SMALL(IF('Trust - Frontsheet'!$AX$1:$AX$6187=$B$2,ROW('Trust - Frontsheet'!$AX$1:$AX$6187)),ROW(84:84)))) ->  | D90: =IF($B90="","",SUMIF('Trust - Frontsheet'!$C$14:$C$213,$B90,'Trust - Frontsheet'!H$14:H$213)) ->  | E90: =IF($B90="","",SUMIF('Trust - Frontsheet'!$C$14:$C$213,$B90,'Trust - Frontsheet'!I$14:I$213)) ->  | F90: =IF($B90="","",SUMIF('Trust - Frontsheet'!$C$14:$C$213,$B90,'Trust - Frontsheet'!J$14:J$213)) ->  | G90: =IF($B90="","",SUMIF('Trust - Frontsheet'!$C$14:$C$213,$B90,'Trust - Frontsheet'!K$14:K$213)) ->  | H90: =IF($B90="","",SUMIF('Trust - Frontsheet'!$C$14:$C$213,$B90,'Trust - Frontsheet'!L$14:L$213)) ->  | I90: =IF($B90="","",SUMIF('Trust - Frontsheet'!$C$14:$C$213,$B90,'Trust - Frontsheet'!M$14:M$213)) ->  | J90: =IF($B90="","",SUMIF('Trust - Frontsheet'!$C$14:$C$213,$B90,'Trust - Frontsheet'!N$14:N$213)) ->  | K90: =IF($B90="","",SUMIF('Trust - Frontsheet'!$C$14:$C$213,$B90,'Trust - Frontsheet'!O$14:O$213)) ->  | P90: =IF($B90="","",SUMIF('Trust - Frontsheet'!$C$14:$C$213,$B90,'Trust - Frontsheet'!T$14:T$213)) -> 
B91: =IF(ISERROR(INDEX('Trust - Frontsheet'!AV$1:AV$6187,SMALL(IF('Trust - Frontsheet'!$AX$1:$AX$6187=$B$2,ROW('Trust - Frontsheet'!$AX$1:$AX$6187)),ROW(85:85)))),"",INDEX('Trust - Frontsheet'!AV$1:AV$6187,SMALL(IF('Trust - Frontsheet'!$AX$1:$AX$6187=$B$2,ROW('Trust - Frontsheet'!$AX$1:$AX$6187)),ROW(85:85)))) ->  | C91: =IF(ISERROR(INDEX('Trust - Frontsheet'!AW$1:AW$6187,SMALL(IF('Trust - Frontsheet'!$AX$1:$AX$6187=$B$2,ROW('Trust - Frontsheet'!$AX$1:$AX$6187)),ROW(85:85)))),"",INDEX('Trust - Frontsheet'!AW$1:AW$6187,SMALL(IF('Trust - Frontsheet'!$AX$1:$AX$6187=$B$2,ROW('Trust - Frontsheet'!$AX$1:$AX$6187)),ROW(85:85)))) ->  | D91: =IF($B91="","",SUMIF('Trust - Frontsheet'!$C$14:$C$213,$B91,'Trust - Frontsheet'!H$14:H$213)) ->  | E91: =IF($B91="","",SUMIF('Trust - Frontsheet'!$C$14:$C$213,$B91,'Trust - Frontsheet'!I$14:I$213)) ->  | F91: =IF($B91="","",SUMIF('Trust - Frontsheet'!$C$14:$C$213,$B91,'Trust - Frontsheet'!J$14:J$213)) ->  | G91: =IF($B91="","",SUMIF('Trust - Frontsheet'!$C$14:$C$213,$B91,'Trust - Frontsheet'!K$14:K$213)) ->  | H91: =IF($B91="","",SUMIF('Trust - Frontsheet'!$C$14:$C$213,$B91,'Trust - Frontsheet'!L$14:L$213)) ->  | I91: =IF($B91="","",SUMIF('Trust - Frontsheet'!$C$14:$C$213,$B91,'Trust - Frontsheet'!M$14:M$213)) ->  | J91: =IF($B91="","",SUMIF('Trust - Frontsheet'!$C$14:$C$213,$B91,'Trust - Frontsheet'!N$14:N$213)) ->  | K91: =IF($B91="","",SUMIF('Trust - Frontsheet'!$C$14:$C$213,$B91,'Trust - Frontsheet'!O$14:O$213)) ->  | P91: =IF($B91="","",SUMIF('Trust - Frontsheet'!$C$14:$C$213,$B91,'Trust - Frontsheet'!T$14:T$213)) -> 
B92: =IF(ISERROR(INDEX('Trust - Frontsheet'!AV$1:AV$6187,SMALL(IF('Trust - Frontsheet'!$AX$1:$AX$6187=$B$2,ROW('Trust - Frontsheet'!$AX$1:$AX$6187)),ROW(86:86)))),"",INDEX('Trust - Frontsheet'!AV$1:AV$6187,SMALL(IF('Trust - Frontsheet'!$AX$1:$AX$6187=$B$2,ROW('Trust - Frontsheet'!$AX$1:$AX$6187)),ROW(86:86)))) ->  | C92: =IF(ISERROR(INDEX('Trust - Frontsheet'!AW$1:AW$6187,SMALL(IF('Trust - Frontsheet'!$AX$1:$AX$6187=$B$2,ROW('Trust - Frontsheet'!$AX$1:$AX$6187)),ROW(86:86)))),"",INDEX('Trust - Frontsheet'!AW$1:AW$6187,SMALL(IF('Trust - Frontsheet'!$AX$1:$AX$6187=$B$2,ROW('Trust - Frontsheet'!$AX$1:$AX$6187)),ROW(86:86)))) ->  | D92: =IF($B92="","",SUMIF('Trust - Frontsheet'!$C$14:$C$213,$B92,'Trust - Frontsheet'!H$14:H$213)) ->  | E92: =IF($B92="","",SUMIF('Trust - Frontsheet'!$C$14:$C$213,$B92,'Trust - Frontsheet'!I$14:I$213)) ->  | F92: =IF($B92="","",SUMIF('Trust - Frontsheet'!$C$14:$C$213,$B92,'Trust - Frontsheet'!J$14:J$213)) ->  | G92: =IF($B92="","",SUMIF('Trust - Frontsheet'!$C$14:$C$213,$B92,'Trust - Frontsheet'!K$14:K$213)) ->  | H92: =IF($B92="","",SUMIF('Trust - Frontsheet'!$C$14:$C$213,$B92,'Trust - Frontsheet'!L$14:L$213)) ->  | I92: =IF($B92="","",SUMIF('Trust - Frontsheet'!$C$14:$C$213,$B92,'Trust - Frontsheet'!M$14:M$213)) ->  | J92: =IF($B92="","",SUMIF('Trust - Frontsheet'!$C$14:$C$213,$B92,'Trust - Frontsheet'!N$14:N$213)) ->  | K92: =IF($B92="","",SUMIF('Trust - Frontsheet'!$C$14:$C$213,$B92,'Trust - Frontsheet'!O$14:O$213)) ->  | P92: =IF($B92="","",SUMIF('Trust - Frontsheet'!$C$14:$C$213,$B92,'Trust - Frontsheet'!T$14:T$213)) -> 
B93: =IF(ISERROR(INDEX('Trust - Frontsheet'!AV$1:AV$6187,SMALL(IF('Trust - Frontsheet'!$AX$1:$AX$6187=$B$2,ROW('Trust - Frontsheet'!$AX$1:$AX$6187)),ROW(87:87)))),"",INDEX('Trust - Frontsheet'!AV$1:AV$6187,SMALL(IF('Trust - Frontsheet'!$AX$1:$AX$6187=$B$2,ROW('Trust - Frontsheet'!$AX$1:$AX$6187)),ROW(87:87)))) ->  | C93: =IF(ISERROR(INDEX('Trust - Frontsheet'!AW$1:AW$6187,SMALL(IF('Trust - Frontsheet'!$AX$1:$AX$6187=$B$2,ROW('Trust - Frontsheet'!$AX$1:$AX$6187)),ROW(87:87)))),"",INDEX('Trust - Frontsheet'!AW$1:AW$6187,SMALL(IF('Trust - Frontsheet'!$AX$1:$AX$6187=$B$2,ROW('Trust - Frontsheet'!$AX$1:$AX$6187)),ROW(87:87)))) ->  | D93: =IF($B93="","",SUMIF('Trust - Frontsheet'!$C$14:$C$213,$B93,'Trust - Frontsheet'!H$14:H$213)) ->  | E93: =IF($B93="","",SUMIF('Trust - Frontsheet'!$C$14:$C$213,$B93,'Trust - Frontsheet'!I$14:I$213)) ->  | F93: =IF($B93="","",SUMIF('Trust - Frontsheet'!$C$14:$C$213,$B93,'Trust - Frontsheet'!J$14:J$213)) ->  | G93: =IF($B93="","",SUMIF('Trust - Frontsheet'!$C$14:$C$213,$B93,'Trust - Frontsheet'!K$14:K$213)) ->  | H93: =IF($B93="","",SUMIF('Trust - Frontsheet'!$C$14:$C$213,$B93,'Trust - Frontsheet'!L$14:L$213)) ->  | I93: =IF($B93="","",SUMIF('Trust - Frontsheet'!$C$14:$C$213,$B93,'Trust - Frontsheet'!M$14:M$213)) ->  | J93: =IF($B93="","",SUMIF('Trust - Frontsheet'!$C$14:$C$213,$B93,'Trust - Frontsheet'!N$14:N$213)) ->  | K93: =IF($B93="","",SUMIF('Trust - Frontsheet'!$C$14:$C$213,$B93,'Trust - Frontsheet'!O$14:O$213)) ->  | P93: =IF($B93="","",SUMIF('Trust - Frontsheet'!$C$14:$C$213,$B93,'Trust - Frontsheet'!T$14:T$213)) -> 
B94: =IF(ISERROR(INDEX('Trust - Frontsheet'!AV$1:AV$6187,SMALL(IF('Trust - Frontsheet'!$AX$1:$AX$6187=$B$2,ROW('Trust - Frontsheet'!$AX$1:$AX$6187)),ROW(88:88)))),"",INDEX('Trust - Frontsheet'!AV$1:AV$6187,SMALL(IF('Trust - Frontsheet'!$AX$1:$AX$6187=$B$2,ROW('Trust - Frontsheet'!$AX$1:$AX$6187)),ROW(88:88)))) ->  | C94: =IF(ISERROR(INDEX('Trust - Frontsheet'!AW$1:AW$6187,SMALL(IF('Trust - Frontsheet'!$AX$1:$AX$6187=$B$2,ROW('Trust - Frontsheet'!$AX$1:$AX$6187)),ROW(88:88)))),"",INDEX('Trust - Frontsheet'!AW$1:AW$6187,SMALL(IF('Trust - Frontsheet'!$AX$1:$AX$6187=$B$2,ROW('Trust - Frontsheet'!$AX$1:$AX$6187)),ROW(88:88)))) ->  | D94: =IF($B94="","",SUMIF('Trust - Frontsheet'!$C$14:$C$213,$B94,'Trust - Frontsheet'!H$14:H$213)) ->  | E94: =IF($B94="","",SUMIF('Trust - Frontsheet'!$C$14:$C$213,$B94,'Trust - Frontsheet'!I$14:I$213)) ->  | F94: =IF($B94="","",SUMIF('Trust - Frontsheet'!$C$14:$C$213,$B94,'Trust - Frontsheet'!J$14:J$213)) ->  | G94: =IF($B94="","",SUMIF('Trust - Frontsheet'!$C$14:$C$213,$B94,'Trust - Frontsheet'!K$14:K$213)) ->  | H94: =IF($B94="","",SUMIF('Trust - Frontsheet'!$C$14:$C$213,$B94,'Trust - Frontsheet'!L$14:L$213)) ->  | I94: =IF($B94="","",SUMIF('Trust - Frontsheet'!$C$14:$C$213,$B94,'Trust - Frontsheet'!M$14:M$213)) ->  | J94: =IF($B94="","",SUMIF('Trust - Frontsheet'!$C$14:$C$213,$B94,'Trust - Frontsheet'!N$14:N$213)) ->  | K94: =IF($B94="","",SUMIF('Trust - Frontsheet'!$C$14:$C$213,$B94,'Trust - Frontsheet'!O$14:O$213)) ->  | P94: =IF($B94="","",SUMIF('Trust - Frontsheet'!$C$14:$C$213,$B94,'Trust - Frontsheet'!T$14:T$213)) -> 
B95: =IF(ISERROR(INDEX('Trust - Frontsheet'!AV$1:AV$6187,SMALL(IF('Trust - Frontsheet'!$AX$1:$AX$6187=$B$2,ROW('Trust - Frontsheet'!$AX$1:$AX$6187)),ROW(89:89)))),"",INDEX('Trust - Frontsheet'!AV$1:AV$6187,SMALL(IF('Trust - Frontsheet'!$AX$1:$AX$6187=$B$2,ROW('Trust - Frontsheet'!$AX$1:$AX$6187)),ROW(89:89)))) ->  | C95: =IF(ISERROR(INDEX('Trust - Frontsheet'!AW$1:AW$6187,SMALL(IF('Trust - Frontsheet'!$AX$1:$AX$6187=$B$2,ROW('Trust - Frontsheet'!$AX$1:$AX$6187)),ROW(89:89)))),"",INDEX('Trust - Frontsheet'!AW$1:AW$6187,SMALL(IF('Trust - Frontsheet'!$AX$1:$AX$6187=$B$2,ROW('Trust - Frontsheet'!$AX$1:$AX$6187)),ROW(89:89)))) ->  | D95: =IF($B95="","",SUMIF('Trust - Frontsheet'!$C$14:$C$213,$B95,'Trust - Frontsheet'!H$14:H$213)) ->  | E95: =IF($B95="","",SUMIF('Trust - Frontsheet'!$C$14:$C$213,$B95,'Trust - Frontsheet'!I$14:I$213)) ->  | F95: =IF($B95="","",SUMIF('Trust - Frontsheet'!$C$14:$C$213,$B95,'Trust - Frontsheet'!J$14:J$213)) ->  | G95: =IF($B95="","",SUMIF('Trust - Frontsheet'!$C$14:$C$213,$B95,'Trust - Frontsheet'!K$14:K$213)) ->  | H95: =IF($B95="","",SUMIF('Trust - Frontsheet'!$C$14:$C$213,$B95,'Trust - Frontsheet'!L$14:L$213)) ->  | I95: =IF($B95="","",SUMIF('Trust - Frontsheet'!$C$14:$C$213,$B95,'Trust - Frontsheet'!M$14:M$213)) ->  | J95: =IF($B95="","",SUMIF('Trust - Frontsheet'!$C$14:$C$213,$B95,'Trust - Frontsheet'!N$14:N$213)) ->  | K95: =IF($B95="","",SUMIF('Trust - Frontsheet'!$C$14:$C$213,$B95,'Trust - Frontsheet'!O$14:O$213)) ->  | P95: =IF($B95="","",SUMIF('Trust - Frontsheet'!$C$14:$C$213,$B95,'Trust - Frontsheet'!T$14:T$213)) -> 
B96: =IF(ISERROR(INDEX('Trust - Frontsheet'!AV$1:AV$6187,SMALL(IF('Trust - Frontsheet'!$AX$1:$AX$6187=$B$2,ROW('Trust - Frontsheet'!$AX$1:$AX$6187)),ROW(90:90)))),"",INDEX('Trust - Frontsheet'!AV$1:AV$6187,SMALL(IF('Trust - Frontsheet'!$AX$1:$AX$6187=$B$2,ROW('Trust - Frontsheet'!$AX$1:$AX$6187)),ROW(90:90)))) ->  | C96: =IF(ISERROR(INDEX('Trust - Frontsheet'!AW$1:AW$6187,SMALL(IF('Trust - Frontsheet'!$AX$1:$AX$6187=$B$2,ROW('Trust - Frontsheet'!$AX$1:$AX$6187)),ROW(90:90)))),"",INDEX('Trust - Frontsheet'!AW$1:AW$6187,SMALL(IF('Trust - Frontsheet'!$AX$1:$AX$6187=$B$2,ROW('Trust - Frontsheet'!$AX$1:$AX$6187)),ROW(90:90)))) ->  | D96: =IF($B96="","",SUMIF('Trust - Frontsheet'!$C$14:$C$213,$B96,'Trust - Frontsheet'!H$14:H$213)) ->  | E96: =IF($B96="","",SUMIF('Trust - Frontsheet'!$C$14:$C$213,$B96,'Trust - Frontsheet'!I$14:I$213)) ->  | F96: =IF($B96="","",SUMIF('Trust - Frontsheet'!$C$14:$C$213,$B96,'Trust - Frontsheet'!J$14:J$213)) ->  | G96: =IF($B96="","",SUMIF('Trust - Frontsheet'!$C$14:$C$213,$B96,'Trust - Frontsheet'!K$14:K$213)) ->  | H96: =IF($B96="","",SUMIF('Trust - Frontsheet'!$C$14:$C$213,$B96,'Trust - Frontsheet'!L$14:L$213)) ->  | I96: =IF($B96="","",SUMIF('Trust - Frontsheet'!$C$14:$C$213,$B96,'Trust - Frontsheet'!M$14:M$213)) ->  | J96: =IF($B96="","",SUMIF('Trust - Frontsheet'!$C$14:$C$213,$B96,'Trust - Frontsheet'!N$14:N$213)) ->  | K96: =IF($B96="","",SUMIF('Trust - Frontsheet'!$C$14:$C$213,$B96,'Trust - Frontsheet'!O$14:O$213)) ->  | P96: =IF($B96="","",SUMIF('Trust - Frontsheet'!$C$14:$C$213,$B96,'Trust - Frontsheet'!T$14:T$213)) -> 
B97: =IF(ISERROR(INDEX('Trust - Frontsheet'!AV$1:AV$6187,SMALL(IF('Trust - Frontsheet'!$AX$1:$AX$6187=$B$2,ROW('Trust - Frontsheet'!$AX$1:$AX$6187)),ROW(91:91)))),"",INDEX('Trust - Frontsheet'!AV$1:AV$6187,SMALL(IF('Trust - Frontsheet'!$AX$1:$AX$6187=$B$2,ROW('Trust - Frontsheet'!$AX$1:$AX$6187)),ROW(91:91)))) ->  | C97: =IF(ISERROR(INDEX('Trust - Frontsheet'!AW$1:AW$6187,SMALL(IF('Trust - Frontsheet'!$AX$1:$AX$6187=$B$2,ROW('Trust - Frontsheet'!$AX$1:$AX$6187)),ROW(91:91)))),"",INDEX('Trust - Frontsheet'!AW$1:AW$6187,SMALL(IF('Trust - Frontsheet'!$AX$1:$AX$6187=$B$2,ROW('Trust - Frontsheet'!$AX$1:$AX$6187)),ROW(91:91)))) ->  | D97: =IF($B97="","",SUMIF('Trust - Frontsheet'!$C$14:$C$213,$B97,'Trust - Frontsheet'!H$14:H$213)) ->  | E97: =IF($B97="","",SUMIF('Trust - Frontsheet'!$C$14:$C$213,$B97,'Trust - Frontsheet'!I$14:I$213)) ->  | F97: =IF($B97="","",SUMIF('Trust - Frontsheet'!$C$14:$C$213,$B97,'Trust - Frontsheet'!J$14:J$213)) ->  | G97: =IF($B97="","",SUMIF('Trust - Frontsheet'!$C$14:$C$213,$B97,'Trust - Frontsheet'!K$14:K$213)) ->  | H97: =IF($B97="","",SUMIF('Trust - Frontsheet'!$C$14:$C$213,$B97,'Trust - Frontsheet'!L$14:L$213)) ->  | I97: =IF($B97="","",SUMIF('Trust - Frontsheet'!$C$14:$C$213,$B97,'Trust - Frontsheet'!M$14:M$213)) ->  | J97: =IF($B97="","",SUMIF('Trust - Frontsheet'!$C$14:$C$213,$B97,'Trust - Frontsheet'!N$14:N$213)) ->  | K97: =IF($B97="","",SUMIF('Trust - Frontsheet'!$C$14:$C$213,$B97,'Trust - Frontsheet'!O$14:O$213)) ->  | P97: =IF($B97="","",SUMIF('Trust - Frontsheet'!$C$14:$C$213,$B97,'Trust - Frontsheet'!T$14:T$213)) -> 
B98: =IF(ISERROR(INDEX('Trust - Frontsheet'!AV$1:AV$6187,SMALL(IF('Trust - Frontsheet'!$AX$1:$AX$6187=$B$2,ROW('Trust - Frontsheet'!$AX$1:$AX$6187)),ROW(92:92)))),"",INDEX('Trust - Frontsheet'!AV$1:AV$6187,SMALL(IF('Trust - Frontsheet'!$AX$1:$AX$6187=$B$2,ROW('Trust - Frontsheet'!$AX$1:$AX$6187)),ROW(92:92)))) ->  | C98: =IF(ISERROR(INDEX('Trust - Frontsheet'!AW$1:AW$6187,SMALL(IF('Trust - Frontsheet'!$AX$1:$AX$6187=$B$2,ROW('Trust - Frontsheet'!$AX$1:$AX$6187)),ROW(92:92)))),"",INDEX('Trust - Frontsheet'!AW$1:AW$6187,SMALL(IF('Trust - Frontsheet'!$AX$1:$AX$6187=$B$2,ROW('Trust - Frontsheet'!$AX$1:$AX$6187)),ROW(92:92)))) ->  | D98: =IF($B98="","",SUMIF('Trust - Frontsheet'!$C$14:$C$213,$B98,'Trust - Frontsheet'!H$14:H$213)) ->  | E98: =IF($B98="","",SUMIF('Trust - Frontsheet'!$C$14:$C$213,$B98,'Trust - Frontsheet'!I$14:I$213)) ->  | F98: =IF($B98="","",SUMIF('Trust - Frontsheet'!$C$14:$C$213,$B98,'Trust - Frontsheet'!J$14:J$213)) ->  | G98: =IF($B98="","",SUMIF('Trust - Frontsheet'!$C$14:$C$213,$B98,'Trust - Frontsheet'!K$14:K$213)) ->  | H98: =IF($B98="","",SUMIF('Trust - Frontsheet'!$C$14:$C$213,$B98,'Trust - Frontsheet'!L$14:L$213)) ->  | I98: =IF($B98="","",SUMIF('Trust - Frontsheet'!$C$14:$C$213,$B98,'Trust - Frontsheet'!M$14:M$213)) ->  | J98: =IF($B98="","",SUMIF('Trust - Frontsheet'!$C$14:$C$213,$B98,'Trust - Frontsheet'!N$14:N$213)) ->  | K98: =IF($B98="","",SUMIF('Trust - Frontsheet'!$C$14:$C$213,$B98,'Trust - Frontsheet'!O$14:O$213)) ->  | P98: =IF($B98="","",SUMIF('Trust - Frontsheet'!$C$14:$C$213,$B98,'Trust - Frontsheet'!T$14:T$213)) -> 
B99: =IF(ISERROR(INDEX('Trust - Frontsheet'!AV$1:AV$6187,SMALL(IF('Trust - Frontsheet'!$AX$1:$AX$6187=$B$2,ROW('Trust - Frontsheet'!$AX$1:$AX$6187)),ROW(93:93)))),"",INDEX('Trust - Frontsheet'!AV$1:AV$6187,SMALL(IF('Trust - Frontsheet'!$AX$1:$AX$6187=$B$2,ROW('Trust - Frontsheet'!$AX$1:$AX$6187)),ROW(93:93)))) ->  | C99: =IF(ISERROR(INDEX('Trust - Frontsheet'!AW$1:AW$6187,SMALL(IF('Trust - Frontsheet'!$AX$1:$AX$6187=$B$2,ROW('Trust - Frontsheet'!$AX$1:$AX$6187)),ROW(93:93)))),"",INDEX('Trust - Frontsheet'!AW$1:AW$6187,SMALL(IF('Trust - Frontsheet'!$AX$1:$AX$6187=$B$2,ROW('Trust - Frontsheet'!$AX$1:$AX$6187)),ROW(93:93)))) ->  | D99: =IF($B99="","",SUMIF('Trust - Frontsheet'!$C$14:$C$213,$B99,'Trust - Frontsheet'!H$14:H$213)) ->  | E99: =IF($B99="","",SUMIF('Trust - Frontsheet'!$C$14:$C$213,$B99,'Trust - Frontsheet'!I$14:I$213)) ->  | F99: =IF($B99="","",SUMIF('Trust - Frontsheet'!$C$14:$C$213,$B99,'Trust - Frontsheet'!J$14:J$213)) ->  | G99: =IF($B99="","",SUMIF('Trust - Frontsheet'!$C$14:$C$213,$B99,'Trust - Frontsheet'!K$14:K$213)) ->  | H99: =IF($B99="","",SUMIF('Trust - Frontsheet'!$C$14:$C$213,$B99,'Trust - Frontsheet'!L$14:L$213)) ->  | I99: =IF($B99="","",SUMIF('Trust - Frontsheet'!$C$14:$C$213,$B99,'Trust - Frontsheet'!M$14:M$213)) ->  | J99: =IF($B99="","",SUMIF('Trust - Frontsheet'!$C$14:$C$213,$B99,'Trust - Frontsheet'!N$14:N$213)) ->  | K99: =IF($B99="","",SUMIF('Trust - Frontsheet'!$C$14:$C$213,$B99,'Trust - Frontsheet'!O$14:O$213)) ->  | P99: =IF($B99="","",SUMIF('Trust - Frontsheet'!$C$14:$C$213,$B99,'Trust - Frontsheet'!T$14:T$213)) -> 
B100: =IF(ISERROR(INDEX('Trust - Frontsheet'!AV$1:AV$6187,SMALL(IF('Trust - Frontsheet'!$AX$1:$AX$6187=$B$2,ROW('Trust - Frontsheet'!$AX$1:$AX$6187)),ROW(94:94)))),"",INDEX('Trust - Frontsheet'!AV$1:AV$6187,SMALL(IF('Trust - Frontsheet'!$AX$1:$AX$6187=$B$2,ROW('Trust - Frontsheet'!$AX$1:$AX$6187)),ROW(94:94)))) ->  | C100: =IF(ISERROR(INDEX('Trust - Frontsheet'!AW$1:AW$6187,SMALL(IF('Trust - Frontsheet'!$AX$1:$AX$6187=$B$2,ROW('Trust - Frontsheet'!$AX$1:$AX$6187)),ROW(94:94)))),"",INDEX('Trust - Frontsheet'!AW$1:AW$6187,SMALL(IF('Trust - Frontsheet'!$AX$1:$AX$6187=$B$2,ROW('Trust - Frontsheet'!$AX$1:$AX$6187)),ROW(94:94)))) ->  | D100: =IF($B100="","",SUMIF('Trust - Frontsheet'!$C$14:$C$213,$B100,'Trust - Frontsheet'!H$14:H$213)) ->  | E100: =IF($B100="","",SUMIF('Trust - Frontsheet'!$C$14:$C$213,$B100,'Trust - Frontsheet'!I$14:I$213)) ->  | F100: =IF($B100="","",SUMIF('Trust - Frontsheet'!$C$14:$C$213,$B100,'Trust - Frontsheet'!J$14:J$213)) ->  | G100: =IF($B100="","",SUMIF('Trust - Frontsheet'!$C$14:$C$213,$B100,'Trust - Frontsheet'!K$14:K$213)) ->  | H100: =IF($B100="","",SUMIF('Trust - Frontsheet'!$C$14:$C$213,$B100,'Trust - Frontsheet'!L$14:L$213)) ->  | I100: =IF($B100="","",SUMIF('Trust - Frontsheet'!$C$14:$C$213,$B100,'Trust - Frontsheet'!M$14:M$213)) ->  | J100: =IF($B100="","",SUMIF('Trust - Frontsheet'!$C$14:$C$213,$B100,'Trust - Frontsheet'!N$14:N$213)) ->  | K100: =IF($B100="","",SUMIF('Trust - Frontsheet'!$C$14:$C$213,$B100,'Trust - Frontsheet'!O$14:O$213)) ->  | P100: =IF($B100="","",SUMIF('Trust - Frontsheet'!$C$14:$C$213,$B100,'Trust - Frontsheet'!T$14:T$213)) -> 
B101: =IF(ISERROR(INDEX('Trust - Frontsheet'!AV$1:AV$6187,SMALL(IF('Trust - Frontsheet'!$AX$1:$AX$6187=$B$2,ROW('Trust - Frontsheet'!$AX$1:$AX$6187)),ROW(95:95)))),"",INDEX('Trust - Frontsheet'!AV$1:AV$6187,SMALL(IF('Trust - Frontsheet'!$AX$1:$AX$6187=$B$2,ROW('Trust - Frontsheet'!$AX$1:$AX$6187)),ROW(95:95)))) ->  | C101: =IF(ISERROR(INDEX('Trust - Frontsheet'!AW$1:AW$6187,SMALL(IF('Trust - Frontsheet'!$AX$1:$AX$6187=$B$2,ROW('Trust - Frontsheet'!$AX$1:$AX$6187)),ROW(95:95)))),"",INDEX('Trust - Frontsheet'!AW$1:AW$6187,SMALL(IF('Trust - Frontsheet'!$AX$1:$AX$6187=$B$2,ROW('Trust - Frontsheet'!$AX$1:$AX$6187)),ROW(95:95)))) ->  | D101: =IF($B101="","",SUMIF('Trust - Frontsheet'!$C$14:$C$213,$B101,'Trust - Frontsheet'!H$14:H$213)) ->  | E101: =IF($B101="","",SUMIF('Trust - Frontsheet'!$C$14:$C$213,$B101,'Trust - Frontsheet'!I$14:I$213)) ->  | F101: =IF($B101="","",SUMIF('Trust - Frontsheet'!$C$14:$C$213,$B101,'Trust - Frontsheet'!J$14:J$213)) ->  | G101: =IF($B101="","",SUMIF('Trust - Frontsheet'!$C$14:$C$213,$B101,'Trust - Frontsheet'!K$14:K$213)) ->  | H101: =IF($B101="","",SUMIF('Trust - Frontsheet'!$C$14:$C$213,$B101,'Trust - Frontsheet'!L$14:L$213)) ->  | I101: =IF($B101="","",SUMIF('Trust - Frontsheet'!$C$14:$C$213,$B101,'Trust - Frontsheet'!M$14:M$213)) ->  | J101: =IF($B101="","",SUMIF('Trust - Frontsheet'!$C$14:$C$213,$B101,'Trust - Frontsheet'!N$14:N$213)) ->  | K101: =IF($B101="","",SUMIF('Trust - Frontsheet'!$C$14:$C$213,$B101,'Trust - Frontsheet'!O$14:O$213)) ->  | P101: =IF($B101="","",SUMIF('Trust - Frontsheet'!$C$14:$C$213,$B101,'Trust - Frontsheet'!T$14:T$213)) -> 
B102: =IF(ISERROR(INDEX('Trust - Frontsheet'!AV$1:AV$6187,SMALL(IF('Trust - Frontsheet'!$AX$1:$AX$6187=$B$2,ROW('Trust - Frontsheet'!$AX$1:$AX$6187)),ROW(96:96)))),"",INDEX('Trust - Frontsheet'!AV$1:AV$6187,SMALL(IF('Trust - Frontsheet'!$AX$1:$AX$6187=$B$2,ROW('Trust - Frontsheet'!$AX$1:$AX$6187)),ROW(96:96)))) ->  | C102: =IF(ISERROR(INDEX('Trust - Frontsheet'!AW$1:AW$6187,SMALL(IF('Trust - Frontsheet'!$AX$1:$AX$6187=$B$2,ROW('Trust - Frontsheet'!$AX$1:$AX$6187)),ROW(96:96)))),"",INDEX('Trust - Frontsheet'!AW$1:AW$6187,SMALL(IF('Trust - Frontsheet'!$AX$1:$AX$6187=$B$2,ROW('Trust - Frontsheet'!$AX$1:$AX$6187)),ROW(96:96)))) ->  | D102: =IF($B102="","",SUMIF('Trust - Frontsheet'!$C$14:$C$213,$B102,'Trust - Frontsheet'!H$14:H$213)) ->  | E102: =IF($B102="","",SUMIF('Trust - Frontsheet'!$C$14:$C$213,$B102,'Trust - Frontsheet'!I$14:I$213)) ->  | F102: =IF($B102="","",SUMIF('Trust - Frontsheet'!$C$14:$C$213,$B102,'Trust - Frontsheet'!J$14:J$213)) ->  | G102: =IF($B102="","",SUMIF('Trust - Frontsheet'!$C$14:$C$213,$B102,'Trust - Frontsheet'!K$14:K$213)) ->  | H102: =IF($B102="","",SUMIF('Trust - Frontsheet'!$C$14:$C$213,$B102,'Trust - Frontsheet'!L$14:L$213)) ->  | I102: =IF($B102="","",SUMIF('Trust - Frontsheet'!$C$14:$C$213,$B102,'Trust - Frontsheet'!M$14:M$213)) ->  | J102: =IF($B102="","",SUMIF('Trust - Frontsheet'!$C$14:$C$213,$B102,'Trust - Frontsheet'!N$14:N$213)) ->  | K102: =IF($B102="","",SUMIF('Trust - Frontsheet'!$C$14:$C$213,$B102,'Trust - Frontsheet'!O$14:O$213)) ->  | P102: =IF($B102="","",SUMIF('Trust - Frontsheet'!$C$14:$C$213,$B102,'Trust - Frontsheet'!T$14:T$213)) -> 
B103: =IF(ISERROR(INDEX('Trust - Frontsheet'!AV$1:AV$6187,SMALL(IF('Trust - Frontsheet'!$AX$1:$AX$6187=$B$2,ROW('Trust - Frontsheet'!$AX$1:$AX$6187)),ROW(97:97)))),"",INDEX('Trust - Frontsheet'!AV$1:AV$6187,SMALL(IF('Trust - Frontsheet'!$AX$1:$AX$6187=$B$2,ROW('Trust - Frontsheet'!$AX$1:$AX$6187)),ROW(97:97)))) ->  | C103: =IF(ISERROR(INDEX('Trust - Frontsheet'!AW$1:AW$6187,SMALL(IF('Trust - Frontsheet'!$AX$1:$AX$6187=$B$2,ROW('Trust - Frontsheet'!$AX$1:$AX$6187)),ROW(97:97)))),"",INDEX('Trust - Frontsheet'!AW$1:AW$6187,SMALL(IF('Trust - Frontsheet'!$AX$1:$AX$6187=$B$2,ROW('Trust - Frontsheet'!$AX$1:$AX$6187)),ROW(97:97)))) ->  | D103: =IF($B103="","",SUMIF('Trust - Frontsheet'!$C$14:$C$213,$B103,'Trust - Frontsheet'!H$14:H$213)) ->  | E103: =IF($B103="","",SUMIF('Trust - Frontsheet'!$C$14:$C$213,$B103,'Trust - Frontsheet'!I$14:I$213)) ->  | F103: =IF($B103="","",SUMIF('Trust - Frontsheet'!$C$14:$C$213,$B103,'Trust - Frontsheet'!J$14:J$213)) ->  | G103: =IF($B103="","",SUMIF('Trust - Frontsheet'!$C$14:$C$213,$B103,'Trust - Frontsheet'!K$14:K$213)) ->  | H103: =IF($B103="","",SUMIF('Trust - Frontsheet'!$C$14:$C$213,$B103,'Trust - Frontsheet'!L$14:L$213)) ->  | I103: =IF($B103="","",SUMIF('Trust - Frontsheet'!$C$14:$C$213,$B103,'Trust - Frontsheet'!M$14:M$213)) ->  | J103: =IF($B103="","",SUMIF('Trust - Frontsheet'!$C$14:$C$213,$B103,'Trust - Frontsheet'!N$14:N$213)) ->  | K103: =IF($B103="","",SUMIF('Trust - Frontsheet'!$C$14:$C$213,$B103,'Trust - Frontsheet'!O$14:O$213)) ->  | P103: =IF($B103="","",SUMIF('Trust - Frontsheet'!$C$14:$C$213,$B103,'Trust - Frontsheet'!T$14:T$213)) -> 
B104: =IF(ISERROR(INDEX('Trust - Frontsheet'!AV$1:AV$6187,SMALL(IF('Trust - Frontsheet'!$AX$1:$AX$6187=$B$2,ROW('Trust - Frontsheet'!$AX$1:$AX$6187)),ROW(98:98)))),"",INDEX('Trust - Frontsheet'!AV$1:AV$6187,SMALL(IF('Trust - Frontsheet'!$AX$1:$AX$6187=$B$2,ROW('Trust - Frontsheet'!$AX$1:$AX$6187)),ROW(98:98)))) ->  | C104: =IF(ISERROR(INDEX('Trust - Frontsheet'!AW$1:AW$6187,SMALL(IF('Trust - Frontsheet'!$AX$1:$AX$6187=$B$2,ROW('Trust - Frontsheet'!$AX$1:$AX$6187)),ROW(98:98)))),"",INDEX('Trust - Frontsheet'!AW$1:AW$6187,SMALL(IF('Trust - Frontsheet'!$AX$1:$AX$6187=$B$2,ROW('Trust - Frontsheet'!$AX$1:$AX$6187)),ROW(98:98)))) ->  | D104: =IF($B104="","",SUMIF('Trust - Frontsheet'!$C$14:$C$213,$B104,'Trust - Frontsheet'!H$14:H$213)) ->  | E104: =IF($B104="","",SUMIF('Trust - Frontsheet'!$C$14:$C$213,$B104,'Trust - Frontsheet'!I$14:I$213)) ->  | F104: =IF($B104="","",SUMIF('Trust - Frontsheet'!$C$14:$C$213,$B104,'Trust - Frontsheet'!J$14:J$213)) ->  | G104: =IF($B104="","",SUMIF('Trust - Frontsheet'!$C$14:$C$213,$B104,'Trust - Frontsheet'!K$14:K$213)) ->  | H104: =IF($B104="","",SUMIF('Trust - Frontsheet'!$C$14:$C$213,$B104,'Trust - Frontsheet'!L$14:L$213)) ->  | I104: =IF($B104="","",SUMIF('Trust - Frontsheet'!$C$14:$C$213,$B104,'Trust - Frontsheet'!M$14:M$213)) ->  | J104: =IF($B104="","",SUMIF('Trust - Frontsheet'!$C$14:$C$213,$B104,'Trust - Frontsheet'!N$14:N$213)) ->  | K104: =IF($B104="","",SUMIF('Trust - Frontsheet'!$C$14:$C$213,$B104,'Trust - Frontsheet'!O$14:O$213)) ->  | P104: =IF($B104="","",SUMIF('Trust - Frontsheet'!$C$14:$C$213,$B104,'Trust - Frontsheet'!T$14:T$213)) -> 
B105: =IF(ISERROR(INDEX('Trust - Frontsheet'!AV$1:AV$6187,SMALL(IF('Trust - Frontsheet'!$AX$1:$AX$6187=$B$2,ROW('Trust - Frontsheet'!$AX$1:$AX$6187)),ROW(99:99)))),"",INDEX('Trust - Frontsheet'!AV$1:AV$6187,SMALL(IF('Trust - Frontsheet'!$AX$1:$AX$6187=$B$2,ROW('Trust - Frontsheet'!$AX$1:$AX$6187)),ROW(99:99)))) ->  | C105: =IF(ISERROR(INDEX('Trust - Frontsheet'!AW$1:AW$6187,SMALL(IF('Trust - Frontsheet'!$AX$1:$AX$6187=$B$2,ROW('Trust - Frontsheet'!$AX$1:$AX$6187)),ROW(99:99)))),"",INDEX('Trust - Frontsheet'!AW$1:AW$6187,SMALL(IF('Trust - Frontsheet'!$AX$1:$AX$6187=$B$2,ROW('Trust - Frontsheet'!$AX$1:$AX$6187)),ROW(99:99)))) ->  | D105: =IF($B105="","",SUMIF('Trust - Frontsheet'!$C$14:$C$213,$B105,'Trust - Frontsheet'!H$14:H$213)) ->  | E105: =IF($B105="","",SUMIF('Trust - Frontsheet'!$C$14:$C$213,$B105,'Trust - Frontsheet'!I$14:I$213)) ->  | F105: =IF($B105="","",SUMIF('Trust - Frontsheet'!$C$14:$C$213,$B105,'Trust - Frontsheet'!J$14:J$213)) ->  | G105: =IF($B105="","",SUMIF('Trust - Frontsheet'!$C$14:$C$213,$B105,'Trust - Frontsheet'!K$14:K$213)) ->  | H105: =IF($B105="","",SUMIF('Trust - Frontsheet'!$C$14:$C$213,$B105,'Trust - Frontsheet'!L$14:L$213)) ->  | I105: =IF($B105="","",SUMIF('Trust - Frontsheet'!$C$14:$C$213,$B105,'Trust - Frontsheet'!M$14:M$213)) ->  | J105: =IF($B105="","",SUMIF('Trust - Frontsheet'!$C$14:$C$213,$B105,'Trust - Frontsheet'!N$14:N$213)) ->  | K105: =IF($B105="","",SUMIF('Trust - Frontsheet'!$C$14:$C$213,$B105,'Trust - Frontsheet'!O$14:O$213)) ->  | P105: =IF($B105="","",SUMIF('Trust - Frontsheet'!$C$14:$C$213,$B105,'Trust - Frontsheet'!T$14:T$213)) -> 
B106: =IF(ISERROR(INDEX('Trust - Frontsheet'!AV$1:AV$6187,SMALL(IF('Trust - Frontsheet'!$AX$1:$AX$6187=$B$2,ROW('Trust - Frontsheet'!$AX$1:$AX$6187)),ROW(100:100)))),"",INDEX('Trust - Frontsheet'!AV$1:AV$6187,SMALL(IF('Trust - Frontsheet'!$AX$1:$AX$6187=$B$2,ROW('Trust - Frontsheet'!$AX$1:$AX$6187)),ROW(100:100)))) ->  | C106: =IF(ISERROR(INDEX('Trust - Frontsheet'!AW$1:AW$6187,SMALL(IF('Trust - Frontsheet'!$AX$1:$AX$6187=$B$2,ROW('Trust - Frontsheet'!$AX$1:$AX$6187)),ROW(100:100)))),"",INDEX('Trust - Frontsheet'!AW$1:AW$6187,SMALL(IF('Trust - Frontsheet'!$AX$1:$AX$6187=$B$2,ROW('Trust - Frontsheet'!$AX$1:$AX$6187)),ROW(100:100)))) ->  | D106: =IF($B106="","",SUMIF('Trust - Frontsheet'!$C$14:$C$213,$B106,'Trust - Frontsheet'!H$14:H$213)) ->  | E106: =IF($B106="","",SUMIF('Trust - Frontsheet'!$C$14:$C$213,$B106,'Trust - Frontsheet'!I$14:I$213)) ->  | F106: =IF($B106="","",SUMIF('Trust - Frontsheet'!$C$14:$C$213,$B106,'Trust - Frontsheet'!J$14:J$213)) ->  | G106: =IF($B106="","",SUMIF('Trust - Frontsheet'!$C$14:$C$213,$B106,'Trust - Frontsheet'!K$14:K$213)) ->  | H106: =IF($B106="","",SUMIF('Trust - Frontsheet'!$C$14:$C$213,$B106,'Trust - Frontsheet'!L$14:L$213)) ->  | I106: =IF($B106="","",SUMIF('Trust - Frontsheet'!$C$14:$C$213,$B106,'Trust - Frontsheet'!M$14:M$213)) ->  | J106: =IF($B106="","",SUMIF('Trust - Frontsheet'!$C$14:$C$213,$B106,'Trust - Frontsheet'!N$14:N$213)) ->  | K106: =IF($B106="","",SUMIF('Trust - Frontsheet'!$C$14:$C$213,$B106,'Trust - Frontsheet'!O$14:O$213)) ->  | P106: =IF($B106="","",SUMIF('Trust - Frontsheet'!$C$14:$C$213,$B106,'Trust - Frontsheet'!T$14:T$213)) -> 
B107: =IF(ISERROR(INDEX('Trust - Frontsheet'!AV$1:AV$6187,SMALL(IF('Trust - Frontsheet'!$AX$1:$AX$6187=$B$2,ROW('Trust - Frontsheet'!$AX$1:$AX$6187)),ROW(101:101)))),"",INDEX('Trust - Frontsheet'!AV$1:AV$6187,SMALL(IF('Trust - Frontsheet'!$AX$1:$AX$6187=$B$2,ROW('Trust - Frontsheet'!$AX$1:$AX$6187)),ROW(101:101)))) ->  | C107: =IF(ISERROR(INDEX('Trust - Frontsheet'!AW$1:AW$6187,SMALL(IF('Trust - Frontsheet'!$AX$1:$AX$6187=$B$2,ROW('Trust - Frontsheet'!$AX$1:$AX$6187)),ROW(101:101)))),"",INDEX('Trust - Frontsheet'!AW$1:AW$6187,SMALL(IF('Trust - Frontsheet'!$AX$1:$AX$6187=$B$2,ROW('Trust - Frontsheet'!$AX$1:$AX$6187)),ROW(101:101)))) ->  | D107: =IF($B107="","",SUMIF('Trust - Frontsheet'!$C$14:$C$213,$B107,'Trust - Frontsheet'!H$14:H$213)) ->  | E107: =IF($B107="","",SUMIF('Trust - Frontsheet'!$C$14:$C$213,$B107,'Trust - Frontsheet'!I$14:I$213)) ->  | F107: =IF($B107="","",SUMIF('Trust - Frontsheet'!$C$14:$C$213,$B107,'Trust - Frontsheet'!J$14:J$213)) ->  | G107: =IF($B107="","",SUMIF('Trust - Frontsheet'!$C$14:$C$213,$B107,'Trust - Frontsheet'!K$14:K$213)) ->  | H107: =IF($B107="","",SUMIF('Trust - Frontsheet'!$C$14:$C$213,$B107,'Trust - Frontsheet'!L$14:L$213)) ->  | I107: =IF($B107="","",SUMIF('Trust - Frontsheet'!$C$14:$C$213,$B107,'Trust - Frontsheet'!M$14:M$213)) ->  | J107: =IF($B107="","",SUMIF('Trust - Frontsheet'!$C$14:$C$213,$B107,'Trust - Frontsheet'!N$14:N$213)) ->  | K107: =IF($B107="","",SUMIF('Trust - Frontsheet'!$C$14:$C$213,$B107,'Trust - Frontsheet'!O$14:O$213)) ->  | P107: =IF($B107="","",SUMIF('Trust - Frontsheet'!$C$14:$C$213,$B107,'Trust - Frontsheet'!T$14:T$213)) -> 
B108: =IF(ISERROR(INDEX('Trust - Frontsheet'!AV$1:AV$6187,SMALL(IF('Trust - Frontsheet'!$AX$1:$AX$6187=$B$2,ROW('Trust - Frontsheet'!$AX$1:$AX$6187)),ROW(102:102)))),"",INDEX('Trust - Frontsheet'!AV$1:AV$6187,SMALL(IF('Trust - Frontsheet'!$AX$1:$AX$6187=$B$2,ROW('Trust - Frontsheet'!$AX$1:$AX$6187)),ROW(102:102)))) ->  | C108: =IF(ISERROR(INDEX('Trust - Frontsheet'!AW$1:AW$6187,SMALL(IF('Trust - Frontsheet'!$AX$1:$AX$6187=$B$2,ROW('Trust - Frontsheet'!$AX$1:$AX$6187)),ROW(102:102)))),"",INDEX('Trust - Frontsheet'!AW$1:AW$6187,SMALL(IF('Trust - Frontsheet'!$AX$1:$AX$6187=$B$2,ROW('Trust - Frontsheet'!$AX$1:$AX$6187)),ROW(102:102)))) ->  | D108: =IF($B108="","",SUMIF('Trust - Frontsheet'!$C$14:$C$213,$B108,'Trust - Frontsheet'!H$14:H$213)) ->  | E108: =IF($B108="","",SUMIF('Trust - Frontsheet'!$C$14:$C$213,$B108,'Trust - Frontsheet'!I$14:I$213)) ->  | F108: =IF($B108="","",SUMIF('Trust - Frontsheet'!$C$14:$C$213,$B108,'Trust - Frontsheet'!J$14:J$213)) ->  | G108: =IF($B108="","",SUMIF('Trust - Frontsheet'!$C$14:$C$213,$B108,'Trust - Frontsheet'!K$14:K$213)) ->  | H108: =IF($B108="","",SUMIF('Trust - Frontsheet'!$C$14:$C$213,$B108,'Trust - Frontsheet'!L$14:L$213)) ->  | I108: =IF($B108="","",SUMIF('Trust - Frontsheet'!$C$14:$C$213,$B108,'Trust - Frontsheet'!M$14:M$213)) ->  | J108: =IF($B108="","",SUMIF('Trust - Frontsheet'!$C$14:$C$213,$B108,'Trust - Frontsheet'!N$14:N$213)) ->  | K108: =IF($B108="","",SUMIF('Trust - Frontsheet'!$C$14:$C$213,$B108,'Trust - Frontsheet'!O$14:O$213)) ->  | P108: =IF($B108="","",SUMIF('Trust - Frontsheet'!$C$14:$C$213,$B108,'Trust - Frontsheet'!T$14:T$213)) -> 
B109: =IF(ISERROR(INDEX('Trust - Frontsheet'!AV$1:AV$6187,SMALL(IF('Trust - Frontsheet'!$AX$1:$AX$6187=$B$2,ROW('Trust - Frontsheet'!$AX$1:$AX$6187)),ROW(103:103)))),"",INDEX('Trust - Frontsheet'!AV$1:AV$6187,SMALL(IF('Trust - Frontsheet'!$AX$1:$AX$6187=$B$2,ROW('Trust - Frontsheet'!$AX$1:$AX$6187)),ROW(103:103)))) ->  | C109: =IF(ISERROR(INDEX('Trust - Frontsheet'!AW$1:AW$6187,SMALL(IF('Trust - Frontsheet'!$AX$1:$AX$6187=$B$2,ROW('Trust - Frontsheet'!$AX$1:$AX$6187)),ROW(103:103)))),"",INDEX('Trust - Frontsheet'!AW$1:AW$6187,SMALL(IF('Trust - Frontsheet'!$AX$1:$AX$6187=$B$2,ROW('Trust - Frontsheet'!$AX$1:$AX$6187)),ROW(103:103)))) ->  | D109: =IF($B109="","",SUMIF('Trust - Frontsheet'!$C$14:$C$213,$B109,'Trust - Frontsheet'!H$14:H$213)) ->  | E109: =IF($B109="","",SUMIF('Trust - Frontsheet'!$C$14:$C$213,$B109,'Trust - Frontsheet'!I$14:I$213)) ->  | F109: =IF($B109="","",SUMIF('Trust - Frontsheet'!$C$14:$C$213,$B109,'Trust - Frontsheet'!J$14:J$213)) ->  | G109: =IF($B109="","",SUMIF('Trust - Frontsheet'!$C$14:$C$213,$B109,'Trust - Frontsheet'!K$14:K$213)) ->  | H109: =IF($B109="","",SUMIF('Trust - Frontsheet'!$C$14:$C$213,$B109,'Trust - Frontsheet'!L$14:L$213)) ->  | I109: =IF($B109="","",SUMIF('Trust - Frontsheet'!$C$14:$C$213,$B109,'Trust - Frontsheet'!M$14:M$213)) ->  | J109: =IF($B109="","",SUMIF('Trust - Frontsheet'!$C$14:$C$213,$B109,'Trust - Frontsheet'!N$14:N$213)) ->  | K109: =IF($B109="","",SUMIF('Trust - Frontsheet'!$C$14:$C$213,$B109,'Trust - Frontsheet'!O$14:O$213)) ->  | P109: =IF($B109="","",SUMIF('Trust - Frontsheet'!$C$14:$C$213,$B109,'Trust - Frontsheet'!T$14:T$213)) -> 
B110: =IF(ISERROR(INDEX('Trust - Frontsheet'!AV$1:AV$6187,SMALL(IF('Trust - Frontsheet'!$AX$1:$AX$6187=$B$2,ROW('Trust - Frontsheet'!$AX$1:$AX$6187)),ROW(104:104)))),"",INDEX('Trust - Frontsheet'!AV$1:AV$6187,SMALL(IF('Trust - Frontsheet'!$AX$1:$AX$6187=$B$2,ROW('Trust - Frontsheet'!$AX$1:$AX$6187)),ROW(104:104)))) ->  | C110: =IF(ISERROR(INDEX('Trust - Frontsheet'!AW$1:AW$6187,SMALL(IF('Trust - Frontsheet'!$AX$1:$AX$6187=$B$2,ROW('Trust - Frontsheet'!$AX$1:$AX$6187)),ROW(104:104)))),"",INDEX('Trust - Frontsheet'!AW$1:AW$6187,SMALL(IF('Trust - Frontsheet'!$AX$1:$AX$6187=$B$2,ROW('Trust - Frontsheet'!$AX$1:$AX$6187)),ROW(104:104)))) ->  | D110: =IF($B110="","",SUMIF('Trust - Frontsheet'!$C$14:$C$213,$B110,'Trust - Frontsheet'!H$14:H$213)) ->  | E110: =IF($B110="","",SUMIF('Trust - Frontsheet'!$C$14:$C$213,$B110,'Trust - Frontsheet'!I$14:I$213)) ->  | F110: =IF($B110="","",SUMIF('Trust - Frontsheet'!$C$14:$C$213,$B110,'Trust - Frontsheet'!J$14:J$213)) ->  | G110: =IF($B110="","",SUMIF('Trust - Frontsheet'!$C$14:$C$213,$B110,'Trust - Frontsheet'!K$14:K$213)) ->  | H110: =IF($B110="","",SUMIF('Trust - Frontsheet'!$C$14:$C$213,$B110,'Trust - Frontsheet'!L$14:L$213)) ->  | I110: =IF($B110="","",SUMIF('Trust - Frontsheet'!$C$14:$C$213,$B110,'Trust - Frontsheet'!M$14:M$213)) ->  | J110: =IF($B110="","",SUMIF('Trust - Frontsheet'!$C$14:$C$213,$B110,'Trust - Frontsheet'!N$14:N$213)) ->  | K110: =IF($B110="","",SUMIF('Trust - Frontsheet'!$C$14:$C$213,$B110,'Trust - Frontsheet'!O$14:O$213)) ->  | P110: =IF($B110="","",SUMIF('Trust - Frontsheet'!$C$14:$C$213,$B110,'Trust - Frontsheet'!T$14:T$213)) -> 
B111: =IF(ISERROR(INDEX('Trust - Frontsheet'!AV$1:AV$6187,SMALL(IF('Trust - Frontsheet'!$AX$1:$AX$6187=$B$2,ROW('Trust - Frontsheet'!$AX$1:$AX$6187)),ROW(105:105)))),"",INDEX('Trust - Frontsheet'!AV$1:AV$6187,SMALL(IF('Trust - Frontsheet'!$AX$1:$AX$6187=$B$2,ROW('Trust - Frontsheet'!$AX$1:$AX$6187)),ROW(105:105)))) ->  | C111: =IF(ISERROR(INDEX('Trust - Frontsheet'!AW$1:AW$6187,SMALL(IF('Trust - Frontsheet'!$AX$1:$AX$6187=$B$2,ROW('Trust - Frontsheet'!$AX$1:$AX$6187)),ROW(105:105)))),"",INDEX('Trust - Frontsheet'!AW$1:AW$6187,SMALL(IF('Trust - Frontsheet'!$AX$1:$AX$6187=$B$2,ROW('Trust - Frontsheet'!$AX$1:$AX$6187)),ROW(105:105)))) ->  | D111: =IF($B111="","",SUMIF('Trust - Frontsheet'!$C$14:$C$213,$B111,'Trust - Frontsheet'!H$14:H$213)) ->  | E111: =IF($B111="","",SUMIF('Trust - Frontsheet'!$C$14:$C$213,$B111,'Trust - Frontsheet'!I$14:I$213)) ->  | F111: =IF($B111="","",SUMIF('Trust - Frontsheet'!$C$14:$C$213,$B111,'Trust - Frontsheet'!J$14:J$213)) ->  | G111: =IF($B111="","",SUMIF('Trust - Frontsheet'!$C$14:$C$213,$B111,'Trust - Frontsheet'!K$14:K$213)) ->  | H111: =IF($B111="","",SUMIF('Trust - Frontsheet'!$C$14:$C$213,$B111,'Trust - Frontsheet'!L$14:L$213)) ->  | I111: =IF($B111="","",SUMIF('Trust - Frontsheet'!$C$14:$C$213,$B111,'Trust - Frontsheet'!M$14:M$213)) ->  | J111: =IF($B111="","",SUMIF('Trust - Frontsheet'!$C$14:$C$213,$B111,'Trust - Frontsheet'!N$14:N$213)) ->  | K111: =IF($B111="","",SUMIF('Trust - Frontsheet'!$C$14:$C$213,$B111,'Trust - Frontsheet'!O$14:O$213)) ->  | P111: =IF($B111="","",SUMIF('Trust - Frontsheet'!$C$14:$C$213,$B111,'Trust - Frontsheet'!T$14:T$213)) -> 
B112: =IF(ISERROR(INDEX('Trust - Frontsheet'!AV$1:AV$6187,SMALL(IF('Trust - Frontsheet'!$AX$1:$AX$6187=$B$2,ROW('Trust - Frontsheet'!$AX$1:$AX$6187)),ROW(106:106)))),"",INDEX('Trust - Frontsheet'!AV$1:AV$6187,SMALL(IF('Trust - Frontsheet'!$AX$1:$AX$6187=$B$2,ROW('Trust - Frontsheet'!$AX$1:$AX$6187)),ROW(106:106)))) ->  | C112: =IF(ISERROR(INDEX('Trust - Frontsheet'!AW$1:AW$6187,SMALL(IF('Trust - Frontsheet'!$AX$1:$AX$6187=$B$2,ROW('Trust - Frontsheet'!$AX$1:$AX$6187)),ROW(106:106)))),"",INDEX('Trust - Frontsheet'!AW$1:AW$6187,SMALL(IF('Trust - Frontsheet'!$AX$1:$AX$6187=$B$2,ROW('Trust - Frontsheet'!$AX$1:$AX$6187)),ROW(106:106)))) ->  | D112: =IF($B112="","",SUMIF('Trust - Frontsheet'!$C$14:$C$213,$B112,'Trust - Frontsheet'!H$14:H$213)) ->  | E112: =IF($B112="","",SUMIF('Trust - Frontsheet'!$C$14:$C$213,$B112,'Trust - Frontsheet'!I$14:I$213)) ->  | F112: =IF($B112="","",SUMIF('Trust - Frontsheet'!$C$14:$C$213,$B112,'Trust - Frontsheet'!J$14:J$213)) ->  | G112: =IF($B112="","",SUMIF('Trust - Frontsheet'!$C$14:$C$213,$B112,'Trust - Frontsheet'!K$14:K$213)) ->  | H112: =IF($B112="","",SUMIF('Trust - Frontsheet'!$C$14:$C$213,$B112,'Trust - Frontsheet'!L$14:L$213)) ->  | I112: =IF($B112="","",SUMIF('Trust - Frontsheet'!$C$14:$C$213,$B112,'Trust - Frontsheet'!M$14:M$213)) ->  | J112: =IF($B112="","",SUMIF('Trust - Frontsheet'!$C$14:$C$213,$B112,'Trust - Frontsheet'!N$14:N$213)) ->  | K112: =IF($B112="","",SUMIF('Trust - Frontsheet'!$C$14:$C$213,$B112,'Trust - Frontsheet'!O$14:O$213)) ->  | P112: =IF($B112="","",SUMIF('Trust - Frontsheet'!$C$14:$C$213,$B112,'Trust - Frontsheet'!T$14:T$213)) -> 
B113: =IF(ISERROR(INDEX('Trust - Frontsheet'!AV$1:AV$6187,SMALL(IF('Trust - Frontsheet'!$AX$1:$AX$6187=$B$2,ROW('Trust - Frontsheet'!$AX$1:$AX$6187)),ROW(107:107)))),"",INDEX('Trust - Frontsheet'!AV$1:AV$6187,SMALL(IF('Trust - Frontsheet'!$AX$1:$AX$6187=$B$2,ROW('Trust - Frontsheet'!$AX$1:$AX$6187)),ROW(107:107)))) ->  | C113: =IF(ISERROR(INDEX('Trust - Frontsheet'!AW$1:AW$6187,SMALL(IF('Trust - Frontsheet'!$AX$1:$AX$6187=$B$2,ROW('Trust - Frontsheet'!$AX$1:$AX$6187)),ROW(107:107)))),"",INDEX('Trust - Frontsheet'!AW$1:AW$6187,SMALL(IF('Trust - Frontsheet'!$AX$1:$AX$6187=$B$2,ROW('Trust - Frontsheet'!$AX$1:$AX$6187)),ROW(107:107)))) ->  | D113: =IF($B113="","",SUMIF('Trust - Frontsheet'!$C$14:$C$213,$B113,'Trust - Frontsheet'!H$14:H$213)) ->  | E113: =IF($B113="","",SUMIF('Trust - Frontsheet'!$C$14:$C$213,$B113,'Trust - Frontsheet'!I$14:I$213)) ->  | F113: =IF($B113="","",SUMIF('Trust - Frontsheet'!$C$14:$C$213,$B113,'Trust - Frontsheet'!J$14:J$213)) ->  | G113: =IF($B113="","",SUMIF('Trust - Frontsheet'!$C$14:$C$213,$B113,'Trust - Frontsheet'!K$14:K$213)) ->  | H113: =IF($B113="","",SUMIF('Trust - Frontsheet'!$C$14:$C$213,$B113,'Trust - Frontsheet'!L$14:L$213)) ->  | I113: =IF($B113="","",SUMIF('Trust - Frontsheet'!$C$14:$C$213,$B113,'Trust - Frontsheet'!M$14:M$213)) ->  | J113: =IF($B113="","",SUMIF('Trust - Frontsheet'!$C$14:$C$213,$B113,'Trust - Frontsheet'!N$14:N$213)) ->  | K113: =IF($B113="","",SUMIF('Trust - Frontsheet'!$C$14:$C$213,$B113,'Trust - Frontsheet'!O$14:O$213)) ->  | P113: =IF($B113="","",SUMIF('Trust - Frontsheet'!$C$14:$C$213,$B113,'Trust - Frontsheet'!T$14:T$213)) -> 
B114: =IF(ISERROR(INDEX('Trust - Frontsheet'!AV$1:AV$6187,SMALL(IF('Trust - Frontsheet'!$AX$1:$AX$6187=$B$2,ROW('Trust - Frontsheet'!$AX$1:$AX$6187)),ROW(108:108)))),"",INDEX('Trust - Frontsheet'!AV$1:AV$6187,SMALL(IF('Trust - Frontsheet'!$AX$1:$AX$6187=$B$2,ROW('Trust - Frontsheet'!$AX$1:$AX$6187)),ROW(108:108)))) ->  | C114: =IF(ISERROR(INDEX('Trust - Frontsheet'!AW$1:AW$6187,SMALL(IF('Trust - Frontsheet'!$AX$1:$AX$6187=$B$2,ROW('Trust - Frontsheet'!$AX$1:$AX$6187)),ROW(108:108)))),"",INDEX('Trust - Frontsheet'!AW$1:AW$6187,SMALL(IF('Trust - Frontsheet'!$AX$1:$AX$6187=$B$2,ROW('Trust - Frontsheet'!$AX$1:$AX$6187)),ROW(108:108)))) ->  | D114: =IF($B114="","",SUMIF('Trust - Frontsheet'!$C$14:$C$213,$B114,'Trust - Frontsheet'!H$14:H$213)) ->  | E114: =IF($B114="","",SUMIF('Trust - Frontsheet'!$C$14:$C$213,$B114,'Trust - Frontsheet'!I$14:I$213)) ->  | F114: =IF($B114="","",SUMIF('Trust - Frontsheet'!$C$14:$C$213,$B114,'Trust - Frontsheet'!J$14:J$213)) ->  | G114: =IF($B114="","",SUMIF('Trust - Frontsheet'!$C$14:$C$213,$B114,'Trust - Frontsheet'!K$14:K$213)) ->  | H114: =IF($B114="","",SUMIF('Trust - Frontsheet'!$C$14:$C$213,$B114,'Trust - Frontsheet'!L$14:L$213)) ->  | I114: =IF($B114="","",SUMIF('Trust - Frontsheet'!$C$14:$C$213,$B114,'Trust - Frontsheet'!M$14:M$213)) ->  | J114: =IF($B114="","",SUMIF('Trust - Frontsheet'!$C$14:$C$213,$B114,'Trust - Frontsheet'!N$14:N$213)) ->  | K114: =IF($B114="","",SUMIF('Trust - Frontsheet'!$C$14:$C$213,$B114,'Trust - Frontsheet'!O$14:O$213)) ->  | P114: =IF($B114="","",SUMIF('Trust - Frontsheet'!$C$14:$C$213,$B114,'Trust - Frontsheet'!T$14:T$213)) -> 
B115: =IF(ISERROR(INDEX('Trust - Frontsheet'!AV$1:AV$6187,SMALL(IF('Trust - Frontsheet'!$AX$1:$AX$6187=$B$2,ROW('Trust - Frontsheet'!$AX$1:$AX$6187)),ROW(109:109)))),"",INDEX('Trust - Frontsheet'!AV$1:AV$6187,SMALL(IF('Trust - Frontsheet'!$AX$1:$AX$6187=$B$2,ROW('Trust - Frontsheet'!$AX$1:$AX$6187)),ROW(109:109)))) ->  | C115: =IF(ISERROR(INDEX('Trust - Frontsheet'!AW$1:AW$6187,SMALL(IF('Trust - Frontsheet'!$AX$1:$AX$6187=$B$2,ROW('Trust - Frontsheet'!$AX$1:$AX$6187)),ROW(109:109)))),"",INDEX('Trust - Frontsheet'!AW$1:AW$6187,SMALL(IF('Trust - Frontsheet'!$AX$1:$AX$6187=$B$2,ROW('Trust - Frontsheet'!$AX$1:$AX$6187)),ROW(109:109)))) ->  | D115: =IF($B115="","",SUMIF('Trust - Frontsheet'!$C$14:$C$213,$B115,'Trust - Frontsheet'!H$14:H$213)) ->  | E115: =IF($B115="","",SUMIF('Trust - Frontsheet'!$C$14:$C$213,$B115,'Trust - Frontsheet'!I$14:I$213)) ->  | F115: =IF($B115="","",SUMIF('Trust - Frontsheet'!$C$14:$C$213,$B115,'Trust - Frontsheet'!J$14:J$213)) ->  | G115: =IF($B115="","",SUMIF('Trust - Frontsheet'!$C$14:$C$213,$B115,'Trust - Frontsheet'!K$14:K$213)) ->  | H115: =IF($B115="","",SUMIF('Trust - Frontsheet'!$C$14:$C$213,$B115,'Trust - Frontsheet'!L$14:L$213)) ->  | I115: =IF($B115="","",SUMIF('Trust - Frontsheet'!$C$14:$C$213,$B115,'Trust - Frontsheet'!M$14:M$213)) ->  | J115: =IF($B115="","",SUMIF('Trust - Frontsheet'!$C$14:$C$213,$B115,'Trust - Frontsheet'!N$14:N$213)) ->  | K115: =IF($B115="","",SUMIF('Trust - Frontsheet'!$C$14:$C$213,$B115,'Trust - Frontsheet'!O$14:O$213)) ->  | P115: =IF($B115="","",SUMIF('Trust - Frontsheet'!$C$14:$C$213,$B115,'Trust - Frontsheet'!T$14:T$213)) -> 
B116: =IF(ISERROR(INDEX('Trust - Frontsheet'!AV$1:AV$6187,SMALL(IF('Trust - Frontsheet'!$AX$1:$AX$6187=$B$2,ROW('Trust - Frontsheet'!$AX$1:$AX$6187)),ROW(110:110)))),"",INDEX('Trust - Frontsheet'!AV$1:AV$6187,SMALL(IF('Trust - Frontsheet'!$AX$1:$AX$6187=$B$2,ROW('Trust - Frontsheet'!$AX$1:$AX$6187)),ROW(110:110)))) ->  | C116: =IF(ISERROR(INDEX('Trust - Frontsheet'!AW$1:AW$6187,SMALL(IF('Trust - Frontsheet'!$AX$1:$AX$6187=$B$2,ROW('Trust - Frontsheet'!$AX$1:$AX$6187)),ROW(110:110)))),"",INDEX('Trust - Frontsheet'!AW$1:AW$6187,SMALL(IF('Trust - Frontsheet'!$AX$1:$AX$6187=$B$2,ROW('Trust - Frontsheet'!$AX$1:$AX$6187)),ROW(110:110)))) ->  | D116: =IF($B116="","",SUMIF('Trust - Frontsheet'!$C$14:$C$213,$B116,'Trust - Frontsheet'!H$14:H$213)) ->  | E116: =IF($B116="","",SUMIF('Trust - Frontsheet'!$C$14:$C$213,$B116,'Trust - Frontsheet'!I$14:I$213)) ->  | F116: =IF($B116="","",SUMIF('Trust - Frontsheet'!$C$14:$C$213,$B116,'Trust - Frontsheet'!J$14:J$213)) ->  | G116: =IF($B116="","",SUMIF('Trust - Frontsheet'!$C$14:$C$213,$B116,'Trust - Frontsheet'!K$14:K$213)) ->  | H116: =IF($B116="","",SUMIF('Trust - Frontsheet'!$C$14:$C$213,$B116,'Trust - Frontsheet'!L$14:L$213)) ->  | I116: =IF($B116="","",SUMIF('Trust - Frontsheet'!$C$14:$C$213,$B116,'Trust - Frontsheet'!M$14:M$213)) ->  | J116: =IF($B116="","",SUMIF('Trust - Frontsheet'!$C$14:$C$213,$B116,'Trust - Frontsheet'!N$14:N$213)) ->  | K116: =IF($B116="","",SUMIF('Trust - Frontsheet'!$C$14:$C$213,$B116,'Trust - Frontsheet'!O$14:O$213)) ->  | P116: =IF($B116="","",SUMIF('Trust - Frontsheet'!$C$14:$C$213,$B116,'Trust - Frontsheet'!T$14:T$213)) -> 
B117: =IF(ISERROR(INDEX('Trust - Frontsheet'!AV$1:AV$6187,SMALL(IF('Trust - Frontsheet'!$AX$1:$AX$6187=$B$2,ROW('Trust - Frontsheet'!$AX$1:$AX$6187)),ROW(111:111)))),"",INDEX('Trust - Frontsheet'!AV$1:AV$6187,SMALL(IF('Trust - Frontsheet'!$AX$1:$AX$6187=$B$2,ROW('Trust - Frontsheet'!$AX$1:$AX$6187)),ROW(111:111)))) ->  | C117: =IF(ISERROR(INDEX('Trust - Frontsheet'!AW$1:AW$6187,SMALL(IF('Trust - Frontsheet'!$AX$1:$AX$6187=$B$2,ROW('Trust - Frontsheet'!$AX$1:$AX$6187)),ROW(111:111)))),"",INDEX('Trust - Frontsheet'!AW$1:AW$6187,SMALL(IF('Trust - Frontsheet'!$AX$1:$AX$6187=$B$2,ROW('Trust - Frontsheet'!$AX$1:$AX$6187)),ROW(111:111)))) ->  | D117: =IF($B117="","",SUMIF('Trust - Frontsheet'!$C$14:$C$213,$B117,'Trust - Frontsheet'!H$14:H$213)) ->  | E117: =IF($B117="","",SUMIF('Trust - Frontsheet'!$C$14:$C$213,$B117,'Trust - Frontsheet'!I$14:I$213)) ->  | F117: =IF($B117="","",SUMIF('Trust - Frontsheet'!$C$14:$C$213,$B117,'Trust - Frontsheet'!J$14:J$213)) ->  | G117: =IF($B117="","",SUMIF('Trust - Frontsheet'!$C$14:$C$213,$B117,'Trust - Frontsheet'!K$14:K$213)) ->  | H117: =IF($B117="","",SUMIF('Trust - Frontsheet'!$C$14:$C$213,$B117,'Trust - Frontsheet'!L$14:L$213)) ->  | I117: =IF($B117="","",SUMIF('Trust - Frontsheet'!$C$14:$C$213,$B117,'Trust - Frontsheet'!M$14:M$213)) ->  | J117: =IF($B117="","",SUMIF('Trust - Frontsheet'!$C$14:$C$213,$B117,'Trust - Frontsheet'!N$14:N$213)) ->  | K117: =IF($B117="","",SUMIF('Trust - Frontsheet'!$C$14:$C$213,$B117,'Trust - Frontsheet'!O$14:O$213)) ->  | P117: =IF($B117="","",SUMIF('Trust - Frontsheet'!$C$14:$C$213,$B117,'Trust - Frontsheet'!T$14:T$213)) -> 
B118: =IF(ISERROR(INDEX('Trust - Frontsheet'!AV$1:AV$6187,SMALL(IF('Trust - Frontsheet'!$AX$1:$AX$6187=$B$2,ROW('Trust - Frontsheet'!$AX$1:$AX$6187)),ROW(112:112)))),"",INDEX('Trust - Frontsheet'!AV$1:AV$6187,SMALL(IF('Trust - Frontsheet'!$AX$1:$AX$6187=$B$2,ROW('Trust - Frontsheet'!$AX$1:$AX$6187)),ROW(112:112)))) ->  | C118: =IF(ISERROR(INDEX('Trust - Frontsheet'!AW$1:AW$6187,SMALL(IF('Trust - Frontsheet'!$AX$1:$AX$6187=$B$2,ROW('Trust - Frontsheet'!$AX$1:$AX$6187)),ROW(112:112)))),"",INDEX('Trust - Frontsheet'!AW$1:AW$6187,SMALL(IF('Trust - Frontsheet'!$AX$1:$AX$6187=$B$2,ROW('Trust - Frontsheet'!$AX$1:$AX$6187)),ROW(112:112)))) ->  | D118: =IF($B118="","",SUMIF('Trust - Frontsheet'!$C$14:$C$213,$B118,'Trust - Frontsheet'!H$14:H$213)) ->  | E118: =IF($B118="","",SUMIF('Trust - Frontsheet'!$C$14:$C$213,$B118,'Trust - Frontsheet'!I$14:I$213)) ->  | F118: =IF($B118="","",SUMIF('Trust - Frontsheet'!$C$14:$C$213,$B118,'Trust - Frontsheet'!J$14:J$213)) ->  | G118: =IF($B118="","",SUMIF('Trust - Frontsheet'!$C$14:$C$213,$B118,'Trust - Frontsheet'!K$14:K$213)) ->  | H118: =IF($B118="","",SUMIF('Trust - Frontsheet'!$C$14:$C$213,$B118,'Trust - Frontsheet'!L$14:L$213)) ->  | I118: =IF($B118="","",SUMIF('Trust - Frontsheet'!$C$14:$C$213,$B118,'Trust - Frontsheet'!M$14:M$213)) ->  | J118: =IF($B118="","",SUMIF('Trust - Frontsheet'!$C$14:$C$213,$B118,'Trust - Frontsheet'!N$14:N$213)) ->  | K118: =IF($B118="","",SUMIF('Trust - Frontsheet'!$C$14:$C$213,$B118,'Trust - Frontsheet'!O$14:O$213)) ->  | P118: =IF($B118="","",SUMIF('Trust - Frontsheet'!$C$14:$C$213,$B118,'Trust - Frontsheet'!T$14:T$213)) -> 
B119: =IF(ISERROR(INDEX('Trust - Frontsheet'!AV$1:AV$6187,SMALL(IF('Trust - Frontsheet'!$AX$1:$AX$6187=$B$2,ROW('Trust - Frontsheet'!$AX$1:$AX$6187)),ROW(113:113)))),"",INDEX('Trust - Frontsheet'!AV$1:AV$6187,SMALL(IF('Trust - Frontsheet'!$AX$1:$AX$6187=$B$2,ROW('Trust - Frontsheet'!$AX$1:$AX$6187)),ROW(113:113)))) ->  | C119: =IF(ISERROR(INDEX('Trust - Frontsheet'!AW$1:AW$6187,SMALL(IF('Trust - Frontsheet'!$AX$1:$AX$6187=$B$2,ROW('Trust - Frontsheet'!$AX$1:$AX$6187)),ROW(113:113)))),"",INDEX('Trust - Frontsheet'!AW$1:AW$6187,SMALL(IF('Trust - Frontsheet'!$AX$1:$AX$6187=$B$2,ROW('Trust - Frontsheet'!$AX$1:$AX$6187)),ROW(113:113)))) ->  | D119: =IF($B119="","",SUMIF('Trust - Frontsheet'!$C$14:$C$213,$B119,'Trust - Frontsheet'!H$14:H$213)) ->  | E119: =IF($B119="","",SUMIF('Trust - Frontsheet'!$C$14:$C$213,$B119,'Trust - Frontsheet'!I$14:I$213)) ->  | F119: =IF($B119="","",SUMIF('Trust - Frontsheet'!$C$14:$C$213,$B119,'Trust - Frontsheet'!J$14:J$213)) ->  | G119: =IF($B119="","",SUMIF('Trust - Frontsheet'!$C$14:$C$213,$B119,'Trust - Frontsheet'!K$14:K$213)) ->  | H119: =IF($B119="","",SUMIF('Trust - Frontsheet'!$C$14:$C$213,$B119,'Trust - Frontsheet'!L$14:L$213)) ->  | I119: =IF($B119="","",SUMIF('Trust - Frontsheet'!$C$14:$C$213,$B119,'Trust - Frontsheet'!M$14:M$213)) ->  | J119: =IF($B119="","",SUMIF('Trust - Frontsheet'!$C$14:$C$213,$B119,'Trust - Frontsheet'!N$14:N$213)) ->  | K119: =IF($B119="","",SUMIF('Trust - Frontsheet'!$C$14:$C$213,$B119,'Trust - Frontsheet'!O$14:O$213)) ->  | P119: =IF($B119="","",SUMIF('Trust - Frontsheet'!$C$14:$C$213,$B119,'Trust - Frontsheet'!T$14:T$213)) -> 
B120: =IF(ISERROR(INDEX('Trust - Frontsheet'!AV$1:AV$6187,SMALL(IF('Trust - Frontsheet'!$AX$1:$AX$6187=$B$2,ROW('Trust - Frontsheet'!$AX$1:$AX$6187)),ROW(114:114)))),"",INDEX('Trust - Frontsheet'!AV$1:AV$6187,SMALL(IF('Trust - Frontsheet'!$AX$1:$AX$6187=$B$2,ROW('Trust - Frontsheet'!$AX$1:$AX$6187)),ROW(114:114)))) ->  | C120: =IF(ISERROR(INDEX('Trust - Frontsheet'!AW$1:AW$6187,SMALL(IF('Trust - Frontsheet'!$AX$1:$AX$6187=$B$2,ROW('Trust - Frontsheet'!$AX$1:$AX$6187)),ROW(114:114)))),"",INDEX('Trust - Frontsheet'!AW$1:AW$6187,SMALL(IF('Trust - Frontsheet'!$AX$1:$AX$6187=$B$2,ROW('Trust - Frontsheet'!$AX$1:$AX$6187)),ROW(114:114)))) ->  | D120: =IF($B120="","",SUMIF('Trust - Frontsheet'!$C$14:$C$213,$B120,'Trust - Frontsheet'!H$14:H$213)) ->  | E120: =IF($B120="","",SUMIF('Trust - Frontsheet'!$C$14:$C$213,$B120,'Trust - Frontsheet'!I$14:I$213)) ->  | F120: =IF($B120="","",SUMIF('Trust - Frontsheet'!$C$14:$C$213,$B120,'Trust - Frontsheet'!J$14:J$213)) ->  | G120: =IF($B120="","",SUMIF('Trust - Frontsheet'!$C$14:$C$213,$B120,'Trust - Frontsheet'!K$14:K$213)) ->  | H120: =IF($B120="","",SUMIF('Trust - Frontsheet'!$C$14:$C$213,$B120,'Trust - Frontsheet'!L$14:L$213)) ->  | I120: =IF($B120="","",SUMIF('Trust - Frontsheet'!$C$14:$C$213,$B120,'Trust - Frontsheet'!M$14:M$213)) ->  | J120: =IF($B120="","",SUMIF('Trust - Frontsheet'!$C$14:$C$213,$B120,'Trust - Frontsheet'!N$14:N$213)) ->  | K120: =IF($B120="","",SUMIF('Trust - Frontsheet'!$C$14:$C$213,$B120,'Trust - Frontsheet'!O$14:O$213)) ->  | P120: =IF($B120="","",SUMIF('Trust - Frontsheet'!$C$14:$C$213,$B120,'Trust - Frontsheet'!T$14:T$213)) -> 
B121: =IF(ISERROR(INDEX('Trust - Frontsheet'!AV$1:AV$6187,SMALL(IF('Trust - Frontsheet'!$AX$1:$AX$6187=$B$2,ROW('Trust - Frontsheet'!$AX$1:$AX$6187)),ROW(115:115)))),"",INDEX('Trust - Frontsheet'!AV$1:AV$6187,SMALL(IF('Trust - Frontsheet'!$AX$1:$AX$6187=$B$2,ROW('Trust - Frontsheet'!$AX$1:$AX$6187)),ROW(115:115)))) ->  | C121: =IF(ISERROR(INDEX('Trust - Frontsheet'!AW$1:AW$6187,SMALL(IF('Trust - Frontsheet'!$AX$1:$AX$6187=$B$2,ROW('Trust - Frontsheet'!$AX$1:$AX$6187)),ROW(115:115)))),"",INDEX('Trust - Frontsheet'!AW$1:AW$6187,SMALL(IF('Trust - Frontsheet'!$AX$1:$AX$6187=$B$2,ROW('Trust - Frontsheet'!$AX$1:$AX$6187)),ROW(115:115)))) ->  | D121: =IF($B121="","",SUMIF('Trust - Frontsheet'!$C$14:$C$213,$B121,'Trust - Frontsheet'!H$14:H$213)) ->  | E121: =IF($B121="","",SUMIF('Trust - Frontsheet'!$C$14:$C$213,$B121,'Trust - Frontsheet'!I$14:I$213)) ->  | F121: =IF($B121="","",SUMIF('Trust - Frontsheet'!$C$14:$C$213,$B121,'Trust - Frontsheet'!J$14:J$213)) ->  | G121: =IF($B121="","",SUMIF('Trust - Frontsheet'!$C$14:$C$213,$B121,'Trust - Frontsheet'!K$14:K$213)) ->  | H121: =IF($B121="","",SUMIF('Trust - Frontsheet'!$C$14:$C$213,$B121,'Trust - Frontsheet'!L$14:L$213)) ->  | I121: =IF($B121="","",SUMIF('Trust - Frontsheet'!$C$14:$C$213,$B121,'Trust - Frontsheet'!M$14:M$213)) ->  | J121: =IF($B121="","",SUMIF('Trust - Frontsheet'!$C$14:$C$213,$B121,'Trust - Frontsheet'!N$14:N$213)) ->  | K121: =IF($B121="","",SUMIF('Trust - Frontsheet'!$C$14:$C$213,$B121,'Trust - Frontsheet'!O$14:O$213)) ->  | P121: =IF($B121="","",SUMIF('Trust - Frontsheet'!$C$14:$C$213,$B121,'Trust - Frontsheet'!T$14:T$213)) -> 
B122: =IF(ISERROR(INDEX('Trust - Frontsheet'!AV$1:AV$6187,SMALL(IF('Trust - Frontsheet'!$AX$1:$AX$6187=$B$2,ROW('Trust - Frontsheet'!$AX$1:$AX$6187)),ROW(116:116)))),"",INDEX('Trust - Frontsheet'!AV$1:AV$6187,SMALL(IF('Trust - Frontsheet'!$AX$1:$AX$6187=$B$2,ROW('Trust - Frontsheet'!$AX$1:$AX$6187)),ROW(116:116)))) ->  | C122: =IF(ISERROR(INDEX('Trust - Frontsheet'!AW$1:AW$6187,SMALL(IF('Trust - Frontsheet'!$AX$1:$AX$6187=$B$2,ROW('Trust - Frontsheet'!$AX$1:$AX$6187)),ROW(116:116)))),"",INDEX('Trust - Frontsheet'!AW$1:AW$6187,SMALL(IF('Trust - Frontsheet'!$AX$1:$AX$6187=$B$2,ROW('Trust - Frontsheet'!$AX$1:$AX$6187)),ROW(116:116)))) ->  | D122: =IF($B122="","",SUMIF('Trust - Frontsheet'!$C$14:$C$213,$B122,'Trust - Frontsheet'!H$14:H$213)) ->  | E122: =IF($B122="","",SUMIF('Trust - Frontsheet'!$C$14:$C$213,$B122,'Trust - Frontsheet'!I$14:I$213)) ->  | F122: =IF($B122="","",SUMIF('Trust - Frontsheet'!$C$14:$C$213,$B122,'Trust - Frontsheet'!J$14:J$213)) ->  | G122: =IF($B122="","",SUMIF('Trust - Frontsheet'!$C$14:$C$213,$B122,'Trust - Frontsheet'!K$14:K$213)) ->  | H122: =IF($B122="","",SUMIF('Trust - Frontsheet'!$C$14:$C$213,$B122,'Trust - Frontsheet'!L$14:L$213)) ->  | I122: =IF($B122="","",SUMIF('Trust - Frontsheet'!$C$14:$C$213,$B122,'Trust - Frontsheet'!M$14:M$213)) ->  | J122: =IF($B122="","",SUMIF('Trust - Frontsheet'!$C$14:$C$213,$B122,'Trust - Frontsheet'!N$14:N$213)) ->  | K122: =IF($B122="","",SUMIF('Trust - Frontsheet'!$C$14:$C$213,$B122,'Trust - Frontsheet'!O$14:O$213)) ->  | P122: =IF($B122="","",SUMIF('Trust - Frontsheet'!$C$14:$C$213,$B122,'Trust - Frontsheet'!T$14:T$213)) -> 
B123: =IF(ISERROR(INDEX('Trust - Frontsheet'!AV$1:AV$6187,SMALL(IF('Trust - Frontsheet'!$AX$1:$AX$6187=$B$2,ROW('Trust - Frontsheet'!$AX$1:$AX$6187)),ROW(117:117)))),"",INDEX('Trust - Frontsheet'!AV$1:AV$6187,SMALL(IF('Trust - Frontsheet'!$AX$1:$AX$6187=$B$2,ROW('Trust - Frontsheet'!$AX$1:$AX$6187)),ROW(117:117)))) ->  | C123: =IF(ISERROR(INDEX('Trust - Frontsheet'!AW$1:AW$6187,SMALL(IF('Trust - Frontsheet'!$AX$1:$AX$6187=$B$2,ROW('Trust - Frontsheet'!$AX$1:$AX$6187)),ROW(117:117)))),"",INDEX('Trust - Frontsheet'!AW$1:AW$6187,SMALL(IF('Trust - Frontsheet'!$AX$1:$AX$6187=$B$2,ROW('Trust - Frontsheet'!$AX$1:$AX$6187)),ROW(117:117)))) ->  | D123: =IF($B123="","",SUMIF('Trust - Frontsheet'!$C$14:$C$213,$B123,'Trust - Frontsheet'!H$14:H$213)) ->  | E123: =IF($B123="","",SUMIF('Trust - Frontsheet'!$C$14:$C$213,$B123,'Trust - Frontsheet'!I$14:I$213)) ->  | F123: =IF($B123="","",SUMIF('Trust - Frontsheet'!$C$14:$C$213,$B123,'Trust - Frontsheet'!J$14:J$213)) ->  | G123: =IF($B123="","",SUMIF('Trust - Frontsheet'!$C$14:$C$213,$B123,'Trust - Frontsheet'!K$14:K$213)) ->  | H123: =IF($B123="","",SUMIF('Trust - Frontsheet'!$C$14:$C$213,$B123,'Trust - Frontsheet'!L$14:L$213)) ->  | I123: =IF($B123="","",SUMIF('Trust - Frontsheet'!$C$14:$C$213,$B123,'Trust - Frontsheet'!M$14:M$213)) ->  | J123: =IF($B123="","",SUMIF('Trust - Frontsheet'!$C$14:$C$213,$B123,'Trust - Frontsheet'!N$14:N$213)) ->  | K123: =IF($B123="","",SUMIF('Trust - Frontsheet'!$C$14:$C$213,$B123,'Trust - Frontsheet'!O$14:O$213)) ->  | P123: =IF($B123="","",SUMIF('Trust - Frontsheet'!$C$14:$C$213,$B123,'Trust - Frontsheet'!T$14:T$213)) -> 
B124: =IF(ISERROR(INDEX('Trust - Frontsheet'!AV$1:AV$6187,SMALL(IF('Trust - Frontsheet'!$AX$1:$AX$6187=$B$2,ROW('Trust - Frontsheet'!$AX$1:$AX$6187)),ROW(118:118)))),"",INDEX('Trust - Frontsheet'!AV$1:AV$6187,SMALL(IF('Trust - Frontsheet'!$AX$1:$AX$6187=$B$2,ROW('Trust - Frontsheet'!$AX$1:$AX$6187)),ROW(118:118)))) ->  | C124: =IF(ISERROR(INDEX('Trust - Frontsheet'!AW$1:AW$6187,SMALL(IF('Trust - Frontsheet'!$AX$1:$AX$6187=$B$2,ROW('Trust - Frontsheet'!$AX$1:$AX$6187)),ROW(118:118)))),"",INDEX('Trust - Frontsheet'!AW$1:AW$6187,SMALL(IF('Trust - Frontsheet'!$AX$1:$AX$6187=$B$2,ROW('Trust - Frontsheet'!$AX$1:$AX$6187)),ROW(118:118)))) ->  | D124: =IF($B124="","",SUMIF('Trust - Frontsheet'!$C$14:$C$213,$B124,'Trust - Frontsheet'!H$14:H$213)) ->  | E124: =IF($B124="","",SUMIF('Trust - Frontsheet'!$C$14:$C$213,$B124,'Trust - Frontsheet'!I$14:I$213)) ->  | F124: =IF($B124="","",SUMIF('Trust - Frontsheet'!$C$14:$C$213,$B124,'Trust - Frontsheet'!J$14:J$213)) ->  | G124: =IF($B124="","",SUMIF('Trust - Frontsheet'!$C$14:$C$213,$B124,'Trust - Frontsheet'!K$14:K$213)) ->  | H124: =IF($B124="","",SUMIF('Trust - Frontsheet'!$C$14:$C$213,$B124,'Trust - Frontsheet'!L$14:L$213)) ->  | I124: =IF($B124="","",SUMIF('Trust - Frontsheet'!$C$14:$C$213,$B124,'Trust - Frontsheet'!M$14:M$213)) ->  | J124: =IF($B124="","",SUMIF('Trust - Frontsheet'!$C$14:$C$213,$B124,'Trust - Frontsheet'!N$14:N$213)) ->  | K124: =IF($B124="","",SUMIF('Trust - Frontsheet'!$C$14:$C$213,$B124,'Trust - Frontsheet'!O$14:O$213)) ->  | P124: =IF($B124="","",SUMIF('Trust - Frontsheet'!$C$14:$C$213,$B124,'Trust - Frontsheet'!T$14:T$213)) -> 
B125: =IF(ISERROR(INDEX('Trust - Frontsheet'!AV$1:AV$6187,SMALL(IF('Trust - Frontsheet'!$AX$1:$AX$6187=$B$2,ROW('Trust - Frontsheet'!$AX$1:$AX$6187)),ROW(119:119)))),"",INDEX('Trust - Frontsheet'!AV$1:AV$6187,SMALL(IF('Trust - Frontsheet'!$AX$1:$AX$6187=$B$2,ROW('Trust - Frontsheet'!$AX$1:$AX$6187)),ROW(119:119)))) ->  | C125: =IF(ISERROR(INDEX('Trust - Frontsheet'!AW$1:AW$6187,SMALL(IF('Trust - Frontsheet'!$AX$1:$AX$6187=$B$2,ROW('Trust - Frontsheet'!$AX$1:$AX$6187)),ROW(119:119)))),"",INDEX('Trust - Frontsheet'!AW$1:AW$6187,SMALL(IF('Trust - Frontsheet'!$AX$1:$AX$6187=$B$2,ROW('Trust - Frontsheet'!$AX$1:$AX$6187)),ROW(119:119)))) ->  | D125: =IF($B125="","",SUMIF('Trust - Frontsheet'!$C$14:$C$213,$B125,'Trust - Frontsheet'!H$14:H$213)) ->  | E125: =IF($B125="","",SUMIF('Trust - Frontsheet'!$C$14:$C$213,$B125,'Trust - Frontsheet'!I$14:I$213)) ->  | F125: =IF($B125="","",SUMIF('Trust - Frontsheet'!$C$14:$C$213,$B125,'Trust - Frontsheet'!J$14:J$213)) ->  | G125: =IF($B125="","",SUMIF('Trust - Frontsheet'!$C$14:$C$213,$B125,'Trust - Frontsheet'!K$14:K$213)) ->  | H125: =IF($B125="","",SUMIF('Trust - Frontsheet'!$C$14:$C$213,$B125,'Trust - Frontsheet'!L$14:L$213)) ->  | I125: =IF($B125="","",SUMIF('Trust - Frontsheet'!$C$14:$C$213,$B125,'Trust - Frontsheet'!M$14:M$213)) ->  | J125: =IF($B125="","",SUMIF('Trust - Frontsheet'!$C$14:$C$213,$B125,'Trust - Frontsheet'!N$14:N$213)) ->  | K125: =IF($B125="","",SUMIF('Trust - Frontsheet'!$C$14:$C$213,$B125,'Trust - Frontsheet'!O$14:O$213)) ->  | P125: =IF($B125="","",SUMIF('Trust - Frontsheet'!$C$14:$C$213,$B125,'Trust - Frontsheet'!T$14:T$213)) -> 
B126: =IF(ISERROR(INDEX('Trust - Frontsheet'!AV$1:AV$6187,SMALL(IF('Trust - Frontsheet'!$AX$1:$AX$6187=$B$2,ROW('Trust - Frontsheet'!$AX$1:$AX$6187)),ROW(120:120)))),"",INDEX('Trust - Frontsheet'!AV$1:AV$6187,SMALL(IF('Trust - Frontsheet'!$AX$1:$AX$6187=$B$2,ROW('Trust - Frontsheet'!$AX$1:$AX$6187)),ROW(120:120)))) ->  | C126: =IF(ISERROR(INDEX('Trust - Frontsheet'!AW$1:AW$6187,SMALL(IF('Trust - Frontsheet'!$AX$1:$AX$6187=$B$2,ROW('Trust - Frontsheet'!$AX$1:$AX$6187)),ROW(120:120)))),"",INDEX('Trust - Frontsheet'!AW$1:AW$6187,SMALL(IF('Trust - Frontsheet'!$AX$1:$AX$6187=$B$2,ROW('Trust - Frontsheet'!$AX$1:$AX$6187)),ROW(120:120)))) ->  | D126: =IF($B126="","",SUMIF('Trust - Frontsheet'!$C$14:$C$213,$B126,'Trust - Frontsheet'!H$14:H$213)) ->  | E126: =IF($B126="","",SUMIF('Trust - Frontsheet'!$C$14:$C$213,$B126,'Trust - Frontsheet'!I$14:I$213)) ->  | F126: =IF($B126="","",SUMIF('Trust - Frontsheet'!$C$14:$C$213,$B126,'Trust - Frontsheet'!J$14:J$213)) ->  | G126: =IF($B126="","",SUMIF('Trust - Frontsheet'!$C$14:$C$213,$B126,'Trust - Frontsheet'!K$14:K$213)) ->  | H126: =IF($B126="","",SUMIF('Trust - Frontsheet'!$C$14:$C$213,$B126,'Trust - Frontsheet'!L$14:L$213)) ->  | I126: =IF($B126="","",SUMIF('Trust - Frontsheet'!$C$14:$C$213,$B126,'Trust - Frontsheet'!M$14:M$213)) ->  | J126: =IF($B126="","",SUMIF('Trust - Frontsheet'!$C$14:$C$213,$B126,'Trust - Frontsheet'!N$14:N$213)) ->  | K126: =IF($B126="","",SUMIF('Trust - Frontsheet'!$C$14:$C$213,$B126,'Trust - Frontsheet'!O$14:O$213)) ->  | P126: =IF($B126="","",SUMIF('Trust - Frontsheet'!$C$14:$C$213,$B126,'Trust - Frontsheet'!T$14:T$213)) -> 
B127: =IF(ISERROR(INDEX('Trust - Frontsheet'!AV$1:AV$6187,SMALL(IF('Trust - Frontsheet'!$AX$1:$AX$6187=$B$2,ROW('Trust - Frontsheet'!$AX$1:$AX$6187)),ROW(121:121)))),"",INDEX('Trust - Frontsheet'!AV$1:AV$6187,SMALL(IF('Trust - Frontsheet'!$AX$1:$AX$6187=$B$2,ROW('Trust - Frontsheet'!$AX$1:$AX$6187)),ROW(121:121)))) ->  | C127: =IF(ISERROR(INDEX('Trust - Frontsheet'!AW$1:AW$6187,SMALL(IF('Trust - Frontsheet'!$AX$1:$AX$6187=$B$2,ROW('Trust - Frontsheet'!$AX$1:$AX$6187)),ROW(121:121)))),"",INDEX('Trust - Frontsheet'!AW$1:AW$6187,SMALL(IF('Trust - Frontsheet'!$AX$1:$AX$6187=$B$2,ROW('Trust - Frontsheet'!$AX$1:$AX$6187)),ROW(121:121)))) ->  | D127: =IF($B127="","",SUMIF('Trust - Frontsheet'!$C$14:$C$213,$B127,'Trust - Frontsheet'!H$14:H$213)) ->  | E127: =IF($B127="","",SUMIF('Trust - Frontsheet'!$C$14:$C$213,$B127,'Trust - Frontsheet'!I$14:I$213)) ->  | F127: =IF($B127="","",SUMIF('Trust - Frontsheet'!$C$14:$C$213,$B127,'Trust - Frontsheet'!J$14:J$213)) ->  | G127: =IF($B127="","",SUMIF('Trust - Frontsheet'!$C$14:$C$213,$B127,'Trust - Frontsheet'!K$14:K$213)) ->  | H127: =IF($B127="","",SUMIF('Trust - Frontsheet'!$C$14:$C$213,$B127,'Trust - Frontsheet'!L$14:L$213)) ->  | I127: =IF($B127="","",SUMIF('Trust - Frontsheet'!$C$14:$C$213,$B127,'Trust - Frontsheet'!M$14:M$213)) ->  | J127: =IF($B127="","",SUMIF('Trust - Frontsheet'!$C$14:$C$213,$B127,'Trust - Frontsheet'!N$14:N$213)) ->  | K127: =IF($B127="","",SUMIF('Trust - Frontsheet'!$C$14:$C$213,$B127,'Trust - Frontsheet'!O$14:O$213)) ->  | P127: =IF($B127="","",SUMIF('Trust - Frontsheet'!$C$14:$C$213,$B127,'Trust - Frontsheet'!T$14:T$213)) -> 
B128: =IF(ISERROR(INDEX('Trust - Frontsheet'!AV$1:AV$6187,SMALL(IF('Trust - Frontsheet'!$AX$1:$AX$6187=$B$2,ROW('Trust - Frontsheet'!$AX$1:$AX$6187)),ROW(122:122)))),"",INDEX('Trust - Frontsheet'!AV$1:AV$6187,SMALL(IF('Trust - Frontsheet'!$AX$1:$AX$6187=$B$2,ROW('Trust - Frontsheet'!$AX$1:$AX$6187)),ROW(122:122)))) ->  | C128: =IF(ISERROR(INDEX('Trust - Frontsheet'!AW$1:AW$6187,SMALL(IF('Trust - Frontsheet'!$AX$1:$AX$6187=$B$2,ROW('Trust - Frontsheet'!$AX$1:$AX$6187)),ROW(122:122)))),"",INDEX('Trust - Frontsheet'!AW$1:AW$6187,SMALL(IF('Trust - Frontsheet'!$AX$1:$AX$6187=$B$2,ROW('Trust - Frontsheet'!$AX$1:$AX$6187)),ROW(122:122)))) ->  | D128: =IF($B128="","",SUMIF('Trust - Frontsheet'!$C$14:$C$213,$B128,'Trust - Frontsheet'!H$14:H$213)) ->  | E128: =IF($B128="","",SUMIF('Trust - Frontsheet'!$C$14:$C$213,$B128,'Trust - Frontsheet'!I$14:I$213)) ->  | F128: =IF($B128="","",SUMIF('Trust - Frontsheet'!$C$14:$C$213,$B128,'Trust - Frontsheet'!J$14:J$213)) ->  | G128: =IF($B128="","",SUMIF('Trust - Frontsheet'!$C$14:$C$213,$B128,'Trust - Frontsheet'!K$14:K$213)) ->  | H128: =IF($B128="","",SUMIF('Trust - Frontsheet'!$C$14:$C$213,$B128,'Trust - Frontsheet'!L$14:L$213)) ->  | I128: =IF($B128="","",SUMIF('Trust - Frontsheet'!$C$14:$C$213,$B128,'Trust - Frontsheet'!M$14:M$213)) ->  | J128: =IF($B128="","",SUMIF('Trust - Frontsheet'!$C$14:$C$213,$B128,'Trust - Frontsheet'!N$14:N$213)) ->  | K128: =IF($B128="","",SUMIF('Trust - Frontsheet'!$C$14:$C$213,$B128,'Trust - Frontsheet'!O$14:O$213)) ->  | P128: =IF($B128="","",SUMIF('Trust - Frontsheet'!$C$14:$C$213,$B128,'Trust - Frontsheet'!T$14:T$213)) -> 
B129: =IF(ISERROR(INDEX('Trust - Frontsheet'!AV$1:AV$6187,SMALL(IF('Trust - Frontsheet'!$AX$1:$AX$6187=$B$2,ROW('Trust - Frontsheet'!$AX$1:$AX$6187)),ROW(123:123)))),"",INDEX('Trust - Frontsheet'!AV$1:AV$6187,SMALL(IF('Trust - Frontsheet'!$AX$1:$AX$6187=$B$2,ROW('Trust - Frontsheet'!$AX$1:$AX$6187)),ROW(123:123)))) ->  | C129: =IF(ISERROR(INDEX('Trust - Frontsheet'!AW$1:AW$6187,SMALL(IF('Trust - Frontsheet'!$AX$1:$AX$6187=$B$2,ROW('Trust - Frontsheet'!$AX$1:$AX$6187)),ROW(123:123)))),"",INDEX('Trust - Frontsheet'!AW$1:AW$6187,SMALL(IF('Trust - Frontsheet'!$AX$1:$AX$6187=$B$2,ROW('Trust - Frontsheet'!$AX$1:$AX$6187)),ROW(123:123)))) ->  | D129: =IF($B129="","",SUMIF('Trust - Frontsheet'!$C$14:$C$213,$B129,'Trust - Frontsheet'!H$14:H$213)) ->  | E129: =IF($B129="","",SUMIF('Trust - Frontsheet'!$C$14:$C$213,$B129,'Trust - Frontsheet'!I$14:I$213)) ->  | F129: =IF($B129="","",SUMIF('Trust - Frontsheet'!$C$14:$C$213,$B129,'Trust - Frontsheet'!J$14:J$213)) ->  | G129: =IF($B129="","",SUMIF('Trust - Frontsheet'!$C$14:$C$213,$B129,'Trust - Frontsheet'!K$14:K$213)) ->  | H129: =IF($B129="","",SUMIF('Trust - Frontsheet'!$C$14:$C$213,$B129,'Trust - Frontsheet'!L$14:L$213)) ->  | I129: =IF($B129="","",SUMIF('Trust - Frontsheet'!$C$14:$C$213,$B129,'Trust - Frontsheet'!M$14:M$213)) ->  | J129: =IF($B129="","",SUMIF('Trust - Frontsheet'!$C$14:$C$213,$B129,'Trust - Frontsheet'!N$14:N$213)) ->  | K129: =IF($B129="","",SUMIF('Trust - Frontsheet'!$C$14:$C$213,$B129,'Trust - Frontsheet'!O$14:O$213)) ->  | P129: =IF($B129="","",SUMIF('Trust - Frontsheet'!$C$14:$C$213,$B129,'Trust - Frontsheet'!T$14:T$213)) -> 
B130: =IF(ISERROR(INDEX('Trust - Frontsheet'!AV$1:AV$6187,SMALL(IF('Trust - Frontsheet'!$AX$1:$AX$6187=$B$2,ROW('Trust - Frontsheet'!$AX$1:$AX$6187)),ROW(124:124)))),"",INDEX('Trust - Frontsheet'!AV$1:AV$6187,SMALL(IF('Trust - Frontsheet'!$AX$1:$AX$6187=$B$2,ROW('Trust - Frontsheet'!$AX$1:$AX$6187)),ROW(124:124)))) ->  | C130: =IF(ISERROR(INDEX('Trust - Frontsheet'!AW$1:AW$6187,SMALL(IF('Trust - Frontsheet'!$AX$1:$AX$6187=$B$2,ROW('Trust - Frontsheet'!$AX$1:$AX$6187)),ROW(124:124)))),"",INDEX('Trust - Frontsheet'!AW$1:AW$6187,SMALL(IF('Trust - Frontsheet'!$AX$1:$AX$6187=$B$2,ROW('Trust - Frontsheet'!$AX$1:$AX$6187)),ROW(124:124)))) ->  | D130: =IF($B130="","",SUMIF('Trust - Frontsheet'!$C$14:$C$213,$B130,'Trust - Frontsheet'!H$14:H$213)) ->  | E130: =IF($B130="","",SUMIF('Trust - Frontsheet'!$C$14:$C$213,$B130,'Trust - Frontsheet'!I$14:I$213)) ->  | F130: =IF($B130="","",SUMIF('Trust - Frontsheet'!$C$14:$C$213,$B130,'Trust - Frontsheet'!J$14:J$213)) ->  | G130: =IF($B130="","",SUMIF('Trust - Frontsheet'!$C$14:$C$213,$B130,'Trust - Frontsheet'!K$14:K$213)) ->  | H130: =IF($B130="","",SUMIF('Trust - Frontsheet'!$C$14:$C$213,$B130,'Trust - Frontsheet'!L$14:L$213)) ->  | I130: =IF($B130="","",SUMIF('Trust - Frontsheet'!$C$14:$C$213,$B130,'Trust - Frontsheet'!M$14:M$213)) ->  | J130: =IF($B130="","",SUMIF('Trust - Frontsheet'!$C$14:$C$213,$B130,'Trust - Frontsheet'!N$14:N$213)) ->  | K130: =IF($B130="","",SUMIF('Trust - Frontsheet'!$C$14:$C$213,$B130,'Trust - Frontsheet'!O$14:O$213)) ->  | P130: =IF($B130="","",SUMIF('Trust - Frontsheet'!$C$14:$C$213,$B130,'Trust - Frontsheet'!T$14:T$213)) -> 
B131: =IF(ISERROR(INDEX('Trust - Frontsheet'!AV$1:AV$6187,SMALL(IF('Trust - Frontsheet'!$AX$1:$AX$6187=$B$2,ROW('Trust - Frontsheet'!$AX$1:$AX$6187)),ROW(125:125)))),"",INDEX('Trust - Frontsheet'!AV$1:AV$6187,SMALL(IF('Trust - Frontsheet'!$AX$1:$AX$6187=$B$2,ROW('Trust - Frontsheet'!$AX$1:$AX$6187)),ROW(125:125)))) ->  | C131: =IF(ISERROR(INDEX('Trust - Frontsheet'!AW$1:AW$6187,SMALL(IF('Trust - Frontsheet'!$AX$1:$AX$6187=$B$2,ROW('Trust - Frontsheet'!$AX$1:$AX$6187)),ROW(125:125)))),"",INDEX('Trust - Frontsheet'!AW$1:AW$6187,SMALL(IF('Trust - Frontsheet'!$AX$1:$AX$6187=$B$2,ROW('Trust - Frontsheet'!$AX$1:$AX$6187)),ROW(125:125)))) ->  | D131: =IF($B131="","",SUMIF('Trust - Frontsheet'!$C$14:$C$213,$B131,'Trust - Frontsheet'!H$14:H$213)) ->  | E131: =IF($B131="","",SUMIF('Trust - Frontsheet'!$C$14:$C$213,$B131,'Trust - Frontsheet'!I$14:I$213)) ->  | F131: =IF($B131="","",SUMIF('Trust - Frontsheet'!$C$14:$C$213,$B131,'Trust - Frontsheet'!J$14:J$213)) ->  | G131: =IF($B131="","",SUMIF('Trust - Frontsheet'!$C$14:$C$213,$B131,'Trust - Frontsheet'!K$14:K$213)) ->  | H131: =IF($B131="","",SUMIF('Trust - Frontsheet'!$C$14:$C$213,$B131,'Trust - Frontsheet'!L$14:L$213)) ->  | I131: =IF($B131="","",SUMIF('Trust - Frontsheet'!$C$14:$C$213,$B131,'Trust - Frontsheet'!M$14:M$213)) ->  | J131: =IF($B131="","",SUMIF('Trust - Frontsheet'!$C$14:$C$213,$B131,'Trust - Frontsheet'!N$14:N$213)) ->  | K131: =IF($B131="","",SUMIF('Trust - Frontsheet'!$C$14:$C$213,$B131,'Trust - Frontsheet'!O$14:O$213)) ->  | P131: =IF($B131="","",SUMIF('Trust - Frontsheet'!$C$14:$C$213,$B131,'Trust - Frontsheet'!T$14:T$213)) -> 
B132: =IF(ISERROR(INDEX('Trust - Frontsheet'!AV$1:AV$6187,SMALL(IF('Trust - Frontsheet'!$AX$1:$AX$6187=$B$2,ROW('Trust - Frontsheet'!$AX$1:$AX$6187)),ROW(126:126)))),"",INDEX('Trust - Frontsheet'!AV$1:AV$6187,SMALL(IF('Trust - Frontsheet'!$AX$1:$AX$6187=$B$2,ROW('Trust - Frontsheet'!$AX$1:$AX$6187)),ROW(126:126)))) ->  | C132: =IF(ISERROR(INDEX('Trust - Frontsheet'!AW$1:AW$6187,SMALL(IF('Trust - Frontsheet'!$AX$1:$AX$6187=$B$2,ROW('Trust - Frontsheet'!$AX$1:$AX$6187)),ROW(126:126)))),"",INDEX('Trust - Frontsheet'!AW$1:AW$6187,SMALL(IF('Trust - Frontsheet'!$AX$1:$AX$6187=$B$2,ROW('Trust - Frontsheet'!$AX$1:$AX$6187)),ROW(126:126)))) ->  | D132: =IF($B132="","",SUMIF('Trust - Frontsheet'!$C$14:$C$213,$B132,'Trust - Frontsheet'!H$14:H$213)) ->  | E132: =IF($B132="","",SUMIF('Trust - Frontsheet'!$C$14:$C$213,$B132,'Trust - Frontsheet'!I$14:I$213)) ->  | F132: =IF($B132="","",SUMIF('Trust - Frontsheet'!$C$14:$C$213,$B132,'Trust - Frontsheet'!J$14:J$213)) ->  | G132: =IF($B132="","",SUMIF('Trust - Frontsheet'!$C$14:$C$213,$B132,'Trust - Frontsheet'!K$14:K$213)) ->  | H132: =IF($B132="","",SUMIF('Trust - Frontsheet'!$C$14:$C$213,$B132,'Trust - Frontsheet'!L$14:L$213)) ->  | I132: =IF($B132="","",SUMIF('Trust - Frontsheet'!$C$14:$C$213,$B132,'Trust - Frontsheet'!M$14:M$213)) ->  | J132: =IF($B132="","",SUMIF('Trust - Frontsheet'!$C$14:$C$213,$B132,'Trust - Frontsheet'!N$14:N$213)) ->  | K132: =IF($B132="","",SUMIF('Trust - Frontsheet'!$C$14:$C$213,$B132,'Trust - Frontsheet'!O$14:O$213)) ->  | P132: =IF($B132="","",SUMIF('Trust - Frontsheet'!$C$14:$C$213,$B132,'Trust - Frontsheet'!T$14:T$213)) -> 
B133: =IF(ISERROR(INDEX('Trust - Frontsheet'!AV$1:AV$6187,SMALL(IF('Trust - Frontsheet'!$AX$1:$AX$6187=$B$2,ROW('Trust - Frontsheet'!$AX$1:$AX$6187)),ROW(127:127)))),"",INDEX('Trust - Frontsheet'!AV$1:AV$6187,SMALL(IF('Trust - Frontsheet'!$AX$1:$AX$6187=$B$2,ROW('Trust - Frontsheet'!$AX$1:$AX$6187)),ROW(127:127)))) ->  | C133: =IF(ISERROR(INDEX('Trust - Frontsheet'!AW$1:AW$6187,SMALL(IF('Trust - Frontsheet'!$AX$1:$AX$6187=$B$2,ROW('Trust - Frontsheet'!$AX$1:$AX$6187)),ROW(127:127)))),"",INDEX('Trust - Frontsheet'!AW$1:AW$6187,SMALL(IF('Trust - Frontsheet'!$AX$1:$AX$6187=$B$2,ROW('Trust - Frontsheet'!$AX$1:$AX$6187)),ROW(127:127)))) ->  | D133: =IF($B133="","",SUMIF('Trust - Frontsheet'!$C$14:$C$213,$B133,'Trust - Frontsheet'!H$14:H$213)) ->  | E133: =IF($B133="","",SUMIF('Trust - Frontsheet'!$C$14:$C$213,$B133,'Trust - Frontsheet'!I$14:I$213)) ->  | F133: =IF($B133="","",SUMIF('Trust - Frontsheet'!$C$14:$C$213,$B133,'Trust - Frontsheet'!J$14:J$213)) ->  | G133: =IF($B133="","",SUMIF('Trust - Frontsheet'!$C$14:$C$213,$B133,'Trust - Frontsheet'!K$14:K$213)) ->  | H133: =IF($B133="","",SUMIF('Trust - Frontsheet'!$C$14:$C$213,$B133,'Trust - Frontsheet'!L$14:L$213)) ->  | I133: =IF($B133="","",SUMIF('Trust - Frontsheet'!$C$14:$C$213,$B133,'Trust - Frontsheet'!M$14:M$213)) ->  | J133: =IF($B133="","",SUMIF('Trust - Frontsheet'!$C$14:$C$213,$B133,'Trust - Frontsheet'!N$14:N$213)) ->  | K133: =IF($B133="","",SUMIF('Trust - Frontsheet'!$C$14:$C$213,$B133,'Trust - Frontsheet'!O$14:O$213)) ->  | P133: =IF($B133="","",SUMIF('Trust - Frontsheet'!$C$14:$C$213,$B133,'Trust - Frontsheet'!T$14:T$213)) -> 
B134: =IF(ISERROR(INDEX('Trust - Frontsheet'!AV$1:AV$6187,SMALL(IF('Trust - Frontsheet'!$AX$1:$AX$6187=$B$2,ROW('Trust - Frontsheet'!$AX$1:$AX$6187)),ROW(128:128)))),"",INDEX('Trust - Frontsheet'!AV$1:AV$6187,SMALL(IF('Trust - Frontsheet'!$AX$1:$AX$6187=$B$2,ROW('Trust - Frontsheet'!$AX$1:$AX$6187)),ROW(128:128)))) ->  | C134: =IF(ISERROR(INDEX('Trust - Frontsheet'!AW$1:AW$6187,SMALL(IF('Trust - Frontsheet'!$AX$1:$AX$6187=$B$2,ROW('Trust - Frontsheet'!$AX$1:$AX$6187)),ROW(128:128)))),"",INDEX('Trust - Frontsheet'!AW$1:AW$6187,SMALL(IF('Trust - Frontsheet'!$AX$1:$AX$6187=$B$2,ROW('Trust - Frontsheet'!$AX$1:$AX$6187)),ROW(128:128)))) ->  | D134: =IF($B134="","",SUMIF('Trust - Frontsheet'!$C$14:$C$213,$B134,'Trust - Frontsheet'!H$14:H$213)) ->  | E134: =IF($B134="","",SUMIF('Trust - Frontsheet'!$C$14:$C$213,$B134,'Trust - Frontsheet'!I$14:I$213)) ->  | F134: =IF($B134="","",SUMIF('Trust - Frontsheet'!$C$14:$C$213,$B134,'Trust - Frontsheet'!J$14:J$213)) ->  | G134: =IF($B134="","",SUMIF('Trust - Frontsheet'!$C$14:$C$213,$B134,'Trust - Frontsheet'!K$14:K$213)) ->  | H134: =IF($B134="","",SUMIF('Trust - Frontsheet'!$C$14:$C$213,$B134,'Trust - Frontsheet'!L$14:L$213)) ->  | I134: =IF($B134="","",SUMIF('Trust - Frontsheet'!$C$14:$C$213,$B134,'Trust - Frontsheet'!M$14:M$213)) ->  | J134: =IF($B134="","",SUMIF('Trust - Frontsheet'!$C$14:$C$213,$B134,'Trust - Frontsheet'!N$14:N$213)) ->  | K134: =IF($B134="","",SUMIF('Trust - Frontsheet'!$C$14:$C$213,$B134,'Trust - Frontsheet'!O$14:O$213)) ->  | P134: =IF($B134="","",SUMIF('Trust - Frontsheet'!$C$14:$C$213,$B134,'Trust - Frontsheet'!T$14:T$213)) -> 
B135: =IF(ISERROR(INDEX('Trust - Frontsheet'!AV$1:AV$6187,SMALL(IF('Trust - Frontsheet'!$AX$1:$AX$6187=$B$2,ROW('Trust - Frontsheet'!$AX$1:$AX$6187)),ROW(129:129)))),"",INDEX('Trust - Frontsheet'!AV$1:AV$6187,SMALL(IF('Trust - Frontsheet'!$AX$1:$AX$6187=$B$2,ROW('Trust - Frontsheet'!$AX$1:$AX$6187)),ROW(129:129)))) ->  | C135: =IF(ISERROR(INDEX('Trust - Frontsheet'!AW$1:AW$6187,SMALL(IF('Trust - Frontsheet'!$AX$1:$AX$6187=$B$2,ROW('Trust - Frontsheet'!$AX$1:$AX$6187)),ROW(129:129)))),"",INDEX('Trust - Frontsheet'!AW$1:AW$6187,SMALL(IF('Trust - Frontsheet'!$AX$1:$AX$6187=$B$2,ROW('Trust - Frontsheet'!$AX$1:$AX$6187)),ROW(129:129)))) ->  | D135: =IF($B135="","",SUMIF('Trust - Frontsheet'!$C$14:$C$213,$B135,'Trust - Frontsheet'!H$14:H$213)) ->  | E135: =IF($B135="","",SUMIF('Trust - Frontsheet'!$C$14:$C$213,$B135,'Trust - Frontsheet'!I$14:I$213)) ->  | F135: =IF($B135="","",SUMIF('Trust - Frontsheet'!$C$14:$C$213,$B135,'Trust - Frontsheet'!J$14:J$213)) ->  | G135: =IF($B135="","",SUMIF('Trust - Frontsheet'!$C$14:$C$213,$B135,'Trust - Frontsheet'!K$14:K$213)) ->  | H135: =IF($B135="","",SUMIF('Trust - Frontsheet'!$C$14:$C$213,$B135,'Trust - Frontsheet'!L$14:L$213)) ->  | I135: =IF($B135="","",SUMIF('Trust - Frontsheet'!$C$14:$C$213,$B135,'Trust - Frontsheet'!M$14:M$213)) ->  | J135: =IF($B135="","",SUMIF('Trust - Frontsheet'!$C$14:$C$213,$B135,'Trust - Frontsheet'!N$14:N$213)) ->  | K135: =IF($B135="","",SUMIF('Trust - Frontsheet'!$C$14:$C$213,$B135,'Trust - Frontsheet'!O$14:O$213)) ->  | P135: =IF($B135="","",SUMIF('Trust - Frontsheet'!$C$14:$C$213,$B135,'Trust - Frontsheet'!T$14:T$213)) -> 
B136: =IF(ISERROR(INDEX('Trust - Frontsheet'!AV$1:AV$6187,SMALL(IF('Trust - Frontsheet'!$AX$1:$AX$6187=$B$2,ROW('Trust - Frontsheet'!$AX$1:$AX$6187)),ROW(130:130)))),"",INDEX('Trust - Frontsheet'!AV$1:AV$6187,SMALL(IF('Trust - Frontsheet'!$AX$1:$AX$6187=$B$2,ROW('Trust - Frontsheet'!$AX$1:$AX$6187)),ROW(130:130)))) ->  | C136: =IF(ISERROR(INDEX('Trust - Frontsheet'!AW$1:AW$6187,SMALL(IF('Trust - Frontsheet'!$AX$1:$AX$6187=$B$2,ROW('Trust - Frontsheet'!$AX$1:$AX$6187)),ROW(130:130)))),"",INDEX('Trust - Frontsheet'!AW$1:AW$6187,SMALL(IF('Trust - Frontsheet'!$AX$1:$AX$6187=$B$2,ROW('Trust - Frontsheet'!$AX$1:$AX$6187)),ROW(130:130)))) ->  | D136: =IF($B136="","",SUMIF('Trust - Frontsheet'!$C$14:$C$213,$B136,'Trust - Frontsheet'!H$14:H$213)) ->  | E136: =IF($B136="","",SUMIF('Trust - Frontsheet'!$C$14:$C$213,$B136,'Trust - Frontsheet'!I$14:I$213)) ->  | F136: =IF($B136="","",SUMIF('Trust - Frontsheet'!$C$14:$C$213,$B136,'Trust - Frontsheet'!J$14:J$213)) ->  | G136: =IF($B136="","",SUMIF('Trust - Frontsheet'!$C$14:$C$213,$B136,'Trust - Frontsheet'!K$14:K$213)) ->  | H136: =IF($B136="","",SUMIF('Trust - Frontsheet'!$C$14:$C$213,$B136,'Trust - Frontsheet'!L$14:L$213)) ->  | I136: =IF($B136="","",SUMIF('Trust - Frontsheet'!$C$14:$C$213,$B136,'Trust - Frontsheet'!M$14:M$213)) ->  | J136: =IF($B136="","",SUMIF('Trust - Frontsheet'!$C$14:$C$213,$B136,'Trust - Frontsheet'!N$14:N$213)) ->  | K136: =IF($B136="","",SUMIF('Trust - Frontsheet'!$C$14:$C$213,$B136,'Trust - Frontsheet'!O$14:O$213)) ->  | L136: =IF(D136="","",IF(D136=0,0,E136/D136)) ->  | M136: =IF(F136="","",IF(F136=0,0,G136/F136)) ->  | N136: =IF(H136="","",IF(H136=0,0,I136/H136)) ->  | O136: =IF(J136="","",IF(J136=0,0,K136/J136)) ->  | P136: =IF($B136="","",SUMIF('Trust - Frontsheet'!$C$14:$C$213,$B136,'Trust - Frontsheet'!T$14:T$213)) ->  | Q136: =IF(ISERROR(IF($P136="","",SUM(E136,I136)/$P136)),"-",(IF($P136="","",SUM(E136,I136)/$P136))) ->  | R136: =IF(ISERROR(IF($P136="","",SUM(G136,K136)/$P136)),"-",(IF($P136="","",SUM(G136,K136)/$P136))) ->  | S136: =IF(ISERROR(IF($P136="","",SUM(E136,G136,I136,K136)/$P136)),"-",(IF($P136="","",SUM(E136,G136,I136,K136)/$P136))) -> 
B137: =IF(ISERROR(INDEX('Trust - Frontsheet'!AV$1:AV$6187,SMALL(IF('Trust - Frontsheet'!$AX$1:$AX$6187=$B$2,ROW('Trust - Frontsheet'!$AX$1:$AX$6187)),ROW(131:131)))),"",INDEX('Trust - Frontsheet'!AV$1:AV$6187,SMALL(IF('Trust - Frontsheet'!$AX$1:$AX$6187=$B$2,ROW('Trust - Frontsheet'!$AX$1:$AX$6187)),ROW(131:131)))) ->  | C137: =IF(ISERROR(INDEX('Trust - Frontsheet'!AW$1:AW$6187,SMALL(IF('Trust - Frontsheet'!$AX$1:$AX$6187=$B$2,ROW('Trust - Frontsheet'!$AX$1:$AX$6187)),ROW(131:131)))),"",INDEX('Trust - Frontsheet'!AW$1:AW$6187,SMALL(IF('Trust - Frontsheet'!$AX$1:$AX$6187=$B$2,ROW('Trust - Frontsheet'!$AX$1:$AX$6187)),ROW(131:131)))) ->  | D137: =IF($B137="","",SUMIF('Trust - Frontsheet'!$C$14:$C$213,$B137,'Trust - Frontsheet'!H$14:H$213)) ->  | E137: =IF($B137="","",SUMIF('Trust - Frontsheet'!$C$14:$C$213,$B137,'Trust - Frontsheet'!I$14:I$213)) ->  | F137: =IF($B137="","",SUMIF('Trust - Frontsheet'!$C$14:$C$213,$B137,'Trust - Frontsheet'!J$14:J$213)) ->  | G137: =IF($B137="","",SUMIF('Trust - Frontsheet'!$C$14:$C$213,$B137,'Trust - Frontsheet'!K$14:K$213)) ->  | H137: =IF($B137="","",SUMIF('Trust - Frontsheet'!$C$14:$C$213,$B137,'Trust - Frontsheet'!L$14:L$213)) ->  | I137: =IF($B137="","",SUMIF('Trust - Frontsheet'!$C$14:$C$213,$B137,'Trust - Frontsheet'!M$14:M$213)) ->  | J137: =IF($B137="","",SUMIF('Trust - Frontsheet'!$C$14:$C$213,$B137,'Trust - Frontsheet'!N$14:N$213)) ->  | K137: =IF($B137="","",SUMIF('Trust - Frontsheet'!$C$14:$C$213,$B137,'Trust - Frontsheet'!O$14:O$213)) ->  | P137: =IF($B137="","",SUMIF('Trust - Frontsheet'!$C$14:$C$213,$B137,'Trust - Frontsheet'!T$14:T$213)) -> 
B138: =IF(ISERROR(INDEX('Trust - Frontsheet'!AV$1:AV$6187,SMALL(IF('Trust - Frontsheet'!$AX$1:$AX$6187=$B$2,ROW('Trust - Frontsheet'!$AX$1:$AX$6187)),ROW(132:132)))),"",INDEX('Trust - Frontsheet'!AV$1:AV$6187,SMALL(IF('Trust - Frontsheet'!$AX$1:$AX$6187=$B$2,ROW('Trust - Frontsheet'!$AX$1:$AX$6187)),ROW(132:132)))) ->  | C138: =IF(ISERROR(INDEX('Trust - Frontsheet'!AW$1:AW$6187,SMALL(IF('Trust - Frontsheet'!$AX$1:$AX$6187=$B$2,ROW('Trust - Frontsheet'!$AX$1:$AX$6187)),ROW(132:132)))),"",INDEX('Trust - Frontsheet'!AW$1:AW$6187,SMALL(IF('Trust - Frontsheet'!$AX$1:$AX$6187=$B$2,ROW('Trust - Frontsheet'!$AX$1:$AX$6187)),ROW(132:132)))) ->  | D138: =IF($B138="","",SUMIF('Trust - Frontsheet'!$C$14:$C$213,$B138,'Trust - Frontsheet'!H$14:H$213)) ->  | E138: =IF($B138="","",SUMIF('Trust - Frontsheet'!$C$14:$C$213,$B138,'Trust - Frontsheet'!I$14:I$213)) ->  | F138: =IF($B138="","",SUMIF('Trust - Frontsheet'!$C$14:$C$213,$B138,'Trust - Frontsheet'!J$14:J$213)) ->  | G138: =IF($B138="","",SUMIF('Trust - Frontsheet'!$C$14:$C$213,$B138,'Trust - Frontsheet'!K$14:K$213)) ->  | H138: =IF($B138="","",SUMIF('Trust - Frontsheet'!$C$14:$C$213,$B138,'Trust - Frontsheet'!L$14:L$213)) ->  | I138: =IF($B138="","",SUMIF('Trust - Frontsheet'!$C$14:$C$213,$B138,'Trust - Frontsheet'!M$14:M$213)) ->  | J138: =IF($B138="","",SUMIF('Trust - Frontsheet'!$C$14:$C$213,$B138,'Trust - Frontsheet'!N$14:N$213)) ->  | K138: =IF($B138="","",SUMIF('Trust - Frontsheet'!$C$14:$C$213,$B138,'Trust - Frontsheet'!O$14:O$213)) ->  | P138: =IF($B138="","",SUMIF('Trust - Frontsheet'!$C$14:$C$213,$B138,'Trust - Frontsheet'!T$14:T$213)) -> 
B139: =IF(ISERROR(INDEX('Trust - Frontsheet'!AV$1:AV$6187,SMALL(IF('Trust - Frontsheet'!$AX$1:$AX$6187=$B$2,ROW('Trust - Frontsheet'!$AX$1:$AX$6187)),ROW(133:133)))),"",INDEX('Trust - Frontsheet'!AV$1:AV$6187,SMALL(IF('Trust - Frontsheet'!$AX$1:$AX$6187=$B$2,ROW('Trust - Frontsheet'!$AX$1:$AX$6187)),ROW(133:133)))) ->  | C139: =IF(ISERROR(INDEX('Trust - Frontsheet'!AW$1:AW$6187,SMALL(IF('Trust - Frontsheet'!$AX$1:$AX$6187=$B$2,ROW('Trust - Frontsheet'!$AX$1:$AX$6187)),ROW(133:133)))),"",INDEX('Trust - Frontsheet'!AW$1:AW$6187,SMALL(IF('Trust - Frontsheet'!$AX$1:$AX$6187=$B$2,ROW('Trust - Frontsheet'!$AX$1:$AX$6187)),ROW(133:133)))) ->  | D139: =IF($B139="","",SUMIF('Trust - Frontsheet'!$C$14:$C$213,$B139,'Trust - Frontsheet'!H$14:H$213)) ->  | E139: =IF($B139="","",SUMIF('Trust - Frontsheet'!$C$14:$C$213,$B139,'Trust - Frontsheet'!I$14:I$213)) ->  | F139: =IF($B139="","",SUMIF('Trust - Frontsheet'!$C$14:$C$213,$B139,'Trust - Frontsheet'!J$14:J$213)) ->  | G139: =IF($B139="","",SUMIF('Trust - Frontsheet'!$C$14:$C$213,$B139,'Trust - Frontsheet'!K$14:K$213)) ->  | H139: =IF($B139="","",SUMIF('Trust - Frontsheet'!$C$14:$C$213,$B139,'Trust - Frontsheet'!L$14:L$213)) ->  | I139: =IF($B139="","",SUMIF('Trust - Frontsheet'!$C$14:$C$213,$B139,'Trust - Frontsheet'!M$14:M$213)) ->  | J139: =IF($B139="","",SUMIF('Trust - Frontsheet'!$C$14:$C$213,$B139,'Trust - Frontsheet'!N$14:N$213)) ->  | K139: =IF($B139="","",SUMIF('Trust - Frontsheet'!$C$14:$C$213,$B139,'Trust - Frontsheet'!O$14:O$213)) ->  | P139: =IF($B139="","",SUMIF('Trust - Frontsheet'!$C$14:$C$213,$B139,'Trust - Frontsheet'!T$14:T$213)) -> 
B140: =IF(ISERROR(INDEX('Trust - Frontsheet'!AV$1:AV$6187,SMALL(IF('Trust - Frontsheet'!$AX$1:$AX$6187=$B$2,ROW('Trust - Frontsheet'!$AX$1:$AX$6187)),ROW(134:134)))),"",INDEX('Trust - Frontsheet'!AV$1:AV$6187,SMALL(IF('Trust - Frontsheet'!$AX$1:$AX$6187=$B$2,ROW('Trust - Frontsheet'!$AX$1:$AX$6187)),ROW(134:134)))) ->  | C140: =IF(ISERROR(INDEX('Trust - Frontsheet'!AW$1:AW$6187,SMALL(IF('Trust - Frontsheet'!$AX$1:$AX$6187=$B$2,ROW('Trust - Frontsheet'!$AX$1:$AX$6187)),ROW(134:134)))),"",INDEX('Trust - Frontsheet'!AW$1:AW$6187,SMALL(IF('Trust - Frontsheet'!$AX$1:$AX$6187=$B$2,ROW('Trust - Frontsheet'!$AX$1:$AX$6187)),ROW(134:134)))) ->  | D140: =IF($B140="","",SUMIF('Trust - Frontsheet'!$C$14:$C$213,$B140,'Trust - Frontsheet'!H$14:H$213)) ->  | E140: =IF($B140="","",SUMIF('Trust - Frontsheet'!$C$14:$C$213,$B140,'Trust - Frontsheet'!I$14:I$213)) ->  | F140: =IF($B140="","",SUMIF('Trust - Frontsheet'!$C$14:$C$213,$B140,'Trust - Frontsheet'!J$14:J$213)) ->  | G140: =IF($B140="","",SUMIF('Trust - Frontsheet'!$C$14:$C$213,$B140,'Trust - Frontsheet'!K$14:K$213)) ->  | H140: =IF($B140="","",SUMIF('Trust - Frontsheet'!$C$14:$C$213,$B140,'Trust - Frontsheet'!L$14:L$213)) ->  | I140: =IF($B140="","",SUMIF('Trust - Frontsheet'!$C$14:$C$213,$B140,'Trust - Frontsheet'!M$14:M$213)) ->  | J140: =IF($B140="","",SUMIF('Trust - Frontsheet'!$C$14:$C$213,$B140,'Trust - Frontsheet'!N$14:N$213)) ->  | K140: =IF($B140="","",SUMIF('Trust - Frontsheet'!$C$14:$C$213,$B140,'Trust - Frontsheet'!O$14:O$213)) ->  | P140: =IF($B140="","",SUMIF('Trust - Frontsheet'!$C$14:$C$213,$B140,'Trust - Frontsheet'!T$14:T$213)) -> 
B141: =IF(ISERROR(INDEX('Trust - Frontsheet'!AV$1:AV$6187,SMALL(IF('Trust - Frontsheet'!$AX$1:$AX$6187=$B$2,ROW('Trust - Frontsheet'!$AX$1:$AX$6187)),ROW(135:135)))),"",INDEX('Trust - Frontsheet'!AV$1:AV$6187,SMALL(IF('Trust - Frontsheet'!$AX$1:$AX$6187=$B$2,ROW('Trust - Frontsheet'!$AX$1:$AX$6187)),ROW(135:135)))) ->  | C141: =IF(ISERROR(INDEX('Trust - Frontsheet'!AW$1:AW$6187,SMALL(IF('Trust - Frontsheet'!$AX$1:$AX$6187=$B$2,ROW('Trust - Frontsheet'!$AX$1:$AX$6187)),ROW(135:135)))),"",INDEX('Trust - Frontsheet'!AW$1:AW$6187,SMALL(IF('Trust - Frontsheet'!$AX$1:$AX$6187=$B$2,ROW('Trust - Frontsheet'!$AX$1:$AX$6187)),ROW(135:135)))) ->  | D141: =IF($B141="","",SUMIF('Trust - Frontsheet'!$C$14:$C$213,$B141,'Trust - Frontsheet'!H$14:H$213)) ->  | E141: =IF($B141="","",SUMIF('Trust - Frontsheet'!$C$14:$C$213,$B141,'Trust - Frontsheet'!I$14:I$213)) ->  | F141: =IF($B141="","",SUMIF('Trust - Frontsheet'!$C$14:$C$213,$B141,'Trust - Frontsheet'!J$14:J$213)) ->  | G141: =IF($B141="","",SUMIF('Trust - Frontsheet'!$C$14:$C$213,$B141,'Trust - Frontsheet'!K$14:K$213)) ->  | H141: =IF($B141="","",SUMIF('Trust - Frontsheet'!$C$14:$C$213,$B141,'Trust - Frontsheet'!L$14:L$213)) ->  | I141: =IF($B141="","",SUMIF('Trust - Frontsheet'!$C$14:$C$213,$B141,'Trust - Frontsheet'!M$14:M$213)) ->  | J141: =IF($B141="","",SUMIF('Trust - Frontsheet'!$C$14:$C$213,$B141,'Trust - Frontsheet'!N$14:N$213)) ->  | K141: =IF($B141="","",SUMIF('Trust - Frontsheet'!$C$14:$C$213,$B141,'Trust - Frontsheet'!O$14:O$213)) ->  | P141: =IF($B141="","",SUMIF('Trust - Frontsheet'!$C$14:$C$213,$B141,'Trust - Frontsheet'!T$14:T$213)) -> 
B142: =IF(ISERROR(INDEX('Trust - Frontsheet'!AV$1:AV$6187,SMALL(IF('Trust - Frontsheet'!$AX$1:$AX$6187=$B$2,ROW('Trust - Frontsheet'!$AX$1:$AX$6187)),ROW(136:136)))),"",INDEX('Trust - Frontsheet'!AV$1:AV$6187,SMALL(IF('Trust - Frontsheet'!$AX$1:$AX$6187=$B$2,ROW('Trust - Frontsheet'!$AX$1:$AX$6187)),ROW(136:136)))) ->  | C142: =IF(ISERROR(INDEX('Trust - Frontsheet'!AW$1:AW$6187,SMALL(IF('Trust - Frontsheet'!$AX$1:$AX$6187=$B$2,ROW('Trust - Frontsheet'!$AX$1:$AX$6187)),ROW(136:136)))),"",INDEX('Trust - Frontsheet'!AW$1:AW$6187,SMALL(IF('Trust - Frontsheet'!$AX$1:$AX$6187=$B$2,ROW('Trust - Frontsheet'!$AX$1:$AX$6187)),ROW(136:136)))) ->  | D142: =IF($B142="","",SUMIF('Trust - Frontsheet'!$C$14:$C$213,$B142,'Trust - Frontsheet'!H$14:H$213)) ->  | E142: =IF($B142="","",SUMIF('Trust - Frontsheet'!$C$14:$C$213,$B142,'Trust - Frontsheet'!I$14:I$213)) ->  | F142: =IF($B142="","",SUMIF('Trust - Frontsheet'!$C$14:$C$213,$B142,'Trust - Frontsheet'!J$14:J$213)) ->  | G142: =IF($B142="","",SUMIF('Trust - Frontsheet'!$C$14:$C$213,$B142,'Trust - Frontsheet'!K$14:K$213)) ->  | H142: =IF($B142="","",SUMIF('Trust - Frontsheet'!$C$14:$C$213,$B142,'Trust - Frontsheet'!L$14:L$213)) ->  | I142: =IF($B142="","",SUMIF('Trust - Frontsheet'!$C$14:$C$213,$B142,'Trust - Frontsheet'!M$14:M$213)) ->  | J142: =IF($B142="","",SUMIF('Trust - Frontsheet'!$C$14:$C$213,$B142,'Trust - Frontsheet'!N$14:N$213)) ->  | K142: =IF($B142="","",SUMIF('Trust - Frontsheet'!$C$14:$C$213,$B142,'Trust - Frontsheet'!O$14:O$213)) ->  | P142: =IF($B142="","",SUMIF('Trust - Frontsheet'!$C$14:$C$213,$B142,'Trust - Frontsheet'!T$14:T$213)) -> 
